Workbook

Sheet Notes
A1: VotingWithMultipleTimeframes.xlsm; Traders Tip spreadsheet created for the November 2020 Issue
A2: Coded beginning 2020-August-14 by Ronald McAllister (rpmac_xltt@sprynet.com)
A4: This Workbook demonstrates an EXCEL version of the ideas presented
A5: by F. Arden Thomas in an article titled "Voting With Multiple Timeframes"
A6: which originally appeared in the August 2020 issue of
A7: "Technical Analysis of Stocks and Commodities" magazine.
A9: * * * * * * * * * * * * * * * *
A11: Development Notes:
A27: New for August 2020
A28: Restructured my Symbol-Not-Found detection and now stop further processing in the not found case
A30: New with the May 2020 version of my T-Tips template: VBA to implement a "Perpetual" U.S. Markets Closed Holiday Calendar.
A32: Why we need one: The Yahoo Finance recently has begun having occasional filtration problems where bars for U.S. Market Closed Holidays
A33: make their way onto the Historical Data web page and into the Historical Data download.
A35: While testing this May 2020 spreadsheet with different symbols, I found that I sometimes had bars with the text "null" in the price fields.
A36: My code always translates the "null" text price values to zeros.
A37: The resulting zeros cause real problems with indicator computations and the amount of blank space below price candles on the price chart.
A39: "null" price bars can be valid for very lightly traded penny sheet symbols which may not trade every day the markets are open.
A40: But is definitely not normal for symbols on the big boards.
A42: A closer look determined that these "bars" were for holiday dates when the US markets are normally closed.
A43: I found it interesting that some times the next download for the same symbol would not contain any of these "holiday" bars. Weird!
A45: My approach here was to write code to determine if the DATE on a null price values bar falls on one of the 9 market closed U.S. Holidays.
A46: If the bar date corresponds to one of these market closed holidays, I drop the bar before it reaches the InputPriceData tab.
A47: If the date is not a holiday, I let the bar through with the resulting zero values.
A49: No messy tables to update over the years as there are good solid rules that can be used in VBA or any other programming language to determine
A50: the dates for U.S. Market Closed Holidays for any given calendar year.
A52: This workbook contains and uses VBA macros and may take advantage of user defined VBA Class structures.
A53: Input Data:
A54: The data in this workbook is sorted date-descending (most recent date at the top). All cell formulas and
A55: VBA routines are built assuming this date sequence.
A57: ERROR 9 (already fixed in this spreadsheet)
A58: On or about Jan 29, 2020 Yahoo Finance changed the format of the split factor expression used their historical data downloads.
A59: The Split expression went from using "/" as in "New Share Number/Old Share Number",
A60: to using ":" as in "New Share Number:Old Share Number".
A61: This caused the then current version of my VBA code to fail with a "Runtime Error '9': subscript out of range".
A63: Fix for this ERROR 9
A64: For T-Tip spreadsheets from September 2018 up to present:
A65: Selecting the Debug option takes one into the VBA at the code line which causes the failure:
A66: CellArray(C_A_RowNdx, C_A_ColNdx + 1) = SplitFactors(1)
A67: Two lines above the failing VBA line is a line that reads:
A68: SplitFactors = Split(CsvColumns(CsvColNdx), "/")
A69: Change the / to a :
A70: The corrected line should now read
A71: SplitFactors = Split(CsvColumns(CsvColNdx), ":")
A73: If you are fixing several spreadsheets and do not want to use the failure to find the fix location,
A74: you can use VBA’s FIND dialog (Ctrl F) to look for the substring
A75: SplitFactors =
A76: Do include one space and the equal sign in your FIND string
A77: Select the "Current Project" option
A78: There should only be one instance.
A80: T-Tip spreadsheets prior to the September 2018 spreadsheet do not hard fail.
A82: They just get weird results in the split columns of the Input Price Data tab (soft fail).
A83: These older spreadsheets used different data retrieval and formatting logic.
A85: To fix these older spreadsheets:
A86: In the VBA editor, use find (CTRL-F).
A87: Select the "Current Project" option, and search for the following:
A88: OtherChar:="/"
A89: You are looking for a hit in a line reading:
A90: Other:=True, OtherChar:="/", _
A91: This line is part of a multiline block of code starting with a line that reads:
A92: SplitRange.Offset(0, 1).Resize(SpRows, 1).TextToColumns
A93: Change the / to a : so that the line reads
A94: Other:=True, OtherChar:=":", _
A97: 2019-04-04 Finally came up with a mechanism to align the left location and overall length of the cursor scroll bar so that the left most and right most
A98: scroll bar thumb positions visually align reasonably well with the left and right ends of the price chart horizontal axis.
A99: Makes it a little easier to visually align the Thumb and thus the cursor with points of interest on the charts.
A101: Older:
B102: My sincere apologies to our Macintosh based readers: Neither MSXML nor WinHttpRequest are supported in your environment. So as it stands this version of the spreadsheet will not work for you.
B103: See "Why this approach does not work for Macintosh" below.
B104: I am investigating cURL as a non-Querytable based approach for the Macintosh environment.
A106: The new Yahoo Finance history download interface has changed rather radically. The biggest hurdle being a pseudo-security requirement of adding a
B107: crumb character string to any URL requesting any type of history download. That crumb must match up (by way of some sort of hash algorithm) with
B108: the Yahoo Finance cookie that must also be sent with any request to the new Yahoo History down load interface.
B110: A crumb value is returned, buried in the HTML for any of what I call the "entry level" Yahoo Finance web pages (no crumb security requirement for entry level pages).
B111: A crumb may come with other Yahoo Finance pages. A crumb may even accompany some of the secured pages as well. I have not checked.
B113: Entry level pages are the top level pages of the various Yahoo Finance dialogs and include: Quote Lookup, Stock Summary Quote, and any of the pages
B114: with links in the horizontal row with the "Summary" link on the quote summary page such as Options, Historical Data, and the rest.
B116: To date I have found no way to get at this crumb value using any native EXCEL capabilities.
B118: So this crumb requirement effectively shuts out any solution that attempts to exclusively use built-in facilities of EXCEL, which is to say a purely Querytables solution.
B120: The approach built for this Traders Tip spreadsheet uses WINHTTP calls to Load the InputPriceData worksheet.
B122: First I call to get the HTML text for the Yahoo Summary Quote page using the requested symbol. From this HTML text I extract the full company name,
B123: the market it trades, the market status and time stamp, and finally the associated crumb string. There is a bunch of other useful bits buried in this HTML
B124: text that do not necessarily appear on the web page your browser presents. Perhaps some day I will go after and build a worksheet with these other bits.
B126: Next I add the freshly extracted crumb string to the URLs I use in three separate WINHTTP calls to retrieve Price history, Split history, and Dividend history respectively.
B128: From there VBA code proceeds as in the past to fill in the cell formulas and formatting that make the "prettied up" InputPriceData sheet.
A130: Why this approach works for Windows:
B131: WINHTTP maintains a temporary computer memory cache where cookies are maintained for as long as the WINHTTP object is instantiated.
B132: WINHTTP updates this cache any time a "set cookie" header accompanies a web response.
B133: Subsequent WINHTTP calls automatically search this cache for cookies and add any "appropriate" cookies to the headers
B134: of any web requests that get sent out.
B135: This cookie handling automation means that even if the response to our WINHTTP call for the Summary web page includes a new version of
B136: the Yahoo Finance cookie, the imbedded Crumb value will always match the cookie newly installed in the cache!
A139: Why this approach does not work for Macintosh:
B140: For what it is worth, the Macintosh version of the MS Office suite of products do in fact maintain a special, shared amongst themselves only, cookie cache.
B141: They automate cookie handling into and from this cache JUST for the Office products and any Querytable activity they might originate.
B143: This cache is not tied to, nor shared with, any browser that might be installed on the MAC. And I have not found anything with HTTP capabilities similar to
B144: MSXML that can work with that Office product cookie cache.
B146: When working in the MAC EXCEL environment, I have not yet become conversant with a Mac based WINHTTP like capability.
B147: So l currently have no mechanism to replicate the non-Querytable data retrieval process I am using in Windows environments.
B148: A software product called CURL has been suggested as providing this capability in the MAC environment.
B149: A version of CURL is available for the Windows So some day I may explore its capabilities and how to access those capabilities from VBA.
A151: Calculation and Chart Worksheet Usage Comments:
C152: In General, Items in Bolded BLUE are items you may freely change to play what-if games.
C153: Be sure to have a backup copy of the spreadsheet before you alter anything else.
A155: Features carried forward from the June 2016 version of my T-Tips Template
A156: Added a pair of buttons near cell F12 that will allow the user to step the charting window forward or backward one bar for each click.
A157: I find this to be a good way to test my understanding of the author's ideas as I step through the evolution of the price behavior and the indicators.
B159: First: In the "Help! I would like to plot data" area.
B160: Added button to resolve #NA problems by locating the bar in the input data with a slightly more recent date than what the user actually requested.
B161: I find this particularly useful when I have a general idea of where I want to be date wise. Now I can pick a set of dates "out of the air".
B162: If either (or both) of my date specifications fall between dates that are available in the price history,
B163: this button will resolve them to the dates of the nearest, slightly more recent input bars.
B164: I can then refine my data interval search as necessary from there.
B165: Really great when working with Weekly or Monthly studies!
C166: 2016Jun11 - added logic to the "I would like to chart.." button to detect #N/A values and terminate
C167: gracefully with a message instead of blowing up in the charting logic.
B169: Second: In the "Price Chart Windowing Controls" area. (A11 and A12)
B170: When retrieving data for a new symbol or when changing from daily to weekly or monthly data, there was the possibility that the
B171: residual settings in A11 and A12 would fall outside of the number bars available on the input data tab after the new data retrieval.
B172: In certain combinations, this could create a serious error in the chart sizing logic and crash the spreadsheet.
B173: I have taken this opportunity to update the validity checking logic used in the chart sizing macros
B174: to adjust these values as necessary so that they fall within the boundaries of the newly retrieved input data.
A175: Features carried forward from the October 2015 Traders Tips Template
B176: Improved automation: changes to any of the following will automatically initiate calculations appropriate to reflect a change.
C177: Changing either of cells A11 (pan) or A12 (zoom) will automatically initiate the same chart sizing macros that the manual
C178: "Set Chart" button uses.

Sheet InputPriceData
A1: Halliburton Company (HAL) -NYSE (Daily)
M2: To retrieve data for symbols traded on non US Exchanges, | IJ2: 241.79
A3: Request Online Yahoo History for: | F3: Market State == > | G3: As of | H3: 11:11:00 | I3: EDT. Market open. | M3: you will need to append the dot-suffix for the exchange to the symbol.
A4: Symbol | B4: HAL | D4: Valid | I4: =OFFSET(I4,-2,0,1,1) -> 0 | M4: The following links provide a description of how to use the exchange suffix
A5: From | B5: 1950-10-01 | D5: Data | M5: along with a list of suffixes for the major world exchanges. | AD5: Trailing 12 Div return (Cur Close)
A6: To | B6: =NOW() -> 2020-09-17T16:34:33.120 | D6: Types | E6: =VLOOKUP(B7,D7:E10,2,FALSE) -> d | M6: https://help.yahoo.com/kb/finance/SLN2310.html
A7: Data Type | B7: Daily | D7: Daily | E7: d | M7: And
A8: Crumb | B8: EtdFGoCtB50 | D8: Weekly | E8: w | M8: https://www.stockmarketeye.com/users-guide/ticker-symbols-and-data-providers/data-providers.html
A9: Available Data | D9: Monthly | E9: m
A10: Bar Count: | B10: 12181 | M10: You may search on “exchange suffixes” for additional discussions | AD10: =OFFSET(AC15,1,0,1,1)/OFFSET(N15,1,0,1,1) -> 0.03018108652
A11: From: | B11: =IF(B10<=0,"",OFFSET(B15,B10,IF(HistReqDataType="v",1,0),1,1)) -> 1972-06-01 | W11: Trailing 12 Month Dividend Returns
A12: To: | B12: =IF(B10<=0,"",IF(HistReqDataType="v",OFFSET(B15,2,1,1,1),OFFSET(B15,1,0,1,1))) -> 2020-09-17 | W12: Raw Close price on Dividend date | X12: Div Year and Month | Y12: Looking for year ago Div Year and Month | Z12: Year ago Div Date we found | AA12: row offset to year ago div Date | AB12: Same month flag | AC12: Trailing 12 Div Total | AD12: Trailing 12 Div return
Q13: Split History | S13: 5 | T13: Running | U13: Dividend History
B14: Raw Data Values | H14: Adjusted | I14: Price Adjust | J14: Vol Adjust | K14: Adjusted Values | P14: Last | Q14: Effective | R14: Shares | T14: Vol Adjust | V14: 199
A15: RelRow | B15: Date | C15: Open | D15: High | E15: Low | F15: Close | G15: Volume | H15: Close | I15: Factor | J15: Factor | K15: Open | L15: High | M15: Low | N15: Close | O15: Volume | P15: Trade | Q15: 44092 | R15: New | S15: Old | T15: 1 | U15: Date | V15: $ / Share
A16: 1 | B16: 2020-09-17 | C16: 14.73 | D16: 14.945 | E16: 14.57 | F16: 14.91 | G16: 4265279 | H16: 14.91 | I16: =IF(F16=0,1,H16/F16) -> 1 | J16: =INDEX(OFFSET($T$15,0,0,$S$13+1,1),MATCH(B16,OFFSET($Q$15,0,0,$S$13+1,1),-1)) -> 1 | K16: =ROUND($I16*C16,2) -> 14.73 | L16: =ROUND($I16*D16,2) -> 14.95 | M16: 14.57 | N16: 14.91 | O16: =G16*J16 -> 4265279 | Q16: 2006-07-17 | R16: 2 | S16: 1 | T16: 2 | U16: 2020-09-01 | V16: 0.045 | W16: =(INDEX(OFFSET($F$15,1,0,$B$10,1),MATCH(U16,OFFSET($B$15,1,0,$B$10,1),-1))) -> 16.23 | X16: =YEAR(U16)&RIGHT("0"&MONTH(U16),2) -> 202009 | Y16: =YEAR(U16)-1&RIGHT("0"&MONTH(U16),2) -> 201909 | Z16: =OFFSET(U15,AA16,0,1,1) -> 2019-09-03 | AA16: =MATCH(Y16,OFFSET($X$15,A16,0,$V$14+1-A16,1),-1) -> 5 | AB16: =IF(OR(AND(YEAR(U16)=YEAR(Z16),MONTH(U16)=MONTH(Z16)),MONTH(U16)=MONTH(Z16)),1,0) -> 1 | AC16: =(V16+IF(AA16-AB16=0,0,IFERROR(SUM(OFFSET(V16,1,0,AA16-AB16-1,1)),0))) -> 0.45 | AD16: =AC16/(INDEX(OFFSET($F$15,1,0,$B$10,1),MATCH(U16,OFFSET($B$15,1,0,$B$10,1),-1))) -> 0.02772643253
A17: 2 | B17: 2020-09-16 | C17: 14.63 | D17: 15.35 | E17: 14.43 | F17: 15.07 | G17: 14990800 | H17: 15.07 | I17: =IF(F17=0,1,H17/F17) -> 1 | J17: =INDEX(OFFSET($T$15,0,0,$S$13+1,1),MATCH(B17,OFFSET($Q$15,0,0,$S$13+1,1),-1)) -> 1 | K17: =ROUND($I17*C17,2) -> 14.63 | L17: =ROUND($I17*D17,2) -> 15.35 | M17: =ROUND($I17*E17,2) -> 14.43 | N17: =ROUND($I17*F17,2) -> 15.07 | O17: =G17*J17 -> 14990800 | Q17: 1997-07-22 | R17: 2 | S17: 1 | T17: 4 | U17: 2020-06-02 | V17: 0.045 | W17: =(INDEX(OFFSET($F$15,1,0,$B$10,1),MATCH(U17,OFFSET($B$15,1,0,$B$10,1),-1))) -> 12.69 | X17: =YEAR(U17)&RIGHT("0"&MONTH(U17),2) -> 202006 | Y17: =YEAR(U17)-1&RIGHT("0"&MONTH(U17),2) -> 201906 | Z17: =OFFSET(U16,AA17,0,1,1) -> 2019-06-04 | AA17: =MATCH(Y17,OFFSET($X$15,A17,0,$V$14+1-A17,1),-1) -> 5 | AB17: =IF(OR(AND(YEAR(U17)=YEAR(Z17),MONTH(U17)=MONTH(Z17)),MONTH(U17)=MONTH(Z17)),1,0) -> 1 | AC17: =(V17+IF(AA17-AB17=0,0,IFERROR(SUM(OFFSET(V17,1,0,AA17-AB17-1,1)),0))) -> 0.585 | AD17: =AC17/(INDEX(OFFSET($F$15,1,0,$B$10,1),MATCH(U17,OFFSET($B$15,1,0,$B$10,1),-1))) -> 0.04609929078
A18: 3 | B18: 2020-09-15 | C18: 14.45 | D18: 14.64 | E18: 14.31 | F18: 14.44 | G18: 7930400 | H18: 14.44 | I18: 1 | J18: 1 | K18: 14.45 | L18: 14.64 | M18: 14.31 | N18: 14.44 | O18: 7930400 | Q18: 1996-01-24 | R18: 100000 | S18: 95301 | T18: 4.197227731 | U18: 2020-03-03 | V18: 0.18 | W18: 15.95 | X18: 202003 | Y18: 201903 | Z18: 2019-03-05 | AA18: 5 | AB18: 1 | AC18: 0.72 | AD18: 0.04514106583
A19: 4 | B19: 2020-09-14 | C19: 14.31 | D19: 14.5 | E19: 14.09 | F19: 14.33 | G19: 10765000 | H19: 14.33 | I19: 1 | J19: 1 | K19: 14.31 | L19: 14.5 | M19: 14.09 | N19: 14.33 | O19: 10765000 | Q19: 1980-12-26 | R19: 2 | S19: 1 | T19: 8.394455462 | U19: 2019-12-04 | V19: 0.18 | W19: 21.469999 | X19: 201912 | Y19: 201812 | Z19: 2018-12-06 | AA19: 5 | AB19: 1 | AC19: 0.72 | AD19: 0.03353516691
A20: 5 | B20: 2020-09-11 | C20: 14.37 | D20: 14.37 | E20: 13.99 | F20: 14.27 | G20: 10846300 | H20: 14.27 | I20: 1 | J20: 1 | K20: 14.37 | L20: 14.37 | M20: 13.99 | N20: 14.27 | O20: 10846300 | Q20: 1976-04-30 | R20: 3 | S20: 1 | T20: 25.18336639 | U20: 2019-09-03 | V20: 0.18 | W20: 18.76 | X20: 201909 | Y20: 201809 | Z20: 2018-09-04 | AA20: 6 | AB20: 1 | AC20: 0.9 | AD20: 0.04797441365
A21: 6 | B21: 2020-09-10 | C21: 15.05 | D21: 15.17 | E21: 14.19 | F21: 14.28 | G21: 15727100 | H21: 14.28 | I21: 1 | J21: 1 | K21: 15.05 | L21: 15.17 | M21: 14.19 | N21: 14.28 | O21: 15727100 | U21: 2019-06-04 | V21: 0.18 | W21: 21.959999 | X21: 201906 | Y21: 201806 | Z21: 2018-06-05 | AA21: 6 | AB21: 1 | AC21: 0.9 | AD21: 0.04098360842
A22: 7 | B22: 2020-09-09 | C22: 14.96 | D22: 15.33 | E22: 14.9 | F22: 15.06 | G22: 12272500 | H22: 15.06 | I22: 1 | J22: 1 | K22: 14.96 | L22: 15.33 | M22: 14.9 | N22: 15.06 | O22: 12272500 | U22: 2019-03-05 | V22: 0.18 | W22: 30.290001 | X22: 201903 | Y22: 201803 | Z22: 2018-03-06 | AA22: 6 | AB22: 1 | AC22: 0.9 | AD22: 0.02971277551
A23: 8 | B23: 2020-09-08 | C23: 15.49 | D23: 15.58 | E23: 14.77 | F23: 14.81 | G23: 15783600 | H23: 14.81 | I23: 1 | J23: 1 | K23: 15.49 | L23: 15.58 | M23: 14.77 | N23: 14.81 | O23: 15783600 | U23: 2018-12-06 | V23: 0.18 | W23: 29.790001 | X23: 201812 | Y23: 201712 | Z23: 2017-12-06 | AA23: 6 | AB23: 1 | AC23: 0.9 | AD23: 0.03021147935
A24: 9 | B24: 2020-09-04 | C24: 16.290001 | D24: 16.35 | E24: 15.49 | F24: 15.99 | G24: 12968800 | H24: 15.99 | I24: 1 | J24: 1 | K24: 16.29 | L24: 16.35 | M24: 15.49 | N24: 15.99 | O24: 12968800 | U24: 2018-12-05 | V24: 0.18 | W24: 29.790001 | X24: 201812 | Y24: 201712 | Z24: 2017-12-06 | AA24: 5 | AB24: 1 | AC24: 0.72 | AD24: 0.02416918348
A25: 10 | B25: 2020-09-03 | C25: 16.139999 | D25: 16.68 | E25: 15.83 | F25: 16.120001 | G25: 15884500 | H25: 16.120001 | I25: 1 | J25: 1 | K25: 16.14 | L25: 16.68 | M25: 15.83 | N25: 16.12 | O25: 15884500 | U25: 2018-09-04 | V25: 0.18 | W25: 39.48 | X25: 201809 | Y25: 201709 | Z25: 2017-09-01 | AA25: 5 | AB25: 1 | AC25: 0.72 | AD25: 0.01823708207
A26: 11 | B26: 2020-09-02 | C26: 16.17 | D26: 16.290001 | E26: 16.040001 | F26: 16.25 | G26: 10415400 | H26: 16.25 | I26: 1 | J26: 1 | K26: 16.17 | L26: 16.29 | M26: 16.04 | N26: 16.25 | O26: 10415400 | U26: 2018-06-05 | V26: 0.18 | W26: 47.869999 | X26: 201806 | Y26: 201706 | Z26: 2017-06-05 | AA26: 5 | AB26: 1 | AC26: 0.72 | AD26: 0.01504073564
A27: 12 | B27: 2020-09-01 | C27: 15.93 | D27: 16.35 | E27: 15.83 | F27: 16.23 | G27: 11040300 | H27: 16.23 | I27: 1 | J27: 1 | K27: 15.93 | L27: 16.35 | M27: 15.83 | N27: 16.23 | O27: 11040300 | U27: 2018-03-06 | V27: 0.18 | W27: 45.919998 | X27: 201803 | Y27: 201703 | Z27: 2017-06-05 | AA27: 4 | AB27: 0 | AC27: 0.72 | AD27: 0.01567944319
A28: 13 | B28: 2020-08-31 | C28: 16.200001 | D28: 16.34 | E28: 15.96 | F28: 16.18 | G28: 9810500 | H28: 16.135 | I28: 0.9972187886 | J28: 1 | K28: 16.15 | L28: 16.29 | M28: 15.92 | N28: 16.14 | O28: 9810500 | U28: 2017-12-06 | V28: 0.18 | W28: 43.380001 | X28: 201712 | Y28: 201612 | Z28: 2016-12-05 | AA28: 5 | AB28: 1 | AC28: 0.72 | AD28: 0.01659750999
A29: 14 | B29: 2020-08-28 | C29: 16.09 | D29: 16.43 | E29: 16.02 | F29: 16.27 | G29: 8505200 | H29: 16.224751 | I29: 0.9972188691 | J29: 1 | K29: 16.05 | L29: 16.38 | M29: 15.98 | N29: 16.22 | O29: 8505200 | U29: 2017-09-01 | V29: 0.18 | W29: 38.900002 | X29: 201709 | Y29: 201609 | Z29: 2016-09-02 | AA29: 5 | AB29: 1 | AC29: 0.72 | AD29: 0.01850899648
A30: 15 | B30: 2020-08-27 | C30: 15.82 | D30: 16.059999 | E30: 15.58 | F30: 16.02 | G30: 8343400 | H30: 15.975446 | I30: 0.9972188514 | J30: 1 | K30: 15.78 | L30: 16.02 | M30: 15.54 | N30: 15.98 | O30: 8343400 | U30: 2017-06-05 | V30: 0.18 | W30: 45.32 | X30: 201706 | Y30: 201606 | Z30: 2016-09-02 | AA30: 4 | AB30: 0 | AC30: 0.72 | AD30: 0.0158870256
A31: 16 | B31: 2020-08-26 | C31: 16.110001 | D31: 16.26 | E31: 15.78 | F31: 15.81 | G31: 8954800 | H31: 15.766029 | I31: 0.9972187856 | J31: 1 | K31: 16.07 | L31: 16.21 | M31: 15.74 | N31: 15.77 | O31: 8954800 | U31: 2017-02-27 | V31: 0.18 | W31: 53.200001 | X31: 201702 | Y31: 201602 | Z31: 2016-02-29 | AA31: 5 | AB31: 1 | AC31: 0.72 | AD31: 0.01353383433
A32: 17 | B32: 2020-08-25 | C32: 16.620001 | D32: 16.690001 | E32: 16.059999 | F32: 16.15 | G32: 10201200 | H32: 16.105083 | I32: 0.9972187616 | J32: 1 | K32: 16.57 | L32: 16.64 | M32: 16.02 | N32: 16.11 | O32: 10201200 | U32: 2016-12-05 | V32: 0.18 | W32: 53.900002 | X32: 201612 | Y32: 201512 | Z32: 2015-12-01 | AA32: 5 | AB32: 1 | AC32: 0.72 | AD32: 0.01335807001
A33: 18 | B33: 2020-08-24 | C33: 15.88 | D33: 16.639999 | E33: 15.77 | F33: 16.290001 | G33: 14722400 | H33: 16.244696 | I33: 0.9972188461 | J33: 1 | K33: 15.84 | L33: 16.59 | M33: 15.73 | N33: 16.24 | O33: 14722400 | U33: 2016-09-02 | V33: 0.18 | W33: 43.32 | X33: 201609 | Y33: 201509 | Z33: 2015-12-01 | AA33: 4 | AB33: 0 | AC33: 0.72 | AD33: 0.01662049861
A34: 19 | B34: 2020-08-21 | C34: 15.88 | D34: 15.99 | E34: 15.61 | F34: 15.74 | G34: 9806400 | H34: 15.696223 | I34: 0.9972187421 | J34: 1 | K34: 15.84 | L34: 15.95 | M34: 15.57 | N34: 15.7 | O34: 9806400 | U34: 2016-05-27 | V34: 0.18 | W34: 42.580002 | X34: 201605 | Y34: 201505 | Z34: 2015-06-01 | AA34: 5 | AB34: 0 | AC34: 0.9 | AD34: 0.0211366829
A35: 20 | B35: 2020-08-20 | C35: 16.27 | D35: 16.290001 | E35: 15.95 | F35: 16.01 | G35: 13361200 | H35: 15.965473 | I35: 0.9972188007 | J35: 1 | K35: 16.22 | L35: 16.24 | M35: 15.91 | N35: 15.97 | O35: 13361200 | U35: 2016-02-29 | V35: 0.18 | W35: 32.279999 | X35: 201602 | Y35: 201502 | Z35: 2015-03-02 | AA35: 5 | AB35: 0 | AC35: 0.9 | AD35: 0.02788104176
A36: 21 | B36: 2020-08-19 | C36: 16.450001 | D36: 16.870001 | E36: 16.379999 | F36: 16.49 | G36: 11929100 | H36: 16.444138 | I36: 0.9972187993 | J36: 1 | K36: 16.4 | L36: 16.82 | M36: 16.33 | N36: 16.44 | O36: 11929100 | U36: 2015-12-01 | V36: 0.18 | W36: 40.400002 | X36: 201512 | Y36: 201412 | Z36: 2014-12-03 | AA36: 5 | AB36: 1 | AC36: 0.72 | AD36: 0.0178217813
A37: 22 | B37: 2020-08-18 | C37: 16.610001 | D37: 16.889999 | E37: 16.34 | F37: 16.450001 | G37: 10542900 | H37: 16.404249 | I37: 0.9972187236 | J37: 1 | K37: 16.56 | L37: 16.84 | M37: 16.29 | N37: 16.4 | O37: 10542900 | U37: 2015-08-31 | V37: 0.18 | W37: 39.349998 | X37: 201508 | Y37: 201408 | Z37: 2014-08-29 | AA37: 5 | AB37: 1 | AC37: 0.72 | AD37: 0.01829733257
A38: 23 | B38: 2020-08-17 | C38: 16.52 | D38: 16.85 | E38: 16.5 | F38: 16.65 | G38: 12312500 | H38: 16.603693 | I38: 0.9972187988 | J38: 1 | K38: 16.47 | L38: 16.8 | M38: 16.45 | N38: 16.6 | O38: 12312500 | U38: 2015-06-01 | V38: 0.18 | W38: 45.240002 | X38: 201506 | Y38: 201406 | Z38: 2014-06-02 | AA38: 5 | AB38: 1 | AC38: 0.69 | AD38: 0.01525198872
A39: 24 | B39: 2020-08-14 | C39: 16.309999 | D39: 16.66 | E39: 16.15 | F39: 16.629999 | G39: 12244200 | H39: 16.583748 | I39: 0.9972188212 | J39: 1 | K39: 16.26 | L39: 16.61 | M39: 16.11 | N39: 16.58 | O39: 12244200 | U39: 2015-03-02 | V39: 0.18 | W39: 42.990002 | X39: 201503 | Y39: 201403 | Z39: 2014-03-03 | AA39: 5 | AB39: 1 | AC39: 0.66 | AD39: 0.01535240682
A40: 25 | B40: 2020-08-13 | C40: 16.639999 | D40: 16.790001 | E40: 16.35 | F40: 16.65 | G40: 13456900 | H40: 16.603693 | I40: 0.9972187988 | J40: 1 | K40: 16.59 | L40: 16.74 | M40: 16.3 | N40: 16.6 | O40: 13456900 | U40: 2014-12-03 | V40: 0.18 | W40: 40.75 | X40: 201412 | Y40: 201312 | Z40: 2013-12-04 | AA40: 5 | AB40: 1 | AC40: 0.63 | AD40: 0.0154601227
A41: 26 | B41: 2020-08-12 | C41: 16.459999 | D41: 16.82 | E41: 16.379999 | F41: 16.709999 | G41: 20499000 | H41: 16.663525 | I41: 0.997218791 | J41: 1 | K41: 16.41 | L41: 16.77 | M41: 16.33 | N41: 16.66 | O41: 20499000 | U41: 2014-08-29 | V41: 0.15 | W41: 67.610001 | X41: 201408 | Y41: 201308 | Z41: 2013-08-30 | AA41: 5 | AB41: 1 | AC41: 0.6 | AD41: 0.008874426729
A42: 27 | B42: 2020-08-11 | C42: 16 | D42: 16.700001 | E42: 15.98 | F42: 16.139999 | G42: 25789800 | H42: 16.09511 | I42: 0.9972187731 | J42: 1 | K42: 15.96 | L42: 16.65 | M42: 15.94 | N42: 16.1 | O42: 25789800 | U42: 2014-06-02 | V42: 0.15 | W42: 65.010002 | X42: 201406 | Y42: 201306 | Z42: 2013-06-03 | AA42: 5 | AB42: 1 | AC42: 0.575 | AD42: 0.008844792837
A43: 28 | B43: 2020-08-10 | C43: 14.98 | D43: 15.66 | E43: 14.93 | F43: 15.61 | G43: 10490600 | H43: 15.566585 | I43: 0.99721877 | J43: 1 | K43: 14.94 | L43: 15.62 | M43: 14.89 | N43: 15.57 | O43: 10490600 | U43: 2014-03-03 | V43: 0.15 | W43: 56.380001 | X43: 201403 | Y43: 201303 | Z43: 2013-03-04 | AA43: 5 | AB43: 1 | AC43: 0.55 | AD43: 0.009755232179
A44: 29 | B44: 2020-08-07 | C44: 14.65 | D44: 14.89 | E44: 14.42 | F44: 14.89 | G44: 12914400 | H44: 14.848588 | I44: 0.9972188046 | J44: 1 | K44: 14.61 | L44: 14.85 | M44: 14.38 | N44: 14.85 | O44: 12914400 | U44: 2013-12-04 | V44: 0.15 | W44: 50.619999 | X44: 201312 | Y44: 201212 | Z44: 2012-12-04 | AA44: 5 | AB44: 1 | AC44: 0.525 | AD44: 0.01037139491
A45: 30 | B45: 2020-08-06 | C45: 15.34 | D45: 15.44 | E45: 14.8 | F45: 14.82 | G45: 11389600 | H45: 14.778782 | I45: 0.9972187584 | J45: 1 | K45: 15.3 | L45: 15.4 | M45: 14.76 | N45: 14.78 | O45: 11389600 | U45: 2013-08-30 | V45: 0.125 | W45: 48 | X45: 201308 | Y45: 201208 | Z45: 2012-08-31 | AA45: 5 | AB45: 1 | AC45: 0.465 | AD45: 0.0096875
A46: 31 | B46: 2020-08-05 | C46: 15.53 | D46: 15.75 | E46: 15.26 | F46: 15.32 | G46: 13478000 | H46: 15.277391 | I46: 0.9972187337 | J46: 1 | K46: 15.49 | L46: 15.71 | M46: 15.22 | N46: 15.28 | O46: 13478000 | U46: 2013-06-03 | V46: 0.125 | W46: 42.389999 | X46: 201306 | Y46: 201206 | Z46: 2012-06-04 | AA46: 5 | AB46: 1 | AC46: 0.43 | AD46: 0.0101439021
A47: 32 | B47: 2020-08-04 | C47: 14.5 | D47: 15.25 | E47: 14.46 | F47: 15.11 | G47: 15746200 | H47: 15.067976 | I47: 0.9972187955 | J47: 1 | K47: 14.46 | L47: 15.21 | M47: 14.42 | N47: 15.07 | O47: 15746200 | U47: 2013-03-04 | V47: 0.125 | W47: 39.959999 | X47: 201303 | Y47: 201203 | Z47: 2012-03-05 | AA47: 5 | AB47: 1 | AC47: 0.395 | AD47: 0.009884885132
A48: 33 | B48: 2020-08-03 | C48: 14.33 | D48: 14.68 | E48: 14.25 | F48: 14.53 | G48: 11183500 | H48: 14.489589 | I48: 0.9972187887 | J48: 1 | K48: 14.29 | L48: 14.64 | M48: 14.21 | N48: 14.49 | O48: 11183500 | U48: 2012-12-04 | V48: 0.09 | W48: 33.060001 | X48: 201212 | Y48: 201112 | Z48: 2012-03-05 | AA48: 4 | AB48: 0 | AC48: 0.36 | AD48: 0.01088929187
A49: 34 | B49: 2020-07-31 | C49: 14.4 | D49: 14.59 | E49: 14.1 | F49: 14.33 | G49: 18014500 | H49: 14.290145 | I49: 0.9972187718 | J49: 1 | K49: 14.36 | L49: 14.55 | M49: 14.06 | N49: 14.29 | O49: 18014500 | U49: 2012-08-31 | V49: 0.09 | W49: 32.759998 | X49: 201208 | Y49: 201108 | Z49: 2011-08-30 | AA49: 5 | AB49: 1 | AC49: 0.36 | AD49: 0.01098901166
A50: 35 | B50: 2020-07-30 | C50: 14.78 | D50: 14.84 | E50: 14.6 | F50: 14.67 | G50: 14688100 | H50: 14.6292 | I50: 0.9972188139 | J50: 1 | K50: 14.74 | L50: 14.8 | M50: 14.56 | N50: 14.63 | O50: 14688100 | U50: 2012-06-04 | V50: 0.09 | W50: 29.52 | X50: 201206 | Y50: 201106 | Z50: 2011-08-30 | AA50: 4 | AB50: 0 | AC50: 0.36 | AD50: 0.01219512195
A51: 36 | B51: 2020-07-29 | C51: 14.63 | D51: 15.11 | E51: 14.62 | F51: 15.07 | G51: 13723700 | H51: 15.028087 | I51: 0.997218779 | J51: 1 | K51: 14.59 | L51: 15.07 | M51: 14.58 | N51: 15.03 | O51: 13723700 | U51: 2012-03-05 | V51: 0.09 | W51: 35.07 | X51: 201203 | Y51: 201103 | Z51: 2011-05-27 | AA51: 4 | AB51: 0 | AC51: 0.36 | AD51: 0.01026518392
A52: 37 | B52: 2020-07-28 | C52: 14.8 | D52: 14.99 | E52: 14.58 | F52: 14.65 | G52: 14961000 | H52: 14.609255 | I52: 0.9972187713 | J52: 1 | K52: 14.76 | L52: 14.95 | M52: 14.54 | N52: 14.61 | O52: 14961000 | U52: 2011-11-30 | V52: 0.09 | W52: 36.799999 | X52: 201111 | Y52: 201011 | Z52: 2010-12-01 | AA52: 5 | AB52: 0 | AC52: 0.45 | AD52: 0.0122282612
A53: 38 | B53: 2020-07-27 | C53: 14.7 | D53: 14.93 | E53: 14.48 | F53: 14.9 | G53: 15134100 | H53: 14.85856 | I53: 0.9972187919 | J53: 1 | K53: 14.66 | L53: 14.89 | M53: 14.44 | N53: 14.86 | O53: 15134100 | U53: 2011-08-30 | V53: 0.09 | W53: 43.43 | X53: 201108 | Y53: 201008 | Z53: 2010-08-30 | AA53: 5 | AB53: 1 | AC53: 0.36 | AD53: 0.008289201013
A54: 39 | B54: 2020-07-24 | C54: 14.66 | D54: 14.91 | E54: 14.57 | F54: 14.71 | G54: 21901700 | H54: 14.669088 | I54: 0.9972187627 | J54: 1 | K54: 14.62 | L54: 14.87 | M54: 14.53 | N54: 14.67 | O54: 21901700 | U54: 2011-05-27 | V54: 0.09 | W54: 50.150002 | X54: 201105 | Y54: 201005 | Z54: 2010-05-27 | AA54: 5 | AB54: 1 | AC54: 0.36 | AD54: 0.00717846432
A55: 40 | B55: 2020-07-23 | C55: 13.95 | D55: 14.77 | E55: 13.94 | F55: 14.75 | G55: 19508600 | H55: 14.708977 | I55: 0.9972187797 | J55: 1 | K55: 13.91 | L55: 14.73 | M55: 13.9 | N55: 14.71 | O55: 19508600 | U55: 2011-02-28 | V55: 0.09 | W55: 46.939999 | X55: 201102 | Y55: 201002 | Z55: 2010-02-26 | AA55: 5 | AB55: 1 | AC55: 0.36 | AD55: 0.00766936531
A56: 41 | B56: 2020-07-22 | C56: 14.14 | D56: 14.39 | E56: 13.88 | F56: 14.18 | G56: 17933100 | H56: 14.140563 | I56: 0.9972188293 | J56: 1 | K56: 14.1 | L56: 14.35 | M56: 13.84 | N56: 14.14 | O56: 17933100 | U56: 2010-12-01 | V56: 0.09 | W56: 39.189999 | X56: 201012 | Y56: 200912 | Z56: 2009-12-01 | AA56: 5 | AB56: 1 | AC56: 0.36 | AD56: 0.009186017075
A57: 42 | B57: 2020-07-21 | C57: 14.05 | D57: 14.92 | E57: 13.98 | F57: 14.32 | G57: 32628300 | H57: 14.280172 | I57: 0.9972187151 | J57: 1 | K57: 14.01 | L57: 14.88 | M57: 13.94 | N57: 14.28 | O57: 32628300 | U57: 2010-08-30 | V57: 0.09 | W57: 28.49 | X57: 201008 | Y57: 200908 | Z57: 2009-08-31 | AA57: 5 | AB57: 1 | AC57: 0.36 | AD57: 0.01263601264
A58: 43 | B58: 2020-07-20 | C58: 13.71 | D58: 14.14 | E58: 13.38 | F58: 13.41 | G58: 28342500 | H58: 13.372704 | I58: 0.9972187919 | J58: 1 | K58: 13.67 | L58: 14.1 | M58: 13.34 | N58: 13.37 | O58: 28342500 | U58: 2010-05-27 | V58: 0.09 | W58: 26.99 | X58: 201005 | Y58: 200905 | Z58: 2009-05-28 | AA58: 5 | AB58: 1 | AC58: 0.36 | AD58: 0.01333827343
A59: 44 | B59: 2020-07-17 | C59: 13.15 | D59: 13.44 | E59: 12.94 | F59: 13.08 | G59: 16463500 | H59: 13.043622 | I59: 0.9972188073 | J59: 1 | K59: 13.11 | L59: 13.4 | M59: 12.9 | N59: 13.04 | O59: 16463500 | U59: 2010-02-26 | V59: 0.09 | W59: 30.15 | X59: 201002 | Y59: 200902 | Z59: 2009-02-27 | AA59: 5 | AB59: 1 | AC59: 0.36 | AD59: 0.01194029851
A60: 45 | B60: 2020-07-16 | C60: 12.83 | D60: 13.38 | E60: 12.69 | F60: 13.09 | G60: 12747200 | H60: 13.053594 | I60: 0.997218793 | J60: 1 | K60: 12.79 | L60: 13.34 | M60: 12.65 | N60: 13.05 | O60: 12747200 | U60: 2009-12-01 | V60: 0.09 | W60: 29.35 | X60: 200912 | Y60: 200812 | Z60: 2008-12-01 | AA60: 5 | AB60: 1 | AC60: 0.36 | AD60: 0.01226575809
A61: 46 | B61: 2020-07-15 | C61: 12.99 | D61: 13.18 | E61: 12.73 | F61: 13 | G61: 18202100 | H61: 12.963844 | I61: 0.9972187692 | J61: 1 | K61: 12.95 | L61: 13.14 | M61: 12.69 | N61: 12.96 | O61: 18202100 | U61: 2009-08-31 | V61: 0.09 | W61: 23.709999 | X61: 200908 | Y61: 200808 | Z61: 2008-08-28 | AA61: 5 | AB61: 1 | AC61: 0.36 | AD61: 0.01518346753
A62: 47 | B62: 2020-07-14 | C62: 11.75 | D62: 12.54 | E62: 11.63 | F62: 12.48 | G62: 15884100 | H62: 12.44529 | I62: 0.99721875 | J62: 1 | K62: 11.72 | L62: 12.51 | M62: 11.6 | N62: 12.45 | O62: 15884100 | U62: 2009-05-28 | V62: 0.09 | W62: 22.77 | X62: 200905 | Y62: 200805 | Z62: 2008-05-29 | AA62: 5 | AB62: 1 | AC62: 0.36 | AD62: 0.01581027668
A63: 48 | B63: 2020-07-13 | C63: 12.24 | D63: 12.26 | E63: 11.76 | F63: 11.79 | G63: 13306800 | H63: 11.75721 | I63: 0.9972188295 | J63: 1 | K63: 12.21 | L63: 12.23 | M63: 11.73 | N63: 11.76 | O63: 13306800 | U63: 2009-02-27 | V63: 0.09 | W63: 16.309999 | X63: 200902 | Y63: 200802 | Z63: 2008-02-28 | AA63: 5 | AB63: 1 | AC63: 0.36 | AD63: 0.02207234961
A64: 49 | B64: 2020-07-10 | C64: 11.74 | D64: 12.09 | E64: 11.67 | F64: 12.06 | G64: 12895000 | H64: 12.026459 | I64: 0.9972188226 | J64: 1 | K64: 11.71 | L64: 12.06 | M64: 11.64 | N64: 12.03 | O64: 12895000 | U64: 2008-12-01 | V64: 0.09 | W64: 15.13 | X64: 200812 | Y64: 200712 | Z64: 2008-02-28 | AA64: 4 | AB64: 0 | AC64: 0.36 | AD64: 0.02379378718
A65: 50 | B65: 2020-07-09 | C65: 12.47 | D65: 12.58 | E65: 11.7 | F65: 11.78 | G65: 16112800 | H65: 11.747237 | I65: 0.9972187606 | J65: 1 | K65: 12.44 | L65: 12.55 | M65: 11.67 | N65: 11.75 | O65: 16112800 | U65: 2008-08-28 | V65: 0.09 | W65: 44.509998 | X65: 200808 | Y65: 200708 | Z65: 2007-08-29 | AA65: 5 | AB65: 1 | AC65: 0.36 | AD65: 0.00808807046
A66: 51 | B66: 2020-07-08 | C66: 12.42 | D66: 12.67 | E66: 12.19 | F66: 12.47 | G66: 13122400 | H66: 12.435319 | I66: 0.9972188452 | J66: 1 | K66: 12.39 | L66: 12.63 | M66: 12.16 | N66: 12.44 | O66: 13122400 | U66: 2008-05-29 | V66: 0.09 | W66: 48.43 | X66: 200805 | Y66: 200705 | Z66: 2007-05-30 | AA66: 5 | AB66: 1 | AC66: 0.36 | AD66: 0.007433409044
A67: 52 | B67: 2020-07-07 | C67: 12.78 | D67: 12.85 | E67: 12.41 | F67: 12.41 | G67: 10967300 | H67: 12.375485 | I67: 0.9972187752 | J67: 1 | K67: 12.74 | L67: 12.81 | M67: 12.38 | N67: 12.38 | O67: 10967300 | U67: 2008-02-28 | V67: 0.09 | W67: 39.060001 | X67: 200802 | Y67: 200702 | Z67: 2007-02-27 | AA67: 5 | AB67: 1 | AC67: 0.36 | AD67: 0.009216589626
A68: 53 | B68: 2020-07-06 | C68: 12.95 | D68: 13.21 | E68: 12.72 | F68: 13.03 | G68: 13644000 | H68: 12.99376 | I68: 0.997218726 | J68: 1 | K68: 12.91 | L68: 13.17 | M68: 12.68 | N68: 12.99 | O68: 13644000 | U68: 2007-11-29 | V68: 0.09 | W68: 36.59 | X68: 200711 | Y68: 200611 | Z68: 2006-11-29 | AA68: 5 | AB68: 1 | AC68: 0.345 | AD68: 0.009428805685
A69: 54 | B69: 2020-07-02 | C69: 12.79 | D69: 13.11 | E69: 12.57 | F69: 12.57 | G69: 15125100 | H69: 12.53504 | I69: 0.9972187749 | J69: 1 | K69: 12.75 | L69: 13.07 | M69: 12.54 | N69: 12.54 | O69: 15125100 | U69: 2007-08-29 | V69: 0.09 | W69: 33.709999 | X69: 200708 | Y69: 200608 | Z69: 2006-08-30 | AA69: 5 | AB69: 1 | AC69: 0.33 | AD69: 0.009789380296
A70: 55 | B70: 2020-07-01 | C70: 13.19 | D70: 13.31 | E70: 12.4 | F70: 12.47 | G70: 15603200 | H70: 12.435319 | I70: 0.9972188452 | J70: 1 | K70: 13.15 | L70: 13.27 | M70: 12.37 | N70: 12.44 | O70: 15603200 | U70: 2007-05-30 | V70: 0.09 | W70: 36.099998 | X70: 200705 | Y70: 200605 | Z70: 2006-05-30 | AA70: 5 | AB70: 1 | AC70: 0.315 | AD70: 0.008725762256
A71: 56 | B71: 2020-06-30 | C71: 12.26 | D71: 13.16 | E71: 12.12 | F71: 12.98 | G71: 21171100 | H71: 12.943899 | I71: 0.9972187211 | J71: 1 | K71: 12.23 | L71: 13.12 | M71: 12.09 | N71: 12.94 | O71: 21171100 | U71: 2007-02-27 | V71: 0.075 | W71: 30.73 | X71: 200702 | Y71: 200602 | Z71: 2006-02-28 | AA71: 5 | AB71: 1 | AC71: 0.375 | AD71: 0.0122030589
A72: 57 | B72: 2020-06-29 | C72: 12.01 | D72: 12.56 | E72: 11.84 | F72: 12.42 | G72: 16714300 | H72: 12.385457 | I72: 0.9972187601 | J72: 1 | K72: 11.98 | L72: 12.53 | M72: 11.81 | N72: 12.39 | O72: 16714300 | U72: 2006-11-29 | V72: 0.075 | W72: 33.639999 | X72: 200611 | Y72: 200511 | Z72: 2005-11-29 | AA72: 5 | AB72: 1 | AC72: 0.45 | AD72: 0.01337693262
A73: 58 | B73: 2020-06-26 | C73: 12.31 | D73: 12.31 | E73: 11.82 | F73: 11.93 | G73: 16419700 | H73: 11.89682 | I73: 0.9972187762 | J73: 1 | K73: 12.28 | L73: 12.28 | M73: 11.79 | N73: 11.9 | O73: 16419700 | U73: 2006-08-30 | V73: 0.075 | W73: 32.990002 | X73: 200608 | Y73: 200508 | Z73: 2005-08-31 | AA73: 5 | AB73: 1 | AC73: 0.5 | AD73: 0.01515610699
A74: 59 | B74: 2020-06-25 | C74: 11.58 | D74: 12.43 | E74: 11.51 | F74: 12.43 | G74: 12866700 | H74: 12.39543 | I74: 0.9972188254 | J74: 1 | K74: 11.55 | L74: 12.4 | M74: 11.48 | N74: 12.4 | O74: 12866700 | U74: 2006-05-30 | V74: 0.15 | W74: 35.959999 | X74: 200605 | Y74: 200505 | Z74: 2005-05-31 | AA74: 5 | AB74: 1 | AC74: 0.55 | AD74: 0.01529477239
A75: 60 | B75: 2020-06-24 | C75: 12.67 | D75: 12.7 | E75: 11.61 | F75: 11.86 | G75: 18726000 | H75: 11.827015 | I75: 0.9972188027 | J75: 1 | K75: 12.63 | L75: 12.66 | M75: 11.58 | N75: 11.83 | O75: 18726000 | U75: 2006-02-28 | V75: 0.15 | W75: 34 | X75: 200602 | Y75: 200502 | Z75: 2005-03-01 | AA75: 5 | AB75: 0 | AC75: 0.65 | AD75: 0.01911764706
A76: 61 | B76: 2020-06-23 | C76: 13.18 | D76: 13.25 | E76: 12.96 | F76: 13 | G76: 13303300 | H76: 12.963844 | I76: 0.9972187692 | J76: 1 | K76: 13.14 | L76: 13.21 | M76: 12.92 | N76: 12.96 | O76: 13303300 | U76: 2005-11-29 | V76: 0.125 | W76: 31.205 | X76: 200511 | Y76: 200411 | Z76: 2004-11-29 | AA76: 5 | AB76: 1 | AC76: 0.5 | AD76: 0.01602307323
A77: 62 | B77: 2020-06-22 | C77: 12.93 | D77: 13.13 | E77: 12.71 | F77: 13.02 | G77: 12853300 | H77: 12.983789 | I77: 0.9972188172 | J77: 1 | K77: 12.89 | L77: 13.09 | M77: 12.67 | N77: 12.98 | O77: 12853300 | U77: 2005-08-31 | V77: 0.125 | W77: 31 | X77: 200508 | Y77: 200408 | Z77: 2004-08-31 | AA77: 5 | AB77: 1 | AC77: 0.5 | AD77: 0.01612903226
A78: 63 | B78: 2020-06-19 | C78: 13.78 | D78: 13.8 | E78: 12.95 | F78: 13.04 | G78: 29721000 | H78: 13.003733 | I78: 0.9972187883 | J78: 1 | K78: 13.74 | L78: 13.76 | M78: 12.91 | N78: 13 | O78: 29721000 | U78: 2005-05-31 | V78: 0.125 | W78: 21.370001 | X78: 200505 | Y78: 200405 | Z78: 2004-06-01 | AA78: 5 | AB78: 0 | AC78: 0.625 | AD78: 0.02924660602
A79: 64 | B79: 2020-06-18 | C79: 12.73 | D79: 13.33 | E79: 12.65 | F79: 13.19 | G79: 14375100 | H79: 13.153316 | I79: 0.9972188021 | J79: 1 | K79: 12.69 | L79: 13.29 | M79: 12.61 | N79: 13.15 | O79: 14375100 | U79: 2005-03-01 | V79: 0.125 | W79: 21.424999 | X79: 200503 | Y79: 200403 | Z79: 2004-03-02 | AA79: 5 | AB79: 1 | AC79: 0.5 | AD79: 0.02333722396
A80: 65 | B80: 2020-06-17 | C80: 13.45 | D80: 13.46 | E80: 12.93 | F80: 12.96 | G80: 15669300 | H80: 12.923956 | I80: 0.9972188272 | J80: 1 | K80: 13.41 | L80: 13.42 | M80: 12.89 | N80: 12.92 | O80: 15669300 | U80: 2004-11-29 | V80: 0.125 | W80: 20.48 | X80: 200411 | Y80: 200311 | Z80: 2003-11-28 | AA80: 5 | AB80: 1 | AC80: 0.5 | AD80: 0.0244140625
A81: 66 | B81: 2020-06-16 | C81: 14.1 | D81: 14.14 | E81: 13.06 | F81: 13.53 | G81: 23520500 | H81: 13.49237 | I81: =IF(F81=0,1,H81/F81) -> 0.9972187731 | J81: =INDEX(OFFSET($T$15,0,0,$S$13+1,1),MATCH(B81,OFFSET($Q$15,0,0,$S$13+1,1),-1)) -> 1 | K81: =ROUND($I81*C81,2) -> 14.06 | L81: =ROUND($I81*D81,2) -> 14.1 | M81: =ROUND($I81*E81,2) -> 13.02 | N81: =ROUND($I81*F81,2) -> 13.49 | O81: =G81*J81 -> 23520500 | U81: 2004-08-31 | V81: 0.125 | W81: =(INDEX(OFFSET($F$15,1,0,$B$10,1),MATCH(U81,OFFSET($B$15,1,0,$B$10,1),-1))) -> 14.585 | X81: =YEAR(U81)&RIGHT("0"&MONTH(U81),2) -> 200408 | Y81: =YEAR(U81)-1&RIGHT("0"&MONTH(U81),2) -> 200308 | Z81: =OFFSET(U80,AA81,0,1,1) -> 2003-09-02 | AA81: =MATCH(Y81,OFFSET($X$15,A81,0,$V$14+1-A81,1),-1) -> 5 | AB81: =IF(OR(AND(YEAR(U81)=YEAR(Z81),MONTH(U81)=MONTH(Z81)),MONTH(U81)=MONTH(Z81)),1,0) -> 0 | AC81: =(V81+IF(AA81-AB81=0,0,IFERROR(SUM(OFFSET(V81,1,0,AA81-AB81-1,1)),0))) -> 0.625 | AD81: =AC81/(INDEX(OFFSET($F$15,1,0,$B$10,1),MATCH(U81,OFFSET($B$15,1,0,$B$10,1),-1))) -> 0.04285224546
A82: 67 | B82: 2020-06-15 | C82: 11.95 | D82: 13.28 | E82: 11.71 | F82: 13.03 | G82: 19678100 | H82: 12.99376 | I82: 0.997218726 | J82: 1 | K82: 11.92 | L82: 13.24 | M82: 11.68 | N82: 12.99 | O82: 19678100 | U82: 2004-06-01 | V82: 0.125 | W82: 14.6 | X82: 200406 | Y82: 200306 | Z82: 2003-06-03 | AA82: 5 | AB82: 1 | AC82: 0.5 | AD82: 0.03424657534
A83: 68 | B83: 2020-06-12 | C83: 13.17 | D83: 13.31 | E83: 12.31 | F83: 12.78 | G83: 20059900 | H83: 12.744456 | I83: 0.9972187793 | J83: 1 | K83: 13.13 | L83: 13.27 | M83: 12.28 | N83: 12.74 | O83: 20059900 | U83: 2004-03-02 | V83: 0.125 | W83: 15.95 | X83: 200403 | Y83: 200303 | Z83: 2003-03-04 | AA83: 5 | AB83: 1 | AC83: 0.5 | AD83: 0.03134796238
A84: 69 | B84: 2020-06-11 | C84: 12.6 | D84: 13.25 | E84: 12.23 | F84: 12.28 | G84: 27855000 | H84: 12.245847 | I84: 0.9972188111 | J84: 1 | K84: 12.56 | L84: 13.21 | M84: 12.2 | N84: 12.25 | O84: 27855000 | U84: 2003-11-28 | V84: 0.125 | W84: 11.675 | X84: 200311 | Y84: 200211 | Z84: 2002-11-25 | AA84: 5 | AB84: 1 | AC84: 0.5 | AD84: 0.04282655246
A85: 70 | B85: 2020-06-10 | C85: 15.12 | D85: 15.24 | E85: 14.21 | F85: 14.51 | G85: 26440800 | H85: 14.469645 | I85: 0.9972188146 | J85: 1 | K85: 15.08 | L85: 15.2 | M85: 14.17 | N85: 14.47 | O85: 26440800 | U85: 2003-09-02 | V85: 0.125 | W85: 12.25 | X85: 200309 | Y85: 200209 | Z85: 2002-09-03 | AA85: 5 | AB85: 1 | AC85: 0.5 | AD85: 0.04081632653
A86: 71 | B86: 2020-06-09 | C86: 15.62 | D86: 15.62 | E86: 14.84 | F86: 15.43 | G86: 23805800 | H86: 15.387086 | I86: 0.9972187946 | J86: 1 | K86: 15.58 | L86: 15.58 | M86: 14.8 | N86: 15.39 | O86: 23805800 | U86: 2003-06-03 | V86: 0.125 | W86: 11.625 | X86: 200306 | Y86: 200206 | Z86: 2002-06-04 | AA86: 5 | AB86: 1 | AC86: 0.5 | AD86: 0.04301075269
A87: 72 | B87: 2020-06-08 | C87: 15.5 | D87: 16.450001 | E87: 15.19 | F87: 16.4 | G87: 36372000 | H87: 16.354387 | I87: 0.9972187195 | J87: 1 | K87: 15.46 | L87: 16.4 | M87: 15.15 | N87: 16.35 | O87: 36372000 | U87: 2003-03-04 | V87: 0.125 | W87: 9.97 | X87: 200303 | Y87: 200203 | Z87: 2002-06-04 | AA87: 4 | AB87: 0 | AC87: 0.5 | AD87: 0.05015045135
A88: 73 | B88: 2020-06-05 | C88: 14.22 | D88: 15.01 | E88: 14.21 | F88: 14.52 | G88: 27776900 | H88: 14.479617 | I88: 0.9972188017 | J88: 1 | K88: 14.18 | L88: 14.97 | M88: 14.17 | N88: 14.48 | O88: 27776900 | U88: 2002-11-25 | V88: 0.125 | W88: 9.155 | X88: 200211 | Y88: 200111 | Z88: 2001-11-27 | AA88: 5 | AB88: 1 | AC88: 0.5 | AD88: 0.0546149645
A89: 74 | B89: 2020-06-04 | C89: 12.99 | D89: 13.43 | E89: 12.67 | F89: 13.19 | G89: 22497000 | H89: 13.153316 | I89: 0.9972188021 | J89: 1 | K89: 12.95 | L89: 13.39 | M89: 12.63 | N89: 13.15 | O89: 22497000 | U89: 2002-09-03 | V89: 0.125 | W89: 6.9 | X89: 200209 | Y89: 200109 | Z89: 2001-09-04 | AA89: 5 | AB89: 1 | AC89: 0.5 | AD89: 0.07246376812
A90: 75 | B90: 2020-06-03 | C90: 13.09 | D90: 13.21 | E90: 12.86 | F90: 13.08 | G90: 24102100 | H90: 13.043622 | I90: 0.9972188073 | J90: 1 | K90: 13.05 | L90: 13.17 | M90: 12.82 | N90: 13.04 | O90: 24102100 | U90: 2002-06-04 | V90: 0.125 | W90: 8.96 | X90: 200206 | Y90: 200106 | Z90: 2001-06-04 | AA90: 5 | AB90: 1 | AC90: 0.5 | AD90: 0.05580357143
A91: 76 | B91: 2020-06-02 | C91: 12.24 | D91: 12.7 | E91: 12.11 | F91: 12.69 | G91: 21763900 | H91: 12.654706 | I91: 0.9972187549 | J91: 1 | K91: 12.21 | L91: 12.66 | M91: 12.08 | N91: 12.65 | O91: 21763900 | U91: 2002-02-26 | V91: 0.125 | W91: 8.21 | X91: 200202 | Y91: 200102 | Z91: 2001-02-27 | AA91: 5 | AB91: 1 | AC91: 0.5 | AD91: 0.06090133983
A92: 77 | B92: 2020-06-01 | C92: 11.79 | D92: 12.18 | E92: 11.58 | F92: 12.04 | G92: 20750000 | H92: 11.961639 | I92: 0.9934916113 | J92: 1 | K92: 11.71 | L92: 12.1 | M92: 11.5 | N92: 11.96 | O92: 20750000 | U92: 2001-11-27 | V92: 0.125 | W92: 10.93 | X92: 200111 | Y92: 200011 | Z92: 2000-11-28 | AA92: 5 | AB92: 1 | AC92: 0.5 | AD92: 0.04574565416
A93: 78 | B93: 2020-05-29 | C93: 11.88 | D93: 11.95 | E93: 11.4 | F93: 11.75 | G93: 28721700 | H93: 11.673526 | I93: 0.9934915745 | J93: 1 | K93: 11.8 | L93: 11.87 | M93: 11.33 | N93: 11.67 | O93: 28721700 | U93: 2001-09-04 | V93: 0.125 | W93: 14.43 | X93: 200109 | Y93: 200009 | Z93: 2000-09-01 | AA93: 5 | AB93: 1 | AC93: 0.5 | AD93: 0.03465003465
A94: 79 | B94: 2020-05-28 | C94: 12.18 | D94: 12.57 | E94: 11.94 | F94: 12.11 | G94: 19018700 | H94: 12.031182 | I94: 0.9934914946 | J94: 1 | K94: 12.1 | L94: 12.49 | M94: 11.86 | N94: 12.03 | O94: 19018700 | U94: 2001-06-04 | V94: 0.125 | W94: 23.754999 | X94: 200106 | Y94: 200006 | Z94: 2000-09-01 | AA94: 4 | AB94: 0 | AC94: 0.5 | AD94: 0.02104820126
A95: 80 | B95: 2020-05-27 | C95: 11.95 | D95: 12.24 | E95: 11.51 | F95: 12.19 | G95: 20093700 | H95: 12.110662 | I95: 0.9934915505 | J95: 1 | K95: 11.87 | L95: 12.16 | M95: 11.44 | N95: 12.11 | O95: 20093700 | U95: 2001-02-27 | V95: 0.125 | W95: 20.725 | X95: 200102 | Y95: 200002 | Z95: 2000-02-29 | AA95: 5 | AB95: 1 | AC95: 0.5 | AD95: 0.02412545235
A96: 81 | B96: 2020-05-26 | C96: 12.04 | D96: 12.11 | E96: 11.78 | F96: 11.87 | G96: 23319700 | H96: 11.792746 | I96: 0.9934916596 | J96: 1 | K96: 11.96 | L96: 12.03 | M96: 11.7 | N96: 11.79 | O96: 23319700 | U96: 2000-11-28 | V96: 0.125 | W96: 17.90625 | X96: 200011 | Y96: 199911 | Z96: 1999-11-29 | AA96: 6 | AB96: 1 | AC96: 0.625 | AD96: 0.03490401396
A97: 82 | B97: 2020-05-22 | C97: 11.86 | D97: 11.95 | E97: 11.47 | F97: 11.59 | G97: 19319100 | H97: 11.514567 | I97: 0.9934915444 | J97: 1 | K97: 11.78 | L97: 11.87 | M97: 11.4 | N97: 11.51 | O97: 19319100 | U97: 2000-09-01 | V97: 0.125 | W97: 26.820313 | X97: 200009 | Y97: 199909 | Z97: 1999-11-29 | AA97: 5 | AB97: 0 | AC97: 0.625 | AD97: 0.02330323289
A98: 83 | B98: 2020-05-21 | C98: 11.98 | D98: 12.21 | E98: 11.75 | F98: 11.98 | G98: 22874800 | H98: 11.902029 | I98: 0.9934915693 | J98: 1 | K98: 11.9 | L98: 12.13 | M98: 11.67 | N98: 11.9 | O98: 22874800 | U98: 2000-05-30 | V98: 0.125 | W98: 24.5 | X98: 200005 | Y98: 199905 | Z98: 1999-06-01 | AA98: 6 | AB98: 0 | AC98: 0.75 | AD98: 0.0306122449
A99: 84 | B99: 2020-05-20 | C99: 11.43 | D99: 11.99 | E99: 11.37 | F99: 11.95 | G99: 28188200 | H99: 11.872224 | I99: 0.9934915481 | J99: 1 | K99: 11.36 | L99: 11.91 | M99: 11.3 | N99: 11.87 | O99: 28188200 | U99: 2000-02-29 | V99: 0.125 | W99: 19.09375 | X99: 200002 | Y99: 199902 | Z99: 1999-03-02 | AA99: 6 | AB99: 0 | AC99: 0.75 | AD99: 0.03927986907
A100: 85 | B100: 2020-05-19 | C100: 11.4 | D100: 11.51 | E100: 11.06 | F100: 11.15 | G100: 26264000 | H100: 11.077432 | I100: 0.9934916592 | J100: 1 | K100: 11.33 | L100: 11.44 | M100: 10.99 | N100: 11.08 | O100: 26264000 | U100: 2000-02-28 | V100: 0.125 | W100: 17.5 | X100: 200002 | Y100: 199902 | Z100: 1999-03-02 | AA100: 5 | AB100: 0 | AC100: 0.625 | AD100: 0.03571428571
A101: 86 | B101: 2020-05-18 | C101: 10.54 | D101: 11.62 | E101: 10.51 | F101: 11.51 | G101: 40093100 | H101: 11.435089 | I101: 0.9934916594 | J101: 1 | K101: 10.47 | L101: 11.54 | M101: 10.44 | N101: 11.44 | O101: 40093100 | U101: 1999-11-29 | V101: 0.125 | W101: 19.28125 | X101: 199911 | Y101: 199811 | Z101: 1998-11-27 | AA101: 5 | AB101: 1 | AC101: 0.5 | AD101: 0.02593192869
A102: 87 | B102: 2020-05-15 | C102: 9.87 | D102: 10.24 | E102: 9.76 | F102: 9.82 | G102: 22989200 | H102: 9.756087 | I102: 0.9934915479 | J102: 1 | K102: 9.81 | L102: 10.17 | M102: 9.7 | N102: 9.76 | O102: 22989200 | U102: 1999-08-31 | V102: 0.125 | W102: 23.1875 | X102: 199908 | Y102: 199808 | Z102: 1998-09-01 | AA102: 5 | AB102: 0 | AC102: 0.625 | AD102: 0.0269541779
A103: 88 | B103: 2020-05-14 | C103: 9.25 | D103: 10.14 | E103: 9.12 | F103: 9.95 | G103: 22312000 | H103: 9.885242 | I103: 0.9934916583 | J103: 1 | K103: 9.19 | L103: 10.07 | M103: 9.06 | N103: 9.89 | O103: 22312000 | U103: 1999-06-01 | V103: 0.125 | W103: 20.375 | X103: 199906 | Y103: 199806 | Z103: 1998-06-01 | AA103: 5 | AB103: 1 | AC103: 0.5 | AD103: 0.0245398773
A104: 89 | B104: 2020-05-13 | C104: 10.35 | D104: 10.38 | E104: 9.41 | F104: 9.54 | G104: 24155200 | H104: 9.47791 | I104: 0.9934916143 | J104: 1 | K104: 10.28 | L104: 10.31 | M104: 9.35 | N104: 9.48 | O104: 24155200 | U104: 1999-03-02 | V104: 0.125 | W104: 14.34375 | X104: 199903 | Y104: 199803 | Z104: 1998-03-02 | AA104: 5 | AB104: 1 | AC104: 0.5 | AD104: 0.0348583878
A105: 90 | B105: 2020-05-12 | C105: 10.7 | D105: 10.88 | E105: 10.35 | F105: 10.49 | G105: 21854000 | H105: 10.421726 | I105: 0.9934915157 | J105: 1 | K105: 10.63 | L105: 10.81 | M105: 10.28 | N105: 10.42 | O105: 21854000 | U105: 1998-11-27 | V105: 0.125 | W105: 15.5625 | X105: 199811 | Y105: 199711 | Z105: 1997-11-28 | AA105: 5 | AB105: 1 | AC105: 0.5 | AD105: 0.03212851406
A106: 91 | B106: 2020-05-11 | C106: 10.48 | D106: 10.71 | E106: 10.31 | F106: 10.58 | G106: 17639300 | H106: 10.511142 | I106: 0.9934916824 | J106: 1 | K106: 10.41 | L106: 10.64 | M106: 10.24 | N106: 10.51 | O106: 17639300 | U106: 1998-09-01 | V106: 0.125 | W106: 13.625 | X106: 199809 | Y106: 199709 | Z106: 1997-11-28 | AA106: 4 | AB106: 0 | AC106: 0.5 | AD106: 0.03669724771
A107: 92 | B107: 2020-05-08 | C107: 10.28 | D107: 10.71 | E107: 10.09 | F107: 10.7 | G107: 21303500 | H107: 10.63036 | I107: 0.9934915888 | J107: 1 | K107: 10.21 | L107: 10.64 | M107: 10.02 | N107: 10.63 | O107: 21303500 | U107: 1998-06-01 | V107: 0.125 | W107: 22.875 | X107: 199806 | Y107: 199706 | Z107: 1997-06-02 | AA107: 5 | AB107: 1 | AC107: 0.5 | AD107: 0.0218579235
A108: 93 | B108: 2020-05-07 | C108: 9.79 | D108: 10.12 | E108: 9.76 | F108: 10.01 | G108: 20163200 | H108: 9.944852 | I108: 0.9934917083 | J108: 1 | K108: 9.73 | L108: 10.05 | M108: 9.7 | N108: 9.94 | O108: 20163200 | U108: 1998-03-02 | V108: 0.125 | W108: 23.875 | X108: 199803 | Y108: 199703 | Z108: 1997-03-03 | AA108: 5 | AB108: 1 | AC108: 0.625 | AD108: 0.02617801047
A109: 94 | B109: 2020-05-06 | C109: 9.78 | D109: 10 | E109: 9.55 | F109: 9.56 | G109: 19837800 | H109: 9.49778 | I109: 0.9934916318 | J109: 1 | K109: 9.72 | L109: 9.93 | M109: 9.49 | N109: 9.5 | O109: 19837800 | U109: 1997-11-28 | V109: 0.125 | W109: 26.96875 | X109: 199711 | Y109: 199611 | Z109: 1996-11-29 | AA109: 5 | AB109: 1 | AC109: 0.75 | AD109: 0.02780996524
A110: 95 | B110: 2020-05-05 | C110: 10.62 | D110: 10.76 | E110: 9.75 | F110: 9.86 | G110: 30398500 | H110: 9.795827 | I110: 0.9934915822 | J110: 1 | K110: 10.55 | L110: 10.69 | M110: 9.69 | N110: 9.8 | O110: 30398500 | U110: 1997-08-29 | V110: 0.125 | W110: 23.875 | X110: 199708 | Y110: 199608 | Z110: 1996-08-30 | AA110: 6 | AB110: 1 | AC110: 1.125 | AD110: 0.04712041885
A111: 96 | B111: 2020-05-04 | C111: 9.23 | D111: 10.04 | E111: 9.05 | F111: 10.03 | G111: 25440100 | H111: 9.964721 | I111: 0.9934916251 | J111: 1 | K111: 9.17 | L111: 9.97 | M111: 8.99 | N111: 9.96 | O111: 25440100 | U111: 1997-06-02 | V111: 0.25 | W111: 20.0625 | X111: 199706 | Y111: 199606 | Z111: 1996-06-03 | AA111: 6 | AB111: 1 | AC111: 1.25 | AD111: 0.06230529595
A112: 97 | B112: 2020-05-01 | C112: 10.18 | D112: 10.4 | E112: 9.7 | F112: 9.76 | G112: 28085800 | H112: 9.696478 | I112: 0.9934915984 | J112: 1 | K112: 10.11 | L112: 10.33 | M112: 9.64 | N112: 9.7 | O112: 28085800 | U112: 1997-03-03 | V112: 0.25 | W112: 15.4375 | X112: 199703 | Y112: 199603 | Z112: 1996-03-04 | AA112: 6 | AB112: 1 | AC112: 1.25 | AD112: 0.08097165992
A113: 98 | B113: 2020-04-30 | C113: 11.1 | D113: 11.11 | E113: 10.24 | F113: 10.5 | G113: 45373000 | H113: 10.431662 | I113: 0.993491619 | J113: 1 | K113: 11.03 | L113: 11.04 | M113: 10.17 | N113: 10.43 | O113: 45373000 | U113: 1996-11-29 | V113: 0.25 | W113: 15.0625 | X113: 199611 | Y113: 199511 | Z113: 1995-11-28 | AA113: 6 | AB113: 1 | AC113: 1.25 | AD113: 0.08298755187
A114: 99 | B114: 2020-04-29 | C114: 10.16 | D114: 11.07 | E114: 10.1 | F114: 11.02 | G114: 37511600 | H114: 10.948277 | I114: 0.9934915608 | J114: 1 | K114: 10.09 | L114: 11 | M114: 10.03 | N114: 10.95 | O114: 37511600 | U114: 1996-11-27 | V114: 0.25 | W114: 15.03125 | X114: 199611 | Y114: 199511 | Z114: 1995-11-28 | AA114: 5 | AB114: 1 | AC114: 1 | AD114: 0.06652806653
A115: 100 | B115: 2020-04-28 | C115: 9.29 | D115: 9.6 | E115: 9.04 | F115: 9.52 | G115: 28508700 | H115: 9.45804 | I115: 0.9934915966 | J115: 1 | K115: 9.23 | L115: 9.54 | M115: 8.98 | N115: 9.46 | O115: 28508700 | U115: 1996-08-30 | V115: 0.25 | W115: 13.15625 | X115: 199608 | Y115: 199508 | Z115: 1995-08-29 | AA115: 5 | AB115: 1 | AC115: 1 | AD115: 0.07600950119
A116: 101 | B116: 2020-04-27 | C116: 8.5 | D116: 9.1 | E116: 8.26 | F116: 8.91 | G116: 27910700 | H116: 8.852011 | I116: 0.9934916947 | J116: 1 | K116: 8.44 | L116: 9.04 | M116: 8.21 | N116: 8.85 | O116: 27910700 | U116: 1996-06-03 | V116: 0.25 | W116: 13.5625 | X116: 199606 | Y116: 199506 | Z116: 1995-08-24 | AA116: 5 | AB116: 0 | AC116: 1.25 | AD116: 0.09216589862
A117: 102 | B117: 2020-04-24 | C117: 9.19 | D117: 9.58 | E117: 8.72 | F117: 8.86 | G117: 46136600 | H117: 8.802336 | I117: 0.9934916479 | J117: 1 | K117: 9.13 | L117: 9.52 | M117: 8.66 | N117: 8.8 | O117: 46136600 | U117: 1996-03-04 | V117: 0.25 | W117: 13.46875 | X117: 199603 | Y117: 199503 | Z117: 1995-05-25 | AA117: 6 | AB117: 0 | AC117: 1.5 | AD117: 0.1113689095
A118: 103 | B118: 2020-04-23 | C118: 8.6 | D118: 9.02 | E118: 8.41 | F118: 8.92 | G118: 43765500 | H118: 8.861945 | I118: 0.9934915919 | J118: 1 | K118: 8.54 | L118: 8.96 | M118: 8.36 | N118: 8.86 | O118: 43765500 | U118: 1995-11-28 | V118: 0.25 | W118: 10.244858 | X118: 199511 | Y118: 199411 | Z118: 1994-11-25 | AA118: 7 | AB118: 1 | AC118: 1.5 | AD118: 0.1464149137
A119: 104 | B119: 2020-04-22 | C119: 7.85 | D119: 8.3 | E119: 7.81 | F119: 8.23 | G119: 39622800 | H119: 8.176435 | I119: 0.9934914945 | J119: 1 | K119: 7.8 | L119: 8.25 | M119: 7.76 | N119: 8.18 | O119: 39622800 | U119: 1995-08-29 | V119: 0.25 | W119: 9.827915 | X119: 199508 | Y119: 199408 | Z119: 1994-08-26 | AA119: 7 | AB119: 1 | AC119: 1.5 | AD119: 0.1526264727
A120: 105 | B120: 2020-04-21 | C120: 7.31 | D120: 7.76 | E120: 7.16 | F120: 7.46 | G120: 34791200 | H120: 7.411448 | I120: 0.993491689 | J120: 1 | K120: 7.26 | L120: 7.71 | M120: 7.11 | N120: 7.41 | O120: 34791200 | U120: 1995-08-24 | V120: 0.25 | W120: 9.70879 | X120: 199508 | Y120: 199408 | Z120: 1994-08-26 | AA120: 6 | AB120: 1 | AC120: 1.25 | AD120: 0.1287493086
A121: 106 | B121: 2020-04-20 | C121: 6.9 | D121: 8.02 | E121: 6.7 | F121: 7.63 | G121: 41649500 | H121: 7.580341 | I121: 0.9934916121 | J121: 1 | K121: 6.86 | L121: 7.97 | M121: 6.66 | N121: 7.58 | O121: 41649500 | U121: 1995-05-26 | V121: 0.25 | W121: 9.202503 | X121: 199505 | Y121: 199405 | Z121: 1994-05-25 | AA121: 6 | AB121: 1 | AC121: 1.25 | AD121: 0.1358326099
A122: 107 | B122: 2020-04-17 | C122: 6.9 | D122: 7.58 | E122: 6.89 | F122: 7.58 | G122: 34351200 | H122: 7.530666 | I122: 0.9934915567 | J122: 1 | K122: 6.86 | L122: 7.53 | M122: 6.85 | N122: 7.53 | O122: 34351200 | U122: 1995-05-25 | V122: 0.25 | W122: 9.232285 | X122: 199505 | Y122: 199405 | Z122: 1994-05-25 | AA122: 5 | AB122: 1 | AC122: 1 | AD122: 0.108315547
A123: 108 | B123: 2020-04-16 | C123: 6.98 | D123: 6.98 | E123: 6.53 | F123: 6.67 | G123: 26960600 | H123: 6.626589 | I123: 0.9934916042 | J123: 1 | K123: 6.93 | L123: 6.93 | M123: 6.49 | N123: 6.63 | O123: 26960600 | U123: 1995-02-24 | V123: 0.25 | W123: 8.666434 | X123: 199502 | Y123: 199402 | Z123: 1994-02-24 | AA123: 5 | AB123: 1 | AC123: 1 | AD123: 0.1153877131
A124: 109 | B124: 2020-04-15 | C124: 7.15 | D124: 7.2 | E124: 6.8 | F124: 6.95 | G124: 34865300 | H124: 6.904767 | I124: 0.9934916547 | J124: 1 | K124: 7.1 | L124: 7.15 | M124: 6.76 | N124: 6.9 | O124: 34865300 | U124: 1994-11-25 | V124: 0.25 | W124: 8.041022 | X124: 199411 | Y124: 199311 | Z124: 1993-11-24 | AA124: 5 | AB124: 1 | AC124: 1 | AD124: 0.1243623012
A125: 110 | B125: 2020-04-14 | C125: 7.86 | D125: 8.15 | E125: 7.5 | F125: 7.63 | G125: 37407700 | H125: 7.580341 | I125: 0.9934916121 | J125: 1 | K125: 7.81 | L125: 8.1 | M125: 7.45 | N125: 7.58 | O125: 37407700 | U125: 1994-08-26 | V125: 0.25 | W125: 7.05823 | X125: 199408 | Y125: 199308 | Z125: 1993-08-26 | AA125: 5 | AB125: 1 | AC125: 1 | AD125: 0.1416785795
A126: 111 | B126: 2020-04-13 | C126: 8.55 | D126: 8.55 | E126: 7.68 | F126: 7.85 | G126: 46429300 | H126: 7.798909 | I126: 0.9934915924 | J126: 1 | K126: 8.49 | L126: 8.49 | M126: 7.63 | N126: 7.8 | O126: 46429300 | U126: 1994-05-25 | V126: 0.25 | W126: 7.296483 | X126: 199405 | Y126: 199305 | Z126: 1993-05-26 | AA126: 5 | AB126: 1 | AC126: 1 | AD126: 0.1370523306
A127: 112 | B127: 2020-04-09 | C127: 9.62 | D127: 9.73 | E127: 7.97 | F127: 8.21 | G127: 62400000 | H127: 8.156567 | I127: 0.9934917174 | J127: 1 | K127: 9.56 | L127: 9.67 | M127: 7.92 | N127: 8.16 | O127: 62400000 | U127: 1994-02-24 | V127: 0.25 | W127: 7.62408 | X127: 199402 | Y127: 199302 | Z127: 1993-02-25 | AA127: 5 | AB127: 1 | AC127: 1 | AD127: 0.1311633666
A128: 113 | B128: 2020-04-08 | C128: 8.3 | D128: 8.79 | E128: 8.27 | F128: 8.75 | G128: 27550400 | H128: 8.693052 | I128: 0.9934916571 | J128: 1 | K128: 8.25 | L128: 8.73 | M128: 8.22 | N128: 8.69 | O128: 27550400 | U128: 1993-11-24 | V128: 0.25 | W128: 7.921896 | X128: 199311 | Y128: 199211 | Z128: 1992-11-25 | AA128: 5 | AB128: 1 | AC128: 1 | AD128: 0.126232407
A129: 114 | B129: 2020-04-07 | C129: 8.55 | D129: 8.83 | E129: 7.78 | F129: 8.04 | G129: 40153500 | H129: 7.987672 | I129: 0.9934915423 | J129: 1 | K129: 8.49 | L129: 8.77 | M129: 7.73 | N129: 7.99 | O129: 40153500 | U129: 1993-08-26 | V129: 0.25 | W129: 9.440755 | X129: 199308 | Y129: 199208 | Z129: 1992-08-27 | AA129: 5 | AB129: 1 | AC129: 1 | AD129: 0.1059237317
A130: 115 | B130: 2020-04-06 | C130: 7.83 | D130: 8 | E130: 7.61 | F130: 7.91 | G130: 28269000 | H130: 7.858518 | I130: 0.9934915297 | J130: 1 | K130: 7.78 | L130: 7.95 | M130: 7.56 | N130: 7.86 | O130: 28269000 | U130: 1993-05-26 | V130: 0.25 | W130: 9.768353 | X130: 199305 | Y130: 199205 | Z130: 1992-05-28 | AA130: 5 | AB130: 1 | AC130: 1 | AD130: 0.1023714028
A131: 116 | B131: 2020-04-03 | C131: 7.83 | D131: 8.03 | E131: 7.34 | F131: 7.61 | G131: 35876800 | H131: 7.560472 | I131: 0.9934917214 | J131: 1 | K131: 7.78 | L131: 7.98 | M131: 7.29 | N131: 7.56 | O131: 35876800 | U131: 1993-02-25 | V131: 0.25 | W131: 8.219711 | X131: 199302 | Y131: 199202 | Z131: 1992-02-27 | AA131: 5 | AB131: 1 | AC131: 1 | AD131: 0.1216587785
A132: 117 | B132: 2020-04-02 | C132: 6.81 | D132: 8.2 | E132: 6.76 | F132: 7.52 | G132: 51270900 | H132: 7.471057 | I132: 0.9934916223 | J132: 1 | K132: 6.77 | L132: 8.15 | M132: 6.72 | N132: 7.47 | O132: 51270900 | U132: 1992-11-25 | V132: 0.25 | W132: 7.088012 | X132: 199211 | Y132: 199111 | Z132: 1991-11-20 | AA132: 5 | AB132: 1 | AC132: 1 | AD132: 0.1410832826
A133: 118 | B133: 2020-04-01 | C133: 6.61 | D133: 6.7 | E133: 6.23 | F133: 6.6 | G133: 27200600 | H133: 6.557045 | I133: 0.9934916667 | J133: 1 | K133: 6.57 | L133: 6.66 | M133: 6.19 | N133: 6.56 | O133: 27200600 | U133: 1992-08-27 | V133: 0.25 | W133: 7.802769 | X133: 199208 | Y133: 199108 | Z133: 1991-08-28 | AA133: 5 | AB133: 1 | AC133: 1 | AD133: 0.1281596315
A134: 119 | B134: 2020-03-31 | C134: 6.8 | D134: 6.99 | E134: 6.54 | F134: 6.85 | G134: 34498500 | H134: 6.805418 | I134: 0.9934916788 | J134: 1 | K134: 6.76 | L134: 6.94 | M134: 6.5 | N134: 6.81 | O134: 34498500 | U134: 1992-05-28 | V134: 0.25 | W134: 6.968885 | X134: 199205 | Y134: 199105 | Z134: 1991-05-30 | AA134: 5 | AB134: 1 | AC134: 1 | AD134: 0.143494978
A135: 120 | B135: 2020-03-30 | C135: 6.3 | D135: 6.67 | E135: 6.03 | F135: 6.37 | G135: 28100100 | H135: 6.328541 | I135: 0.9934915228 | J135: 1 | K135: 6.26 | L135: 6.63 | M135: 5.99 | N135: 6.33 | O135: 28100100 | U135: 1992-02-27 | V135: 0.25 | W135: 6.492381 | X135: 199202 | Y135: 199102 | Z135: 1991-02-28 | AA135: 5 | AB135: 1 | AC135: 1 | AD135: 0.1540266968
A136: 121 | B136: 2020-03-27 | C136: 6.57 | D136: 6.81 | E136: 6.18 | F136: 6.39 | G136: 33438800 | H136: 6.348412 | I136: 0.9934917058 | J136: 1 | K136: 6.53 | L136: 6.77 | M136: 6.14 | N136: 6.35 | O136: 33438800 | U136: 1991-11-20 | V136: 0.25 | W136: 7.564517 | X136: 199111 | Y136: 199011 | Z136: 1990-11-21 | AA136: 5 | AB136: 1 | AC136: 1 | AD136: 0.1321961468
A137: 122 | B137: 2020-03-26 | C137: 6.88 | D137: 7.77 | E137: 6.75 | F137: 7.05 | G137: 32866100 | H137: 7.004116 | I137: 0.9934916312 | J137: 1 | K137: 6.84 | L137: 7.72 | M137: 6.71 | N137: 7 | O137: 32866100 | U137: 1991-08-28 | V137: 0.25 | W137: 9.410974 | X137: 199108 | Y137: 199008 | Z137: 1990-08-29 | AA137: 5 | AB137: 1 | AC137: 1 | AD137: 0.1062589271
A138: 123 | B138: 2020-03-25 | C138: 7.52 | D138: 7.52 | E138: 6.04 | F138: 6.77 | G138: 51372200 | H138: 6.725938 | I138: 0.9934915805 | J138: 1 | K138: 7.47 | L138: 7.47 | M138: 6 | N138: 6.73 | O138: 51372200 | U138: 1991-05-30 | V138: 0.25 | W138: 10.393765 | X138: 199105 | Y138: 199005 | Z138: 1990-05-25 | AA138: 5 | AB138: 1 | AC138: 1 | AD138: 0.09621152681
A139: 124 | B139: 2020-03-24 | C139: 5.92 | D139: 6.95 | E139: 5.81 | F139: 6.63 | G139: 48419800 | H139: 6.586849 | I139: 0.9934915535 | J139: 1 | K139: 5.88 | L139: 6.9 | M139: 5.77 | N139: 6.59 | O139: 48419800 | U139: 1991-02-28 | V139: 0.25 | W139: 12.746509 | X139: 199102 | Y139: 199002 | Z139: 1990-02-23 | AA139: 5 | AB139: 1 | AC139: 1 | AD139: 0.07845285325
A140: 125 | B140: 2020-03-23 | C140: 5.2 | D140: 5.38 | E140: 4.9 | F140: 5.24 | G140: 27219200 | H140: 5.205896 | I140: 0.9934916031 | J140: 1 | K140: 5.17 | L140: 5.34 | M140: 4.87 | N140: 5.21 | O140: 27219200 | U140: 1990-11-21 | V140: 0.25 | W140: 10.810707 | X140: 199011 | Y140: 198911 | Z140: 1989-11-27 | AA140: 5 | AB140: 1 | AC140: 1 | AD140: 0.09250088824
A141: 126 | B141: 2020-03-20 | C141: 5.13 | D141: 5.36 | E141: 4.56 | F141: 5.05 | G141: 49166700 | H141: 5.017133 | I141: 0.9934916832 | J141: 1 | K141: 5.1 | L141: 5.33 | M141: 4.53 | N141: 5.02 | O141: 49166700 | U141: 1990-08-29 | V141: 0.25 | W141: 12.686946 | X141: 199008 | Y141: 198908 | Z141: 1989-08-28 | AA141: 5 | AB141: 1 | AC141: 1 | AD141: 0.07882117572
A142: 127 | B142: 2020-03-19 | C142: 4.78 | D142: 5.34 | E142: 4.5 | F142: 4.8 | G142: 39826500 | H142: 4.76876 | I142: 0.9934916667 | J142: 1 | K142: 4.75 | L142: 5.31 | M142: 4.47 | N142: 4.77 | O142: 39826500 | U142: 1990-05-25 | V142: 0.25 | W142: 11.168086 | X142: 199005 | Y142: 198905 | Z142: 1989-05-25 | AA142: 5 | AB142: 1 | AC142: 1 | AD142: 0.08954085776
A143: 128 | B143: 2020-03-18 | C143: 5.59 | D143: 5.89 | E143: 4.25 | F143: 4.61 | G143: 45137200 | H143: 4.579997 | I143: 0.993491757 | J143: 1 | K143: 5.55 | L143: 5.85 | M143: 4.22 | N143: 4.58 | O143: 45137200 | U143: 1990-02-23 | V143: 0.25 | W143: 10.423547 | X143: 199002 | Y143: 198902 | Z143: 1989-02-24 | AA143: 5 | AB143: 1 | AC143: 1 | AD143: 0.0959366327
A144: 129 | B144: 2020-03-17 | C144: 6.13 | D144: 6.4 | E144: 5.58 | F144: 6.14 | G144: 36202700 | H144: 6.100039 | I144: 0.9934916938 | J144: 1 | K144: 6.09 | L144: 6.36 | M144: 5.54 | N144: 6.1 | O144: 36202700 | U144: 1989-11-27 | V144: 0.25 | W144: 9.589664 | X144: 198911 | Y144: 198811 | Z144: 1988-11-25 | AA144: 5 | AB144: 1 | AC144: 1 | AD144: 0.1042789403
A145: 130 | B145: 2020-03-16 | C145: 5.96 | D145: 6.83 | E145: 5.8 | F145: 5.94 | G145: 37973700 | H145: 5.90134 | I145: =IF(F145=0,1,H145/F145) -> 0.9934915825 | J145: =INDEX(OFFSET($T$15,0,0,$S$13+1,1),MATCH(B145,OFFSET($Q$15,0,0,$S$13+1,1),-1)) -> 1 | K145: =ROUND($I145*C145,2) -> 5.92 | L145: =ROUND($I145*D145,2) -> 6.79 | M145: =ROUND($I145*E145,2) -> 5.76 | N145: =ROUND($I145*F145,2) -> 5.9 | O145: =G145*J145 -> 37973700 | U145: 1989-08-28 | V145: 0.25 | W145: =(INDEX(OFFSET($F$15,1,0,$B$10,1),MATCH(U145,OFFSET($B$15,1,0,$B$10,1),-1))) -> 9.5301 | X145: =YEAR(U145)&RIGHT("0"&MONTH(U145),2) -> 198908 | Y145: =YEAR(U145)-1&RIGHT("0"&MONTH(U145),2) -> 198808 | Z145: =OFFSET(U144,AA145,0,1,1) -> 1988-08-26 | AA145: =MATCH(Y145,OFFSET($X$15,A145,0,$V$14+1-A145,1),-1) -> 5 | AB145: =IF(OR(AND(YEAR(U145)=YEAR(Z145),MONTH(U145)=MONTH(Z145)),MONTH(U145)=MONTH(Z145)),1,0) -> 1 | AC145: =(V145+IF(AA145-AB145=0,0,IFERROR(SUM(OFFSET(V145,1,0,AA145-AB145-1,1)),0))) -> 1 | AD145: =AC145/(INDEX(OFFSET($F$15,1,0,$B$10,1),MATCH(U145,OFFSET($B$15,1,0,$B$10,1),-1))) -> 0.1049306933
A146: 131 | B146: 2020-03-13 | C146: 7.32 | D146: 7.35 | E146: 6.32 | F146: 7.15 | G146: 43906600 | H146: 7.103466 | I146: 0.9934917483 | J146: 1 | K146: 7.27 | L146: 7.3 | M146: 6.28 | N146: 7.1 | O146: 43906600 | U146: 1989-05-25 | V146: 0.25 | W146: 7.177357 | X146: 198905 | Y146: 198805 | Z146: 1988-05-26 | AA146: 5 | AB146: 1 | AC146: 1 | AD146: 0.1393270531
A147: 132 | B147: 2020-03-12 | C147: 7.15 | D147: 7.39 | E147: 6.42 | F147: 6.42 | G147: 38621400 | H147: 6.378216 | I147: 0.9934915888 | J147: 1 | K147: 7.1 | L147: 7.34 | M147: 6.38 | N147: 6.38 | O147: 38621400 | U147: 1989-02-24 | V147: 0.25 | W147: 6.819978 | X147: 198902 | Y147: 198802 | Z147: 1988-02-29 | AA147: 5 | AB147: 1 | AC147: 1 | AD147: 0.146628039
A148: 133 | B148: 2020-03-11 | C148: 8.13 | D148: 8.33 | E148: 7.77 | F148: 7.83 | G148: 35888800 | H148: 7.779039 | I148: 0.9934915709 | J148: 1 | K148: 8.08 | L148: 8.28 | M148: 7.72 | N148: 7.78 | O148: 35888800 | U148: 1988-11-25 | V148: 0.25 | W148: 6.313691 | X148: 198811 | Y148: 198711 | Z148: 1987-11-24 | AA148: 5 | AB148: 1 | AC148: 1 | AD148: 0.1583859584
A149: 134 | B149: 2020-03-10 | C149: 9.49 | D149: 9.57 | E149: 7.68 | F149: 8.66 | G149: 62821800 | H149: 8.603637 | I149: 0.9934915704 | J149: 1 | K149: 9.43 | L149: 9.51 | M149: 7.63 | N149: 8.6 | O149: 62821800 | U149: 1988-08-26 | V149: 0.25 | W149: 6.403036 | X149: 198808 | Y149: 198708 | Z149: 1987-08-28 | AA149: 5 | AB149: 1 | AC149: 1 | AD149: 0.1561759141
A150: 135 | B150: 2020-03-09 | C150: 9.74 | D150: 9.74 | E150: 7.9 | F150: 8.15 | G150: 74704100 | H150: 8.096956 | I150: 0.9934915337 | J150: 1 | K150: 9.68 | L150: 9.68 | M150: 7.85 | N150: 8.1 | O150: 74704100 | U150: 1988-05-26 | V150: 0.25 | W150: 7.594298 | X150: 198805 | Y150: 198705 | Z150: 1987-05-27 | AA150: 5 | AB150: 1 | AC150: 1 | AD150: 0.1316777403
A151: 136 | B151: 2020-03-06 | C151: 14.26 | D151: 14.48 | E151: 12.75 | F151: 13.07 | G151: 30003000 | H151: 12.984935 | I151: 0.9934915838 | J151: 1 | K151: 14.17 | L151: 14.39 | M151: 12.67 | N151: 12.98 | O151: 30003000 | U151: 1988-02-29 | V151: 0.25 | W151: 7.564517 | X151: 198802 | Y151: 198702 | Z151: 1987-03-02 | AA151: 5 | AB151: 0 | AC151: 1.25 | AD151: 0.1652451835
A152: 137 | B152: 2020-03-05 | C152: 15 | D152: 15.04 | E152: 14.42 | F152: 14.74 | G152: 28694400 | H152: 14.644066 | I152: 0.9934915875 | J152: 1 | K152: 14.9 | L152: 14.94 | M152: 14.33 | N152: 14.64 | O152: 28694400 | U152: 1987-11-24 | V152: 0.25 | W152: 6.343473 | X152: 198711 | Y152: 198611 | Z152: 1986-11-24 | AA152: 5 | AB152: 1 | AC152: 1 | AD152: 0.1576423514
A153: 138 | B153: 2020-03-04 | C153: 16.190001 | D153: 16.190001 | E153: 15.13 | F153: 15.39 | G153: 30188600 | H153: 15.289837 | I153: 0.9934916829 | J153: 1 | K153: 16.08 | L153: 16.08 | M153: 15.03 | N153: 15.29 | O153: 30188600 | U153: 1987-08-28 | V153: 0.25 | W153: 9.381192 | X153: 198708 | Y153: 198608 | Z153: 1986-08-26 | AA153: 5 | AB153: 1 | AC153: 1 | AD153: 0.106596262
A154: 139 | B154: 2020-03-03 | C154: 16.74 | D154: 17.08 | E154: 15.71 | F154: 15.95 | G154: 26031300 | H154: 15.846191 | I154: 0.9934915987 | J154: 1 | K154: 16.63 | L154: 16.97 | M154: 15.61 | N154: 15.85 | O154: 26031300 | U154: 1987-05-27 | V154: 0.25 | W154: 8.547308 | X154: 198705 | Y154: 198605 | Z154: 1986-05-27 | AA154: 5 | AB154: 1 | AC154: 1 | AD154: 0.1169959009
A155: 140 | B155: 2020-03-02 | C155: 17.25 | D155: 17.27 | E155: 16.370001 | F155: 17.219999 | G155: 20530300 | H155: 16.929096 | I155: 0.9831066773 | J155: 1 | K155: 16.96 | L155: 16.98 | M155: 16.09 | N155: 16.93 | O155: 20530300 | U155: 1987-03-02 | V155: 0.25 | W155: 7.088012 | X155: 198703 | Y155: 198603 | Z155: 1986-05-27 | AA155: 4 | AB155: 0 | AC155: 1 | AD155: 0.1410832826
A156: 141 | B156: 2020-02-28 | C156: 16.76 | D156: 17.15 | E156: 16.299999 | F156: 16.959999 | G156: 27296100 | H156: 16.673489 | I156: 0.9831067207 | J156: 1 | K156: 16.48 | L156: 16.86 | M156: 16.02 | N156: 16.67 | O156: 27296100 | U156: 1986-11-24 | V156: 0.25 | W156: 5.926531 | X156: 198611 | Y156: 198511 | Z156: 1985-11-25 | AA156: 5 | AB156: 1 | AC156: 1.2 | AD156: 0.2024793256
A157: 142 | B157: 2020-02-27 | C157: 17.690001 | D157: 18.43 | E157: 17.27 | F157: 17.389999 | G157: 20069300 | H157: 17.096224 | I157: 0.9831066695 | J157: 1 | K157: 17.39 | L157: 18.12 | M157: 16.98 | N157: 17.1 | O157: 20069300 | U157: 1986-08-26 | V157: 0.25 | W157: 5.301118 | X157: 198608 | Y157: 198508 | Z157: 1985-08-27 | AA157: 5 | AB157: 1 | AC157: 1.05721 | AD157: 0.1994315161
A158: 143 | B158: 2020-02-26 | C158: 19.23 | D158: 19.27 | E158: 18.33 | F158: 18.4 | G158: 16143400 | H158: 18.089163 | I158: 0.9831066848 | J158: 1 | K158: 18.91 | L158: 18.94 | M158: 18.02 | N158: 18.09 | O158: 16143400 | U158: 1986-05-27 | V158: 0.25 | W158: 5.181992 | X158: 198605 | Y158: 198505 | Z158: 1985-05-28 | AA158: 5 | AB158: 1 | AC158: 0.91442 | AD158: 0.1764610984
A159: 144 | B159: 2020-02-25 | C159: 19.950001 | D159: 20.01 | E159: 18.76 | F159: 19.01 | G159: 13040400 | H159: 18.688858 | I159: 0.9831066807 | J159: 1 | K159: 19.61 | L159: 19.67 | M159: 18.44 | N159: 18.69 | O159: 13040400 | U159: 1986-02-25 | V159: 0.45 | W159: 5.628716 | X159: 198602 | Y159: 198502 | Z159: 1985-02-26 | AA159: 5 | AB159: 1 | AC159: 0.77163 | AD159: 0.1370881032
A160: 145 | B160: 2020-02-24 | C160: 20.25 | D160: 20.280001 | E160: 19.74 | F160: 19.83 | G160: 12540100 | H160: 19.495005 | I160: 0.9831066566 | J160: 1 | K160: 19.91 | L160: 19.94 | M160: 19.41 | N160: 19.5 | O160: 12540100 | U160: 1985-11-25 | V160: 0.10721 | W160: 6.67107 | X160: 198511 | Y160: 198411 | Z160: 1984-11-26 | AA160: 5 | AB160: 1 | AC160: 0.42884 | AD160: 0.06428354072
A161: 146 | B161: 2020-02-21 | C161: 21.639999 | D161: 21.67 | E161: 20.889999 | F161: 21.26 | G161: 11631000 | H161: 20.900846 | I161: 0.9831065851 | J161: 1 | K161: 21.27 | L161: 21.3 | M161: 20.54 | N161: 20.9 | O161: 11631000 | U161: 1985-08-27 | V161: 0.10721 | W161: 6.939104 | X161: 198508 | Y161: 198408 | Z161: 1984-08-28 | AA161: 5 | AB161: 1 | AC161: 0.42884 | AD161: 0.06180048606
A162: 147 | B162: 2020-02-20 | C162: 22.52 | D162: 22.58 | E162: 21.940001 | F162: 21.950001 | G162: 7202300 | H162: 21.579191 | I162: 0.9831066067 | J162: 1 | K162: 22.14 | L162: 22.2 | M162: 21.57 | N162: 21.58 | O162: 7202300 | U162: 1985-05-28 | V162: 0.10721 | W162: 7.296483 | X162: 198505 | Y162: 198405 | Z162: 1984-05-25 | AA162: 5 | AB162: 1 | AC162: 0.42884 | AD162: 0.05877352143
A163: 148 | B163: 2020-02-19 | C163: 21.98 | D163: 22.35 | E163: 21.950001 | F163: 22.280001 | G163: 7035300 | H163: 21.903616 | I163: 0.9831065986 | J163: 1 | K163: 21.61 | L163: 21.97 | M163: 21.58 | N163: 21.9 | O163: 7035300 | U163: 1985-02-26 | V163: 0.10721 | W163: 7.207138 | X163: 198502 | Y163: 198402 | Z163: 1984-02-24 | AA163: 5 | AB163: 1 | AC163: 0.42884 | AD163: 0.05950212137
A164: 149 | B164: 2020-02-18 | C164: 21.82 | D164: 21.98 | E164: 21.389999 | F164: 21.860001 | G164: 8500200 | H164: 21.490713 | I164: 0.9831066796 | J164: 1 | K164: 21.45 | L164: 21.61 | M164: 21.03 | N164: 21.49 | O164: 8500200 | U164: 1984-11-26 | V164: 0.10721 | W164: 6.968885 | X164: 198411 | Y164: 198311 | Z164: 1983-11-25 | AA164: 5 | AB164: 1 | AC164: 0.42884 | AD164: 0.06153638638
A165: 150 | B165: 2020-02-14 | C165: 22.24 | D165: 22.35 | E165: 21.84 | F165: 22.120001 | G165: 8415500 | H165: 21.746321 | I165: 0.9831066915 | J165: 1 | K165: 21.86 | L165: 21.97 | M165: 21.47 | N165: 21.75 | O165: 8415500 | U165: 1984-08-28 | V165: 0.10721 | W165: 7.832551 | X165: 198408 | Y165: 198308 | Z165: 1983-08-29 | AA165: 5 | AB165: 1 | AC165: 0.42884 | AD165: 0.05475100003
A166: 151 | B166: 2020-02-13 | C166: 22.139999 | D166: 22.4 | E166: 21.9 | F166: 22.190001 | G166: 10072300 | H166: 21.815136 | I166: 0.9831065803 | J166: 1 | K166: 21.77 | L166: 22.02 | M166: 21.53 | N166: 21.82 | O166: 10072300 | U166: 1984-05-25 | V166: 0.10721 | W166: 8.815343 | X166: 198405 | Y166: 198305 | Z166: 1983-05-25 | AA166: 5 | AB166: 1 | AC166: 0.41693 | AD166: 0.04729594753
A167: 152 | B167: 2020-02-12 | C167: 22.27 | D167: 22.559999 | E167: 21.9 | F167: 22.35 | G167: 9893900 | H167: 21.972435 | I167: 0.9831067114 | J167: 1 | K167: 21.89 | L167: 22.18 | M167: 21.53 | N167: 21.97 | O167: 9893900 | U167: 1984-02-24 | V167: 0.10721 | W167: 8.994032 | X167: 198402 | Y167: 198302 | Z167: 1983-02-23 | AA167: 5 | AB167: 1 | AC167: 0.40502 | AD167: 0.0450320835
A168: 153 | B168: 2020-02-11 | C168: 21.77 | D168: 21.860001 | E168: 21.5 | F168: 21.73 | G168: 12984000 | H168: 21.362907 | I168: 0.9831066268 | J168: 1 | K168: 21.4 | L168: 21.49 | M168: 21.14 | N168: 21.36 | O168: 12984000 | U168: 1983-11-25 | V168: 0.10721 | W168: 9.113158 | X168: 198311 | Y168: 198211 | Z168: 1982-11-24 | AA168: 5 | AB168: 1 | AC168: 0.39311 | AD168: 0.04313652852
A169: 154 | B169: 2020-02-10 | C169: 21.51 | D169: 21.6 | E169: 21.290001 | F169: 21.4 | G169: 10099000 | H169: 21.038483 | I169: 0.9831066822 | J169: 1 | K169: 21.15 | L169: 21.24 | M169: 20.93 | N169: 21.04 | O169: 10099000 | U169: 1983-08-29 | V169: 0.0953 | W169: 10.602236 | X169: 198308 | Y169: 198208 | Z169: 1982-08-30 | AA169: 5 | AB169: 1 | AC169: 0.3812 | AD169: 0.03595467975
A170: 155 | B170: 2020-02-07 | C170: 21.940001 | D170: 22.1 | E170: 21.68 | F170: 21.799999 | G170: 10241400 | H170: 21.431725 | I170: 0.9831066965 | J170: 1 | K170: 21.57 | L170: 21.73 | M170: 21.31 | N170: 21.43 | O170: 10241400 | U170: 1983-05-25 | V170: 0.0953 | W170: 8.755779 | X170: 198305 | Y170: 198205 | Z170: 1982-05-26 | AA170: 5 | AB170: 1 | AC170: 0.3812 | AD170: 0.04353695999
A171: 156 | B171: 2020-02-06 | C171: 22.68 | D171: 22.700001 | E171: 22.030001 | F171: 22.26 | G171: 8205500 | H171: 21.883955 | I171: 0.9831066936 | J171: 1 | K171: 22.3 | L171: 22.32 | M171: 21.66 | N171: 21.88 | O171: 8205500 | U171: 1983-02-23 | V171: 0.0953 | W171: 7.713425 | X171: 198302 | Y171: 198202 | Z171: 1982-02-24 | AA171: 5 | AB171: 1 | AC171: 0.3812 | AD171: 0.04942032884
A172: 157 | B172: 2020-02-05 | C172: 22.190001 | D172: 22.870001 | E172: 22.08 | F172: 22.58 | G172: 12034200 | H172: 22.198549 | I172: 0.9831066873 | J172: 1 | K172: 21.82 | L172: 22.48 | M172: 21.71 | N172: 22.2 | O172: 12034200 | U172: 1982-11-24 | V172: 0.0953 | W172: 6.939104 | X172: 198211 | Y172: 198111 | Z172: 1981-11-24 | AA172: 5 | AB172: 1 | AC172: 0.3812 | AD172: 0.05493504637
A173: 158 | B173: 2020-02-04 | C173: 21.969999 | D173: 22.16 | E173: 21.610001 | F173: 21.67 | G173: 11941000 | H173: 21.303921 | I173: 0.9831066451 | J173: 1 | K173: 21.6 | L173: 21.79 | M173: 21.24 | N173: 21.3 | O173: 11941000 | U173: 1982-08-30 | V173: 0.0953 | W173: 5.837186 | X173: 198208 | Y173: 198108 | Z173: 1981-08-31 | AA173: 5 | AB173: 1 | AC173: 0.3812 | AD173: 0.06530543998
A174: 159 | B174: 2020-02-03 | C174: 21.809999 | D174: 21.93 | E174: 21.43 | F174: 21.5 | G174: 11485800 | H174: 21.136793 | I174: 0.9831066512 | J174: 1 | K174: 21.44 | L174: 21.56 | M174: 21.07 | N174: 21.14 | O174: 11485800 | U174: 1982-05-26 | V174: 0.0953 | W174: 7.713425 | X174: 198205 | Y174: 198105 | Z174: 1981-05-28 | AA174: 5 | AB174: 1 | AC174: 0.35738 | AD174: 0.04633220651
A175: 160 | B175: 2020-01-31 | C175: 21.48 | D175: 21.889999 | E175: 21.23 | F175: 21.809999 | G175: 12501900 | H175: 21.441557 | I175: 0.9831067393 | J175: 1 | K175: 21.12 | L175: 21.52 | M175: 20.87 | N175: 21.44 | O175: 12501900 | U175: 1982-02-24 | V175: 0.0953 | W175: 9.738571 | X175: 198202 | Y175: 198102 | Z175: 1981-02-25 | AA175: 5 | AB175: 1 | AC175: 0.33356 | AD175: 0.03425143176
A176: 161 | B176: 2020-01-30 | C176: 21.23 | D176: 21.969999 | E176: 21.200001 | F176: 21.950001 | G176: 10652100 | H176: 21.579191 | I176: 0.9831066067 | J176: 1 | K176: 20.87 | L176: 21.6 | M176: 20.84 | N176: 21.58 | O176: 10652100 | U176: 1981-11-24 | V176: 0.0953 | W176: 12.686946 | X176: 198111 | Y176: 198011 | Z176: 1980-11-24 | AA176: 5 | AB176: 1 | AC176: 0.30974 | AD176: 0.02441407097
A177: 162 | B177: 2020-01-29 | C177: 22.33 | D177: 22.43 | E177: 21.620001 | F177: 21.629999 | G177: 10328600 | H177: 21.264595 | I177: 0.9831066104 | J177: 1 | K177: 21.95 | L177: 22.05 | M177: 21.25 | N177: 21.26 | O177: 10328600 | U177: 1981-08-31 | V177: 0.07148 | W177: 14.205806 | X177: 198108 | Y177: 198008 | Z177: 1980-08-29 | AA177: 5 | AB177: 1 | AC177: 0.25018 | AD177: 0.01761110915
A178: 163 | B178: 2020-01-28 | C178: 21.799999 | D178: 22.110001 | E178: 21.440001 | F178: 22.08 | G178: 8773600 | H178: 21.706995 | I178: 0.9831066576 | J178: 1 | K178: 21.43 | L178: 21.74 | M178: 21.08 | N178: 21.71 | O178: 8773600 | U178: 1981-05-28 | V178: 0.07148 | W178: 15.009908 | X178: 198105 | Y178: 198005 | Z178: 1980-05-29 | AA178: 5 | AB178: 1 | AC178: 0.23826 | AD178: 0.01587351501
A179: 164 | B179: 2020-01-27 | C179: 22.4 | D179: 22.52 | E179: 21.57 | F179: 21.65 | G179: 18996600 | H179: 21.28426 | I179: 0.9831066975 | J179: 1 | K179: 22.02 | L179: 22.14 | M179: 21.21 | N179: 21.28 | O179: 18996600 | U179: 1981-02-25 | V179: 0.07148 | W179: 17.630686 | X179: 198102 | Y179: 198002 | Z179: 1980-02-27 | AA179: 5 | AB179: 1 | AC179: 0.22634 | AD179: 0.0128378442
A180: 165 | B180: 2020-01-24 | C180: 23.5 | D180: 23.5 | E180: 22.83 | F180: 23.1 | G180: 11684500 | H180: 22.709763 | I180: 0.9831066234 | J180: 1 | K180: 23.1 | L180: 23.1 | M180: 22.44 | N180: 22.71 | O180: 11684500 | U180: 1980-11-24 | V180: 0.03574 | W180: 19.715395 | X180: 198011 | Y180: 197911 | Z180: 1979-11-28 | AA180: 5 | AB180: 1 | AC180: 0.21442 | AD180: 0.01087576485
A181: 166 | B181: 2020-01-23 | C181: 23.68 | D181: 23.700001 | E181: 23.16 | F181: 23.58 | G181: 12567900 | H181: 23.181656 | I181: 0.9831067006 | J181: 1 | K181: 23.28 | L181: 23.3 | M181: 22.77 | N181: 23.18 | O181: 12567900 | U181: 1980-08-29 | V181: 0.05956 | W181: 14.071788 | X181: 198008 | Y181: 197908 | Z181: 1979-08-28 | AA181: 5 | AB181: 1 | AC181: 0.23824 | AD181: 0.01693032897
A182: 167 | B182: 2020-01-22 | C182: 23.809999 | D182: 24.15 | E182: 23.66 | F182: 23.93 | G182: 12042500 | H182: 23.525743 | I182: 0.9831066862 | J182: 1 | K182: 23.41 | L182: 23.74 | M182: 23.26 | N182: 23.53 | O182: 12042500 | U182: 1980-05-29 | V182: 0.05956 | W182: 12.180659 | X182: 198005 | Y182: 197905 | Z182: 1979-05-24 | AA182: 5 | AB182: 1 | AC182: 0.23229 | AD182: 0.01907039677
A183: 168 | B183: 2020-01-21 | C183: 23.780001 | D183: 24.52 | E183: 23.610001 | F183: 23.77 | G183: 21047800 | H183: 23.368444 | I183: 0.983106605 | J183: 1 | K183: 23.38 | L183: 24.11 | M183: 23.21 | N183: 23.37 | O183: 21047800 | U183: 1980-02-27 | V183: 0.05956 | W183: 12.061533 | X183: 198002 | Y183: 197902 | Z183: 1979-02-26 | AA183: 5 | AB183: 1 | AC183: 0.22634 | AD183: 0.01876544217
A184: 169 | B184: 2020-01-17 | C184: 24 | D184: 24.23 | E184: 23.83 | F184: 23.959999 | G184: 14378500 | H184: 23.555235 | I184: 0.9831066771 | J184: 1 | K184: 23.59 | L184: 23.82 | M184: 23.43 | N184: 23.56 | O184: 14378500 | U184: 1979-11-28 | V184: 0.05956 | W184: 9.500319 | X184: 197911 | Y184: 197811 | Z184: 1978-11-27 | AA184: 5 | AB184: 1 | AC184: 0.22039 | AD184: 0.0231981684
A185: 170 | B185: 2020-01-16 | C185: 23.719999 | D185: 24.01 | E185: 23.66 | F185: 23.809999 | G185: 10188100 | H185: 23.40777 | I185: 0.9831067192 | J185: 1 | K185: 23.32 | L185: 23.6 | M185: 23.26 | N185: 23.41 | O185: 10188100 | U185: 1979-08-28 | V185: 0.05361 | W185: 9.366302 | X185: 197908 | Y185: 197808 | Z185: 1978-08-28 | AA185: 5 | AB185: 1 | AC185: 0.21444 | AD185: 0.02289484153
A186: 171 | B186: 2020-01-15 | C186: 23.76 | D186: 23.879999 | E186: 23.49 | F186: 23.57 | G186: 9940800 | H186: 23.171825 | I186: 0.9831067034 | J186: 1 | K186: 23.36 | L186: 23.48 | M186: 23.09 | N186: 23.17 | O186: 9940800 | U186: 1979-05-24 | V186: 0.05361 | W186: 7.996349 | X186: 197905 | Y186: 197805 | Z186: 1978-05-25 | AA186: 5 | AB186: 1 | AC186: 0.20252 | AD186: 0.02532655841
A187: 172 | B187: 2020-01-14 | C187: 23.59 | D187: 24.040001 | E187: 23.370001 | F187: 23.940001 | G187: 13325200 | H187: 23.535574 | I187: 0.9831066423 | J187: 1 | K187: 23.19 | L187: 23.63 | M187: 22.98 | N187: 23.54 | O187: 13325200 | U187: 1979-02-26 | V187: 0.05361 | W187: 7.534735 | X187: 197902 | Y187: 197802 | Z187: 1978-02-27 | AA187: 5 | AB187: 1 | AC187: 0.1906 | AD187: 0.0252961783
A188: 173 | B188: 2020-01-13 | C188: 23.950001 | D188: 23.969999 | E188: 23.59 | F188: 23.75 | G188: 11442700 | H188: 23.348783 | I188: 0.9831066526 | J188: 1 | K188: 23.55 | L188: 23.57 | M188: 23.19 | N188: 23.35 | O188: 11442700 | U188: 1978-11-27 | V188: 0.05361 | W188: 7.579408 | X188: 197811 | Y188: 197711 | Z188: 1977-11-28 | AA188: 5 | AB188: 1 | AC188: 0.17868 | AD188: 0.02357440053
A189: 174 | B189: 2020-01-10 | C189: 24.139999 | D189: 24.23 | E189: 23.93 | F189: 24.08 | G189: 8385000 | H189: 23.673208 | I189: 0.9831066445 | J189: 1 | K189: 23.73 | L189: 23.82 | M189: 23.53 | N189: 23.67 | O189: 8385000 | U189: 1978-08-28 | V189: 0.04169 | W189: 8.57709 | X189: 197808 | Y189: 197708 | Z189: 1977-08-29 | AA189: 5 | AB189: 1 | AC189: 0.16676 | AD189: 0.01944249157
A190: 175 | B190: 2020-01-09 | C190: 24.09 | D190: 24.299999 | E190: 23.469999 | F190: 24.190001 | G190: 13480200 | H190: 23.781351 | I190: 0.9831066563 | J190: 1 | K190: 23.68 | L190: 23.89 | M190: 23.07 | N190: 23.78 | O190: 13480200 | U190: 1978-05-25 | V190: 0.04169 | W190: 7.341155 | X190: 197805 | Y190: 197705 | Z190: 1977-05-27 | AA190: 5 | AB190: 1 | AC190: 0.15485 | AD190: 0.02109341105
A191: 176 | B191: 2020-01-08 | C191: 24.469999 | D191: 24.620001 | E191: 23.76 | F191: 24.049999 | G191: 14021100 | H191: 23.643715 | I191: 0.9831066937 | J191: 1 | K191: 24.06 | L191: 24.2 | M191: 23.36 | N191: 23.64 | O191: 14021100 | U191: 1978-02-27 | V191: 0.04169 | W191: 6.790196 | X191: 197802 | Y191: 197702 | Z191: 1977-02-28 | AA191: 5 | AB191: 1 | AC191: 0.14294 | AD191: 0.02105093874
A192: 177 | B192: 2020-01-07 | C192: 25.35 | D192: 25.35 | E192: 24.219999 | F192: 24.67 | G192: 12406300 | H192: 24.253241 | I192: 0.9831066478 | J192: 1 | K192: 24.92 | L192: 24.92 | M192: 23.81 | N192: 24.25 | O192: 12406300 | U192: 1977-11-28 | V192: 0.04169 | W192: 7.683643 | X192: 197711 | Y192: 197611 | Z192: 1976-11-29 | AA192: 5 | AB192: 1 | AC192: 0.13103 | AD192: 0.01705310879
A193: 178 | B193: 2020-01-06 | C193: 25 | D193: 25.469999 | E193: 24.75 | F193: 25.389999 | G193: 14422600 | H193: 24.961077 | I193: 0.9831066555 | J193: 1 | K193: 24.58 | L193: 25.04 | M193: 24.33 | N193: 24.96 | O193: 14422600 | U193: 1977-08-29 | V193: 0.02978 | W193: 6.939104 | X193: 197708 | Y193: 197608 | Z193: 1976-08-30 | AA193: 5 | AB193: 1 | AC193: 0.13461 | AD193: 0.01939875811
A194: 179 | B194: 2020-01-03 | C194: 25.290001 | D194: 25.450001 | E194: 24.58 | F194: 24.76 | G194: 11562600 | H194: 24.341721 | I194: 0.983106664 | J194: 1 | K194: 24.86 | L194: 25.02 | M194: 24.16 | N194: 24.34 | O194: 11562600 | U194: 1977-05-27 | V194: 0.02978 | W194: 7.266701 | X194: 197705 | Y194: 197605 | Z194: 1976-05-28 | AA194: 5 | AB194: 1 | AC194: 0.12151 | AD194: 0.01672148063
A195: 180 | B195: 2020-01-02 | C195: 24.690001 | D195: 24.84 | E195: 24.42 | F195: 24.68 | G195: 9125500 | H195: 24.263073 | I195: 0.9831066856 | J195: 1 | K195: 24.27 | L195: 24.42 | M195: 24.01 | N195: 24.26 | O195: 9125500 | U195: 1977-02-28 | V195: 0.02978 | W195: 6.611507 | X195: 197702 | Y195: 197602 | Z195: 1976-03-01 | AA195: 5 | AB195: 0 | AC195: 0.12509 | AD195: 0.01892004349
A196: 181 | B196: 2019-12-31 | C196: 24.35 | D196: 24.51 | E196: 24.129999 | F196: 24.469999 | G196: 10702100 | H196: 24.05662 | I196: 0.9831067014 | J196: 1 | K196: 23.94 | L196: 24.1 | M196: 23.72 | N196: 24.06 | O196: 10702100 | U196: 1976-11-29 | V196: 0.04527 | W196: 7.683643 | X196: 197611 | Y196: 197511 | Z196: 1975-12-01 | AA196: 5 | AB196: 0 | AC196: 0.10841 | AD196: 0.01410919274
A197: 182 | B197: 2019-12-30 | C197: 24.57 | D197: 24.99 | E197: 24.51 | F197: 24.559999 | G197: 9078400 | H197: 24.145098 | I197: 0.9831066361 | J197: 1 | K197: 24.15 | L197: 24.57 | M197: 24.1 | N197: 24.15 | O197: 9078400 | U197: 1976-08-30 | V197: 0.01668 | W197: 7.62408 | X197: 197608 | Y197: 197508 | Z197: 1975-08-29 | AA197: 5 | AB197: 1 | AC197: 0.06314 | AD197: 0.008281654967
A198: 183 | B198: 2019-12-27 | C198: 24.549999 | D198: 24.690001 | E198: 24.32 | F198: 24.4 | G198: 8452600 | H198: 23.987801 | I198: 0.9831065984 | J198: 1 | K198: 24.14 | L198: 24.27 | M198: 23.91 | N198: 23.99 | O198: 8452600 | U198: 1976-05-28 | V198: 0.01668 | W198: 6.611507 | X198: 197605 | Y198: 197505 | Z198: 1975-06-02 | AA198: 5 | AB198: 0 | AC198: 0.07266 | AD198: 0.01098993013
A199: 184 | B199: 2019-12-26 | C199: 24.93 | D199: 24.99 | E199: 24.42 | F199: 24.540001 | G199: 10144900 | H199: 24.125439 | I199: 0.9831066837 | J199: 1 | K199: 24.51 | L199: 24.57 | M199: 24.01 | N199: 24.13 | O199: 10144900 | U199: 1976-03-01 | V199: 0.01668 | W199: 5.896749 | X199: 197603 | Y199: 197503 | Z199: 1975-03-03 | AA199: 5 | AB199: 1 | AC199: 0.05598 | AD199: 0.009493366599
A200: 185 | B200: 2019-12-24 | C200: 24.91 | D200: 25.34 | E200: 24.780001 | F200: 24.860001 | G200: 5828500 | H200: 24.440031 | I200: 0.9831065976 | J200: 1 | K200: 24.49 | L200: 24.91 | M200: 24.36 | N200: 24.44 | O200: 5828500 | U200: 1975-12-01 | V200: 0.0131 | W200: 5.638642 | X200: 197512 | Y200: 197412 | Z200: 1974-12-02 | AA200: 5 | AB200: 1 | AC200: 0.0524 | AD200: 0.009293017716
... 4300 more rows

Sheet CalculationsAndCharts
A1: VotingWithMultipleTimeframes.xlsm
A2: =InputPriceData!A1 -> Halliburton Company (HAL) -NYSE (Daily)
A4: User Charting Controls | E4: Click to Shift Chart One Bar:
A5: Data Control | C5: FALSE
A6: =InputPriceData!$B$10 -> 12181 | B6: Available Input Data Rows | E6: Earliest: | F6: =OFFSET(InputPriceData!B15,CalculationsAndCharts!A6,0,1,1) -> 1972-06-01
A7: =MAX(A33:A56896) -> 1250 | B7: Available Calculation Rows | E7: Latest: | F7: =OFFSET(InputPriceData!B15,1,0,1,1) -> 2020-09-17
A8: =MIN(AvailableInputRows-DataPanRows,A7) -> 1250 | B8: Logically Available for Calc / Plot | E8: $ Change: | F8: =G33-G34 -> 0.639999
Y9: An EXCEL approach to "Populate to weekly dates"
A10: Historical Price Windowing Specifications | F10: Click to Shift
A11: 403 | B11: Input Data Offset (Pan) | F11: Points to Plot | Y11: "Populate" as used in the article side bar, means that a monthly value will map back to the weeks that fall within that month.
A12: 1036 | B12: Data Points to Plot (Zoom) | Y12: Likewise, a quarter value will map back into several more weeks, and so on.
B13: First: | C13: =OFFSET(B32,A12,0,1,1) -> 2014-12-31 | Y13: Days behave similarly relative to weeks, months, and so on, but are voted as a best of 5 for a given end of week.
B14: ="Last: " & IF(OFFSET(InputPriceData!P15,1+A11,0,1,1)="","",TEXT(OFFSET(InputPriceData!P15,1+A11,0,1,1),"H:MM AM/PM")) -> Last: | C14: =B33 -> 2019-02-12
A15: User Controls | Y15: With this definition of "Populate" in mind, as you look down the month column, the same "Offset" will be used for
A16: 21 | B16: Stochastic Look Back | Y16: the weeks that map into a given month.
A17: 0.2 | B17: Over Sold Level
A18: 0.8 | B18: Over Bought Level | Y18: Goal is to have points on the voting chart align vertically with the appropriate end of week bars of the price chart.
R19: TRUE | Y19: This way the cursors align with corresponding bar locations on the Price, Voting, and Stochastic charts.
R20: TRUE
R21: TRUE | Y21: Technique used here is a multi level indirect look up that uses the offset determined in a previous cell to obtain
R22: TRUE | Y22: the next level index from another table. Votes are retrieved from what is effectively the third level table.
R23: TRUE
R24: TRUE
A25: Help! I would like to plot data | R25: TRUE
A26: From | B26: 2014-12-31 | C26: =OFFSET(InputPriceData!$A$15,MATCH(B26,OFFSET(InputPriceData!B15,1,0,InputPriceData!$B$10,1),0),0,1,1)-C27 -> 1036 | E26: 953
A27: To | B27: 2019-02-12 | C27: =OFFSET(InputPriceData!$A$15,MATCH(B27,OFFSET(InputPriceData!$B$15,1,0,InputPriceData!$B$10,1),0),0,1,1)-1 -> 403 | E27: =$A$12-$E$26+1 -> 84
H28: Value @ Cursor => | I28: =OFFSET(A32,$E$27,0,1,1)&"(RR)" -> 84(RR) | J28: =OFFSET($B$32,E27,0,1,1) -> 2018-10-11 | K28: =TEXT(OFFSET(D32,$E$27,0,1,1),"#,##0.00")&"(o)" -> 40.25(o) | L28: =TEXT(OFFSET(E32,$E$27,0,1,1),"#,##0.00")&"(h)" -> 40.57(h) | M28: =TEXT(OFFSET(F32,$E$27,0,1,1),"#,##0.00")&"(l)" -> 39.41(l) | N28: =TEXT(OFFSET(G32,$E$27,0,1,1),"#,##0.00")&"(c)" -> 39.75(c) | O28: =TEXT(OFFSET(C32,$E$27,0,1,1),"#,##0.00,,""M""")&"(v)" -> 12.02M(v)
E29: Cursor ==> | Y29: Step one: Obtain Row Offsets to Votes that | AF29: Obtain individual Oversold Votes from the PeriodBarBuilder tab | AN29: Obtain individual Overbought Votes from the PeriodBarBuilder tab | AY29: Work Area For Chart Cursors
Y30: match up with weekly dates. Here we start with the offsets determined | AF30: per the offsets determined in step one. | AM30: Week | AN30: per the offsets determined in step one. | AU30: Week | AV30: Vote
A31: Rel Row | H31: Day Stochastic | K31: Weekly Stoch | M31: Monthly Stoch | O31: Bi-Monthly Stoch | Q31: Quarterly Stoch | S31: Bi-Quarterly Stoch | U31: Qtr-Quarterly Stoch | W31: Threshold Lines for | Y31: by the MATCH results from the Stochastics columns to the left. | AM31: Sum of | AU31: Sum of | AV31: Chart | AW31: Used To Color Vol Bars
B32: Date | C32: Volume | D32: Open | E32: High | F32: Low | G32: Close | H32: ="Highest("&$A$16&")" -> Highest(21) | I32: ="Lowest("&$A$16&")" -> Lowest(21) | J32: Day | K32: match row | L32: Week | M32: match row | N32: Month | O32: match row | P32: Bi-Month | Q32: match row | R32: Quarter | S32: match row | T32: Bi-Quarter | U32: match row | V32: Qtr-Quarter | W32: OverBought | X32: OverSold | Y32: Day | Z32: Week | AA32: Month | AB32: Bi-Month | AC32: Quarter | AD32: Bi-Quarter | AE32: Qtr-Quarter | AF32: Day | AG32: Week | AH32: Month | AI32: Bi-Month | AJ32: Quarter | AK32: Bi-Quarter | AL32: Qtr-Quarter | AM32: Over Sold | AN32: Day | AO32: Week | AP32: Month | AQ32: Bi-Month | AR32: Quarter | AS32: Bi-Quarter | AT32: Qtr-Quarter | AU32: Over Bought | AV32: Baseline | AW32: Up Vol | AX32: Dn Vol | AY32: Volume Cursor | AZ32: =MAX(OFFSET(C33,0,0,A12,1)) -> 47543000 | BA32: OBVM Cursor | BC32: Price Chart Cursor | BE32: ComparePriceChart Cursor | BG32: Price Phasor Cursor | BI32: DMI Cursor | BK32: SMI Cursor
A33: 1 | B33: =IF($A33>$A$8,"",OFFSET(InputPriceData!$B$15,$A33+$A$11,0,1,1)) -> 2019-02-12 | C33: =IF($A33>$A$8,"",OFFSET(InputPriceData!$G$15,CalculationsAndCharts!$A33+$A$11,IF($C$5,8,0),1,1)) -> 9440900 | D33: =IF(A33>$A$8,"",OFFSET(InputPriceData!$C$15,CalculationsAndCharts!$A33+$A$11,IF($C$5,8,0),1,1)) -> 30.66 | E33: =IF(A33>$A$8,"",OFFSET(InputPriceData!$D$15,CalculationsAndCharts!$A33+$A$11,IF($C$5,8,0),1,1)) -> 31.35 | F33: =IF(A33>$A$8,"",OFFSET(InputPriceData!$E$15,CalculationsAndCharts!$A33+$A$11,IF($C$5,8,0),1,1)) -> 30.66 | G33: =IF(A33>$A$8,"",OFFSET(InputPriceData!$F$15,CalculationsAndCharts!$A33+$A$11,IF($C$5,8,0),1,1)) -> 30.84 | H33: =MAX(OFFSET(E33,0,0,$A$16,1)) -> 32.419998 | I33: =MIN(OFFSET(F33,0,0,$A$16,1)) -> 29.4 | J33: =IF($R$19=FALSE,NA(),OFFSET(PeriodBarBuilder!$K$32,A33,0,1,1)) -> 0.4768215078 | K33: =MATCH($A33,OFFSET(PeriodBarBuilder!$O$32,1,0,PeriodBarBuilder!$Q$31,1),0) -> 1 | L33: =IF($R$20=FALSE,NA(),OFFSET(PeriodBarBuilder!$Y$32,K33,0,1,1)) -> 0.3077784168 | M33: =MATCH($A33,OFFSET(PeriodBarBuilder!$AC$32,1,0,PeriodBarBuilder!$AE$31,1),0) -> 1 | N33: =IF($R$21=FALSE,NA(),OFFSET(PeriodBarBuilder!$AM$32,M33,0,1,1)) -> 0.1658624849 | O33: =MATCH($A33,OFFSET(PeriodBarBuilder!$AP$32,1,0,PeriodBarBuilder!$AR$31,1),0) -> 1 | P33: =IF($R$22=FALSE,NA(),OFFSET(PeriodBarBuilder!$AZ$32,O33,0,1,1)) -> 0.1820589269 | Q33: =MATCH($A33,OFFSET(PeriodBarBuilder!$BD$32,1,0,PeriodBarBuilder!$BF$31,1),0) -> 1 | R33: =IF($R$23=FALSE,NA(),OFFSET(PeriodBarBuilder!$BN$32,Q33,0,1,1)) -> 0.1108200663 | S33: =MATCH($A33,OFFSET(PeriodBarBuilder!$BQ$32,1,0,PeriodBarBuilder!$BS$31,1),0) -> 1 | T33: =IF($R$24=FALSE,NA(),OFFSET(PeriodBarBuilder!$CA$32,S33,0,1,1)) -> 0.161384986 | U33: =MATCH($A33,OFFSET(PeriodBarBuilder!$CD$32,1,0,PeriodBarBuilder!$CF$31,1),0) -> 1 | V33: =IF($R$25=FALSE,NA(),OFFSET(PeriodBarBuilder!$CN$32,U33,0,1,1)) -> 0.1658624849 | W33: =$A$18 -> 0.8 | X33: =$A$17 -> 0.2 | Y33: =OFFSET(PeriodBarBuilder!$O$32,K33,0,1,1) -> 1 | Z33: =K33 -> 1 | AA33: =MATCH($Y33,OFFSET(PeriodBarBuilder!$AC$33,0,0,PeriodBarBuilder!$AE$31,1),1) -> 1 | AB33: =MATCH($Y33,OFFSET(PeriodBarBuilder!$AP$33,0,0,PeriodBarBuilder!$AR$31,1),1) -> 1 | AC33: =MATCH($Y33,OFFSET(PeriodBarBuilder!$BD$33,0,0,PeriodBarBuilder!$BF$31,1),1) -> 1 | AD33: =MATCH($Y33,OFFSET(PeriodBarBuilder!$BQ$33,0,0,PeriodBarBuilder!$BS$31,1),1) -> 1 | AE33: =MATCH($Y33,OFFSET(PeriodBarBuilder!$CD$33,0,0,PeriodBarBuilder!$CF$31,1),1) -> 1 | AF33: =OFFSET(PeriodBarBuilder!$L$32,CalculationsAndCharts!Y33,0,1,1) -> 1 | AG33: =OFFSET(PeriodBarBuilder!$Z$32,CalculationsAndCharts!Z33,0,1,1) -> 0 | AH33: =OFFSET(PeriodBarBuilder!$AN$32,CalculationsAndCharts!AA33,0,1,1) -> 1 | AI33: =OFFSET(PeriodBarBuilder!$BA$32,CalculationsAndCharts!AB33,0,1,1) -> 1 | AJ33: =OFFSET(PeriodBarBuilder!$BO$32,CalculationsAndCharts!AC33,0,1,1) -> 1 | AK33: =OFFSET(PeriodBarBuilder!$CB$32,CalculationsAndCharts!AD33,0,1,1) -> 1 | AL33: =OFFSET(PeriodBarBuilder!$CO$32,CalculationsAndCharts!AE33,0,1,1) -> 1 | AM33: =SUM(AF33:AL33) -> 6 | AN33: =OFFSET(PeriodBarBuilder!$M$32,CalculationsAndCharts!Y33,0,1,1) -> 1 | AO33: =OFFSET(PeriodBarBuilder!$AA$32,CalculationsAndCharts!K33,0,1,1) -> 0 | AP33: =OFFSET(PeriodBarBuilder!$AO$32,CalculationsAndCharts!AA33,0,1,1) -> 0 | AQ33: =OFFSET(PeriodBarBuilder!$BB$32,CalculationsAndCharts!AB33,0,1,1) -> 0 | AR33: =OFFSET(PeriodBarBuilder!$BP$32,CalculationsAndCharts!AC33,0,1,1) -> 0 | AS33: =OFFSET(PeriodBarBuilder!$CC$32,CalculationsAndCharts!AD33,0,1,1) -> 0 | AT33: =OFFSET(PeriodBarBuilder!$CP$32,CalculationsAndCharts!AE33,0,1,1) -> 0 | AU33: =SUM(AN33:AT33) -> 1 | AV33: 0 | AW33: =IF(G33>=D33,C33,NA()) -> 9440900 | AX33: =IF(G33<D33,C33,NA()) ->  | AY33: =$E$27 -> 84 | AZ33: 0 | BA33: =$E$27 -> 84 | BB33: 62500000 | BC33: =$E$27 -> 84 | BD33: 24.08250097 | BE33: =$E$27 -> 84 | BF33: 188.877 | BG33: =$E$27 -> 84 | BH33: =IF(#REF!=1,-180,NA()) ->  | BI33: =$E$27 -> 84 | BJ33: 0 | BK33: =$E$27 -> 84 | BL33: 0
A34: 2 | B34: =IF($A34>$A$8,"",OFFSET(InputPriceData!$B$15,$A34+$A$11,0,1,1)) -> 2019-02-11 | C34: =IF($A34>$A$8,"",OFFSET(InputPriceData!$G$15,CalculationsAndCharts!$A34+$A$11,IF($C$5,8,0),1,1)) -> 7912200 | D34: =IF(A34>$A$8,"",OFFSET(InputPriceData!$C$15,CalculationsAndCharts!$A34+$A$11,IF($C$5,8,0),1,1)) -> 29.52 | E34: =IF(A34>$A$8,"",OFFSET(InputPriceData!$D$15,CalculationsAndCharts!$A34+$A$11,IF($C$5,8,0),1,1)) -> 30.43 | F34: =IF(A34>$A$8,"",OFFSET(InputPriceData!$E$15,CalculationsAndCharts!$A34+$A$11,IF($C$5,8,0),1,1)) -> 29.4 | G34: =IF(A34>$A$8,"",OFFSET(InputPriceData!$F$15,CalculationsAndCharts!$A34+$A$11,IF($C$5,8,0),1,1)) -> 30.200001 | H34: =MAX(OFFSET(E34,0,0,$A$16,1)) -> 32.419998 | I34: =MIN(OFFSET(F34,0,0,$A$16,1)) -> 29.4 | J34: =IF($R$19=FALSE,NA(),OFFSET(PeriodBarBuilder!$K$32,A34,0,1,1)) -> 0.2649011688 | K34: =MATCH(A34,OFFSET(PeriodBarBuilder!$O$33,0,0,PeriodBarBuilder!$Q$31,1),0) ->  | L34: =IF($R$20=FALSE,NA(),OFFSET(PeriodBarBuilder!$Y$32,K34,0,1,1)) ->  | M34: =MATCH($A34,OFFSET(PeriodBarBuilder!$AC$32,1,0,PeriodBarBuilder!$AE$31,1),0) ->  | N34: =IF($R$21=FALSE,NA(),OFFSET(PeriodBarBuilder!$AM$32,M34,0,1,1)) ->  | O34: =MATCH($A34,OFFSET(PeriodBarBuilder!$AP$32,1,0,PeriodBarBuilder!$AR$31,1),0) ->  | P34: =IF($R$22=FALSE,NA(),OFFSET(PeriodBarBuilder!$AZ$32,O34,0,1,1)) ->  | Q34: =MATCH($A34,OFFSET(PeriodBarBuilder!$BD$32,1,0,PeriodBarBuilder!$BF$31,1),0) ->  | R34: =IF($R$23=FALSE,NA(),OFFSET(PeriodBarBuilder!$BN$32,Q34,0,1,1)) ->  | S34: =MATCH($A34,OFFSET(PeriodBarBuilder!$BQ$32,1,0,PeriodBarBuilder!$BS$31,1),0) ->  | T34: =IF($R$24=FALSE,NA(),OFFSET(PeriodBarBuilder!$CA$32,S34,0,1,1)) ->  | U34: =MATCH($A34,OFFSET(PeriodBarBuilder!$CD$32,1,0,PeriodBarBuilder!$CF$31,1),0) ->  | V34: =IF($R$25=FALSE,NA(),OFFSET(PeriodBarBuilder!$CN$32,U34,0,1,1)) ->  | W34: =$A$18 -> 0.8 | X34: =$A$17 -> 0.2 | Y34: =OFFSET(PeriodBarBuilder!$O$32,K34,0,1,1) ->  | Z34: =K34 ->  | AA34: =MATCH($Y34,OFFSET(PeriodBarBuilder!$AC$33,0,0,PeriodBarBuilder!$AE$31,1),1) ->  | AB34: =MATCH($Y34,OFFSET(PeriodBarBuilder!$AP$33,0,0,PeriodBarBuilder!$AR$31,1),1) ->  | AC34: =MATCH($Y34,OFFSET(PeriodBarBuilder!$BD$33,0,0,PeriodBarBuilder!$BF$31,1),1) ->  | AD34: =MATCH($Y34,OFFSET(PeriodBarBuilder!$BQ$33,0,0,PeriodBarBuilder!$BS$31,1),1) ->  | AE34: =MATCH($Y34,OFFSET(PeriodBarBuilder!$CD$33,0,0,PeriodBarBuilder!$CF$31,1),1) ->  | AF34: =OFFSET(PeriodBarBuilder!$L$32,CalculationsAndCharts!Y34,0,1,1) ->  | AG34: =OFFSET(PeriodBarBuilder!$Z$32,CalculationsAndCharts!Z34,0,1,1) ->  | AH34: =OFFSET(PeriodBarBuilder!$AN$32,CalculationsAndCharts!AA34,0,1,1) ->  | AI34: =OFFSET(PeriodBarBuilder!$BA$32,CalculationsAndCharts!AB34,0,1,1) ->  | AJ34: =OFFSET(PeriodBarBuilder!$BO$32,CalculationsAndCharts!AC34,0,1,1) ->  | AK34: =OFFSET(PeriodBarBuilder!$CB$32,CalculationsAndCharts!AD34,0,1,1) ->  | AL34: =OFFSET(PeriodBarBuilder!$CO$32,CalculationsAndCharts!AE34,0,1,1) ->  | AM34: =SUM(AF34:AL34) ->  | AN34: =OFFSET(PeriodBarBuilder!$M$32,CalculationsAndCharts!Y34,0,1,1) ->  | AO34: =OFFSET(PeriodBarBuilder!$AA$32,CalculationsAndCharts!K34,0,1,1) ->  | AP34: =OFFSET(PeriodBarBuilder!$AO$32,CalculationsAndCharts!AA34,0,1,1) ->  | AQ34: =OFFSET(PeriodBarBuilder!$BB$32,CalculationsAndCharts!AB34,0,1,1) ->  | AR34: =OFFSET(PeriodBarBuilder!$BP$32,CalculationsAndCharts!AC34,0,1,1) ->  | AS34: =OFFSET(PeriodBarBuilder!$CC$32,CalculationsAndCharts!AD34,0,1,1) ->  | AT34: =OFFSET(PeriodBarBuilder!$CP$32,CalculationsAndCharts!AE34,0,1,1) ->  | AU34: =SUM(AN34:AT34) ->  | AV34: 0 | AW34: 7912200 | AY34: =$E$27 -> 84 | AZ34: =CEILING(AZ32,10^INT(LOG10(AZ32))/8) -> 48750000 | BA34: =$E$27 -> 84 | BB34: 125000000 | BC34: =$E$27 -> 84 | BD34: 60.24949897 | BE34: =$E$27 -> 84 | BF34: 230.34825 | BG34: =$E$27 -> 84 | BH34: =IF(#REF!=1,180,NA()) ->  | BI34: =$E$27 -> 84 | BJ34: 7 | BK34: =$E$27 -> 84 | BL34: 7
A35: 3 | B35: =IF(A35>$A$8,"",OFFSET(InputPriceData!B$15,$A35+$A$11,0,1,1)) -> 2019-02-08 | C35: =IF(A35>$A$8,"",OFFSET(InputPriceData!G$15,CalculationsAndCharts!$A35+$A$11,IF($C$5,8,0),1,1)) -> 9856100 | D35: =IF(A35>$A$8,"",OFFSET(InputPriceData!C$15,CalculationsAndCharts!$A35+$A$11,IF($C$5,8,0),1,1)) -> 30.23 | E35: =IF(A35>$A$8,"",OFFSET(InputPriceData!D$15,CalculationsAndCharts!$A35+$A$11,IF($C$5,8,0),1,1)) -> 30.440001 | F35: =IF(A35>$A$8,"",OFFSET(InputPriceData!E$15,CalculationsAndCharts!$A35+$A$11,IF($C$5,8,0),1,1)) -> 29.4 | G35: =IF(A35>$A$8,"",OFFSET(InputPriceData!F$15,CalculationsAndCharts!$A35+$A$11,IF($C$5,8,0),1,1)) -> 29.700001 | H35: 32.419998 | I35: 29.4 | J35: =IF($R$19=FALSE,NA(),OFFSET(PeriodBarBuilder!$K$32,A35,0,1,1)) -> 0.09933814526 | K35: =MATCH(A35,OFFSET(PeriodBarBuilder!$O$33,0,0,PeriodBarBuilder!$Q$31,1),0) -> 2 | L35: =IF($R$20=FALSE,NA(),OFFSET(PeriodBarBuilder!$Y$32,K35,0,1,1)) -> 0.3245662745 | M35: =MATCH($A35,OFFSET(PeriodBarBuilder!$AC$32,1,0,PeriodBarBuilder!$AE$31,1),0) ->  | N35: =IF($R$21=FALSE,NA(),OFFSET(PeriodBarBuilder!$AM$32,M35,0,1,1)) ->  | O35: =MATCH($A35,OFFSET(PeriodBarBuilder!$AP$32,1,0,PeriodBarBuilder!$AR$31,1),0) ->  | P35: =IF($R$22=FALSE,NA(),OFFSET(PeriodBarBuilder!$AZ$32,O35,0,1,1)) ->  | Q35: =MATCH($A35,OFFSET(PeriodBarBuilder!$BD$32,1,0,PeriodBarBuilder!$BF$31,1),0) ->  | R35: =IF($R$23=FALSE,NA(),OFFSET(PeriodBarBuilder!$BN$32,Q35,0,1,1)) ->  | S35: =MATCH($A35,OFFSET(PeriodBarBuilder!$BQ$32,1,0,PeriodBarBuilder!$BS$31,1),0) ->  | T35: =IF($R$24=FALSE,NA(),OFFSET(PeriodBarBuilder!$CA$32,S35,0,1,1)) ->  | U35: =MATCH($A35,OFFSET(PeriodBarBuilder!$CD$32,1,0,PeriodBarBuilder!$CF$31,1),0) ->  | V35: =IF($R$25=FALSE,NA(),OFFSET(PeriodBarBuilder!$CN$32,U35,0,1,1)) ->  | W35: 0.8 | X35: 0.2 | Y35: =OFFSET(PeriodBarBuilder!$O$32,K35,0,1,1) -> 3 | Z35: 2 | AA35: =MATCH($Y35,OFFSET(PeriodBarBuilder!$AC$33,0,0,PeriodBarBuilder!$AE$31,1),1) -> 1 | AB35: =MATCH($Y35,OFFSET(PeriodBarBuilder!$AP$33,0,0,PeriodBarBuilder!$AR$31,1),1) -> 1 | AC35: =MATCH($Y35,OFFSET(PeriodBarBuilder!$BD$33,0,0,PeriodBarBuilder!$BF$31,1),1) -> 1 | AD35: =MATCH($Y35,OFFSET(PeriodBarBuilder!$BQ$33,0,0,PeriodBarBuilder!$BS$31,1),1) -> 1 | AE35: =MATCH($Y35,OFFSET(PeriodBarBuilder!$CD$33,0,0,PeriodBarBuilder!$CF$31,1),1) -> 1 | AF35: =OFFSET(PeriodBarBuilder!$L$32,CalculationsAndCharts!Y35,0,1,1) -> 1 | AG35: =OFFSET(PeriodBarBuilder!$Z$32,CalculationsAndCharts!Z35,0,1,1) -> 0 | AH35: =OFFSET(PeriodBarBuilder!$AN$32,CalculationsAndCharts!AA35,0,1,1) -> 1 | AI35: =OFFSET(PeriodBarBuilder!$BA$32,CalculationsAndCharts!AB35,0,1,1) -> 1 | AJ35: =OFFSET(PeriodBarBuilder!$BO$32,CalculationsAndCharts!AC35,0,1,1) -> 1 | AK35: =OFFSET(PeriodBarBuilder!$CB$32,CalculationsAndCharts!AD35,0,1,1) -> 1 | AL35: =OFFSET(PeriodBarBuilder!$CO$32,CalculationsAndCharts!AE35,0,1,1) -> 1 | AM35: 6 | AN35: =OFFSET(PeriodBarBuilder!$M$32,CalculationsAndCharts!Y35,0,1,1) -> 1 | AO35: =OFFSET(PeriodBarBuilder!$AA$32,CalculationsAndCharts!K35,0,1,1) -> 0 | AP35: =OFFSET(PeriodBarBuilder!$AO$32,CalculationsAndCharts!AA35,0,1,1) -> 0 | AQ35: =OFFSET(PeriodBarBuilder!$BB$32,CalculationsAndCharts!AB35,0,1,1) -> 0 | AR35: =OFFSET(PeriodBarBuilder!$BP$32,CalculationsAndCharts!AC35,0,1,1) -> 0 | AS35: =OFFSET(PeriodBarBuilder!$CC$32,CalculationsAndCharts!AD35,0,1,1) -> 0 | AT35: =OFFSET(PeriodBarBuilder!$CP$32,CalculationsAndCharts!AE35,0,1,1) -> 0 | AU35: 1 | AV35: 0 | AX35: 9856100
A36: 4 | B36: =IF(A36>$A$8,"",OFFSET(InputPriceData!B$15,$A36+$A$11,0,1,1)) -> 2019-02-07 | C36: =IF(A36>$A$8,"",OFFSET(InputPriceData!G$15,CalculationsAndCharts!$A36+$A$11,IF($C$5,8,0),1,1)) -> 9466200 | D36: =IF(A36>$A$8,"",OFFSET(InputPriceData!C$15,CalculationsAndCharts!$A36+$A$11,IF($C$5,8,0),1,1)) -> 31.719999 | E36: =IF(A36>$A$8,"",OFFSET(InputPriceData!D$15,CalculationsAndCharts!$A36+$A$11,IF($C$5,8,0),1,1)) -> 31.99 | F36: =IF(A36>$A$8,"",OFFSET(InputPriceData!E$15,CalculationsAndCharts!$A36+$A$11,IF($C$5,8,0),1,1)) -> 30.219999 | G36: =IF(A36>$A$8,"",OFFSET(InputPriceData!F$15,CalculationsAndCharts!$A36+$A$11,IF($C$5,8,0),1,1)) -> 30.5 | H36: 32.419998 | I36: 29.290001 | J36: =IF($R$19=FALSE,NA(),OFFSET(PeriodBarBuilder!$K$32,A36,0,1,1)) -> 0.3865815207 | K36: =MATCH(A36,OFFSET(PeriodBarBuilder!$O$33,0,0,PeriodBarBuilder!$Q$31,1),0) ->  | L36: =IF($R$20=FALSE,NA(),OFFSET(PeriodBarBuilder!$Y$32,K36,0,1,1)) ->  | M36: =MATCH($A36,OFFSET(PeriodBarBuilder!$AC$32,1,0,PeriodBarBuilder!$AE$31,1),0) ->  | N36: =IF($R$21=FALSE,NA(),OFFSET(PeriodBarBuilder!$AM$32,M36,0,1,1)) ->  | O36: =MATCH($A36,OFFSET(PeriodBarBuilder!$AP$32,1,0,PeriodBarBuilder!$AR$31,1),0) ->  | P36: =IF($R$22=FALSE,NA(),OFFSET(PeriodBarBuilder!$AZ$32,O36,0,1,1)) ->  | Q36: =MATCH($A36,OFFSET(PeriodBarBuilder!$BD$32,1,0,PeriodBarBuilder!$BF$31,1),0) ->  | R36: =IF($R$23=FALSE,NA(),OFFSET(PeriodBarBuilder!$BN$32,Q36,0,1,1)) ->  | S36: =MATCH($A36,OFFSET(PeriodBarBuilder!$BQ$32,1,0,PeriodBarBuilder!$BS$31,1),0) ->  | T36: =IF($R$24=FALSE,NA(),OFFSET(PeriodBarBuilder!$CA$32,S36,0,1,1)) ->  | U36: =MATCH($A36,OFFSET(PeriodBarBuilder!$CD$32,1,0,PeriodBarBuilder!$CF$31,1),0) ->  | V36: =IF($R$25=FALSE,NA(),OFFSET(PeriodBarBuilder!$CN$32,U36,0,1,1)) ->  | W36: 0.8 | X36: 0.2 | Y36: =OFFSET(PeriodBarBuilder!$O$32,K36,0,1,1) ->  | AA36: =MATCH($Y36,OFFSET(PeriodBarBuilder!$AC$33,0,0,PeriodBarBuilder!$AE$31,1),1) ->  | AB36: =MATCH($Y36,OFFSET(PeriodBarBuilder!$AP$33,0,0,PeriodBarBuilder!$AR$31,1),1) ->  | AC36: =MATCH($Y36,OFFSET(PeriodBarBuilder!$BD$33,0,0,PeriodBarBuilder!$BF$31,1),1) ->  | AD36: =MATCH($Y36,OFFSET(PeriodBarBuilder!$BQ$33,0,0,PeriodBarBuilder!$BS$31,1),1) ->  | AE36: =MATCH($Y36,OFFSET(PeriodBarBuilder!$CD$33,0,0,PeriodBarBuilder!$CF$31,1),1) ->  | AF36: =OFFSET(PeriodBarBuilder!$L$32,CalculationsAndCharts!Y36,0,1,1) ->  | AG36: =OFFSET(PeriodBarBuilder!$Z$32,CalculationsAndCharts!Z36,0,1,1) ->  | AH36: =OFFSET(PeriodBarBuilder!$AN$32,CalculationsAndCharts!AA36,0,1,1) ->  | AI36: =OFFSET(PeriodBarBuilder!$BA$32,CalculationsAndCharts!AB36,0,1,1) ->  | AJ36: =OFFSET(PeriodBarBuilder!$BO$32,CalculationsAndCharts!AC36,0,1,1) ->  | AK36: =OFFSET(PeriodBarBuilder!$CB$32,CalculationsAndCharts!AD36,0,1,1) ->  | AL36: =OFFSET(PeriodBarBuilder!$CO$32,CalculationsAndCharts!AE36,0,1,1) ->  | AN36: =OFFSET(PeriodBarBuilder!$M$32,CalculationsAndCharts!Y36,0,1,1) ->  | AO36: =OFFSET(PeriodBarBuilder!$AA$32,CalculationsAndCharts!K36,0,1,1) ->  | AP36: =OFFSET(PeriodBarBuilder!$AO$32,CalculationsAndCharts!AA36,0,1,1) ->  | AQ36: =OFFSET(PeriodBarBuilder!$BB$32,CalculationsAndCharts!AB36,0,1,1) ->  | AR36: =OFFSET(PeriodBarBuilder!$BP$32,CalculationsAndCharts!AC36,0,1,1) ->  | AS36: =OFFSET(PeriodBarBuilder!$CC$32,CalculationsAndCharts!AD36,0,1,1) ->  | AT36: =OFFSET(PeriodBarBuilder!$CP$32,CalculationsAndCharts!AE36,0,1,1) ->  | AV36: 0 | AX36: 9466200
A37: 5 | B37: =IF(A37>$A$8,"",OFFSET(InputPriceData!B$15,$A37+$A$11,0,1,1)) -> 2019-02-06 | C37: =IF(A37>$A$8,"",OFFSET(InputPriceData!G$15,CalculationsAndCharts!$A37+$A$11,IF($C$5,8,0),1,1)) -> 5471400 | D37: =IF(A37>$A$8,"",OFFSET(InputPriceData!C$15,CalculationsAndCharts!$A37+$A$11,IF($C$5,8,0),1,1)) -> 32.200001 | E37: =IF(A37>$A$8,"",OFFSET(InputPriceData!D$15,CalculationsAndCharts!$A37+$A$11,IF($C$5,8,0),1,1)) -> 32.349998 | F37: =IF(A37>$A$8,"",OFFSET(InputPriceData!E$15,CalculationsAndCharts!$A37+$A$11,IF($C$5,8,0),1,1)) -> 31.99 | G37: =IF(A37>$A$8,"",OFFSET(InputPriceData!F$15,CalculationsAndCharts!$A37+$A$11,IF($C$5,8,0),1,1)) -> 32.029999 | H37: 32.419998 | I37: 28.860001 | J37: =IF($R$19=FALSE,NA(),OFFSET(PeriodBarBuilder!$K$32,A37,0,1,1)) -> 0.8904496268 | K37: =MATCH(A37,OFFSET(PeriodBarBuilder!$O$33,0,0,PeriodBarBuilder!$Q$31,1),0) ->  | L37: =IF($R$20=FALSE,NA(),OFFSET(PeriodBarBuilder!$Y$32,K37,0,1,1)) ->  | M37: =MATCH($A37,OFFSET(PeriodBarBuilder!$AC$32,1,0,PeriodBarBuilder!$AE$31,1),0) ->  | N37: =IF($R$21=FALSE,NA(),OFFSET(PeriodBarBuilder!$AM$32,M37,0,1,1)) ->  | O37: =MATCH($A37,OFFSET(PeriodBarBuilder!$AP$32,1,0,PeriodBarBuilder!$AR$31,1),0) -> 2 | P37: =IF($R$22=FALSE,NA(),OFFSET(PeriodBarBuilder!$AZ$32,O37,0,1,1)) -> 0.2515722692 | Q37: =MATCH($A37,OFFSET(PeriodBarBuilder!$BD$32,1,0,PeriodBarBuilder!$BF$31,1),0) ->  | R37: =IF($R$23=FALSE,NA(),OFFSET(PeriodBarBuilder!$BN$32,Q37,0,1,1)) ->  | S37: =MATCH($A37,OFFSET(PeriodBarBuilder!$BQ$32,1,0,PeriodBarBuilder!$BS$31,1),0) ->  | T37: =IF($R$24=FALSE,NA(),OFFSET(PeriodBarBuilder!$CA$32,S37,0,1,1)) ->  | U37: =MATCH($A37,OFFSET(PeriodBarBuilder!$CD$32,1,0,PeriodBarBuilder!$CF$31,1),0) ->  | V37: =IF($R$25=FALSE,NA(),OFFSET(PeriodBarBuilder!$CN$32,U37,0,1,1)) ->  | W37: 0.8 | X37: 0.2 | Y37: =OFFSET(PeriodBarBuilder!$O$32,K37,0,1,1) ->  | AA37: =MATCH($Y37,OFFSET(PeriodBarBuilder!$AC$33,0,0,PeriodBarBuilder!$AE$31,1),1) ->  | AB37: =MATCH($Y37,OFFSET(PeriodBarBuilder!$AP$33,0,0,PeriodBarBuilder!$AR$31,1),1) ->  | AC37: =MATCH($Y37,OFFSET(PeriodBarBuilder!$BD$33,0,0,PeriodBarBuilder!$BF$31,1),1) ->  | AD37: =MATCH($Y37,OFFSET(PeriodBarBuilder!$BQ$33,0,0,PeriodBarBuilder!$BS$31,1),1) ->  | AE37: =MATCH($Y37,OFFSET(PeriodBarBuilder!$CD$33,0,0,PeriodBarBuilder!$CF$31,1),1) ->  | AF37: =OFFSET(PeriodBarBuilder!$L$32,CalculationsAndCharts!Y37,0,1,1) ->  | AG37: =OFFSET(PeriodBarBuilder!$Z$32,CalculationsAndCharts!Z37,0,1,1) ->  | AH37: =OFFSET(PeriodBarBuilder!$AN$32,CalculationsAndCharts!AA37,0,1,1) ->  | AI37: =OFFSET(PeriodBarBuilder!$BA$32,CalculationsAndCharts!AB37,0,1,1) ->  | AJ37: =OFFSET(PeriodBarBuilder!$BO$32,CalculationsAndCharts!AC37,0,1,1) ->  | AK37: =OFFSET(PeriodBarBuilder!$CB$32,CalculationsAndCharts!AD37,0,1,1) ->  | AL37: =OFFSET(PeriodBarBuilder!$CO$32,CalculationsAndCharts!AE37,0,1,1) ->  | AN37: =OFFSET(PeriodBarBuilder!$M$32,CalculationsAndCharts!Y37,0,1,1) ->  | AO37: =OFFSET(PeriodBarBuilder!$AA$32,CalculationsAndCharts!K37,0,1,1) ->  | AP37: =OFFSET(PeriodBarBuilder!$AO$32,CalculationsAndCharts!AA37,0,1,1) ->  | AQ37: =OFFSET(PeriodBarBuilder!$BB$32,CalculationsAndCharts!AB37,0,1,1) ->  | AR37: =OFFSET(PeriodBarBuilder!$BP$32,CalculationsAndCharts!AC37,0,1,1) ->  | AS37: =OFFSET(PeriodBarBuilder!$CC$32,CalculationsAndCharts!AD37,0,1,1) ->  | AT37: =OFFSET(PeriodBarBuilder!$CP$32,CalculationsAndCharts!AE37,0,1,1) ->  | AV37: 0 | AX37: 5471400
A38: 6 | B38: =IF(A38>$A$8,"",OFFSET(InputPriceData!B$15,$A38+$A$11,0,1,1)) -> 2019-02-05 | C38: =IF(A38>$A$8,"",OFFSET(InputPriceData!G$15,CalculationsAndCharts!$A38+$A$11,IF($C$5,8,0),1,1)) -> 6061500 | D38: =IF(A38>$A$8,"",OFFSET(InputPriceData!C$15,CalculationsAndCharts!$A38+$A$11,IF($C$5,8,0),1,1)) -> 32.209999 | E38: =IF(A38>$A$8,"",OFFSET(InputPriceData!D$15,CalculationsAndCharts!$A38+$A$11,IF($C$5,8,0),1,1)) -> 32.32 | F38: =IF(A38>$A$8,"",OFFSET(InputPriceData!E$15,CalculationsAndCharts!$A38+$A$11,IF($C$5,8,0),1,1)) -> 31.950001 | G38: =IF(A38>$A$8,"",OFFSET(InputPriceData!F$15,CalculationsAndCharts!$A38+$A$11,IF($C$5,8,0),1,1)) -> 32.299999 | H38: 32.419998 | I38: 28.110001 | J38: =IF($R$19=FALSE,NA(),OFFSET(PeriodBarBuilder!$K$32,A38,0,1,1)) -> 0.9721579853 | K38: =MATCH(A38,OFFSET(PeriodBarBuilder!$O$33,0,0,PeriodBarBuilder!$Q$31,1),0) ->  | L38: =IF($R$20=FALSE,NA(),OFFSET(PeriodBarBuilder!$Y$32,K38,0,1,1)) ->  | M38: =MATCH($A38,OFFSET(PeriodBarBuilder!$AC$32,1,0,PeriodBarBuilder!$AE$31,1),0) ->  | N38: =IF($R$21=FALSE,NA(),OFFSET(PeriodBarBuilder!$AM$32,M38,0,1,1)) ->  | O38: =MATCH($A38,OFFSET(PeriodBarBuilder!$AP$32,1,0,PeriodBarBuilder!$AR$31,1),0) ->  | P38: =IF($R$22=FALSE,NA(),OFFSET(PeriodBarBuilder!$AZ$32,O38,0,1,1)) ->  | Q38: =MATCH($A38,OFFSET(PeriodBarBuilder!$BD$32,1,0,PeriodBarBuilder!$BF$31,1),0) ->  | R38: =IF($R$23=FALSE,NA(),OFFSET(PeriodBarBuilder!$BN$32,Q38,0,1,1)) ->  | S38: =MATCH($A38,OFFSET(PeriodBarBuilder!$BQ$32,1,0,PeriodBarBuilder!$BS$31,1),0) ->  | T38: =IF($R$24=FALSE,NA(),OFFSET(PeriodBarBuilder!$CA$32,S38,0,1,1)) ->  | U38: =MATCH($A38,OFFSET(PeriodBarBuilder!$CD$32,1,0,PeriodBarBuilder!$CF$31,1),0) ->  | V38: =IF($R$25=FALSE,NA(),OFFSET(PeriodBarBuilder!$CN$32,U38,0,1,1)) ->  | W38: 0.8 | X38: 0.2 | Y38: =OFFSET(PeriodBarBuilder!$O$32,K38,0,1,1) ->  | AA38: =MATCH($Y38,OFFSET(PeriodBarBuilder!$AC$33,0,0,PeriodBarBuilder!$AE$31,1),1) ->  | AB38: =MATCH($Y38,OFFSET(PeriodBarBuilder!$AP$33,0,0,PeriodBarBuilder!$AR$31,1),1) ->  | AC38: =MATCH($Y38,OFFSET(PeriodBarBuilder!$BD$33,0,0,PeriodBarBuilder!$BF$31,1),1) ->  | AD38: =MATCH($Y38,OFFSET(PeriodBarBuilder!$BQ$33,0,0,PeriodBarBuilder!$BS$31,1),1) ->  | AE38: =MATCH($Y38,OFFSET(PeriodBarBuilder!$CD$33,0,0,PeriodBarBuilder!$CF$31,1),1) ->  | AF38: =OFFSET(PeriodBarBuilder!$L$32,CalculationsAndCharts!Y38,0,1,1) ->  | AG38: =OFFSET(PeriodBarBuilder!$Z$32,CalculationsAndCharts!Z38,0,1,1) ->  | AH38: =OFFSET(PeriodBarBuilder!$AN$32,CalculationsAndCharts!AA38,0,1,1) ->  | AI38: =OFFSET(PeriodBarBuilder!$BA$32,CalculationsAndCharts!AB38,0,1,1) ->  | AJ38: =OFFSET(PeriodBarBuilder!$BO$32,CalculationsAndCharts!AC38,0,1,1) ->  | AK38: =OFFSET(PeriodBarBuilder!$CB$32,CalculationsAndCharts!AD38,0,1,1) ->  | AL38: =OFFSET(PeriodBarBuilder!$CO$32,CalculationsAndCharts!AE38,0,1,1) ->  | AN38: =OFFSET(PeriodBarBuilder!$M$32,CalculationsAndCharts!Y38,0,1,1) ->  | AO38: =OFFSET(PeriodBarBuilder!$AA$32,CalculationsAndCharts!K38,0,1,1) ->  | AP38: =OFFSET(PeriodBarBuilder!$AO$32,CalculationsAndCharts!AA38,0,1,1) ->  | AQ38: =OFFSET(PeriodBarBuilder!$BB$32,CalculationsAndCharts!AB38,0,1,1) ->  | AR38: =OFFSET(PeriodBarBuilder!$BP$32,CalculationsAndCharts!AC38,0,1,1) ->  | AS38: =OFFSET(PeriodBarBuilder!$CC$32,CalculationsAndCharts!AD38,0,1,1) ->  | AT38: =OFFSET(PeriodBarBuilder!$CP$32,CalculationsAndCharts!AE38,0,1,1) ->  | AV38: 0 | AW38: 6061500
A39: 7 | B39: =IF(A39>$A$8,"",OFFSET(InputPriceData!B$15,$A39+$A$11,0,1,1)) -> 2019-02-04 | C39: =IF(A39>$A$8,"",OFFSET(InputPriceData!G$15,CalculationsAndCharts!$A39+$A$11,IF($C$5,8,0),1,1)) -> 6164700 | D39: =IF(A39>$A$8,"",OFFSET(InputPriceData!C$15,CalculationsAndCharts!$A39+$A$11,IF($C$5,8,0),1,1)) -> 31.82 | E39: =IF(A39>$A$8,"",OFFSET(InputPriceData!D$15,CalculationsAndCharts!$A39+$A$11,IF($C$5,8,0),1,1)) -> 32.25 | F39: =IF(A39>$A$8,"",OFFSET(InputPriceData!E$15,CalculationsAndCharts!$A39+$A$11,IF($C$5,8,0),1,1)) -> 31.559999 | G39: =IF(A39>$A$8,"",OFFSET(InputPriceData!F$15,CalculationsAndCharts!$A39+$A$11,IF($C$5,8,0),1,1)) -> 32.25 | H39: 32.419998 | I39: 27.450001 | J39: =IF($R$19=FALSE,NA(),OFFSET(PeriodBarBuilder!$K$32,A39,0,1,1)) -> 0.9657951504 | K39: =MATCH(A39,OFFSET(PeriodBarBuilder!$O$33,0,0,PeriodBarBuilder!$Q$31,1),0) ->  | L39: =IF($R$20=FALSE,NA(),OFFSET(PeriodBarBuilder!$Y$32,K39,0,1,1)) ->  | M39: =MATCH($A39,OFFSET(PeriodBarBuilder!$AC$32,1,0,PeriodBarBuilder!$AE$31,1),0) ->  | N39: =IF($R$21=FALSE,NA(),OFFSET(PeriodBarBuilder!$AM$32,M39,0,1,1)) ->  | O39: =MATCH($A39,OFFSET(PeriodBarBuilder!$AP$32,1,0,PeriodBarBuilder!$AR$31,1),0) ->  | P39: =IF($R$22=FALSE,NA(),OFFSET(PeriodBarBuilder!$AZ$32,O39,0,1,1)) ->  | Q39: =MATCH($A39,OFFSET(PeriodBarBuilder!$BD$32,1,0,PeriodBarBuilder!$BF$31,1),0) ->  | R39: =IF($R$23=FALSE,NA(),OFFSET(PeriodBarBuilder!$BN$32,Q39,0,1,1)) ->  | S39: =MATCH($A39,OFFSET(PeriodBarBuilder!$BQ$32,1,0,PeriodBarBuilder!$BS$31,1),0) ->  | T39: =IF($R$24=FALSE,NA(),OFFSET(PeriodBarBuilder!$CA$32,S39,0,1,1)) ->  | U39: =MATCH($A39,OFFSET(PeriodBarBuilder!$CD$32,1,0,PeriodBarBuilder!$CF$31,1),0) ->  | V39: =IF($R$25=FALSE,NA(),OFFSET(PeriodBarBuilder!$CN$32,U39,0,1,1)) ->  | W39: 0.8 | X39: 0.2 | Y39: =OFFSET(PeriodBarBuilder!$O$32,K39,0,1,1) ->  | AA39: =MATCH($Y39,OFFSET(PeriodBarBuilder!$AC$33,0,0,PeriodBarBuilder!$AE$31,1),1) ->  | AB39: =MATCH($Y39,OFFSET(PeriodBarBuilder!$AP$33,0,0,PeriodBarBuilder!$AR$31,1),1) ->  | AC39: =MATCH($Y39,OFFSET(PeriodBarBuilder!$BD$33,0,0,PeriodBarBuilder!$BF$31,1),1) ->  | AD39: =MATCH($Y39,OFFSET(PeriodBarBuilder!$BQ$33,0,0,PeriodBarBuilder!$BS$31,1),1) ->  | AE39: =MATCH($Y39,OFFSET(PeriodBarBuilder!$CD$33,0,0,PeriodBarBuilder!$CF$31,1),1) ->  | AF39: =OFFSET(PeriodBarBuilder!$L$32,CalculationsAndCharts!Y39,0,1,1) ->  | AG39: =OFFSET(PeriodBarBuilder!$Z$32,CalculationsAndCharts!Z39,0,1,1) ->  | AH39: =OFFSET(PeriodBarBuilder!$AN$32,CalculationsAndCharts!AA39,0,1,1) ->  | AI39: =OFFSET(PeriodBarBuilder!$BA$32,CalculationsAndCharts!AB39,0,1,1) ->  | AJ39: =OFFSET(PeriodBarBuilder!$BO$32,CalculationsAndCharts!AC39,0,1,1) ->  | AK39: =OFFSET(PeriodBarBuilder!$CB$32,CalculationsAndCharts!AD39,0,1,1) ->  | AL39: =OFFSET(PeriodBarBuilder!$CO$32,CalculationsAndCharts!AE39,0,1,1) ->  | AN39: =OFFSET(PeriodBarBuilder!$M$32,CalculationsAndCharts!Y39,0,1,1) ->  | AO39: =OFFSET(PeriodBarBuilder!$AA$32,CalculationsAndCharts!K39,0,1,1) ->  | AP39: =OFFSET(PeriodBarBuilder!$AO$32,CalculationsAndCharts!AA39,0,1,1) ->  | AQ39: =OFFSET(PeriodBarBuilder!$BB$32,CalculationsAndCharts!AB39,0,1,1) ->  | AR39: =OFFSET(PeriodBarBuilder!$BP$32,CalculationsAndCharts!AC39,0,1,1) ->  | AS39: =OFFSET(PeriodBarBuilder!$CC$32,CalculationsAndCharts!AD39,0,1,1) ->  | AT39: =OFFSET(PeriodBarBuilder!$CP$32,CalculationsAndCharts!AE39,0,1,1) ->  | AV39: 0 | AW39: 6164700
A40: 8 | B40: =IF(A40>$A$8,"",OFFSET(InputPriceData!B$15,$A40+$A$11,0,1,1)) -> 2019-02-01 | C40: =IF(A40>$A$8,"",OFFSET(InputPriceData!G$15,CalculationsAndCharts!$A40+$A$11,IF($C$5,8,0),1,1)) -> 7776100 | D40: =IF(A40>$A$8,"",OFFSET(InputPriceData!C$15,CalculationsAndCharts!$A40+$A$11,IF($C$5,8,0),1,1)) -> 31.5 | E40: =IF(A40>$A$8,"",OFFSET(InputPriceData!D$15,CalculationsAndCharts!$A40+$A$11,IF($C$5,8,0),1,1)) -> 32.419998 | F40: =IF(A40>$A$8,"",OFFSET(InputPriceData!E$15,CalculationsAndCharts!$A40+$A$11,IF($C$5,8,0),1,1)) -> 31.370001 | G40: =IF(A40>$A$8,"",OFFSET(InputPriceData!F$15,CalculationsAndCharts!$A40+$A$11,IF($C$5,8,0),1,1)) -> 32.119999 | H40: 32.419998 | I40: 26.42 | J40: =IF($R$19=FALSE,NA(),OFFSET(PeriodBarBuilder!$K$32,A40,0,1,1)) -> 0.95000015 | K40: =MATCH(A40,OFFSET(PeriodBarBuilder!$O$33,0,0,PeriodBarBuilder!$Q$31,1),0) -> 3 | L40: =IF($R$20=FALSE,NA(),OFFSET(PeriodBarBuilder!$Y$32,K40,0,1,1)) -> 0.3726916829 | M40: =MATCH($A40,OFFSET(PeriodBarBuilder!$AC$32,1,0,PeriodBarBuilder!$AE$31,1),0) ->  | N40: =IF($R$21=FALSE,NA(),OFFSET(PeriodBarBuilder!$AM$32,M40,0,1,1)) ->  | O40: =MATCH($A40,OFFSET(PeriodBarBuilder!$AP$32,1,0,PeriodBarBuilder!$AR$31,1),0) ->  | P40: =IF($R$22=FALSE,NA(),OFFSET(PeriodBarBuilder!$AZ$32,O40,0,1,1)) ->  | Q40: =MATCH($A40,OFFSET(PeriodBarBuilder!$BD$32,1,0,PeriodBarBuilder!$BF$31,1),0) ->  | R40: =IF($R$23=FALSE,NA(),OFFSET(PeriodBarBuilder!$BN$32,Q40,0,1,1)) ->  | S40: =MATCH($A40,OFFSET(PeriodBarBuilder!$BQ$32,1,0,PeriodBarBuilder!$BS$31,1),0) ->  | T40: =IF($R$24=FALSE,NA(),OFFSET(PeriodBarBuilder!$CA$32,S40,0,1,1)) ->  | U40: =MATCH($A40,OFFSET(PeriodBarBuilder!$CD$32,1,0,PeriodBarBuilder!$CF$31,1),0) ->  | V40: =IF($R$25=FALSE,NA(),OFFSET(PeriodBarBuilder!$CN$32,U40,0,1,1)) ->  | W40: 0.8 | X40: 0.2 | Y40: =OFFSET(PeriodBarBuilder!$O$32,K40,0,1,1) -> 8 | Z40: 3 | AA40: =MATCH($Y40,OFFSET(PeriodBarBuilder!$AC$33,0,0,PeriodBarBuilder!$AE$31,1),1) -> 1 | AB40: =MATCH($Y40,OFFSET(PeriodBarBuilder!$AP$33,0,0,PeriodBarBuilder!$AR$31,1),1) -> 2 | AC40: =MATCH($Y40,OFFSET(PeriodBarBuilder!$BD$33,0,0,PeriodBarBuilder!$BF$31,1),1) -> 1 | AD40: =MATCH($Y40,OFFSET(PeriodBarBuilder!$BQ$33,0,0,PeriodBarBuilder!$BS$31,1),1) -> 1 | AE40: =MATCH($Y40,OFFSET(PeriodBarBuilder!$CD$33,0,0,PeriodBarBuilder!$CF$31,1),1) -> 1 | AF40: =OFFSET(PeriodBarBuilder!$L$32,CalculationsAndCharts!Y40,0,1,1) -> 0 | AG40: =OFFSET(PeriodBarBuilder!$Z$32,CalculationsAndCharts!Z40,0,1,1) -> 0 | AH40: =OFFSET(PeriodBarBuilder!$AN$32,CalculationsAndCharts!AA40,0,1,1) -> 1 | AI40: =OFFSET(PeriodBarBuilder!$BA$32,CalculationsAndCharts!AB40,0,1,1) -> 0 | AJ40: =OFFSET(PeriodBarBuilder!$BO$32,CalculationsAndCharts!AC40,0,1,1) -> 1 | AK40: =OFFSET(PeriodBarBuilder!$CB$32,CalculationsAndCharts!AD40,0,1,1) -> 1 | AL40: =OFFSET(PeriodBarBuilder!$CO$32,CalculationsAndCharts!AE40,0,1,1) -> 1 | AM40: 4 | AN40: =OFFSET(PeriodBarBuilder!$M$32,CalculationsAndCharts!Y40,0,1,1) -> 1 | AO40: =OFFSET(PeriodBarBuilder!$AA$32,CalculationsAndCharts!K40,0,1,1) -> 0 | AP40: =OFFSET(PeriodBarBuilder!$AO$32,CalculationsAndCharts!AA40,0,1,1) -> 0 | AQ40: =OFFSET(PeriodBarBuilder!$BB$32,CalculationsAndCharts!AB40,0,1,1) -> 0 | AR40: =OFFSET(PeriodBarBuilder!$BP$32,CalculationsAndCharts!AC40,0,1,1) -> 0 | AS40: =OFFSET(PeriodBarBuilder!$CC$32,CalculationsAndCharts!AD40,0,1,1) -> 0 | AT40: =OFFSET(PeriodBarBuilder!$CP$32,CalculationsAndCharts!AE40,0,1,1) -> 0 | AU40: 1 | AV40: 0 | AW40: 7776100
A41: 9 | B41: =IF(A41>$A$8,"",OFFSET(InputPriceData!B$15,$A41+$A$11,0,1,1)) -> 2019-01-31 | C41: =IF(A41>$A$8,"",OFFSET(InputPriceData!G$15,CalculationsAndCharts!$A41+$A$11,IF($C$5,8,0),1,1)) -> 7494700 | D41: =IF(A41>$A$8,"",OFFSET(InputPriceData!C$15,CalculationsAndCharts!$A41+$A$11,IF($C$5,8,0),1,1)) -> 31.530001 | E41: =IF(A41>$A$8,"",OFFSET(InputPriceData!D$15,CalculationsAndCharts!$A41+$A$11,IF($C$5,8,0),1,1)) -> 31.870001 | F41: =IF(A41>$A$8,"",OFFSET(InputPriceData!E$15,CalculationsAndCharts!$A41+$A$11,IF($C$5,8,0),1,1)) -> 31.17 | G41: =IF(A41>$A$8,"",OFFSET(InputPriceData!F$15,CalculationsAndCharts!$A41+$A$11,IF($C$5,8,0),1,1)) -> 31.360001 | H41: 32.369999 | I41: 26.01 | J41: =IF($R$19=FALSE,NA(),OFFSET(PeriodBarBuilder!$K$32,A41,0,1,1)) -> 0.841195258 | K41: =MATCH(A41,OFFSET(PeriodBarBuilder!$O$33,0,0,PeriodBarBuilder!$Q$31,1),0) ->  | L41: =IF($R$20=FALSE,NA(),OFFSET(PeriodBarBuilder!$Y$32,K41,0,1,1)) ->  | M41: =MATCH($A41,OFFSET(PeriodBarBuilder!$AC$32,1,0,PeriodBarBuilder!$AE$31,1),0) -> 2 | N41: =IF($R$21=FALSE,NA(),OFFSET(PeriodBarBuilder!$AM$32,M41,0,1,1)) -> 0.2071772919 | O41: =MATCH($A41,OFFSET(PeriodBarBuilder!$AP$32,1,0,PeriodBarBuilder!$AR$31,1),0) -> 3 | P41: =IF($R$22=FALSE,NA(),OFFSET(PeriodBarBuilder!$AZ$32,O41,0,1,1)) -> 0.2274081174 | Q41: =MATCH($A41,OFFSET(PeriodBarBuilder!$BD$32,1,0,PeriodBarBuilder!$BF$31,1),0) ->  | R41: =IF($R$23=FALSE,NA(),OFFSET(PeriodBarBuilder!$BN$32,Q41,0,1,1)) ->  | S41: =MATCH($A41,OFFSET(PeriodBarBuilder!$BQ$32,1,0,PeriodBarBuilder!$BS$31,1),0) ->  | T41: =IF($R$24=FALSE,NA(),OFFSET(PeriodBarBuilder!$CA$32,S41,0,1,1)) ->  | U41: =MATCH($A41,OFFSET(PeriodBarBuilder!$CD$32,1,0,PeriodBarBuilder!$CF$31,1),0) -> 2 | V41: =IF($R$25=FALSE,NA(),OFFSET(PeriodBarBuilder!$CN$32,U41,0,1,1)) -> 0.2071772919 | W41: 0.8 | X41: 0.2 | Y41: =OFFSET(PeriodBarBuilder!$O$32,K41,0,1,1) ->  | AA41: =MATCH($Y41,OFFSET(PeriodBarBuilder!$AC$33,0,0,PeriodBarBuilder!$AE$31,1),1) ->  | AB41: =MATCH($Y41,OFFSET(PeriodBarBuilder!$AP$33,0,0,PeriodBarBuilder!$AR$31,1),1) ->  | AC41: =MATCH($Y41,OFFSET(PeriodBarBuilder!$BD$33,0,0,PeriodBarBuilder!$BF$31,1),1) ->  | AD41: =MATCH($Y41,OFFSET(PeriodBarBuilder!$BQ$33,0,0,PeriodBarBuilder!$BS$31,1),1) ->  | AE41: =MATCH($Y41,OFFSET(PeriodBarBuilder!$CD$33,0,0,PeriodBarBuilder!$CF$31,1),1) ->  | AF41: =OFFSET(PeriodBarBuilder!$L$32,CalculationsAndCharts!Y41,0,1,1) ->  | AG41: =OFFSET(PeriodBarBuilder!$Z$32,CalculationsAndCharts!Z41,0,1,1) ->  | AH41: =OFFSET(PeriodBarBuilder!$AN$32,CalculationsAndCharts!AA41,0,1,1) ->  | AI41: =OFFSET(PeriodBarBuilder!$BA$32,CalculationsAndCharts!AB41,0,1,1) ->  | AJ41: =OFFSET(PeriodBarBuilder!$BO$32,CalculationsAndCharts!AC41,0,1,1) ->  | AK41: =OFFSET(PeriodBarBuilder!$CB$32,CalculationsAndCharts!AD41,0,1,1) ->  | AL41: =OFFSET(PeriodBarBuilder!$CO$32,CalculationsAndCharts!AE41,0,1,1) ->  | AN41: =OFFSET(PeriodBarBuilder!$M$32,CalculationsAndCharts!Y41,0,1,1) ->  | AO41: =OFFSET(PeriodBarBuilder!$AA$32,CalculationsAndCharts!K41,0,1,1) ->  | AP41: =OFFSET(PeriodBarBuilder!$AO$32,CalculationsAndCharts!AA41,0,1,1) ->  | AQ41: =OFFSET(PeriodBarBuilder!$BB$32,CalculationsAndCharts!AB41,0,1,1) ->  | AR41: =OFFSET(PeriodBarBuilder!$BP$32,CalculationsAndCharts!AC41,0,1,1) ->  | AS41: =OFFSET(PeriodBarBuilder!$CC$32,CalculationsAndCharts!AD41,0,1,1) ->  | AT41: =OFFSET(PeriodBarBuilder!$CP$32,CalculationsAndCharts!AE41,0,1,1) ->  | AV41: 0 | AX41: 7494700
A42: 10 | B42: =IF(A42>$A$8,"",OFFSET(InputPriceData!B$15,$A42+$A$11,0,1,1)) -> 2019-01-30 | C42: =IF(A42>$A$8,"",OFFSET(InputPriceData!G$15,CalculationsAndCharts!$A42+$A$11,IF($C$5,8,0),1,1)) -> 7975800 | D42: =IF(A42>$A$8,"",OFFSET(InputPriceData!C$15,CalculationsAndCharts!$A42+$A$11,IF($C$5,8,0),1,1)) -> 31.110001 | E42: =IF(A42>$A$8,"",OFFSET(InputPriceData!D$15,CalculationsAndCharts!$A42+$A$11,IF($C$5,8,0),1,1)) -> 31.790001 | F42: =IF(A42>$A$8,"",OFFSET(InputPriceData!E$15,CalculationsAndCharts!$A42+$A$11,IF($C$5,8,0),1,1)) -> 30.790001 | G42: =IF(A42>$A$8,"",OFFSET(InputPriceData!F$15,CalculationsAndCharts!$A42+$A$11,IF($C$5,8,0),1,1)) -> 31.57 | H42: 32.369999 | I42: 25.75 | J42: =IF($R$19=FALSE,NA(),OFFSET(PeriodBarBuilder!$K$32,A42,0,1,1)) -> 0.8791542114 | K42: =MATCH(A42,OFFSET(PeriodBarBuilder!$O$33,0,0,PeriodBarBuilder!$Q$31,1),0) ->  | L42: =IF($R$20=FALSE,NA(),OFFSET(PeriodBarBuilder!$Y$32,K42,0,1,1)) ->  | M42: =MATCH($A42,OFFSET(PeriodBarBuilder!$AC$32,1,0,PeriodBarBuilder!$AE$31,1),0) ->  | N42: =IF($R$21=FALSE,NA(),OFFSET(PeriodBarBuilder!$AM$32,M42,0,1,1)) ->  | O42: =MATCH($A42,OFFSET(PeriodBarBuilder!$AP$32,1,0,PeriodBarBuilder!$AR$31,1),0) ->  | P42: =IF($R$22=FALSE,NA(),OFFSET(PeriodBarBuilder!$AZ$32,O42,0,1,1)) ->  | Q42: =MATCH($A42,OFFSET(PeriodBarBuilder!$BD$32,1,0,PeriodBarBuilder!$BF$31,1),0) ->  | R42: =IF($R$23=FALSE,NA(),OFFSET(PeriodBarBuilder!$BN$32,Q42,0,1,1)) ->  | S42: =MATCH($A42,OFFSET(PeriodBarBuilder!$BQ$32,1,0,PeriodBarBuilder!$BS$31,1),0) ->  | T42: =IF($R$24=FALSE,NA(),OFFSET(PeriodBarBuilder!$CA$32,S42,0,1,1)) ->  | U42: =MATCH($A42,OFFSET(PeriodBarBuilder!$CD$32,1,0,PeriodBarBuilder!$CF$31,1),0) ->  | V42: =IF($R$25=FALSE,NA(),OFFSET(PeriodBarBuilder!$CN$32,U42,0,1,1)) ->  | W42: 0.8 | X42: 0.2 | Y42: =OFFSET(PeriodBarBuilder!$O$32,K42,0,1,1) ->  | AA42: =MATCH($Y42,OFFSET(PeriodBarBuilder!$AC$33,0,0,PeriodBarBuilder!$AE$31,1),1) ->  | AB42: =MATCH($Y42,OFFSET(PeriodBarBuilder!$AP$33,0,0,PeriodBarBuilder!$AR$31,1),1) ->  | AC42: =MATCH($Y42,OFFSET(PeriodBarBuilder!$BD$33,0,0,PeriodBarBuilder!$BF$31,1),1) ->  | AD42: =MATCH($Y42,OFFSET(PeriodBarBuilder!$BQ$33,0,0,PeriodBarBuilder!$BS$31,1),1) ->  | AE42: =MATCH($Y42,OFFSET(PeriodBarBuilder!$CD$33,0,0,PeriodBarBuilder!$CF$31,1),1) ->  | AF42: =OFFSET(PeriodBarBuilder!$L$32,CalculationsAndCharts!Y42,0,1,1) ->  | AG42: =OFFSET(PeriodBarBuilder!$Z$32,CalculationsAndCharts!Z42,0,1,1) ->  | AH42: =OFFSET(PeriodBarBuilder!$AN$32,CalculationsAndCharts!AA42,0,1,1) ->  | AI42: =OFFSET(PeriodBarBuilder!$BA$32,CalculationsAndCharts!AB42,0,1,1) ->  | AJ42: =OFFSET(PeriodBarBuilder!$BO$32,CalculationsAndCharts!AC42,0,1,1) ->  | AK42: =OFFSET(PeriodBarBuilder!$CB$32,CalculationsAndCharts!AD42,0,1,1) ->  | AL42: =OFFSET(PeriodBarBuilder!$CO$32,CalculationsAndCharts!AE42,0,1,1) ->  | AN42: =OFFSET(PeriodBarBuilder!$M$32,CalculationsAndCharts!Y42,0,1,1) ->  | AO42: =OFFSET(PeriodBarBuilder!$AA$32,CalculationsAndCharts!K42,0,1,1) ->  | AP42: =OFFSET(PeriodBarBuilder!$AO$32,CalculationsAndCharts!AA42,0,1,1) ->  | AQ42: =OFFSET(PeriodBarBuilder!$BB$32,CalculationsAndCharts!AB42,0,1,1) ->  | AR42: =OFFSET(PeriodBarBuilder!$BP$32,CalculationsAndCharts!AC42,0,1,1) ->  | AS42: =OFFSET(PeriodBarBuilder!$CC$32,CalculationsAndCharts!AD42,0,1,1) ->  | AT42: =OFFSET(PeriodBarBuilder!$CP$32,CalculationsAndCharts!AE42,0,1,1) ->  | AV42: 0 | AW42: 7975800
A43: 11 | B43: =IF(A43>$A$8,"",OFFSET(InputPriceData!B$15,$A43+$A$11,0,1,1)) -> 2019-01-29 | C43: =IF(A43>$A$8,"",OFFSET(InputPriceData!G$15,CalculationsAndCharts!$A43+$A$11,IF($C$5,8,0),1,1)) -> 6375500 | D43: =IF(A43>$A$8,"",OFFSET(InputPriceData!C$15,CalculationsAndCharts!$A43+$A$11,IF($C$5,8,0),1,1)) -> 31.5 | E43: =IF(A43>$A$8,"",OFFSET(InputPriceData!D$15,CalculationsAndCharts!$A43+$A$11,IF($C$5,8,0),1,1)) -> 31.549999 | F43: =IF(A43>$A$8,"",OFFSET(InputPriceData!E$15,CalculationsAndCharts!$A43+$A$11,IF($C$5,8,0),1,1)) -> 30.809999 | G43: =IF(A43>$A$8,"",OFFSET(InputPriceData!F$15,CalculationsAndCharts!$A43+$A$11,IF($C$5,8,0),1,1)) -> 30.85 | H43: 32.369999 | I43: 25.75 | J43: =IF($R$19=FALSE,NA(),OFFSET(PeriodBarBuilder!$K$32,A43,0,1,1)) -> 0.7703928656 | K43: =MATCH(A43,OFFSET(PeriodBarBuilder!$O$33,0,0,PeriodBarBuilder!$Q$31,1),0) ->  | L43: =IF($R$20=FALSE,NA(),OFFSET(PeriodBarBuilder!$Y$32,K43,0,1,1)) ->  | M43: =MATCH($A43,OFFSET(PeriodBarBuilder!$AC$32,1,0,PeriodBarBuilder!$AE$31,1),0) ->  | N43: =IF($R$21=FALSE,NA(),OFFSET(PeriodBarBuilder!$AM$32,M43,0,1,1)) ->  | O43: =MATCH($A43,OFFSET(PeriodBarBuilder!$AP$32,1,0,PeriodBarBuilder!$AR$31,1),0) ->  | P43: =IF($R$22=FALSE,NA(),OFFSET(PeriodBarBuilder!$AZ$32,O43,0,1,1)) ->  | Q43: =MATCH($A43,OFFSET(PeriodBarBuilder!$BD$32,1,0,PeriodBarBuilder!$BF$31,1),0) ->  | R43: =IF($R$23=FALSE,NA(),OFFSET(PeriodBarBuilder!$BN$32,Q43,0,1,1)) ->  | S43: =MATCH($A43,OFFSET(PeriodBarBuilder!$BQ$32,1,0,PeriodBarBuilder!$BS$31,1),0) ->  | T43: =IF($R$24=FALSE,NA(),OFFSET(PeriodBarBuilder!$CA$32,S43,0,1,1)) ->  | U43: =MATCH($A43,OFFSET(PeriodBarBuilder!$CD$32,1,0,PeriodBarBuilder!$CF$31,1),0) ->  | V43: =IF($R$25=FALSE,NA(),OFFSET(PeriodBarBuilder!$CN$32,U43,0,1,1)) ->  | W43: 0.8 | X43: 0.2 | Y43: =OFFSET(PeriodBarBuilder!$O$32,K43,0,1,1) ->  | AA43: =MATCH($Y43,OFFSET(PeriodBarBuilder!$AC$33,0,0,PeriodBarBuilder!$AE$31,1),1) ->  | AB43: =MATCH($Y43,OFFSET(PeriodBarBuilder!$AP$33,0,0,PeriodBarBuilder!$AR$31,1),1) ->  | AC43: =MATCH($Y43,OFFSET(PeriodBarBuilder!$BD$33,0,0,PeriodBarBuilder!$BF$31,1),1) ->  | AD43: =MATCH($Y43,OFFSET(PeriodBarBuilder!$BQ$33,0,0,PeriodBarBuilder!$BS$31,1),1) ->  | AE43: =MATCH($Y43,OFFSET(PeriodBarBuilder!$CD$33,0,0,PeriodBarBuilder!$CF$31,1),1) ->  | AF43: =OFFSET(PeriodBarBuilder!$L$32,CalculationsAndCharts!Y43,0,1,1) ->  | AG43: =OFFSET(PeriodBarBuilder!$Z$32,CalculationsAndCharts!Z43,0,1,1) ->  | AH43: =OFFSET(PeriodBarBuilder!$AN$32,CalculationsAndCharts!AA43,0,1,1) ->  | AI43: =OFFSET(PeriodBarBuilder!$BA$32,CalculationsAndCharts!AB43,0,1,1) ->  | AJ43: =OFFSET(PeriodBarBuilder!$BO$32,CalculationsAndCharts!AC43,0,1,1) ->  | AK43: =OFFSET(PeriodBarBuilder!$CB$32,CalculationsAndCharts!AD43,0,1,1) ->  | AL43: =OFFSET(PeriodBarBuilder!$CO$32,CalculationsAndCharts!AE43,0,1,1) ->  | AN43: =OFFSET(PeriodBarBuilder!$M$32,CalculationsAndCharts!Y43,0,1,1) ->  | AO43: =OFFSET(PeriodBarBuilder!$AA$32,CalculationsAndCharts!K43,0,1,1) ->  | AP43: =OFFSET(PeriodBarBuilder!$AO$32,CalculationsAndCharts!AA43,0,1,1) ->  | AQ43: =OFFSET(PeriodBarBuilder!$BB$32,CalculationsAndCharts!AB43,0,1,1) ->  | AR43: =OFFSET(PeriodBarBuilder!$BP$32,CalculationsAndCharts!AC43,0,1,1) ->  | AS43: =OFFSET(PeriodBarBuilder!$CC$32,CalculationsAndCharts!AD43,0,1,1) ->  | AT43: =OFFSET(PeriodBarBuilder!$CP$32,CalculationsAndCharts!AE43,0,1,1) ->  | AV43: 0 | AX43: 6375500
A44: 12 | B44: =IF(A44>$A$8,"",OFFSET(InputPriceData!B$15,$A44+$A$11,0,1,1)) -> 2019-01-28 | C44: =IF(A44>$A$8,"",OFFSET(InputPriceData!G$15,CalculationsAndCharts!$A44+$A$11,IF($C$5,8,0),1,1)) -> 10076500 | D44: =IF(A44>$A$8,"",OFFSET(InputPriceData!C$15,CalculationsAndCharts!$A44+$A$11,IF($C$5,8,0),1,1)) -> 31.6 | E44: =IF(A44>$A$8,"",OFFSET(InputPriceData!D$15,CalculationsAndCharts!$A44+$A$11,IF($C$5,8,0),1,1)) -> 31.620001 | F44: =IF(A44>$A$8,"",OFFSET(InputPriceData!E$15,CalculationsAndCharts!$A44+$A$11,IF($C$5,8,0),1,1)) -> 30.68 | G44: =IF(A44>$A$8,"",OFFSET(InputPriceData!F$15,CalculationsAndCharts!$A44+$A$11,IF($C$5,8,0),1,1)) -> 31.23 | H44: 32.369999 | I44: 25.290001 | J44: =IF($R$19=FALSE,NA(),OFFSET(PeriodBarBuilder!$K$32,A44,0,1,1)) -> 0.8389831466 | K44: =MATCH(A44,OFFSET(PeriodBarBuilder!$O$33,0,0,PeriodBarBuilder!$Q$31,1),0) ->  | L44: =IF($R$20=FALSE,NA(),OFFSET(PeriodBarBuilder!$Y$32,K44,0,1,1)) ->  | M44: =MATCH($A44,OFFSET(PeriodBarBuilder!$AC$32,1,0,PeriodBarBuilder!$AE$31,1),0) ->  | N44: =IF($R$21=FALSE,NA(),OFFSET(PeriodBarBuilder!$AM$32,M44,0,1,1)) ->  | O44: =MATCH($A44,OFFSET(PeriodBarBuilder!$AP$32,1,0,PeriodBarBuilder!$AR$31,1),0) ->  | P44: =IF($R$22=FALSE,NA(),OFFSET(PeriodBarBuilder!$AZ$32,O44,0,1,1)) ->  | Q44: =MATCH($A44,OFFSET(PeriodBarBuilder!$BD$32,1,0,PeriodBarBuilder!$BF$31,1),0) ->  | R44: =IF($R$23=FALSE,NA(),OFFSET(PeriodBarBuilder!$BN$32,Q44,0,1,1)) ->  | S44: =MATCH($A44,OFFSET(PeriodBarBuilder!$BQ$32,1,0,PeriodBarBuilder!$BS$31,1),0) ->  | T44: =IF($R$24=FALSE,NA(),OFFSET(PeriodBarBuilder!$CA$32,S44,0,1,1)) ->  | U44: =MATCH($A44,OFFSET(PeriodBarBuilder!$CD$32,1,0,PeriodBarBuilder!$CF$31,1),0) ->  | V44: =IF($R$25=FALSE,NA(),OFFSET(PeriodBarBuilder!$CN$32,U44,0,1,1)) ->  | W44: 0.8 | X44: 0.2 | Y44: =OFFSET(PeriodBarBuilder!$O$32,K44,0,1,1) ->  | AA44: =MATCH($Y44,OFFSET(PeriodBarBuilder!$AC$33,0,0,PeriodBarBuilder!$AE$31,1),1) ->  | AB44: =MATCH($Y44,OFFSET(PeriodBarBuilder!$AP$33,0,0,PeriodBarBuilder!$AR$31,1),1) ->  | AC44: =MATCH($Y44,OFFSET(PeriodBarBuilder!$BD$33,0,0,PeriodBarBuilder!$BF$31,1),1) ->  | AD44: =MATCH($Y44,OFFSET(PeriodBarBuilder!$BQ$33,0,0,PeriodBarBuilder!$BS$31,1),1) ->  | AE44: =MATCH($Y44,OFFSET(PeriodBarBuilder!$CD$33,0,0,PeriodBarBuilder!$CF$31,1),1) ->  | AF44: =OFFSET(PeriodBarBuilder!$L$32,CalculationsAndCharts!Y44,0,1,1) ->  | AG44: =OFFSET(PeriodBarBuilder!$Z$32,CalculationsAndCharts!Z44,0,1,1) ->  | AH44: =OFFSET(PeriodBarBuilder!$AN$32,CalculationsAndCharts!AA44,0,1,1) ->  | AI44: =OFFSET(PeriodBarBuilder!$BA$32,CalculationsAndCharts!AB44,0,1,1) ->  | AJ44: =OFFSET(PeriodBarBuilder!$BO$32,CalculationsAndCharts!AC44,0,1,1) ->  | AK44: =OFFSET(PeriodBarBuilder!$CB$32,CalculationsAndCharts!AD44,0,1,1) ->  | AL44: =OFFSET(PeriodBarBuilder!$CO$32,CalculationsAndCharts!AE44,0,1,1) ->  | AN44: =OFFSET(PeriodBarBuilder!$M$32,CalculationsAndCharts!Y44,0,1,1) ->  | AO44: =OFFSET(PeriodBarBuilder!$AA$32,CalculationsAndCharts!K44,0,1,1) ->  | AP44: =OFFSET(PeriodBarBuilder!$AO$32,CalculationsAndCharts!AA44,0,1,1) ->  | AQ44: =OFFSET(PeriodBarBuilder!$BB$32,CalculationsAndCharts!AB44,0,1,1) ->  | AR44: =OFFSET(PeriodBarBuilder!$BP$32,CalculationsAndCharts!AC44,0,1,1) ->  | AS44: =OFFSET(PeriodBarBuilder!$CC$32,CalculationsAndCharts!AD44,0,1,1) ->  | AT44: =OFFSET(PeriodBarBuilder!$CP$32,CalculationsAndCharts!AE44,0,1,1) ->  | AV44: 0 | AX44: 10076500
A45: 13 | B45: =IF(A45>$A$8,"",OFFSET(InputPriceData!B$15,$A45+$A$11,0,1,1)) -> 2019-01-25 | C45: =IF(A45>$A$8,"",OFFSET(InputPriceData!G$15,CalculationsAndCharts!$A45+$A$11,IF($C$5,8,0),1,1)) -> 10357300 | D45: =IF(A45>$A$8,"",OFFSET(InputPriceData!C$15,CalculationsAndCharts!$A45+$A$11,IF($C$5,8,0),1,1)) -> 31.549999 | E45: =IF(A45>$A$8,"",OFFSET(InputPriceData!D$15,CalculationsAndCharts!$A45+$A$11,IF($C$5,8,0),1,1)) -> 32.369999 | F45: =IF(A45>$A$8,"",OFFSET(InputPriceData!E$15,CalculationsAndCharts!$A45+$A$11,IF($C$5,8,0),1,1)) -> 31.52 | G45: =IF(A45>$A$8,"",OFFSET(InputPriceData!F$15,CalculationsAndCharts!$A45+$A$11,IF($C$5,8,0),1,1)) -> 32.099998 | H45: 32.369999 | I45: 24.700001 | J45: =IF($R$19=FALSE,NA(),OFFSET(PeriodBarBuilder!$K$32,A45,0,1,1)) -> 0.9647977744 | K45: =MATCH(A45,OFFSET(PeriodBarBuilder!$O$33,0,0,PeriodBarBuilder!$Q$31,1),0) -> 4 | L45: =IF($R$20=FALSE,NA(),OFFSET(PeriodBarBuilder!$Y$32,K45,0,1,1)) -> 0.3642976141 | M45: =MATCH($A45,OFFSET(PeriodBarBuilder!$AC$32,1,0,PeriodBarBuilder!$AE$31,1),0) ->  | N45: =IF($R$21=FALSE,NA(),OFFSET(PeriodBarBuilder!$AM$32,M45,0,1,1)) ->  | O45: =MATCH($A45,OFFSET(PeriodBarBuilder!$AP$32,1,0,PeriodBarBuilder!$AR$31,1),0) ->  | P45: =IF($R$22=FALSE,NA(),OFFSET(PeriodBarBuilder!$AZ$32,O45,0,1,1)) ->  | Q45: =MATCH($A45,OFFSET(PeriodBarBuilder!$BD$32,1,0,PeriodBarBuilder!$BF$31,1),0) ->  | R45: =IF($R$23=FALSE,NA(),OFFSET(PeriodBarBuilder!$BN$32,Q45,0,1,1)) ->  | S45: =MATCH($A45,OFFSET(PeriodBarBuilder!$BQ$32,1,0,PeriodBarBuilder!$BS$31,1),0) ->  | T45: =IF($R$24=FALSE,NA(),OFFSET(PeriodBarBuilder!$CA$32,S45,0,1,1)) ->  | U45: =MATCH($A45,OFFSET(PeriodBarBuilder!$CD$32,1,0,PeriodBarBuilder!$CF$31,1),0) ->  | V45: =IF($R$25=FALSE,NA(),OFFSET(PeriodBarBuilder!$CN$32,U45,0,1,1)) ->  | W45: 0.8 | X45: 0.2 | Y45: =OFFSET(PeriodBarBuilder!$O$32,K45,0,1,1) -> 13 | Z45: 4 | AA45: =MATCH($Y45,OFFSET(PeriodBarBuilder!$AC$33,0,0,PeriodBarBuilder!$AE$31,1),1) -> 2 | AB45: =MATCH($Y45,OFFSET(PeriodBarBuilder!$AP$33,0,0,PeriodBarBuilder!$AR$31,1),1) -> 3 | AC45: =MATCH($Y45,OFFSET(PeriodBarBuilder!$BD$33,0,0,PeriodBarBuilder!$BF$31,1),1) -> 1 | AD45: =MATCH($Y45,OFFSET(PeriodBarBuilder!$BQ$33,0,0,PeriodBarBuilder!$BS$31,1),1) -> 1 | AE45: =MATCH($Y45,OFFSET(PeriodBarBuilder!$CD$33,0,0,PeriodBarBuilder!$CF$31,1),1) -> 2 | AF45: =OFFSET(PeriodBarBuilder!$L$32,CalculationsAndCharts!Y45,0,1,1) -> 0 | AG45: =OFFSET(PeriodBarBuilder!$Z$32,CalculationsAndCharts!Z45,0,1,1) -> 0 | AH45: =OFFSET(PeriodBarBuilder!$AN$32,CalculationsAndCharts!AA45,0,1,1) -> 0 | AI45: =OFFSET(PeriodBarBuilder!$BA$32,CalculationsAndCharts!AB45,0,1,1) -> 0 | AJ45: =OFFSET(PeriodBarBuilder!$BO$32,CalculationsAndCharts!AC45,0,1,1) -> 1 | AK45: =OFFSET(PeriodBarBuilder!$CB$32,CalculationsAndCharts!AD45,0,1,1) -> 1 | AL45: =OFFSET(PeriodBarBuilder!$CO$32,CalculationsAndCharts!AE45,0,1,1) -> 0 | AM45: 2 | AN45: =OFFSET(PeriodBarBuilder!$M$32,CalculationsAndCharts!Y45,0,1,1) -> 1 | AO45: =OFFSET(PeriodBarBuilder!$AA$32,CalculationsAndCharts!K45,0,1,1) -> 0 | AP45: =OFFSET(PeriodBarBuilder!$AO$32,CalculationsAndCharts!AA45,0,1,1) -> 0 | AQ45: =OFFSET(PeriodBarBuilder!$BB$32,CalculationsAndCharts!AB45,0,1,1) -> 0 | AR45: =OFFSET(PeriodBarBuilder!$BP$32,CalculationsAndCharts!AC45,0,1,1) -> 0 | AS45: =OFFSET(PeriodBarBuilder!$CC$32,CalculationsAndCharts!AD45,0,1,1) -> 0 | AT45: =OFFSET(PeriodBarBuilder!$CP$32,CalculationsAndCharts!AE45,0,1,1) -> 0 | AU45: 1 | AV45: 0 | AW45: 10357300
A46: 14 | B46: =IF(A46>$A$8,"",OFFSET(InputPriceData!B$15,$A46+$A$11,0,1,1)) -> 2019-01-24 | C46: =IF(A46>$A$8,"",OFFSET(InputPriceData!G$15,CalculationsAndCharts!$A46+$A$11,IF($C$5,8,0),1,1)) -> 11264500 | D46: =IF(A46>$A$8,"",OFFSET(InputPriceData!C$15,CalculationsAndCharts!$A46+$A$11,IF($C$5,8,0),1,1)) -> 31 | E46: =IF(A46>$A$8,"",OFFSET(InputPriceData!D$15,CalculationsAndCharts!$A46+$A$11,IF($C$5,8,0),1,1)) -> 31.870001 | F46: =IF(A46>$A$8,"",OFFSET(InputPriceData!E$15,CalculationsAndCharts!$A46+$A$11,IF($C$5,8,0),1,1)) -> 30.84 | G46: =IF(A46>$A$8,"",OFFSET(InputPriceData!F$15,CalculationsAndCharts!$A46+$A$11,IF($C$5,8,0),1,1)) -> 31.209999 | H46: 32.369999 | I46: 24.700001 | J46: =IF($R$19=FALSE,NA(),OFFSET(PeriodBarBuilder!$K$32,A46,0,1,1)) -> 0.8487613686 | K46: =MATCH(A46,OFFSET(PeriodBarBuilder!$O$33,0,0,PeriodBarBuilder!$Q$31,1),0) ->  | L46: =IF($R$20=FALSE,NA(),OFFSET(PeriodBarBuilder!$Y$32,K46,0,1,1)) ->  | M46: =MATCH($A46,OFFSET(PeriodBarBuilder!$AC$32,1,0,PeriodBarBuilder!$AE$31,1),0) ->  | N46: =IF($R$21=FALSE,NA(),OFFSET(PeriodBarBuilder!$AM$32,M46,0,1,1)) ->  | O46: =MATCH($A46,OFFSET(PeriodBarBuilder!$AP$32,1,0,PeriodBarBuilder!$AR$31,1),0) ->  | P46: =IF($R$22=FALSE,NA(),OFFSET(PeriodBarBuilder!$AZ$32,O46,0,1,1)) ->  | Q46: =MATCH($A46,OFFSET(PeriodBarBuilder!$BD$32,1,0,PeriodBarBuilder!$BF$31,1),0) ->  | R46: =IF($R$23=FALSE,NA(),OFFSET(PeriodBarBuilder!$BN$32,Q46,0,1,1)) ->  | S46: =MATCH($A46,OFFSET(PeriodBarBuilder!$BQ$32,1,0,PeriodBarBuilder!$BS$31,1),0) ->  | T46: =IF($R$24=FALSE,NA(),OFFSET(PeriodBarBuilder!$CA$32,S46,0,1,1)) ->  | U46: =MATCH($A46,OFFSET(PeriodBarBuilder!$CD$32,1,0,PeriodBarBuilder!$CF$31,1),0) ->  | V46: =IF($R$25=FALSE,NA(),OFFSET(PeriodBarBuilder!$CN$32,U46,0,1,1)) ->  | W46: 0.8 | X46: 0.2 | Y46: =OFFSET(PeriodBarBuilder!$O$32,K46,0,1,1) ->  | AA46: =MATCH($Y46,OFFSET(PeriodBarBuilder!$AC$33,0,0,PeriodBarBuilder!$AE$31,1),1) ->  | AB46: =MATCH($Y46,OFFSET(PeriodBarBuilder!$AP$33,0,0,PeriodBarBuilder!$AR$31,1),1) ->  | AC46: =MATCH($Y46,OFFSET(PeriodBarBuilder!$BD$33,0,0,PeriodBarBuilder!$BF$31,1),1) ->  | AD46: =MATCH($Y46,OFFSET(PeriodBarBuilder!$BQ$33,0,0,PeriodBarBuilder!$BS$31,1),1) ->  | AE46: =MATCH($Y46,OFFSET(PeriodBarBuilder!$CD$33,0,0,PeriodBarBuilder!$CF$31,1),1) ->  | AF46: =OFFSET(PeriodBarBuilder!$L$32,CalculationsAndCharts!Y46,0,1,1) ->  | AG46: =OFFSET(PeriodBarBuilder!$Z$32,CalculationsAndCharts!Z46,0,1,1) ->  | AH46: =OFFSET(PeriodBarBuilder!$AN$32,CalculationsAndCharts!AA46,0,1,1) ->  | AI46: =OFFSET(PeriodBarBuilder!$BA$32,CalculationsAndCharts!AB46,0,1,1) ->  | AJ46: =OFFSET(PeriodBarBuilder!$BO$32,CalculationsAndCharts!AC46,0,1,1) ->  | AK46: =OFFSET(PeriodBarBuilder!$CB$32,CalculationsAndCharts!AD46,0,1,1) ->  | AL46: =OFFSET(PeriodBarBuilder!$CO$32,CalculationsAndCharts!AE46,0,1,1) ->  | AN46: =OFFSET(PeriodBarBuilder!$M$32,CalculationsAndCharts!Y46,0,1,1) ->  | AO46: =OFFSET(PeriodBarBuilder!$AA$32,CalculationsAndCharts!K46,0,1,1) ->  | AP46: =OFFSET(PeriodBarBuilder!$AO$32,CalculationsAndCharts!AA46,0,1,1) ->  | AQ46: =OFFSET(PeriodBarBuilder!$BB$32,CalculationsAndCharts!AB46,0,1,1) ->  | AR46: =OFFSET(PeriodBarBuilder!$BP$32,CalculationsAndCharts!AC46,0,1,1) ->  | AS46: =OFFSET(PeriodBarBuilder!$CC$32,CalculationsAndCharts!AD46,0,1,1) ->  | AT46: =OFFSET(PeriodBarBuilder!$CP$32,CalculationsAndCharts!AE46,0,1,1) ->  | AV46: 0 | AW46: 11264500
A47: 15 | B47: =IF(A47>$A$8,"",OFFSET(InputPriceData!B$15,$A47+$A$11,0,1,1)) -> 2019-01-23 | C47: =IF(A47>$A$8,"",OFFSET(InputPriceData!G$15,CalculationsAndCharts!$A47+$A$11,IF($C$5,8,0),1,1)) -> 12503900 | D47: =IF(A47>$A$8,"",OFFSET(InputPriceData!C$15,CalculationsAndCharts!$A47+$A$11,IF($C$5,8,0),1,1)) -> 31.32 | E47: =IF(A47>$A$8,"",OFFSET(InputPriceData!D$15,CalculationsAndCharts!$A47+$A$11,IF($C$5,8,0),1,1)) -> 31.43 | F47: =IF(A47>$A$8,"",OFFSET(InputPriceData!E$15,CalculationsAndCharts!$A47+$A$11,IF($C$5,8,0),1,1)) -> 30.5 | G47: =IF(A47>$A$8,"",OFFSET(InputPriceData!F$15,CalculationsAndCharts!$A47+$A$11,IF($C$5,8,0),1,1)) -> 31.049999 | H47: 32.369999 | I47: 24.700001 | J47: =IF($R$19=FALSE,NA(),OFFSET(PeriodBarBuilder!$K$32,A47,0,1,1)) -> 0.8279008678 | K47: =MATCH(A47,OFFSET(PeriodBarBuilder!$O$33,0,0,PeriodBarBuilder!$Q$31,1),0) ->  | L47: =IF($R$20=FALSE,NA(),OFFSET(PeriodBarBuilder!$Y$32,K47,0,1,1)) ->  | M47: =MATCH($A47,OFFSET(PeriodBarBuilder!$AC$32,1,0,PeriodBarBuilder!$AE$31,1),0) ->  | N47: =IF($R$21=FALSE,NA(),OFFSET(PeriodBarBuilder!$AM$32,M47,0,1,1)) ->  | O47: =MATCH($A47,OFFSET(PeriodBarBuilder!$AP$32,1,0,PeriodBarBuilder!$AR$31,1),0) ->  | P47: =IF($R$22=FALSE,NA(),OFFSET(PeriodBarBuilder!$AZ$32,O47,0,1,1)) ->  | Q47: =MATCH($A47,OFFSET(PeriodBarBuilder!$BD$32,1,0,PeriodBarBuilder!$BF$31,1),0) ->  | R47: =IF($R$23=FALSE,NA(),OFFSET(PeriodBarBuilder!$BN$32,Q47,0,1,1)) ->  | S47: =MATCH($A47,OFFSET(PeriodBarBuilder!$BQ$32,1,0,PeriodBarBuilder!$BS$31,1),0) ->  | T47: =IF($R$24=FALSE,NA(),OFFSET(PeriodBarBuilder!$CA$32,S47,0,1,1)) ->  | U47: =MATCH($A47,OFFSET(PeriodBarBuilder!$CD$32,1,0,PeriodBarBuilder!$CF$31,1),0) ->  | V47: =IF($R$25=FALSE,NA(),OFFSET(PeriodBarBuilder!$CN$32,U47,0,1,1)) ->  | W47: 0.8 | X47: 0.2 | Y47: =OFFSET(PeriodBarBuilder!$O$32,K47,0,1,1) ->  | AA47: =MATCH($Y47,OFFSET(PeriodBarBuilder!$AC$33,0,0,PeriodBarBuilder!$AE$31,1),1) ->  | AB47: =MATCH($Y47,OFFSET(PeriodBarBuilder!$AP$33,0,0,PeriodBarBuilder!$AR$31,1),1) ->  | AC47: =MATCH($Y47,OFFSET(PeriodBarBuilder!$BD$33,0,0,PeriodBarBuilder!$BF$31,1),1) ->  | AD47: =MATCH($Y47,OFFSET(PeriodBarBuilder!$BQ$33,0,0,PeriodBarBuilder!$BS$31,1),1) ->  | AE47: =MATCH($Y47,OFFSET(PeriodBarBuilder!$CD$33,0,0,PeriodBarBuilder!$CF$31,1),1) ->  | AF47: =OFFSET(PeriodBarBuilder!$L$32,CalculationsAndCharts!Y47,0,1,1) ->  | AG47: =OFFSET(PeriodBarBuilder!$Z$32,CalculationsAndCharts!Z47,0,1,1) ->  | AH47: =OFFSET(PeriodBarBuilder!$AN$32,CalculationsAndCharts!AA47,0,1,1) ->  | AI47: =OFFSET(PeriodBarBuilder!$BA$32,CalculationsAndCharts!AB47,0,1,1) ->  | AJ47: =OFFSET(PeriodBarBuilder!$BO$32,CalculationsAndCharts!AC47,0,1,1) ->  | AK47: =OFFSET(PeriodBarBuilder!$CB$32,CalculationsAndCharts!AD47,0,1,1) ->  | AL47: =OFFSET(PeriodBarBuilder!$CO$32,CalculationsAndCharts!AE47,0,1,1) ->  | AN47: =OFFSET(PeriodBarBuilder!$M$32,CalculationsAndCharts!Y47,0,1,1) ->  | AO47: =OFFSET(PeriodBarBuilder!$AA$32,CalculationsAndCharts!K47,0,1,1) ->  | AP47: =OFFSET(PeriodBarBuilder!$AO$32,CalculationsAndCharts!AA47,0,1,1) ->  | AQ47: =OFFSET(PeriodBarBuilder!$BB$32,CalculationsAndCharts!AB47,0,1,1) ->  | AR47: =OFFSET(PeriodBarBuilder!$BP$32,CalculationsAndCharts!AC47,0,1,1) ->  | AS47: =OFFSET(PeriodBarBuilder!$CC$32,CalculationsAndCharts!AD47,0,1,1) ->  | AT47: =OFFSET(PeriodBarBuilder!$CP$32,CalculationsAndCharts!AE47,0,1,1) ->  | AV47: 0 | AX47: 12503900
A48: 16 | B48: =IF(A48>$A$8,"",OFFSET(InputPriceData!B$15,$A48+$A$11,0,1,1)) -> 2019-01-22 | C48: =IF(A48>$A$8,"",OFFSET(InputPriceData!G$15,CalculationsAndCharts!$A48+$A$11,IF($C$5,8,0),1,1)) -> 16986900 | D48: =IF(A48>$A$8,"",OFFSET(InputPriceData!C$15,CalculationsAndCharts!$A48+$A$11,IF($C$5,8,0),1,1)) -> 31.5 | E48: =IF(A48>$A$8,"",OFFSET(InputPriceData!D$15,CalculationsAndCharts!$A48+$A$11,IF($C$5,8,0),1,1)) -> 31.719999 | F48: =IF(A48>$A$8,"",OFFSET(InputPriceData!E$15,CalculationsAndCharts!$A48+$A$11,IF($C$5,8,0),1,1)) -> 30.09 | G48: =IF(A48>$A$8,"",OFFSET(InputPriceData!F$15,CalculationsAndCharts!$A48+$A$11,IF($C$5,8,0),1,1)) -> 31.26 | H48: 32.369999 | I48: 24.700001 | J48: =IF($R$19=FALSE,NA(),OFFSET(PeriodBarBuilder!$K$32,A48,0,1,1)) -> 0.8552804055 | K48: =MATCH(A48,OFFSET(PeriodBarBuilder!$O$33,0,0,PeriodBarBuilder!$Q$31,1),0) ->  | L48: =IF($R$20=FALSE,NA(),OFFSET(PeriodBarBuilder!$Y$32,K48,0,1,1)) ->  | M48: =MATCH($A48,OFFSET(PeriodBarBuilder!$AC$32,1,0,PeriodBarBuilder!$AE$31,1),0) ->  | N48: =IF($R$21=FALSE,NA(),OFFSET(PeriodBarBuilder!$AM$32,M48,0,1,1)) ->  | O48: =MATCH($A48,OFFSET(PeriodBarBuilder!$AP$32,1,0,PeriodBarBuilder!$AR$31,1),0) ->  | P48: =IF($R$22=FALSE,NA(),OFFSET(PeriodBarBuilder!$AZ$32,O48,0,1,1)) ->  | Q48: =MATCH($A48,OFFSET(PeriodBarBuilder!$BD$32,1,0,PeriodBarBuilder!$BF$31,1),0) ->  | R48: =IF($R$23=FALSE,NA(),OFFSET(PeriodBarBuilder!$BN$32,Q48,0,1,1)) ->  | S48: =MATCH($A48,OFFSET(PeriodBarBuilder!$BQ$32,1,0,PeriodBarBuilder!$BS$31,1),0) -> 2 | T48: =IF($R$24=FALSE,NA(),OFFSET(PeriodBarBuilder!$CA$32,S48,0,1,1)) -> 0.2215375423 | U48: =MATCH($A48,OFFSET(PeriodBarBuilder!$CD$32,1,0,PeriodBarBuilder!$CF$31,1),0) -> 3 | V48: =IF($R$25=FALSE,NA(),OFFSET(PeriodBarBuilder!$CN$32,U48,0,1,1)) -> 0.2276839264 | W48: 0.8 | X48: 0.2 | Y48: =OFFSET(PeriodBarBuilder!$O$32,K48,0,1,1) ->  | AA48: =MATCH($Y48,OFFSET(PeriodBarBuilder!$AC$33,0,0,PeriodBarBuilder!$AE$31,1),1) ->  | AB48: =MATCH($Y48,OFFSET(PeriodBarBuilder!$AP$33,0,0,PeriodBarBuilder!$AR$31,1),1) ->  | AC48: =MATCH($Y48,OFFSET(PeriodBarBuilder!$BD$33,0,0,PeriodBarBuilder!$BF$31,1),1) ->  | AD48: =MATCH($Y48,OFFSET(PeriodBarBuilder!$BQ$33,0,0,PeriodBarBuilder!$BS$31,1),1) ->  | AE48: =MATCH($Y48,OFFSET(PeriodBarBuilder!$CD$33,0,0,PeriodBarBuilder!$CF$31,1),1) ->  | AF48: =OFFSET(PeriodBarBuilder!$L$32,CalculationsAndCharts!Y48,0,1,1) ->  | AG48: =OFFSET(PeriodBarBuilder!$Z$32,CalculationsAndCharts!Z48,0,1,1) ->  | AH48: =OFFSET(PeriodBarBuilder!$AN$32,CalculationsAndCharts!AA48,0,1,1) ->  | AI48: =OFFSET(PeriodBarBuilder!$BA$32,CalculationsAndCharts!AB48,0,1,1) ->  | AJ48: =OFFSET(PeriodBarBuilder!$BO$32,CalculationsAndCharts!AC48,0,1,1) ->  | AK48: =OFFSET(PeriodBarBuilder!$CB$32,CalculationsAndCharts!AD48,0,1,1) ->  | AL48: =OFFSET(PeriodBarBuilder!$CO$32,CalculationsAndCharts!AE48,0,1,1) ->  | AN48: =OFFSET(PeriodBarBuilder!$M$32,CalculationsAndCharts!Y48,0,1,1) ->  | AO48: =OFFSET(PeriodBarBuilder!$AA$32,CalculationsAndCharts!K48,0,1,1) ->  | AP48: =OFFSET(PeriodBarBuilder!$AO$32,CalculationsAndCharts!AA48,0,1,1) ->  | AQ48: =OFFSET(PeriodBarBuilder!$BB$32,CalculationsAndCharts!AB48,0,1,1) ->  | AR48: =OFFSET(PeriodBarBuilder!$BP$32,CalculationsAndCharts!AC48,0,1,1) ->  | AS48: =OFFSET(PeriodBarBuilder!$CC$32,CalculationsAndCharts!AD48,0,1,1) ->  | AT48: =OFFSET(PeriodBarBuilder!$CP$32,CalculationsAndCharts!AE48,0,1,1) ->  | AV48: 0 | AX48: 16986900
A49: 17 | B49: =IF(A49>$A$8,"",OFFSET(InputPriceData!B$15,$A49+$A$11,0,1,1)) -> 2019-01-18 | C49: =IF(A49>$A$8,"",OFFSET(InputPriceData!G$15,CalculationsAndCharts!$A49+$A$11,IF($C$5,8,0),1,1)) -> 16457300 | D49: =IF(A49>$A$8,"",OFFSET(InputPriceData!C$15,CalculationsAndCharts!$A49+$A$11,IF($C$5,8,0),1,1)) -> 31.41 | E49: =IF(A49>$A$8,"",OFFSET(InputPriceData!D$15,CalculationsAndCharts!$A49+$A$11,IF($C$5,8,0),1,1)) -> 32.369999 | F49: =IF(A49>$A$8,"",OFFSET(InputPriceData!E$15,CalculationsAndCharts!$A49+$A$11,IF($C$5,8,0),1,1)) -> 31.299999 | G49: =IF(A49>$A$8,"",OFFSET(InputPriceData!F$15,CalculationsAndCharts!$A49+$A$11,IF($C$5,8,0),1,1)) -> 32.25 | H49: 32.369999 | I49: 24.700001 | J49: =IF($R$19=FALSE,NA(),OFFSET(PeriodBarBuilder!$K$32,A49,0,1,1)) -> 0.9843547547 | K49: =MATCH(A49,OFFSET(PeriodBarBuilder!$O$33,0,0,PeriodBarBuilder!$Q$31,1),0) -> 5 | L49: =IF($R$20=FALSE,NA(),OFFSET(PeriodBarBuilder!$Y$32,K49,0,1,1)) -> 0.3469501593 | M49: =MATCH($A49,OFFSET(PeriodBarBuilder!$AC$32,1,0,PeriodBarBuilder!$AE$31,1),0) ->  | N49: =IF($R$21=FALSE,NA(),OFFSET(PeriodBarBuilder!$AM$32,M49,0,1,1)) ->  | O49: =MATCH($A49,OFFSET(PeriodBarBuilder!$AP$32,1,0,PeriodBarBuilder!$AR$31,1),0) ->  | P49: =IF($R$22=FALSE,NA(),OFFSET(PeriodBarBuilder!$AZ$32,O49,0,1,1)) ->  | Q49: =MATCH($A49,OFFSET(PeriodBarBuilder!$BD$32,1,0,PeriodBarBuilder!$BF$31,1),0) ->  | R49: =IF($R$23=FALSE,NA(),OFFSET(PeriodBarBuilder!$BN$32,Q49,0,1,1)) ->  | S49: =MATCH($A49,OFFSET(PeriodBarBuilder!$BQ$32,1,0,PeriodBarBuilder!$BS$31,1),0) ->  | T49: =IF($R$24=FALSE,NA(),OFFSET(PeriodBarBuilder!$CA$32,S49,0,1,1)) ->  | U49: =MATCH($A49,OFFSET(PeriodBarBuilder!$CD$32,1,0,PeriodBarBuilder!$CF$31,1),0) ->  | V49: =IF($R$25=FALSE,NA(),OFFSET(PeriodBarBuilder!$CN$32,U49,0,1,1)) ->  | W49: 0.8 | X49: 0.2 | Y49: =OFFSET(PeriodBarBuilder!$O$32,K49,0,1,1) -> 17 | Z49: 5 | AA49: =MATCH($Y49,OFFSET(PeriodBarBuilder!$AC$33,0,0,PeriodBarBuilder!$AE$31,1),1) -> 2 | AB49: =MATCH($Y49,OFFSET(PeriodBarBuilder!$AP$33,0,0,PeriodBarBuilder!$AR$31,1),1) -> 3 | AC49: =MATCH($Y49,OFFSET(PeriodBarBuilder!$BD$33,0,0,PeriodBarBuilder!$BF$31,1),1) -> 1 | AD49: =MATCH($Y49,OFFSET(PeriodBarBuilder!$BQ$33,0,0,PeriodBarBuilder!$BS$31,1),1) -> 2 | AE49: =MATCH($Y49,OFFSET(PeriodBarBuilder!$CD$33,0,0,PeriodBarBuilder!$CF$31,1),1) -> 3 | AF49: =OFFSET(PeriodBarBuilder!$L$32,CalculationsAndCharts!Y49,0,1,1) -> 0 | AG49: =OFFSET(PeriodBarBuilder!$Z$32,CalculationsAndCharts!Z49,0,1,1) -> 0 | AH49: =OFFSET(PeriodBarBuilder!$AN$32,CalculationsAndCharts!AA49,0,1,1) -> 0 | AI49: =OFFSET(PeriodBarBuilder!$BA$32,CalculationsAndCharts!AB49,0,1,1) -> 0 | AJ49: =OFFSET(PeriodBarBuilder!$BO$32,CalculationsAndCharts!AC49,0,1,1) -> 1 | AK49: =OFFSET(PeriodBarBuilder!$CB$32,CalculationsAndCharts!AD49,0,1,1) -> 0 | AL49: =OFFSET(PeriodBarBuilder!$CO$32,CalculationsAndCharts!AE49,0,1,1) -> 0 | AM49: 1 | AN49: =OFFSET(PeriodBarBuilder!$M$32,CalculationsAndCharts!Y49,0,1,1) -> 1 | AO49: =OFFSET(PeriodBarBuilder!$AA$32,CalculationsAndCharts!K49,0,1,1) -> 0 | AP49: =OFFSET(PeriodBarBuilder!$AO$32,CalculationsAndCharts!AA49,0,1,1) -> 0 | AQ49: =OFFSET(PeriodBarBuilder!$BB$32,CalculationsAndCharts!AB49,0,1,1) -> 0 | AR49: =OFFSET(PeriodBarBuilder!$BP$32,CalculationsAndCharts!AC49,0,1,1) -> 0 | AS49: =OFFSET(PeriodBarBuilder!$CC$32,CalculationsAndCharts!AD49,0,1,1) -> 0 | AT49: =OFFSET(PeriodBarBuilder!$CP$32,CalculationsAndCharts!AE49,0,1,1) -> 0 | AU49: 1 | AV49: 0 | AW49: 16457300
A50: 18 | B50: =IF(A50>$A$8,"",OFFSET(InputPriceData!B$15,$A50+$A$11,0,1,1)) -> 2019-01-17 | C50: =IF(A50>$A$8,"",OFFSET(InputPriceData!G$15,CalculationsAndCharts!$A50+$A$11,IF($C$5,8,0),1,1)) -> 12746500 | D50: =IF(A50>$A$8,"",OFFSET(InputPriceData!C$15,CalculationsAndCharts!$A50+$A$11,IF($C$5,8,0),1,1)) -> 30.139999 | E50: =IF(A50>$A$8,"",OFFSET(InputPriceData!D$15,CalculationsAndCharts!$A50+$A$11,IF($C$5,8,0),1,1)) -> 30.969999 | F50: =IF(A50>$A$8,"",OFFSET(InputPriceData!E$15,CalculationsAndCharts!$A50+$A$11,IF($C$5,8,0),1,1)) -> 29.84 | G50: =IF(A50>$A$8,"",OFFSET(InputPriceData!F$15,CalculationsAndCharts!$A50+$A$11,IF($C$5,8,0),1,1)) -> 30.9 | H50: 30.969999 | I50: 24.700001 | J50: =IF($R$19=FALSE,NA(),OFFSET(PeriodBarBuilder!$K$32,A50,0,1,1)) -> 0.9888358816 | K50: =MATCH(A50,OFFSET(PeriodBarBuilder!$O$33,0,0,PeriodBarBuilder!$Q$31,1),0) ->  | L50: =IF($R$20=FALSE,NA(),OFFSET(PeriodBarBuilder!$Y$32,K50,0,1,1)) ->  | M50: =MATCH($A50,OFFSET(PeriodBarBuilder!$AC$32,1,0,PeriodBarBuilder!$AE$31,1),0) ->  | N50: =IF($R$21=FALSE,NA(),OFFSET(PeriodBarBuilder!$AM$32,M50,0,1,1)) ->  | O50: =MATCH($A50,OFFSET(PeriodBarBuilder!$AP$32,1,0,PeriodBarBuilder!$AR$31,1),0) ->  | P50: =IF($R$22=FALSE,NA(),OFFSET(PeriodBarBuilder!$AZ$32,O50,0,1,1)) ->  | Q50: =MATCH($A50,OFFSET(PeriodBarBuilder!$BD$32,1,0,PeriodBarBuilder!$BF$31,1),0) ->  | R50: =IF($R$23=FALSE,NA(),OFFSET(PeriodBarBuilder!$BN$32,Q50,0,1,1)) ->  | S50: =MATCH($A50,OFFSET(PeriodBarBuilder!$BQ$32,1,0,PeriodBarBuilder!$BS$31,1),0) ->  | T50: =IF($R$24=FALSE,NA(),OFFSET(PeriodBarBuilder!$CA$32,S50,0,1,1)) ->  | U50: =MATCH($A50,OFFSET(PeriodBarBuilder!$CD$32,1,0,PeriodBarBuilder!$CF$31,1),0) ->  | V50: =IF($R$25=FALSE,NA(),OFFSET(PeriodBarBuilder!$CN$32,U50,0,1,1)) ->  | W50: 0.8 | X50: 0.2 | Y50: =OFFSET(PeriodBarBuilder!$O$32,K50,0,1,1) ->  | AA50: =MATCH($Y50,OFFSET(PeriodBarBuilder!$AC$33,0,0,PeriodBarBuilder!$AE$31,1),1) ->  | AB50: =MATCH($Y50,OFFSET(PeriodBarBuilder!$AP$33,0,0,PeriodBarBuilder!$AR$31,1),1) ->  | AC50: =MATCH($Y50,OFFSET(PeriodBarBuilder!$BD$33,0,0,PeriodBarBuilder!$BF$31,1),1) ->  | AD50: =MATCH($Y50,OFFSET(PeriodBarBuilder!$BQ$33,0,0,PeriodBarBuilder!$BS$31,1),1) ->  | AE50: =MATCH($Y50,OFFSET(PeriodBarBuilder!$CD$33,0,0,PeriodBarBuilder!$CF$31,1),1) ->  | AF50: =OFFSET(PeriodBarBuilder!$L$32,CalculationsAndCharts!Y50,0,1,1) ->  | AG50: =OFFSET(PeriodBarBuilder!$Z$32,CalculationsAndCharts!Z50,0,1,1) ->  | AH50: =OFFSET(PeriodBarBuilder!$AN$32,CalculationsAndCharts!AA50,0,1,1) ->  | AI50: =OFFSET(PeriodBarBuilder!$BA$32,CalculationsAndCharts!AB50,0,1,1) ->  | AJ50: =OFFSET(PeriodBarBuilder!$BO$32,CalculationsAndCharts!AC50,0,1,1) ->  | AK50: =OFFSET(PeriodBarBuilder!$CB$32,CalculationsAndCharts!AD50,0,1,1) ->  | AL50: =OFFSET(PeriodBarBuilder!$CO$32,CalculationsAndCharts!AE50,0,1,1) ->  | AN50: =OFFSET(PeriodBarBuilder!$M$32,CalculationsAndCharts!Y50,0,1,1) ->  | AO50: =OFFSET(PeriodBarBuilder!$AA$32,CalculationsAndCharts!K50,0,1,1) ->  | AP50: =OFFSET(PeriodBarBuilder!$AO$32,CalculationsAndCharts!AA50,0,1,1) ->  | AQ50: =OFFSET(PeriodBarBuilder!$BB$32,CalculationsAndCharts!AB50,0,1,1) ->  | AR50: =OFFSET(PeriodBarBuilder!$BP$32,CalculationsAndCharts!AC50,0,1,1) ->  | AS50: =OFFSET(PeriodBarBuilder!$CC$32,CalculationsAndCharts!AD50,0,1,1) ->  | AT50: =OFFSET(PeriodBarBuilder!$CP$32,CalculationsAndCharts!AE50,0,1,1) ->  | AV50: 0 | AW50: 12746500
A51: 19 | B51: =IF(A51>$A$8,"",OFFSET(InputPriceData!B$15,$A51+$A$11,0,1,1)) -> 2019-01-16 | C51: =IF(A51>$A$8,"",OFFSET(InputPriceData!G$15,CalculationsAndCharts!$A51+$A$11,IF($C$5,8,0),1,1)) -> 10084300 | D51: =IF(A51>$A$8,"",OFFSET(InputPriceData!C$15,CalculationsAndCharts!$A51+$A$11,IF($C$5,8,0),1,1)) -> 30.23 | E51: =IF(A51>$A$8,"",OFFSET(InputPriceData!D$15,CalculationsAndCharts!$A51+$A$11,IF($C$5,8,0),1,1)) -> 30.620001 | F51: =IF(A51>$A$8,"",OFFSET(InputPriceData!E$15,CalculationsAndCharts!$A51+$A$11,IF($C$5,8,0),1,1)) -> 30.030001 | G51: =IF(A51>$A$8,"",OFFSET(InputPriceData!F$15,CalculationsAndCharts!$A51+$A$11,IF($C$5,8,0),1,1)) -> 30.360001 | H51: 30.889999 | I51: 24.700001 | J51: =IF($R$19=FALSE,NA(),OFFSET(PeriodBarBuilder!$K$32,A51,0,1,1)) -> 0.9143783245 | K51: =MATCH(A51,OFFSET(PeriodBarBuilder!$O$33,0,0,PeriodBarBuilder!$Q$31,1),0) ->  | L51: =IF($R$20=FALSE,NA(),OFFSET(PeriodBarBuilder!$Y$32,K51,0,1,1)) ->  | M51: =MATCH($A51,OFFSET(PeriodBarBuilder!$AC$32,1,0,PeriodBarBuilder!$AE$31,1),0) ->  | N51: =IF($R$21=FALSE,NA(),OFFSET(PeriodBarBuilder!$AM$32,M51,0,1,1)) ->  | O51: =MATCH($A51,OFFSET(PeriodBarBuilder!$AP$32,1,0,PeriodBarBuilder!$AR$31,1),0) ->  | P51: =IF($R$22=FALSE,NA(),OFFSET(PeriodBarBuilder!$AZ$32,O51,0,1,1)) ->  | Q51: =MATCH($A51,OFFSET(PeriodBarBuilder!$BD$32,1,0,PeriodBarBuilder!$BF$31,1),0) ->  | R51: =IF($R$23=FALSE,NA(),OFFSET(PeriodBarBuilder!$BN$32,Q51,0,1,1)) ->  | S51: =MATCH($A51,OFFSET(PeriodBarBuilder!$BQ$32,1,0,PeriodBarBuilder!$BS$31,1),0) ->  | T51: =IF($R$24=FALSE,NA(),OFFSET(PeriodBarBuilder!$CA$32,S51,0,1,1)) ->  | U51: =MATCH($A51,OFFSET(PeriodBarBuilder!$CD$32,1,0,PeriodBarBuilder!$CF$31,1),0) ->  | V51: =IF($R$25=FALSE,NA(),OFFSET(PeriodBarBuilder!$CN$32,U51,0,1,1)) ->  | W51: 0.8 | X51: 0.2 | Y51: =OFFSET(PeriodBarBuilder!$O$32,K51,0,1,1) ->  | AA51: =MATCH($Y51,OFFSET(PeriodBarBuilder!$AC$33,0,0,PeriodBarBuilder!$AE$31,1),1) ->  | AB51: =MATCH($Y51,OFFSET(PeriodBarBuilder!$AP$33,0,0,PeriodBarBuilder!$AR$31,1),1) ->  | AC51: =MATCH($Y51,OFFSET(PeriodBarBuilder!$BD$33,0,0,PeriodBarBuilder!$BF$31,1),1) ->  | AD51: =MATCH($Y51,OFFSET(PeriodBarBuilder!$BQ$33,0,0,PeriodBarBuilder!$BS$31,1),1) ->  | AE51: =MATCH($Y51,OFFSET(PeriodBarBuilder!$CD$33,0,0,PeriodBarBuilder!$CF$31,1),1) ->  | AF51: =OFFSET(PeriodBarBuilder!$L$32,CalculationsAndCharts!Y51,0,1,1) ->  | AG51: =OFFSET(PeriodBarBuilder!$Z$32,CalculationsAndCharts!Z51,0,1,1) ->  | AH51: =OFFSET(PeriodBarBuilder!$AN$32,CalculationsAndCharts!AA51,0,1,1) ->  | AI51: =OFFSET(PeriodBarBuilder!$BA$32,CalculationsAndCharts!AB51,0,1,1) ->  | AJ51: =OFFSET(PeriodBarBuilder!$BO$32,CalculationsAndCharts!AC51,0,1,1) ->  | AK51: =OFFSET(PeriodBarBuilder!$CB$32,CalculationsAndCharts!AD51,0,1,1) ->  | AL51: =OFFSET(PeriodBarBuilder!$CO$32,CalculationsAndCharts!AE51,0,1,1) ->  | AN51: =OFFSET(PeriodBarBuilder!$M$32,CalculationsAndCharts!Y51,0,1,1) ->  | AO51: =OFFSET(PeriodBarBuilder!$AA$32,CalculationsAndCharts!K51,0,1,1) ->  | AP51: =OFFSET(PeriodBarBuilder!$AO$32,CalculationsAndCharts!AA51,0,1,1) ->  | AQ51: =OFFSET(PeriodBarBuilder!$BB$32,CalculationsAndCharts!AB51,0,1,1) ->  | AR51: =OFFSET(PeriodBarBuilder!$BP$32,CalculationsAndCharts!AC51,0,1,1) ->  | AS51: =OFFSET(PeriodBarBuilder!$CC$32,CalculationsAndCharts!AD51,0,1,1) ->  | AT51: =OFFSET(PeriodBarBuilder!$CP$32,CalculationsAndCharts!AE51,0,1,1) ->  | AV51: 0 | AW51: 10084300
A52: 20 | B52: =IF(A52>$A$8,"",OFFSET(InputPriceData!B$15,$A52+$A$11,0,1,1)) -> 2019-01-15 | C52: =IF(A52>$A$8,"",OFFSET(InputPriceData!G$15,CalculationsAndCharts!$A52+$A$11,IF($C$5,8,0),1,1)) -> 7746100 | D52: =IF(A52>$A$8,"",OFFSET(InputPriceData!C$15,CalculationsAndCharts!$A52+$A$11,IF($C$5,8,0),1,1)) -> 30.6 | E52: =IF(A52>$A$8,"",OFFSET(InputPriceData!D$15,CalculationsAndCharts!$A52+$A$11,IF($C$5,8,0),1,1)) -> 30.76 | F52: =IF(A52>$A$8,"",OFFSET(InputPriceData!E$15,CalculationsAndCharts!$A52+$A$11,IF($C$5,8,0),1,1)) -> 30.16 | G52: =IF(A52>$A$8,"",OFFSET(InputPriceData!F$15,CalculationsAndCharts!$A52+$A$11,IF($C$5,8,0),1,1)) -> 30.35 | H52: 30.889999 | I52: 24.700001 | J52: =IF($R$19=FALSE,NA(),OFFSET(PeriodBarBuilder!$K$32,A52,0,1,1)) -> 0.9127626536 | K52: =MATCH(A52,OFFSET(PeriodBarBuilder!$O$33,0,0,PeriodBarBuilder!$Q$31,1),0) ->  | L52: =IF($R$20=FALSE,NA(),OFFSET(PeriodBarBuilder!$Y$32,K52,0,1,1)) ->  | M52: =MATCH($A52,OFFSET(PeriodBarBuilder!$AC$32,1,0,PeriodBarBuilder!$AE$31,1),0) ->  | N52: =IF($R$21=FALSE,NA(),OFFSET(PeriodBarBuilder!$AM$32,M52,0,1,1)) ->  | O52: =MATCH($A52,OFFSET(PeriodBarBuilder!$AP$32,1,0,PeriodBarBuilder!$AR$31,1),0) -> 4 | P52: =IF($R$22=FALSE,NA(),OFFSET(PeriodBarBuilder!$AZ$32,O52,0,1,1)) -> 0.1876862028 | Q52: =MATCH($A52,OFFSET(PeriodBarBuilder!$BD$32,1,0,PeriodBarBuilder!$BF$31,1),0) ->  | R52: =IF($R$23=FALSE,NA(),OFFSET(PeriodBarBuilder!$BN$32,Q52,0,1,1)) ->  | S52: =MATCH($A52,OFFSET(PeriodBarBuilder!$BQ$32,1,0,PeriodBarBuilder!$BS$31,1),0) ->  | T52: =IF($R$24=FALSE,NA(),OFFSET(PeriodBarBuilder!$CA$32,S52,0,1,1)) ->  | U52: =MATCH($A52,OFFSET(PeriodBarBuilder!$CD$32,1,0,PeriodBarBuilder!$CF$31,1),0) ->  | V52: =IF($R$25=FALSE,NA(),OFFSET(PeriodBarBuilder!$CN$32,U52,0,1,1)) ->  | W52: 0.8 | X52: 0.2 | Y52: =OFFSET(PeriodBarBuilder!$O$32,K52,0,1,1) ->  | AA52: =MATCH($Y52,OFFSET(PeriodBarBuilder!$AC$33,0,0,PeriodBarBuilder!$AE$31,1),1) ->  | AB52: =MATCH($Y52,OFFSET(PeriodBarBuilder!$AP$33,0,0,PeriodBarBuilder!$AR$31,1),1) ->  | AC52: =MATCH($Y52,OFFSET(PeriodBarBuilder!$BD$33,0,0,PeriodBarBuilder!$BF$31,1),1) ->  | AD52: =MATCH($Y52,OFFSET(PeriodBarBuilder!$BQ$33,0,0,PeriodBarBuilder!$BS$31,1),1) ->  | AE52: =MATCH($Y52,OFFSET(PeriodBarBuilder!$CD$33,0,0,PeriodBarBuilder!$CF$31,1),1) ->  | AF52: =OFFSET(PeriodBarBuilder!$L$32,CalculationsAndCharts!Y52,0,1,1) ->  | AG52: =OFFSET(PeriodBarBuilder!$Z$32,CalculationsAndCharts!Z52,0,1,1) ->  | AH52: =OFFSET(PeriodBarBuilder!$AN$32,CalculationsAndCharts!AA52,0,1,1) ->  | AI52: =OFFSET(PeriodBarBuilder!$BA$32,CalculationsAndCharts!AB52,0,1,1) ->  | AJ52: =OFFSET(PeriodBarBuilder!$BO$32,CalculationsAndCharts!AC52,0,1,1) ->  | AK52: =OFFSET(PeriodBarBuilder!$CB$32,CalculationsAndCharts!AD52,0,1,1) ->  | AL52: =OFFSET(PeriodBarBuilder!$CO$32,CalculationsAndCharts!AE52,0,1,1) ->  | AN52: =OFFSET(PeriodBarBuilder!$M$32,CalculationsAndCharts!Y52,0,1,1) ->  | AO52: =OFFSET(PeriodBarBuilder!$AA$32,CalculationsAndCharts!K52,0,1,1) ->  | AP52: =OFFSET(PeriodBarBuilder!$AO$32,CalculationsAndCharts!AA52,0,1,1) ->  | AQ52: =OFFSET(PeriodBarBuilder!$BB$32,CalculationsAndCharts!AB52,0,1,1) ->  | AR52: =OFFSET(PeriodBarBuilder!$BP$32,CalculationsAndCharts!AC52,0,1,1) ->  | AS52: =OFFSET(PeriodBarBuilder!$CC$32,CalculationsAndCharts!AD52,0,1,1) ->  | AT52: =OFFSET(PeriodBarBuilder!$CP$32,CalculationsAndCharts!AE52,0,1,1) ->  | AV52: 0 | AX52: 7746100
A53: 21 | B53: =IF(A53>$A$8,"",OFFSET(InputPriceData!B$15,$A53+$A$11,0,1,1)) -> 2019-01-14 | C53: =IF(A53>$A$8,"",OFFSET(InputPriceData!G$15,CalculationsAndCharts!$A53+$A$11,IF($C$5,8,0),1,1)) -> 8247100 | D53: =IF(A53>$A$8,"",OFFSET(InputPriceData!C$15,CalculationsAndCharts!$A53+$A$11,IF($C$5,8,0),1,1)) -> 30.200001 | E53: =IF(A53>$A$8,"",OFFSET(InputPriceData!D$15,CalculationsAndCharts!$A53+$A$11,IF($C$5,8,0),1,1)) -> 30.639999 | F53: =IF(A53>$A$8,"",OFFSET(InputPriceData!E$15,CalculationsAndCharts!$A53+$A$11,IF($C$5,8,0),1,1)) -> 30.07 | G53: =IF(A53>$A$8,"",OFFSET(InputPriceData!F$15,CalculationsAndCharts!$A53+$A$11,IF($C$5,8,0),1,1)) -> 30.370001 | H53: 30.889999 | I53: 24.700001 | J53: =IF($R$19=FALSE,NA(),OFFSET(PeriodBarBuilder!$K$32,A53,0,1,1)) -> 0.9159938339 | K53: =MATCH(A53,OFFSET(PeriodBarBuilder!$O$33,0,0,PeriodBarBuilder!$Q$31,1),0) ->  | L53: =IF($R$20=FALSE,NA(),OFFSET(PeriodBarBuilder!$Y$32,K53,0,1,1)) ->  | M53: =MATCH($A53,OFFSET(PeriodBarBuilder!$AC$32,1,0,PeriodBarBuilder!$AE$31,1),0) ->  | N53: =IF($R$21=FALSE,NA(),OFFSET(PeriodBarBuilder!$AM$32,M53,0,1,1)) ->  | O53: =MATCH($A53,OFFSET(PeriodBarBuilder!$AP$32,1,0,PeriodBarBuilder!$AR$31,1),0) ->  | P53: =IF($R$22=FALSE,NA(),OFFSET(PeriodBarBuilder!$AZ$32,O53,0,1,1)) ->  | Q53: =MATCH($A53,OFFSET(PeriodBarBuilder!$BD$32,1,0,PeriodBarBuilder!$BF$31,1),0) ->  | R53: =IF($R$23=FALSE,NA(),OFFSET(PeriodBarBuilder!$BN$32,Q53,0,1,1)) ->  | S53: =MATCH($A53,OFFSET(PeriodBarBuilder!$BQ$32,1,0,PeriodBarBuilder!$BS$31,1),0) ->  | T53: =IF($R$24=FALSE,NA(),OFFSET(PeriodBarBuilder!$CA$32,S53,0,1,1)) ->  | U53: =MATCH($A53,OFFSET(PeriodBarBuilder!$CD$32,1,0,PeriodBarBuilder!$CF$31,1),0) ->  | V53: =IF($R$25=FALSE,NA(),OFFSET(PeriodBarBuilder!$CN$32,U53,0,1,1)) ->  | W53: 0.8 | X53: 0.2 | Y53: =OFFSET(PeriodBarBuilder!$O$32,K53,0,1,1) ->  | AA53: =MATCH($Y53,OFFSET(PeriodBarBuilder!$AC$33,0,0,PeriodBarBuilder!$AE$31,1),1) ->  | AB53: =MATCH($Y53,OFFSET(PeriodBarBuilder!$AP$33,0,0,PeriodBarBuilder!$AR$31,1),1) ->  | AC53: =MATCH($Y53,OFFSET(PeriodBarBuilder!$BD$33,0,0,PeriodBarBuilder!$BF$31,1),1) ->  | AD53: =MATCH($Y53,OFFSET(PeriodBarBuilder!$BQ$33,0,0,PeriodBarBuilder!$BS$31,1),1) ->  | AE53: =MATCH($Y53,OFFSET(PeriodBarBuilder!$CD$33,0,0,PeriodBarBuilder!$CF$31,1),1) ->  | AF53: =OFFSET(PeriodBarBuilder!$L$32,CalculationsAndCharts!Y53,0,1,1) ->  | AG53: =OFFSET(PeriodBarBuilder!$Z$32,CalculationsAndCharts!Z53,0,1,1) ->  | AH53: =OFFSET(PeriodBarBuilder!$AN$32,CalculationsAndCharts!AA53,0,1,1) ->  | AI53: =OFFSET(PeriodBarBuilder!$BA$32,CalculationsAndCharts!AB53,0,1,1) ->  | AJ53: =OFFSET(PeriodBarBuilder!$BO$32,CalculationsAndCharts!AC53,0,1,1) ->  | AK53: =OFFSET(PeriodBarBuilder!$CB$32,CalculationsAndCharts!AD53,0,1,1) ->  | AL53: =OFFSET(PeriodBarBuilder!$CO$32,CalculationsAndCharts!AE53,0,1,1) ->  | AN53: =OFFSET(PeriodBarBuilder!$M$32,CalculationsAndCharts!Y53,0,1,1) ->  | AO53: =OFFSET(PeriodBarBuilder!$AA$32,CalculationsAndCharts!K53,0,1,1) ->  | AP53: =OFFSET(PeriodBarBuilder!$AO$32,CalculationsAndCharts!AA53,0,1,1) ->  | AQ53: =OFFSET(PeriodBarBuilder!$BB$32,CalculationsAndCharts!AB53,0,1,1) ->  | AR53: =OFFSET(PeriodBarBuilder!$BP$32,CalculationsAndCharts!AC53,0,1,1) ->  | AS53: =OFFSET(PeriodBarBuilder!$CC$32,CalculationsAndCharts!AD53,0,1,1) ->  | AT53: =OFFSET(PeriodBarBuilder!$CP$32,CalculationsAndCharts!AE53,0,1,1) ->  | AV53: 0 | AW53: 8247100
A54: 22 | B54: =IF(A54>$A$8,"",OFFSET(InputPriceData!B$15,$A54+$A$11,0,1,1)) -> 2019-01-11 | C54: =IF(A54>$A$8,"",OFFSET(InputPriceData!G$15,CalculationsAndCharts!$A54+$A$11,IF($C$5,8,0),1,1)) -> 11392400 | D54: =IF(A54>$A$8,"",OFFSET(InputPriceData!C$15,CalculationsAndCharts!$A54+$A$11,IF($C$5,8,0),1,1)) -> 30.49 | E54: =IF(A54>$A$8,"",OFFSET(InputPriceData!D$15,CalculationsAndCharts!$A54+$A$11,IF($C$5,8,0),1,1)) -> 30.780001 | F54: =IF(A54>$A$8,"",OFFSET(InputPriceData!E$15,CalculationsAndCharts!$A54+$A$11,IF($C$5,8,0),1,1)) -> 30.040001 | G54: =IF(A54>$A$8,"",OFFSET(InputPriceData!F$15,CalculationsAndCharts!$A54+$A$11,IF($C$5,8,0),1,1)) -> 30.700001 | H54: 30.889999 | I54: 24.700001 | J54: =IF($R$19=FALSE,NA(),OFFSET(PeriodBarBuilder!$K$32,A54,0,1,1)) -> 0.9693056444 | K54: =MATCH(A54,OFFSET(PeriodBarBuilder!$O$33,0,0,PeriodBarBuilder!$Q$31,1),0) -> 6 | L54: =IF($R$20=FALSE,NA(),OFFSET(PeriodBarBuilder!$Y$32,K54,0,1,1)) -> 0.3452714239 | M54: =MATCH($A54,OFFSET(PeriodBarBuilder!$AC$32,1,0,PeriodBarBuilder!$AE$31,1),0) ->  | N54: =IF($R$21=FALSE,NA(),OFFSET(PeriodBarBuilder!$AM$32,M54,0,1,1)) ->  | O54: =MATCH($A54,OFFSET(PeriodBarBuilder!$AP$32,1,0,PeriodBarBuilder!$AR$31,1),0) ->  | P54: =IF($R$22=FALSE,NA(),OFFSET(PeriodBarBuilder!$AZ$32,O54,0,1,1)) ->  | Q54: =MATCH($A54,OFFSET(PeriodBarBuilder!$BD$32,1,0,PeriodBarBuilder!$BF$31,1),0) ->  | R54: =IF($R$23=FALSE,NA(),OFFSET(PeriodBarBuilder!$BN$32,Q54,0,1,1)) ->  | S54: =MATCH($A54,OFFSET(PeriodBarBuilder!$BQ$32,1,0,PeriodBarBuilder!$BS$31,1),0) ->  | T54: =IF($R$24=FALSE,NA(),OFFSET(PeriodBarBuilder!$CA$32,S54,0,1,1)) ->  | U54: =MATCH($A54,OFFSET(PeriodBarBuilder!$CD$32,1,0,PeriodBarBuilder!$CF$31,1),0) ->  | V54: =IF($R$25=FALSE,NA(),OFFSET(PeriodBarBuilder!$CN$32,U54,0,1,1)) ->  | W54: 0.8 | X54: 0.2 | Y54: =OFFSET(PeriodBarBuilder!$O$32,K54,0,1,1) -> 22 | Z54: 6 | AA54: =MATCH($Y54,OFFSET(PeriodBarBuilder!$AC$33,0,0,PeriodBarBuilder!$AE$31,1),1) -> 2 | AB54: =MATCH($Y54,OFFSET(PeriodBarBuilder!$AP$33,0,0,PeriodBarBuilder!$AR$31,1),1) -> 4 | AC54: =MATCH($Y54,OFFSET(PeriodBarBuilder!$BD$33,0,0,PeriodBarBuilder!$BF$31,1),1) -> 1 | AD54: =MATCH($Y54,OFFSET(PeriodBarBuilder!$BQ$33,0,0,PeriodBarBuilder!$BS$31,1),1) -> 2 | AE54: =MATCH($Y54,OFFSET(PeriodBarBuilder!$CD$33,0,0,PeriodBarBuilder!$CF$31,1),1) -> 3 | AF54: =OFFSET(PeriodBarBuilder!$L$32,CalculationsAndCharts!Y54,0,1,1) -> 0 | AG54: =OFFSET(PeriodBarBuilder!$Z$32,CalculationsAndCharts!Z54,0,1,1) -> 0 | AH54: =OFFSET(PeriodBarBuilder!$AN$32,CalculationsAndCharts!AA54,0,1,1) -> 0 | AI54: =OFFSET(PeriodBarBuilder!$BA$32,CalculationsAndCharts!AB54,0,1,1) -> 1 | AJ54: =OFFSET(PeriodBarBuilder!$BO$32,CalculationsAndCharts!AC54,0,1,1) -> 1 | AK54: =OFFSET(PeriodBarBuilder!$CB$32,CalculationsAndCharts!AD54,0,1,1) -> 0 | AL54: =OFFSET(PeriodBarBuilder!$CO$32,CalculationsAndCharts!AE54,0,1,1) -> 0 | AM54: 2 | AN54: =OFFSET(PeriodBarBuilder!$M$32,CalculationsAndCharts!Y54,0,1,1) -> 1 | AO54: =OFFSET(PeriodBarBuilder!$AA$32,CalculationsAndCharts!K54,0,1,1) -> 0 | AP54: =OFFSET(PeriodBarBuilder!$AO$32,CalculationsAndCharts!AA54,0,1,1) -> 0 | AQ54: =OFFSET(PeriodBarBuilder!$BB$32,CalculationsAndCharts!AB54,0,1,1) -> 0 | AR54: =OFFSET(PeriodBarBuilder!$BP$32,CalculationsAndCharts!AC54,0,1,1) -> 0 | AS54: =OFFSET(PeriodBarBuilder!$CC$32,CalculationsAndCharts!AD54,0,1,1) -> 0 | AT54: =OFFSET(PeriodBarBuilder!$CP$32,CalculationsAndCharts!AE54,0,1,1) -> 0 | AU54: 1 | AV54: 0 | AW54: 11392400
A55: 23 | B55: =IF(A55>$A$8,"",OFFSET(InputPriceData!B$15,$A55+$A$11,0,1,1)) -> 2019-01-10 | C55: =IF(A55>$A$8,"",OFFSET(InputPriceData!G$15,CalculationsAndCharts!$A55+$A$11,IF($C$5,8,0),1,1)) -> 10433500 | D55: =IF(A55>$A$8,"",OFFSET(InputPriceData!C$15,CalculationsAndCharts!$A55+$A$11,IF($C$5,8,0),1,1)) -> 29.75 | E55: =IF(A55>$A$8,"",OFFSET(InputPriceData!D$15,CalculationsAndCharts!$A55+$A$11,IF($C$5,8,0),1,1)) -> 30.889999 | F55: =IF(A55>$A$8,"",OFFSET(InputPriceData!E$15,CalculationsAndCharts!$A55+$A$11,IF($C$5,8,0),1,1)) -> 29.709999 | G55: =IF(A55>$A$8,"",OFFSET(InputPriceData!F$15,CalculationsAndCharts!$A55+$A$11,IF($C$5,8,0),1,1)) -> 30.870001 | H55: 30.889999 | I55: 24.700001 | J55: =IF($R$19=FALSE,NA(),OFFSET(PeriodBarBuilder!$K$32,A55,0,1,1)) -> 0.9967693043 | K55: =MATCH(A55,OFFSET(PeriodBarBuilder!$O$33,0,0,PeriodBarBuilder!$Q$31,1),0) ->  | L55: =IF($R$20=FALSE,NA(),OFFSET(PeriodBarBuilder!$Y$32,K55,0,1,1)) ->  | M55: =MATCH($A55,OFFSET(PeriodBarBuilder!$AC$32,1,0,PeriodBarBuilder!$AE$31,1),0) ->  | N55: =IF($R$21=FALSE,NA(),OFFSET(PeriodBarBuilder!$AM$32,M55,0,1,1)) ->  | O55: =MATCH($A55,OFFSET(PeriodBarBuilder!$AP$32,1,0,PeriodBarBuilder!$AR$31,1),0) ->  | P55: =IF($R$22=FALSE,NA(),OFFSET(PeriodBarBuilder!$AZ$32,O55,0,1,1)) ->  | Q55: =MATCH($A55,OFFSET(PeriodBarBuilder!$BD$32,1,0,PeriodBarBuilder!$BF$31,1),0) ->  | R55: =IF($R$23=FALSE,NA(),OFFSET(PeriodBarBuilder!$BN$32,Q55,0,1,1)) ->  | S55: =MATCH($A55,OFFSET(PeriodBarBuilder!$BQ$32,1,0,PeriodBarBuilder!$BS$31,1),0) ->  | T55: =IF($R$24=FALSE,NA(),OFFSET(PeriodBarBuilder!$CA$32,S55,0,1,1)) ->  | U55: =MATCH($A55,OFFSET(PeriodBarBuilder!$CD$32,1,0,PeriodBarBuilder!$CF$31,1),0) -> 4 | V55: =IF($R$25=FALSE,NA(),OFFSET(PeriodBarBuilder!$CN$32,U55,0,1,1)) -> 0.1598310917 | W55: 0.8 | X55: 0.2 | Y55: =OFFSET(PeriodBarBuilder!$O$32,K55,0,1,1) ->  | AA55: =MATCH($Y55,OFFSET(PeriodBarBuilder!$AC$33,0,0,PeriodBarBuilder!$AE$31,1),1) ->  | AB55: =MATCH($Y55,OFFSET(PeriodBarBuilder!$AP$33,0,0,PeriodBarBuilder!$AR$31,1),1) ->  | AC55: =MATCH($Y55,OFFSET(PeriodBarBuilder!$BD$33,0,0,PeriodBarBuilder!$BF$31,1),1) ->  | AD55: =MATCH($Y55,OFFSET(PeriodBarBuilder!$BQ$33,0,0,PeriodBarBuilder!$BS$31,1),1) ->  | AE55: =MATCH($Y55,OFFSET(PeriodBarBuilder!$CD$33,0,0,PeriodBarBuilder!$CF$31,1),1) ->  | AF55: =OFFSET(PeriodBarBuilder!$L$32,CalculationsAndCharts!Y55,0,1,1) ->  | AG55: =OFFSET(PeriodBarBuilder!$Z$32,CalculationsAndCharts!Z55,0,1,1) ->  | AH55: =OFFSET(PeriodBarBuilder!$AN$32,CalculationsAndCharts!AA55,0,1,1) ->  | AI55: =OFFSET(PeriodBarBuilder!$BA$32,CalculationsAndCharts!AB55,0,1,1) ->  | AJ55: =OFFSET(PeriodBarBuilder!$BO$32,CalculationsAndCharts!AC55,0,1,1) ->  | AK55: =OFFSET(PeriodBarBuilder!$CB$32,CalculationsAndCharts!AD55,0,1,1) ->  | AL55: =OFFSET(PeriodBarBuilder!$CO$32,CalculationsAndCharts!AE55,0,1,1) ->  | AN55: =OFFSET(PeriodBarBuilder!$M$32,CalculationsAndCharts!Y55,0,1,1) ->  | AO55: =OFFSET(PeriodBarBuilder!$AA$32,CalculationsAndCharts!K55,0,1,1) ->  | AP55: =OFFSET(PeriodBarBuilder!$AO$32,CalculationsAndCharts!AA55,0,1,1) ->  | AQ55: =OFFSET(PeriodBarBuilder!$BB$32,CalculationsAndCharts!AB55,0,1,1) ->  | AR55: =OFFSET(PeriodBarBuilder!$BP$32,CalculationsAndCharts!AC55,0,1,1) ->  | AS55: =OFFSET(PeriodBarBuilder!$CC$32,CalculationsAndCharts!AD55,0,1,1) ->  | AT55: =OFFSET(PeriodBarBuilder!$CP$32,CalculationsAndCharts!AE55,0,1,1) ->  | AV55: 0 | AW55: 10433500
A56: 24 | B56: =IF(A56>$A$8,"",OFFSET(InputPriceData!B$15,$A56+$A$11,0,1,1)) -> 2019-01-09 | C56: =IF(A56>$A$8,"",OFFSET(InputPriceData!G$15,CalculationsAndCharts!$A56+$A$11,IF($C$5,8,0),1,1)) -> 10328500 | D56: =IF(A56>$A$8,"",OFFSET(InputPriceData!C$15,CalculationsAndCharts!$A56+$A$11,IF($C$5,8,0),1,1)) -> 29.639999 | E56: =IF(A56>$A$8,"",OFFSET(InputPriceData!D$15,CalculationsAndCharts!$A56+$A$11,IF($C$5,8,0),1,1)) -> 30.129999 | F56: =IF(A56>$A$8,"",OFFSET(InputPriceData!E$15,CalculationsAndCharts!$A56+$A$11,IF($C$5,8,0),1,1)) -> 29.290001 | G56: =IF(A56>$A$8,"",OFFSET(InputPriceData!F$15,CalculationsAndCharts!$A56+$A$11,IF($C$5,8,0),1,1)) -> 30 | H56: 30.190001 | I56: 24.700001 | J56: =IF($R$19=FALSE,NA(),OFFSET(PeriodBarBuilder!$K$32,A56,0,1,1)) -> 0.965391439 | K56: =MATCH(A56,OFFSET(PeriodBarBuilder!$O$33,0,0,PeriodBarBuilder!$Q$31,1),0) ->  | L56: =IF($R$20=FALSE,NA(),OFFSET(PeriodBarBuilder!$Y$32,K56,0,1,1)) ->  | M56: =MATCH($A56,OFFSET(PeriodBarBuilder!$AC$32,1,0,PeriodBarBuilder!$AE$31,1),0) ->  | N56: =IF($R$21=FALSE,NA(),OFFSET(PeriodBarBuilder!$AM$32,M56,0,1,1)) ->  | O56: =MATCH($A56,OFFSET(PeriodBarBuilder!$AP$32,1,0,PeriodBarBuilder!$AR$31,1),0) ->  | P56: =IF($R$22=FALSE,NA(),OFFSET(PeriodBarBuilder!$AZ$32,O56,0,1,1)) ->  | Q56: =MATCH($A56,OFFSET(PeriodBarBuilder!$BD$32,1,0,PeriodBarBuilder!$BF$31,1),0) ->  | R56: =IF($R$23=FALSE,NA(),OFFSET(PeriodBarBuilder!$BN$32,Q56,0,1,1)) ->  | S56: =MATCH($A56,OFFSET(PeriodBarBuilder!$BQ$32,1,0,PeriodBarBuilder!$BS$31,1),0) ->  | T56: =IF($R$24=FALSE,NA(),OFFSET(PeriodBarBuilder!$CA$32,S56,0,1,1)) ->  | U56: =MATCH($A56,OFFSET(PeriodBarBuilder!$CD$32,1,0,PeriodBarBuilder!$CF$31,1),0) ->  | V56: =IF($R$25=FALSE,NA(),OFFSET(PeriodBarBuilder!$CN$32,U56,0,1,1)) ->  | W56: 0.8 | X56: 0.2 | Y56: =OFFSET(PeriodBarBuilder!$O$32,K56,0,1,1) ->  | AA56: =MATCH($Y56,OFFSET(PeriodBarBuilder!$AC$33,0,0,PeriodBarBuilder!$AE$31,1),1) ->  | AB56: =MATCH($Y56,OFFSET(PeriodBarBuilder!$AP$33,0,0,PeriodBarBuilder!$AR$31,1),1) ->  | AC56: =MATCH($Y56,OFFSET(PeriodBarBuilder!$BD$33,0,0,PeriodBarBuilder!$BF$31,1),1) ->  | AD56: =MATCH($Y56,OFFSET(PeriodBarBuilder!$BQ$33,0,0,PeriodBarBuilder!$BS$31,1),1) ->  | AE56: =MATCH($Y56,OFFSET(PeriodBarBuilder!$CD$33,0,0,PeriodBarBuilder!$CF$31,1),1) ->  | AF56: =OFFSET(PeriodBarBuilder!$L$32,CalculationsAndCharts!Y56,0,1,1) ->  | AG56: =OFFSET(PeriodBarBuilder!$Z$32,CalculationsAndCharts!Z56,0,1,1) ->  | AH56: =OFFSET(PeriodBarBuilder!$AN$32,CalculationsAndCharts!AA56,0,1,1) ->  | AI56: =OFFSET(PeriodBarBuilder!$BA$32,CalculationsAndCharts!AB56,0,1,1) ->  | AJ56: =OFFSET(PeriodBarBuilder!$BO$32,CalculationsAndCharts!AC56,0,1,1) ->  | AK56: =OFFSET(PeriodBarBuilder!$CB$32,CalculationsAndCharts!AD56,0,1,1) ->  | AL56: =OFFSET(PeriodBarBuilder!$CO$32,CalculationsAndCharts!AE56,0,1,1) ->  | AN56: =OFFSET(PeriodBarBuilder!$M$32,CalculationsAndCharts!Y56,0,1,1) ->  | AO56: =OFFSET(PeriodBarBuilder!$AA$32,CalculationsAndCharts!K56,0,1,1) ->  | AP56: =OFFSET(PeriodBarBuilder!$AO$32,CalculationsAndCharts!AA56,0,1,1) ->  | AQ56: =OFFSET(PeriodBarBuilder!$BB$32,CalculationsAndCharts!AB56,0,1,1) ->  | AR56: =OFFSET(PeriodBarBuilder!$BP$32,CalculationsAndCharts!AC56,0,1,1) ->  | AS56: =OFFSET(PeriodBarBuilder!$CC$32,CalculationsAndCharts!AD56,0,1,1) ->  | AT56: =OFFSET(PeriodBarBuilder!$CP$32,CalculationsAndCharts!AE56,0,1,1) ->  | AV56: 0 | AW56: 10328500
A57: 25 | B57: =IF(A57>$A$8,"",OFFSET(InputPriceData!B$15,$A57+$A$11,0,1,1)) -> 2019-01-08 | C57: =IF(A57>$A$8,"",OFFSET(InputPriceData!G$15,CalculationsAndCharts!$A57+$A$11,IF($C$5,8,0),1,1)) -> 8621700 | D57: =IF(A57>$A$8,"",OFFSET(InputPriceData!C$15,CalculationsAndCharts!$A57+$A$11,IF($C$5,8,0),1,1)) -> 29.24 | E57: =IF(A57>$A$8,"",OFFSET(InputPriceData!D$15,CalculationsAndCharts!$A57+$A$11,IF($C$5,8,0),1,1)) -> 29.58 | F57: =IF(A57>$A$8,"",OFFSET(InputPriceData!E$15,CalculationsAndCharts!$A57+$A$11,IF($C$5,8,0),1,1)) -> 28.860001 | G57: =IF(A57>$A$8,"",OFFSET(InputPriceData!F$15,CalculationsAndCharts!$A57+$A$11,IF($C$5,8,0),1,1)) -> 29.200001 | H57: 31.07 | I57: 24.700001 | J57: =IF($R$19=FALSE,NA(),OFFSET(PeriodBarBuilder!$K$32,A57,0,1,1)) -> 0.7064365316 | K57: =MATCH(A57,OFFSET(PeriodBarBuilder!$O$33,0,0,PeriodBarBuilder!$Q$31,1),0) ->  | L57: =IF($R$20=FALSE,NA(),OFFSET(PeriodBarBuilder!$Y$32,K57,0,1,1)) ->  | M57: =MATCH($A57,OFFSET(PeriodBarBuilder!$AC$32,1,0,PeriodBarBuilder!$AE$31,1),0) ->  | N57: =IF($R$21=FALSE,NA(),OFFSET(PeriodBarBuilder!$AM$32,M57,0,1,1)) ->  | O57: =MATCH($A57,OFFSET(PeriodBarBuilder!$AP$32,1,0,PeriodBarBuilder!$AR$31,1),0) ->  | P57: =IF($R$22=FALSE,NA(),OFFSET(PeriodBarBuilder!$AZ$32,O57,0,1,1)) ->  | Q57: =MATCH($A57,OFFSET(PeriodBarBuilder!$BD$32,1,0,PeriodBarBuilder!$BF$31,1),0) ->  | R57: =IF($R$23=FALSE,NA(),OFFSET(PeriodBarBuilder!$BN$32,Q57,0,1,1)) ->  | S57: =MATCH($A57,OFFSET(PeriodBarBuilder!$BQ$32,1,0,PeriodBarBuilder!$BS$31,1),0) ->  | T57: =IF($R$24=FALSE,NA(),OFFSET(PeriodBarBuilder!$CA$32,S57,0,1,1)) ->  | U57: =MATCH($A57,OFFSET(PeriodBarBuilder!$CD$32,1,0,PeriodBarBuilder!$CF$31,1),0) ->  | V57: =IF($R$25=FALSE,NA(),OFFSET(PeriodBarBuilder!$CN$32,U57,0,1,1)) ->  | W57: 0.8 | X57: 0.2 | Y57: =OFFSET(PeriodBarBuilder!$O$32,K57,0,1,1) ->  | AA57: =MATCH($Y57,OFFSET(PeriodBarBuilder!$AC$33,0,0,PeriodBarBuilder!$AE$31,1),1) ->  | AB57: =MATCH($Y57,OFFSET(PeriodBarBuilder!$AP$33,0,0,PeriodBarBuilder!$AR$31,1),1) ->  | AC57: =MATCH($Y57,OFFSET(PeriodBarBuilder!$BD$33,0,0,PeriodBarBuilder!$BF$31,1),1) ->  | AD57: =MATCH($Y57,OFFSET(PeriodBarBuilder!$BQ$33,0,0,PeriodBarBuilder!$BS$31,1),1) ->  | AE57: =MATCH($Y57,OFFSET(PeriodBarBuilder!$CD$33,0,0,PeriodBarBuilder!$CF$31,1),1) ->  | AF57: =OFFSET(PeriodBarBuilder!$L$32,CalculationsAndCharts!Y57,0,1,1) ->  | AG57: =OFFSET(PeriodBarBuilder!$Z$32,CalculationsAndCharts!Z57,0,1,1) ->  | AH57: =OFFSET(PeriodBarBuilder!$AN$32,CalculationsAndCharts!AA57,0,1,1) ->  | AI57: =OFFSET(PeriodBarBuilder!$BA$32,CalculationsAndCharts!AB57,0,1,1) ->  | AJ57: =OFFSET(PeriodBarBuilder!$BO$32,CalculationsAndCharts!AC57,0,1,1) ->  | AK57: =OFFSET(PeriodBarBuilder!$CB$32,CalculationsAndCharts!AD57,0,1,1) ->  | AL57: =OFFSET(PeriodBarBuilder!$CO$32,CalculationsAndCharts!AE57,0,1,1) ->  | AN57: =OFFSET(PeriodBarBuilder!$M$32,CalculationsAndCharts!Y57,0,1,1) ->  | AO57: =OFFSET(PeriodBarBuilder!$AA$32,CalculationsAndCharts!K57,0,1,1) ->  | AP57: =OFFSET(PeriodBarBuilder!$AO$32,CalculationsAndCharts!AA57,0,1,1) ->  | AQ57: =OFFSET(PeriodBarBuilder!$BB$32,CalculationsAndCharts!AB57,0,1,1) ->  | AR57: =OFFSET(PeriodBarBuilder!$BP$32,CalculationsAndCharts!AC57,0,1,1) ->  | AS57: =OFFSET(PeriodBarBuilder!$CC$32,CalculationsAndCharts!AD57,0,1,1) ->  | AT57: =OFFSET(PeriodBarBuilder!$CP$32,CalculationsAndCharts!AE57,0,1,1) ->  | AV57: 0 | AX57: 8621700
A58: 26 | B58: =IF(A58>$A$8,"",OFFSET(InputPriceData!B$15,$A58+$A$11,0,1,1)) -> 2019-01-07 | C58: =IF(A58>$A$8,"",OFFSET(InputPriceData!G$15,CalculationsAndCharts!$A58+$A$11,IF($C$5,8,0),1,1)) -> 10997300 | D58: =IF(A58>$A$8,"",OFFSET(InputPriceData!C$15,CalculationsAndCharts!$A58+$A$11,IF($C$5,8,0),1,1)) -> 28.629999 | E58: =IF(A58>$A$8,"",OFFSET(InputPriceData!D$15,CalculationsAndCharts!$A58+$A$11,IF($C$5,8,0),1,1)) -> 29.120001 | F58: =IF(A58>$A$8,"",OFFSET(InputPriceData!E$15,CalculationsAndCharts!$A58+$A$11,IF($C$5,8,0),1,1)) -> 28.110001 | G58: =IF(A58>$A$8,"",OFFSET(InputPriceData!F$15,CalculationsAndCharts!$A58+$A$11,IF($C$5,8,0),1,1)) -> 28.82 | H58: 31.07 | I58: 24.700001 | J58: =IF($R$19=FALSE,NA(),OFFSET(PeriodBarBuilder!$K$32,A58,0,1,1)) -> 0.6467817342 | K58: =MATCH(A58,OFFSET(PeriodBarBuilder!$O$33,0,0,PeriodBarBuilder!$Q$31,1),0) ->  | L58: =IF($R$20=FALSE,NA(),OFFSET(PeriodBarBuilder!$Y$32,K58,0,1,1)) ->  | M58: =MATCH($A58,OFFSET(PeriodBarBuilder!$AC$32,1,0,PeriodBarBuilder!$AE$31,1),0) ->  | N58: =IF($R$21=FALSE,NA(),OFFSET(PeriodBarBuilder!$AM$32,M58,0,1,1)) ->  | O58: =MATCH($A58,OFFSET(PeriodBarBuilder!$AP$32,1,0,PeriodBarBuilder!$AR$31,1),0) ->  | P58: =IF($R$22=FALSE,NA(),OFFSET(PeriodBarBuilder!$AZ$32,O58,0,1,1)) ->  | Q58: =MATCH($A58,OFFSET(PeriodBarBuilder!$BD$32,1,0,PeriodBarBuilder!$BF$31,1),0) ->  | R58: =IF($R$23=FALSE,NA(),OFFSET(PeriodBarBuilder!$BN$32,Q58,0,1,1)) ->  | S58: =MATCH($A58,OFFSET(PeriodBarBuilder!$BQ$32,1,0,PeriodBarBuilder!$BS$31,1),0) ->  | T58: =IF($R$24=FALSE,NA(),OFFSET(PeriodBarBuilder!$CA$32,S58,0,1,1)) ->  | U58: =MATCH($A58,OFFSET(PeriodBarBuilder!$CD$32,1,0,PeriodBarBuilder!$CF$31,1),0) ->  | V58: =IF($R$25=FALSE,NA(),OFFSET(PeriodBarBuilder!$CN$32,U58,0,1,1)) ->  | W58: 0.8 | X58: 0.2 | Y58: =OFFSET(PeriodBarBuilder!$O$32,K58,0,1,1) ->  | AA58: =MATCH($Y58,OFFSET(PeriodBarBuilder!$AC$33,0,0,PeriodBarBuilder!$AE$31,1),1) ->  | AB58: =MATCH($Y58,OFFSET(PeriodBarBuilder!$AP$33,0,0,PeriodBarBuilder!$AR$31,1),1) ->  | AC58: =MATCH($Y58,OFFSET(PeriodBarBuilder!$BD$33,0,0,PeriodBarBuilder!$BF$31,1),1) ->  | AD58: =MATCH($Y58,OFFSET(PeriodBarBuilder!$BQ$33,0,0,PeriodBarBuilder!$BS$31,1),1) ->  | AE58: =MATCH($Y58,OFFSET(PeriodBarBuilder!$CD$33,0,0,PeriodBarBuilder!$CF$31,1),1) ->  | AF58: =OFFSET(PeriodBarBuilder!$L$32,CalculationsAndCharts!Y58,0,1,1) ->  | AG58: =OFFSET(PeriodBarBuilder!$Z$32,CalculationsAndCharts!Z58,0,1,1) ->  | AH58: =OFFSET(PeriodBarBuilder!$AN$32,CalculationsAndCharts!AA58,0,1,1) ->  | AI58: =OFFSET(PeriodBarBuilder!$BA$32,CalculationsAndCharts!AB58,0,1,1) ->  | AJ58: =OFFSET(PeriodBarBuilder!$BO$32,CalculationsAndCharts!AC58,0,1,1) ->  | AK58: =OFFSET(PeriodBarBuilder!$CB$32,CalculationsAndCharts!AD58,0,1,1) ->  | AL58: =OFFSET(PeriodBarBuilder!$CO$32,CalculationsAndCharts!AE58,0,1,1) ->  | AN58: =OFFSET(PeriodBarBuilder!$M$32,CalculationsAndCharts!Y58,0,1,1) ->  | AO58: =OFFSET(PeriodBarBuilder!$AA$32,CalculationsAndCharts!K58,0,1,1) ->  | AP58: =OFFSET(PeriodBarBuilder!$AO$32,CalculationsAndCharts!AA58,0,1,1) ->  | AQ58: =OFFSET(PeriodBarBuilder!$BB$32,CalculationsAndCharts!AB58,0,1,1) ->  | AR58: =OFFSET(PeriodBarBuilder!$BP$32,CalculationsAndCharts!AC58,0,1,1) ->  | AS58: =OFFSET(PeriodBarBuilder!$CC$32,CalculationsAndCharts!AD58,0,1,1) ->  | AT58: =OFFSET(PeriodBarBuilder!$CP$32,CalculationsAndCharts!AE58,0,1,1) ->  | AV58: 0 | AW58: 10997300
A59: 27 | B59: =IF(A59>$A$8,"",OFFSET(InputPriceData!B$15,$A59+$A$11,0,1,1)) -> 2019-01-04 | C59: =IF(A59>$A$8,"",OFFSET(InputPriceData!G$15,CalculationsAndCharts!$A59+$A$11,IF($C$5,8,0),1,1)) -> 15701000 | D59: =IF(A59>$A$8,"",OFFSET(InputPriceData!C$15,CalculationsAndCharts!$A59+$A$11,IF($C$5,8,0),1,1)) -> 27.690001 | E59: =IF(A59>$A$8,"",OFFSET(InputPriceData!D$15,CalculationsAndCharts!$A59+$A$11,IF($C$5,8,0),1,1)) -> 28.530001 | F59: =IF(A59>$A$8,"",OFFSET(InputPriceData!E$15,CalculationsAndCharts!$A59+$A$11,IF($C$5,8,0),1,1)) -> 27.450001 | G59: =IF(A59>$A$8,"",OFFSET(InputPriceData!F$15,CalculationsAndCharts!$A59+$A$11,IF($C$5,8,0),1,1)) -> 28.42 | H59: 32.82 | I59: 24.700001 | J59: =IF($R$19=FALSE,NA(),OFFSET(PeriodBarBuilder!$K$32,A59,0,1,1)) -> 0.4581280121 | K59: =MATCH(A59,OFFSET(PeriodBarBuilder!$O$33,0,0,PeriodBarBuilder!$Q$31,1),0) -> 7 | L59: =IF($R$20=FALSE,NA(),OFFSET(PeriodBarBuilder!$Y$32,K59,0,1,1)) -> 0.1359819886 | M59: =MATCH($A59,OFFSET(PeriodBarBuilder!$AC$32,1,0,PeriodBarBuilder!$AE$31,1),0) ->  | N59: =IF($R$21=FALSE,NA(),OFFSET(PeriodBarBuilder!$AM$32,M59,0,1,1)) ->  | O59: =MATCH($A59,OFFSET(PeriodBarBuilder!$AP$32,1,0,PeriodBarBuilder!$AR$31,1),0) ->  | P59: =IF($R$22=FALSE,NA(),OFFSET(PeriodBarBuilder!$AZ$32,O59,0,1,1)) ->  | Q59: =MATCH($A59,OFFSET(PeriodBarBuilder!$BD$32,1,0,PeriodBarBuilder!$BF$31,1),0) ->  | R59: =IF($R$23=FALSE,NA(),OFFSET(PeriodBarBuilder!$BN$32,Q59,0,1,1)) ->  | S59: =MATCH($A59,OFFSET(PeriodBarBuilder!$BQ$32,1,0,PeriodBarBuilder!$BS$31,1),0) ->  | T59: =IF($R$24=FALSE,NA(),OFFSET(PeriodBarBuilder!$CA$32,S59,0,1,1)) ->  | U59: =MATCH($A59,OFFSET(PeriodBarBuilder!$CD$32,1,0,PeriodBarBuilder!$CF$31,1),0) ->  | V59: =IF($R$25=FALSE,NA(),OFFSET(PeriodBarBuilder!$CN$32,U59,0,1,1)) ->  | W59: 0.8 | X59: 0.2 | Y59: =OFFSET(PeriodBarBuilder!$O$32,K59,0,1,1) -> 27 | Z59: 7 | AA59: =MATCH($Y59,OFFSET(PeriodBarBuilder!$AC$33,0,0,PeriodBarBuilder!$AE$31,1),1) -> 2 | AB59: =MATCH($Y59,OFFSET(PeriodBarBuilder!$AP$33,0,0,PeriodBarBuilder!$AR$31,1),1) -> 4 | AC59: =MATCH($Y59,OFFSET(PeriodBarBuilder!$BD$33,0,0,PeriodBarBuilder!$BF$31,1),1) -> 1 | AD59: =MATCH($Y59,OFFSET(PeriodBarBuilder!$BQ$33,0,0,PeriodBarBuilder!$BS$31,1),1) -> 2 | AE59: =MATCH($Y59,OFFSET(PeriodBarBuilder!$CD$33,0,0,PeriodBarBuilder!$CF$31,1),1) -> 4 | AF59: =OFFSET(PeriodBarBuilder!$L$32,CalculationsAndCharts!Y59,0,1,1) -> 0 | AG59: =OFFSET(PeriodBarBuilder!$Z$32,CalculationsAndCharts!Z59,0,1,1) -> 1 | AH59: =OFFSET(PeriodBarBuilder!$AN$32,CalculationsAndCharts!AA59,0,1,1) -> 0 | AI59: =OFFSET(PeriodBarBuilder!$BA$32,CalculationsAndCharts!AB59,0,1,1) -> 1 | AJ59: =OFFSET(PeriodBarBuilder!$BO$32,CalculationsAndCharts!AC59,0,1,1) -> 1 | AK59: =OFFSET(PeriodBarBuilder!$CB$32,CalculationsAndCharts!AD59,0,1,1) -> 0 | AL59: =OFFSET(PeriodBarBuilder!$CO$32,CalculationsAndCharts!AE59,0,1,1) -> 1 | AM59: 4 | AN59: =OFFSET(PeriodBarBuilder!$M$32,CalculationsAndCharts!Y59,0,1,1) -> 0 | AO59: =OFFSET(PeriodBarBuilder!$AA$32,CalculationsAndCharts!K59,0,1,1) -> 0 | AP59: =OFFSET(PeriodBarBuilder!$AO$32,CalculationsAndCharts!AA59,0,1,1) -> 0 | AQ59: =OFFSET(PeriodBarBuilder!$BB$32,CalculationsAndCharts!AB59,0,1,1) -> 0 | AR59: =OFFSET(PeriodBarBuilder!$BP$32,CalculationsAndCharts!AC59,0,1,1) -> 0 | AS59: =OFFSET(PeriodBarBuilder!$CC$32,CalculationsAndCharts!AD59,0,1,1) -> 0 | AT59: =OFFSET(PeriodBarBuilder!$CP$32,CalculationsAndCharts!AE59,0,1,1) -> 0 | AU59: 0 | AV59: 0 | AW59: 15701000
A60: 28 | B60: =IF(A60>$A$8,"",OFFSET(InputPriceData!B$15,$A60+$A$11,0,1,1)) -> 2019-01-03 | C60: =IF(A60>$A$8,"",OFFSET(InputPriceData!G$15,CalculationsAndCharts!$A60+$A$11,IF($C$5,8,0),1,1)) -> 11693600 | D60: =IF(A60>$A$8,"",OFFSET(InputPriceData!C$15,CalculationsAndCharts!$A60+$A$11,IF($C$5,8,0),1,1)) -> 27.360001 | E60: =IF(A60>$A$8,"",OFFSET(InputPriceData!D$15,CalculationsAndCharts!$A60+$A$11,IF($C$5,8,0),1,1)) -> 27.639999 | F60: =IF(A60>$A$8,"",OFFSET(InputPriceData!E$15,CalculationsAndCharts!$A60+$A$11,IF($C$5,8,0),1,1)) -> 26.42 | G60: =IF(A60>$A$8,"",OFFSET(InputPriceData!F$15,CalculationsAndCharts!$A60+$A$11,IF($C$5,8,0),1,1)) -> 27.129999 | H60: 33.110001 | I60: 24.700001 | J60: =IF($R$19=FALSE,NA(),OFFSET(PeriodBarBuilder!$K$32,A60,0,1,1)) -> 0.2889414982 | K60: =MATCH(A60,OFFSET(PeriodBarBuilder!$O$33,0,0,PeriodBarBuilder!$Q$31,1),0) ->  | L60: =IF($R$20=FALSE,NA(),OFFSET(PeriodBarBuilder!$Y$32,K60,0,1,1)) ->  | M60: =MATCH($A60,OFFSET(PeriodBarBuilder!$AC$32,1,0,PeriodBarBuilder!$AE$31,1),0) ->  | N60: =IF($R$21=FALSE,NA(),OFFSET(PeriodBarBuilder!$AM$32,M60,0,1,1)) ->  | O60: =MATCH($A60,OFFSET(PeriodBarBuilder!$AP$32,1,0,PeriodBarBuilder!$AR$31,1),0) ->  | P60: =IF($R$22=FALSE,NA(),OFFSET(PeriodBarBuilder!$AZ$32,O60,0,1,1)) ->  | Q60: =MATCH($A60,OFFSET(PeriodBarBuilder!$BD$32,1,0,PeriodBarBuilder!$BF$31,1),0) ->  | R60: =IF($R$23=FALSE,NA(),OFFSET(PeriodBarBuilder!$BN$32,Q60,0,1,1)) ->  | S60: =MATCH($A60,OFFSET(PeriodBarBuilder!$BQ$32,1,0,PeriodBarBuilder!$BS$31,1),0) ->  | T60: =IF($R$24=FALSE,NA(),OFFSET(PeriodBarBuilder!$CA$32,S60,0,1,1)) ->  | U60: =MATCH($A60,OFFSET(PeriodBarBuilder!$CD$32,1,0,PeriodBarBuilder!$CF$31,1),0) ->  | V60: =IF($R$25=FALSE,NA(),OFFSET(PeriodBarBuilder!$CN$32,U60,0,1,1)) ->  | W60: 0.8 | X60: 0.2 | Y60: =OFFSET(PeriodBarBuilder!$O$32,K60,0,1,1) ->  | AA60: =MATCH($Y60,OFFSET(PeriodBarBuilder!$AC$33,0,0,PeriodBarBuilder!$AE$31,1),1) ->  | AB60: =MATCH($Y60,OFFSET(PeriodBarBuilder!$AP$33,0,0,PeriodBarBuilder!$AR$31,1),1) ->  | AC60: =MATCH($Y60,OFFSET(PeriodBarBuilder!$BD$33,0,0,PeriodBarBuilder!$BF$31,1),1) ->  | AD60: =MATCH($Y60,OFFSET(PeriodBarBuilder!$BQ$33,0,0,PeriodBarBuilder!$BS$31,1),1) ->  | AE60: =MATCH($Y60,OFFSET(PeriodBarBuilder!$CD$33,0,0,PeriodBarBuilder!$CF$31,1),1) ->  | AF60: =OFFSET(PeriodBarBuilder!$L$32,CalculationsAndCharts!Y60,0,1,1) ->  | AG60: =OFFSET(PeriodBarBuilder!$Z$32,CalculationsAndCharts!Z60,0,1,1) ->  | AH60: =OFFSET(PeriodBarBuilder!$AN$32,CalculationsAndCharts!AA60,0,1,1) ->  | AI60: =OFFSET(PeriodBarBuilder!$BA$32,CalculationsAndCharts!AB60,0,1,1) ->  | AJ60: =OFFSET(PeriodBarBuilder!$BO$32,CalculationsAndCharts!AC60,0,1,1) ->  | AK60: =OFFSET(PeriodBarBuilder!$CB$32,CalculationsAndCharts!AD60,0,1,1) ->  | AL60: =OFFSET(PeriodBarBuilder!$CO$32,CalculationsAndCharts!AE60,0,1,1) ->  | AN60: =OFFSET(PeriodBarBuilder!$M$32,CalculationsAndCharts!Y60,0,1,1) ->  | AO60: =OFFSET(PeriodBarBuilder!$AA$32,CalculationsAndCharts!K60,0,1,1) ->  | AP60: =OFFSET(PeriodBarBuilder!$AO$32,CalculationsAndCharts!AA60,0,1,1) ->  | AQ60: =OFFSET(PeriodBarBuilder!$BB$32,CalculationsAndCharts!AB60,0,1,1) ->  | AR60: =OFFSET(PeriodBarBuilder!$BP$32,CalculationsAndCharts!AC60,0,1,1) ->  | AS60: =OFFSET(PeriodBarBuilder!$CC$32,CalculationsAndCharts!AD60,0,1,1) ->  | AT60: =OFFSET(PeriodBarBuilder!$CP$32,CalculationsAndCharts!AE60,0,1,1) ->  | AV60: 0 | AX60: 11693600
A61: 29 | B61: =IF(A61>$A$8,"",OFFSET(InputPriceData!B$15,$A61+$A$11,0,1,1)) -> 2019-01-02 | C61: =IF(A61>$A$8,"",OFFSET(InputPriceData!G$15,CalculationsAndCharts!$A61+$A$11,IF($C$5,8,0),1,1)) -> 7805400 | D61: =IF(A61>$A$8,"",OFFSET(InputPriceData!C$15,CalculationsAndCharts!$A61+$A$11,IF($C$5,8,0),1,1)) -> 26.110001 | E61: =IF(A61>$A$8,"",OFFSET(InputPriceData!D$15,CalculationsAndCharts!$A61+$A$11,IF($C$5,8,0),1,1)) -> 27.639999 | F61: =IF(A61>$A$8,"",OFFSET(InputPriceData!E$15,CalculationsAndCharts!$A61+$A$11,IF($C$5,8,0),1,1)) -> 26.01 | G61: =IF(A61>$A$8,"",OFFSET(InputPriceData!F$15,CalculationsAndCharts!$A61+$A$11,IF($C$5,8,0),1,1)) -> 27.299999 | H61: 33.110001 | I61: 24.700001 | J61: =IF($R$19=FALSE,NA(),OFFSET(PeriodBarBuilder!$K$32,A61,0,1,1)) -> 0.3091555291 | K61: =MATCH(A61,OFFSET(PeriodBarBuilder!$O$33,0,0,PeriodBarBuilder!$Q$31,1),0) ->  | L61: =IF($R$20=FALSE,NA(),OFFSET(PeriodBarBuilder!$Y$32,K61,0,1,1)) ->  | M61: =MATCH($A61,OFFSET(PeriodBarBuilder!$AC$32,1,0,PeriodBarBuilder!$AE$31,1),0) ->  | N61: =IF($R$21=FALSE,NA(),OFFSET(PeriodBarBuilder!$AM$32,M61,0,1,1)) ->  | O61: =MATCH($A61,OFFSET(PeriodBarBuilder!$AP$32,1,0,PeriodBarBuilder!$AR$31,1),0) ->  | P61: =IF($R$22=FALSE,NA(),OFFSET(PeriodBarBuilder!$AZ$32,O61,0,1,1)) ->  | Q61: =MATCH($A61,OFFSET(PeriodBarBuilder!$BD$32,1,0,PeriodBarBuilder!$BF$31,1),0) ->  | R61: =IF($R$23=FALSE,NA(),OFFSET(PeriodBarBuilder!$BN$32,Q61,0,1,1)) ->  | S61: =MATCH($A61,OFFSET(PeriodBarBuilder!$BQ$32,1,0,PeriodBarBuilder!$BS$31,1),0) ->  | T61: =IF($R$24=FALSE,NA(),OFFSET(PeriodBarBuilder!$CA$32,S61,0,1,1)) ->  | U61: =MATCH($A61,OFFSET(PeriodBarBuilder!$CD$32,1,0,PeriodBarBuilder!$CF$31,1),0) ->  | V61: =IF($R$25=FALSE,NA(),OFFSET(PeriodBarBuilder!$CN$32,U61,0,1,1)) ->  | W61: 0.8 | X61: 0.2 | Y61: =OFFSET(PeriodBarBuilder!$O$32,K61,0,1,1) ->  | AA61: =MATCH($Y61,OFFSET(PeriodBarBuilder!$AC$33,0,0,PeriodBarBuilder!$AE$31,1),1) ->  | AB61: =MATCH($Y61,OFFSET(PeriodBarBuilder!$AP$33,0,0,PeriodBarBuilder!$AR$31,1),1) ->  | AC61: =MATCH($Y61,OFFSET(PeriodBarBuilder!$BD$33,0,0,PeriodBarBuilder!$BF$31,1),1) ->  | AD61: =MATCH($Y61,OFFSET(PeriodBarBuilder!$BQ$33,0,0,PeriodBarBuilder!$BS$31,1),1) ->  | AE61: =MATCH($Y61,OFFSET(PeriodBarBuilder!$CD$33,0,0,PeriodBarBuilder!$CF$31,1),1) ->  | AF61: =OFFSET(PeriodBarBuilder!$L$32,CalculationsAndCharts!Y61,0,1,1) ->  | AG61: =OFFSET(PeriodBarBuilder!$Z$32,CalculationsAndCharts!Z61,0,1,1) ->  | AH61: =OFFSET(PeriodBarBuilder!$AN$32,CalculationsAndCharts!AA61,0,1,1) ->  | AI61: =OFFSET(PeriodBarBuilder!$BA$32,CalculationsAndCharts!AB61,0,1,1) ->  | AJ61: =OFFSET(PeriodBarBuilder!$BO$32,CalculationsAndCharts!AC61,0,1,1) ->  | AK61: =OFFSET(PeriodBarBuilder!$CB$32,CalculationsAndCharts!AD61,0,1,1) ->  | AL61: =OFFSET(PeriodBarBuilder!$CO$32,CalculationsAndCharts!AE61,0,1,1) ->  | AN61: =OFFSET(PeriodBarBuilder!$M$32,CalculationsAndCharts!Y61,0,1,1) ->  | AO61: =OFFSET(PeriodBarBuilder!$AA$32,CalculationsAndCharts!K61,0,1,1) ->  | AP61: =OFFSET(PeriodBarBuilder!$AO$32,CalculationsAndCharts!AA61,0,1,1) ->  | AQ61: =OFFSET(PeriodBarBuilder!$BB$32,CalculationsAndCharts!AB61,0,1,1) ->  | AR61: =OFFSET(PeriodBarBuilder!$BP$32,CalculationsAndCharts!AC61,0,1,1) ->  | AS61: =OFFSET(PeriodBarBuilder!$CC$32,CalculationsAndCharts!AD61,0,1,1) ->  | AT61: =OFFSET(PeriodBarBuilder!$CP$32,CalculationsAndCharts!AE61,0,1,1) ->  | AV61: 0 | AW61: 7805400
A62: 30 | B62: =IF(A62>$A$8,"",OFFSET(InputPriceData!B$15,$A62+$A$11,0,1,1)) -> 2018-12-31 | C62: =IF(A62>$A$8,"",OFFSET(InputPriceData!G$15,CalculationsAndCharts!$A62+$A$11,IF($C$5,8,0),1,1)) -> 9885800 | D62: =IF(A62>$A$8,"",OFFSET(InputPriceData!C$15,CalculationsAndCharts!$A62+$A$11,IF($C$5,8,0),1,1)) -> 26.540001 | E62: =IF(A62>$A$8,"",OFFSET(InputPriceData!D$15,CalculationsAndCharts!$A62+$A$11,IF($C$5,8,0),1,1)) -> 26.690001 | F62: =IF(A62>$A$8,"",OFFSET(InputPriceData!E$15,CalculationsAndCharts!$A62+$A$11,IF($C$5,8,0),1,1)) -> 25.75 | G62: =IF(A62>$A$8,"",OFFSET(InputPriceData!F$15,CalculationsAndCharts!$A62+$A$11,IF($C$5,8,0),1,1)) -> 26.58 | H62: 33.110001 | I62: 24.700001 | J62: =IF($R$19=FALSE,NA(),OFFSET(PeriodBarBuilder!$K$32,A62,0,1,1)) -> 0.2235432818 | K62: =MATCH(A62,OFFSET(PeriodBarBuilder!$O$33,0,0,PeriodBarBuilder!$Q$31,1),0) ->  | L62: =IF($R$20=FALSE,NA(),OFFSET(PeriodBarBuilder!$Y$32,K62,0,1,1)) ->  | M62: =MATCH($A62,OFFSET(PeriodBarBuilder!$AC$32,1,0,PeriodBarBuilder!$AE$31,1),0) -> 3 | N62: =IF($R$21=FALSE,NA(),OFFSET(PeriodBarBuilder!$AM$32,M62,0,1,1)) -> 0.05307593486 | O62: =MATCH($A62,OFFSET(PeriodBarBuilder!$AP$32,1,0,PeriodBarBuilder!$AR$31,1),0) -> 5 | P62: =IF($R$22=FALSE,NA(),OFFSET(PeriodBarBuilder!$AZ$32,O62,0,1,1)) -> 0.05825879041 | Q62: =MATCH($A62,OFFSET(PeriodBarBuilder!$BD$32,1,0,PeriodBarBuilder!$BF$31,1),0) -> 2 | R62: =IF($R$23=FALSE,NA(),OFFSET(PeriodBarBuilder!$BN$32,Q62,0,1,1)) -> 0.03546238091 | S62: =MATCH($A62,OFFSET(PeriodBarBuilder!$BQ$32,1,0,PeriodBarBuilder!$BS$31,1),0) -> 3 | T62: =IF($R$24=FALSE,NA(),OFFSET(PeriodBarBuilder!$CA$32,S62,0,1,1)) -> 0.05164313683 | U62: =MATCH($A62,OFFSET(PeriodBarBuilder!$CD$32,1,0,PeriodBarBuilder!$CF$31,1),0) -> 5 | V62: =IF($R$25=FALSE,NA(),OFFSET(PeriodBarBuilder!$CN$32,U62,0,1,1)) -> 0.05307593486 | W62: 0.8 | X62: 0.2 | Y62: =OFFSET(PeriodBarBuilder!$O$32,K62,0,1,1) ->  | AA62: =MATCH($Y62,OFFSET(PeriodBarBuilder!$AC$33,0,0,PeriodBarBuilder!$AE$31,1),1) ->  | AB62: =MATCH($Y62,OFFSET(PeriodBarBuilder!$AP$33,0,0,PeriodBarBuilder!$AR$31,1),1) ->  | AC62: =MATCH($Y62,OFFSET(PeriodBarBuilder!$BD$33,0,0,PeriodBarBuilder!$BF$31,1),1) ->  | AD62: =MATCH($Y62,OFFSET(PeriodBarBuilder!$BQ$33,0,0,PeriodBarBuilder!$BS$31,1),1) ->  | AE62: =MATCH($Y62,OFFSET(PeriodBarBuilder!$CD$33,0,0,PeriodBarBuilder!$CF$31,1),1) ->  | AF62: =OFFSET(PeriodBarBuilder!$L$32,CalculationsAndCharts!Y62,0,1,1) ->  | AG62: =OFFSET(PeriodBarBuilder!$Z$32,CalculationsAndCharts!Z62,0,1,1) ->  | AH62: =OFFSET(PeriodBarBuilder!$AN$32,CalculationsAndCharts!AA62,0,1,1) ->  | AI62: =OFFSET(PeriodBarBuilder!$BA$32,CalculationsAndCharts!AB62,0,1,1) ->  | AJ62: =OFFSET(PeriodBarBuilder!$BO$32,CalculationsAndCharts!AC62,0,1,1) ->  | AK62: =OFFSET(PeriodBarBuilder!$CB$32,CalculationsAndCharts!AD62,0,1,1) ->  | AL62: =OFFSET(PeriodBarBuilder!$CO$32,CalculationsAndCharts!AE62,0,1,1) ->  | AN62: =OFFSET(PeriodBarBuilder!$M$32,CalculationsAndCharts!Y62,0,1,1) ->  | AO62: =OFFSET(PeriodBarBuilder!$AA$32,CalculationsAndCharts!K62,0,1,1) ->  | AP62: =OFFSET(PeriodBarBuilder!$AO$32,CalculationsAndCharts!AA62,0,1,1) ->  | AQ62: =OFFSET(PeriodBarBuilder!$BB$32,CalculationsAndCharts!AB62,0,1,1) ->  | AR62: =OFFSET(PeriodBarBuilder!$BP$32,CalculationsAndCharts!AC62,0,1,1) ->  | AS62: =OFFSET(PeriodBarBuilder!$CC$32,CalculationsAndCharts!AD62,0,1,1) ->  | AT62: =OFFSET(PeriodBarBuilder!$CP$32,CalculationsAndCharts!AE62,0,1,1) ->  | AV62: 0 | AW62: 9885800
A63: 31 | B63: =IF(A63>$A$8,"",OFFSET(InputPriceData!B$15,$A63+$A$11,0,1,1)) -> 2018-12-28 | C63: =IF(A63>$A$8,"",OFFSET(InputPriceData!G$15,CalculationsAndCharts!$A63+$A$11,IF($C$5,8,0),1,1)) -> 8990100 | D63: =IF(A63>$A$8,"",OFFSET(InputPriceData!C$15,CalculationsAndCharts!$A63+$A$11,IF($C$5,8,0),1,1)) -> 26.58 | E63: =IF(A63>$A$8,"",OFFSET(InputPriceData!D$15,CalculationsAndCharts!$A63+$A$11,IF($C$5,8,0),1,1)) -> 26.969999 | F63: =IF(A63>$A$8,"",OFFSET(InputPriceData!E$15,CalculationsAndCharts!$A63+$A$11,IF($C$5,8,0),1,1)) -> 26.23 | G63: =IF(A63>$A$8,"",OFFSET(InputPriceData!F$15,CalculationsAndCharts!$A63+$A$11,IF($C$5,8,0),1,1)) -> 26.459999 | H63: 33.110001 | I63: 24.700001 | J63: =IF($R$19=FALSE,NA(),OFFSET(PeriodBarBuilder!$K$32,A63,0,1,1)) -> 0.2092744352 | K63: =MATCH(A63,OFFSET(PeriodBarBuilder!$O$33,0,0,PeriodBarBuilder!$Q$31,1),0) -> 8 | L63: =IF($R$20=FALSE,NA(),OFFSET(PeriodBarBuilder!$Y$32,K63,0,1,1)) -> 0.09289312215 | M63: =MATCH($A63,OFFSET(PeriodBarBuilder!$AC$32,1,0,PeriodBarBuilder!$AE$31,1),0) ->  | N63: =IF($R$21=FALSE,NA(),OFFSET(PeriodBarBuilder!$AM$32,M63,0,1,1)) ->  | O63: =MATCH($A63,OFFSET(PeriodBarBuilder!$AP$32,1,0,PeriodBarBuilder!$AR$31,1),0) ->  | P63: =IF($R$22=FALSE,NA(),OFFSET(PeriodBarBuilder!$AZ$32,O63,0,1,1)) ->  | Q63: =MATCH($A63,OFFSET(PeriodBarBuilder!$BD$32,1,0,PeriodBarBuilder!$BF$31,1),0) ->  | R63: =IF($R$23=FALSE,NA(),OFFSET(PeriodBarBuilder!$BN$32,Q63,0,1,1)) ->  | S63: =MATCH($A63,OFFSET(PeriodBarBuilder!$BQ$32,1,0,PeriodBarBuilder!$BS$31,1),0) ->  | T63: =IF($R$24=FALSE,NA(),OFFSET(PeriodBarBuilder!$CA$32,S63,0,1,1)) ->  | U63: =MATCH($A63,OFFSET(PeriodBarBuilder!$CD$32,1,0,PeriodBarBuilder!$CF$31,1),0) ->  | V63: =IF($R$25=FALSE,NA(),OFFSET(PeriodBarBuilder!$CN$32,U63,0,1,1)) ->  | W63: 0.8 | X63: 0.2 | Y63: =OFFSET(PeriodBarBuilder!$O$32,K63,0,1,1) -> 31 | Z63: 8 | AA63: =MATCH($Y63,OFFSET(PeriodBarBuilder!$AC$33,0,0,PeriodBarBuilder!$AE$31,1),1) -> 3 | AB63: =MATCH($Y63,OFFSET(PeriodBarBuilder!$AP$33,0,0,PeriodBarBuilder!$AR$31,1),1) -> 5 | AC63: =MATCH($Y63,OFFSET(PeriodBarBuilder!$BD$33,0,0,PeriodBarBuilder!$BF$31,1),1) -> 2 | AD63: =MATCH($Y63,OFFSET(PeriodBarBuilder!$BQ$33,0,0,PeriodBarBuilder!$BS$31,1),1) -> 3 | AE63: =MATCH($Y63,OFFSET(PeriodBarBuilder!$CD$33,0,0,PeriodBarBuilder!$CF$31,1),1) -> 5 | AF63: =OFFSET(PeriodBarBuilder!$L$32,CalculationsAndCharts!Y63,0,1,1) -> 1 | AG63: =OFFSET(PeriodBarBuilder!$Z$32,CalculationsAndCharts!Z63,0,1,1) -> 1 | AH63: =OFFSET(PeriodBarBuilder!$AN$32,CalculationsAndCharts!AA63,0,1,1) -> 1 | AI63: =OFFSET(PeriodBarBuilder!$BA$32,CalculationsAndCharts!AB63,0,1,1) -> 1 | AJ63: =OFFSET(PeriodBarBuilder!$BO$32,CalculationsAndCharts!AC63,0,1,1) -> 1 | AK63: =OFFSET(PeriodBarBuilder!$CB$32,CalculationsAndCharts!AD63,0,1,1) -> 1 | AL63: =OFFSET(PeriodBarBuilder!$CO$32,CalculationsAndCharts!AE63,0,1,1) -> 1 | AM63: 7 | AN63: =OFFSET(PeriodBarBuilder!$M$32,CalculationsAndCharts!Y63,0,1,1) -> 0 | AO63: =OFFSET(PeriodBarBuilder!$AA$32,CalculationsAndCharts!K63,0,1,1) -> 0 | AP63: =OFFSET(PeriodBarBuilder!$AO$32,CalculationsAndCharts!AA63,0,1,1) -> 0 | AQ63: =OFFSET(PeriodBarBuilder!$BB$32,CalculationsAndCharts!AB63,0,1,1) -> 0 | AR63: =OFFSET(PeriodBarBuilder!$BP$32,CalculationsAndCharts!AC63,0,1,1) -> 0 | AS63: =OFFSET(PeriodBarBuilder!$CC$32,CalculationsAndCharts!AD63,0,1,1) -> 0 | AT63: =OFFSET(PeriodBarBuilder!$CP$32,CalculationsAndCharts!AE63,0,1,1) -> 0 | AU63: 0 | AV63: 0 | AX63: 8990100
A64: 32 | B64: =IF(A64>$A$8,"",OFFSET(InputPriceData!B$15,$A64+$A$11,0,1,1)) -> 2018-12-27 | C64: =IF(A64>$A$8,"",OFFSET(InputPriceData!G$15,CalculationsAndCharts!$A64+$A$11,IF($C$5,8,0),1,1)) -> 12775500 | D64: =IF(A64>$A$8,"",OFFSET(InputPriceData!C$15,CalculationsAndCharts!$A64+$A$11,IF($C$5,8,0),1,1)) -> 25.889999 | E64: =IF(A64>$A$8,"",OFFSET(InputPriceData!D$15,CalculationsAndCharts!$A64+$A$11,IF($C$5,8,0),1,1)) -> 26.360001 | F64: =IF(A64>$A$8,"",OFFSET(InputPriceData!E$15,CalculationsAndCharts!$A64+$A$11,IF($C$5,8,0),1,1)) -> 25.290001 | G64: =IF(A64>$A$8,"",OFFSET(InputPriceData!F$15,CalculationsAndCharts!$A64+$A$11,IF($C$5,8,0),1,1)) -> 26.360001 | H64: 33.110001 | I64: 24.700001 | J64: =IF($R$19=FALSE,NA(),OFFSET(PeriodBarBuilder!$K$32,A64,0,1,1)) -> 0.1973840666 | K64: =MATCH(A64,OFFSET(PeriodBarBuilder!$O$33,0,0,PeriodBarBuilder!$Q$31,1),0) ->  | L64: =IF($R$20=FALSE,NA(),OFFSET(PeriodBarBuilder!$Y$32,K64,0,1,1)) ->  | M64: =MATCH($A64,OFFSET(PeriodBarBuilder!$AC$32,1,0,PeriodBarBuilder!$AE$31,1),0) ->  | N64: =IF($R$21=FALSE,NA(),OFFSET(PeriodBarBuilder!$AM$32,M64,0,1,1)) ->  | O64: =MATCH($A64,OFFSET(PeriodBarBuilder!$AP$32,1,0,PeriodBarBuilder!$AR$31,1),0) ->  | P64: =IF($R$22=FALSE,NA(),OFFSET(PeriodBarBuilder!$AZ$32,O64,0,1,1)) ->  | Q64: =MATCH($A64,OFFSET(PeriodBarBuilder!$BD$32,1,0,PeriodBarBuilder!$BF$31,1),0) ->  | R64: =IF($R$23=FALSE,NA(),OFFSET(PeriodBarBuilder!$BN$32,Q64,0,1,1)) ->  | S64: =MATCH($A64,OFFSET(PeriodBarBuilder!$BQ$32,1,0,PeriodBarBuilder!$BS$31,1),0) ->  | T64: =IF($R$24=FALSE,NA(),OFFSET(PeriodBarBuilder!$CA$32,S64,0,1,1)) ->  | U64: =MATCH($A64,OFFSET(PeriodBarBuilder!$CD$32,1,0,PeriodBarBuilder!$CF$31,1),0) ->  | V64: =IF($R$25=FALSE,NA(),OFFSET(PeriodBarBuilder!$CN$32,U64,0,1,1)) ->  | W64: 0.8 | X64: 0.2 | Y64: =OFFSET(PeriodBarBuilder!$O$32,K64,0,1,1) ->  | AA64: =MATCH($Y64,OFFSET(PeriodBarBuilder!$AC$33,0,0,PeriodBarBuilder!$AE$31,1),1) ->  | AB64: =MATCH($Y64,OFFSET(PeriodBarBuilder!$AP$33,0,0,PeriodBarBuilder!$AR$31,1),1) ->  | AC64: =MATCH($Y64,OFFSET(PeriodBarBuilder!$BD$33,0,0,PeriodBarBuilder!$BF$31,1),1) ->  | AD64: =MATCH($Y64,OFFSET(PeriodBarBuilder!$BQ$33,0,0,PeriodBarBuilder!$BS$31,1),1) ->  | AE64: =MATCH($Y64,OFFSET(PeriodBarBuilder!$CD$33,0,0,PeriodBarBuilder!$CF$31,1),1) ->  | AF64: =OFFSET(PeriodBarBuilder!$L$32,CalculationsAndCharts!Y64,0,1,1) ->  | AG64: =OFFSET(PeriodBarBuilder!$Z$32,CalculationsAndCharts!Z64,0,1,1) ->  | AH64: =OFFSET(PeriodBarBuilder!$AN$32,CalculationsAndCharts!AA64,0,1,1) ->  | AI64: =OFFSET(PeriodBarBuilder!$BA$32,CalculationsAndCharts!AB64,0,1,1) ->  | AJ64: =OFFSET(PeriodBarBuilder!$BO$32,CalculationsAndCharts!AC64,0,1,1) ->  | AK64: =OFFSET(PeriodBarBuilder!$CB$32,CalculationsAndCharts!AD64,0,1,1) ->  | AL64: =OFFSET(PeriodBarBuilder!$CO$32,CalculationsAndCharts!AE64,0,1,1) ->  | AN64: =OFFSET(PeriodBarBuilder!$M$32,CalculationsAndCharts!Y64,0,1,1) ->  | AO64: =OFFSET(PeriodBarBuilder!$AA$32,CalculationsAndCharts!K64,0,1,1) ->  | AP64: =OFFSET(PeriodBarBuilder!$AO$32,CalculationsAndCharts!AA64,0,1,1) ->  | AQ64: =OFFSET(PeriodBarBuilder!$BB$32,CalculationsAndCharts!AB64,0,1,1) ->  | AR64: =OFFSET(PeriodBarBuilder!$BP$32,CalculationsAndCharts!AC64,0,1,1) ->  | AS64: =OFFSET(PeriodBarBuilder!$CC$32,CalculationsAndCharts!AD64,0,1,1) ->  | AT64: =OFFSET(PeriodBarBuilder!$CP$32,CalculationsAndCharts!AE64,0,1,1) ->  | AV64: 0 | AW64: 12775500
A65: 33 | B65: =IF(A65>$A$8,"",OFFSET(InputPriceData!B$15,$A65+$A$11,0,1,1)) -> 2018-12-26 | C65: =IF(A65>$A$8,"",OFFSET(InputPriceData!G$15,CalculationsAndCharts!$A65+$A$11,IF($C$5,8,0),1,1)) -> 14755100 | D65: =IF(A65>$A$8,"",OFFSET(InputPriceData!C$15,CalculationsAndCharts!$A65+$A$11,IF($C$5,8,0),1,1)) -> 25.309999 | E65: =IF(A65>$A$8,"",OFFSET(InputPriceData!D$15,CalculationsAndCharts!$A65+$A$11,IF($C$5,8,0),1,1)) -> 26.450001 | F65: =IF(A65>$A$8,"",OFFSET(InputPriceData!E$15,CalculationsAndCharts!$A65+$A$11,IF($C$5,8,0),1,1)) -> 24.700001 | G65: =IF(A65>$A$8,"",OFFSET(InputPriceData!F$15,CalculationsAndCharts!$A65+$A$11,IF($C$5,8,0),1,1)) -> 26.43 | H65: 33.110001 | I65: 24.700001 | J65: =IF($R$19=FALSE,NA(),OFFSET(PeriodBarBuilder!$K$32,A65,0,1,1)) -> 0.2057073722 | K65: =MATCH(A65,OFFSET(PeriodBarBuilder!$O$33,0,0,PeriodBarBuilder!$Q$31,1),0) ->  | L65: =IF($R$20=FALSE,NA(),OFFSET(PeriodBarBuilder!$Y$32,K65,0,1,1)) ->  | M65: =MATCH($A65,OFFSET(PeriodBarBuilder!$AC$32,1,0,PeriodBarBuilder!$AE$31,1),0) ->  | N65: =IF($R$21=FALSE,NA(),OFFSET(PeriodBarBuilder!$AM$32,M65,0,1,1)) ->  | O65: =MATCH($A65,OFFSET(PeriodBarBuilder!$AP$32,1,0,PeriodBarBuilder!$AR$31,1),0) ->  | P65: =IF($R$22=FALSE,NA(),OFFSET(PeriodBarBuilder!$AZ$32,O65,0,1,1)) ->  | Q65: =MATCH($A65,OFFSET(PeriodBarBuilder!$BD$32,1,0,PeriodBarBuilder!$BF$31,1),0) ->  | R65: =IF($R$23=FALSE,NA(),OFFSET(PeriodBarBuilder!$BN$32,Q65,0,1,1)) ->  | S65: =MATCH($A65,OFFSET(PeriodBarBuilder!$BQ$32,1,0,PeriodBarBuilder!$BS$31,1),0) ->  | T65: =IF($R$24=FALSE,NA(),OFFSET(PeriodBarBuilder!$CA$32,S65,0,1,1)) ->  | U65: =MATCH($A65,OFFSET(PeriodBarBuilder!$CD$32,1,0,PeriodBarBuilder!$CF$31,1),0) ->  | V65: =IF($R$25=FALSE,NA(),OFFSET(PeriodBarBuilder!$CN$32,U65,0,1,1)) ->  | W65: 0.8 | X65: 0.2 | Y65: =OFFSET(PeriodBarBuilder!$O$32,K65,0,1,1) ->  | AA65: =MATCH($Y65,OFFSET(PeriodBarBuilder!$AC$33,0,0,PeriodBarBuilder!$AE$31,1),1) ->  | AB65: =MATCH($Y65,OFFSET(PeriodBarBuilder!$AP$33,0,0,PeriodBarBuilder!$AR$31,1),1) ->  | AC65: =MATCH($Y65,OFFSET(PeriodBarBuilder!$BD$33,0,0,PeriodBarBuilder!$BF$31,1),1) ->  | AD65: =MATCH($Y65,OFFSET(PeriodBarBuilder!$BQ$33,0,0,PeriodBarBuilder!$BS$31,1),1) ->  | AE65: =MATCH($Y65,OFFSET(PeriodBarBuilder!$CD$33,0,0,PeriodBarBuilder!$CF$31,1),1) ->  | AF65: =OFFSET(PeriodBarBuilder!$L$32,CalculationsAndCharts!Y65,0,1,1) ->  | AG65: =OFFSET(PeriodBarBuilder!$Z$32,CalculationsAndCharts!Z65,0,1,1) ->  | AH65: =OFFSET(PeriodBarBuilder!$AN$32,CalculationsAndCharts!AA65,0,1,1) ->  | AI65: =OFFSET(PeriodBarBuilder!$BA$32,CalculationsAndCharts!AB65,0,1,1) ->  | AJ65: =OFFSET(PeriodBarBuilder!$BO$32,CalculationsAndCharts!AC65,0,1,1) ->  | AK65: =OFFSET(PeriodBarBuilder!$CB$32,CalculationsAndCharts!AD65,0,1,1) ->  | AL65: =OFFSET(PeriodBarBuilder!$CO$32,CalculationsAndCharts!AE65,0,1,1) ->  | AN65: =OFFSET(PeriodBarBuilder!$M$32,CalculationsAndCharts!Y65,0,1,1) ->  | AO65: =OFFSET(PeriodBarBuilder!$AA$32,CalculationsAndCharts!K65,0,1,1) ->  | AP65: =OFFSET(PeriodBarBuilder!$AO$32,CalculationsAndCharts!AA65,0,1,1) ->  | AQ65: =OFFSET(PeriodBarBuilder!$BB$32,CalculationsAndCharts!AB65,0,1,1) ->  | AR65: =OFFSET(PeriodBarBuilder!$BP$32,CalculationsAndCharts!AC65,0,1,1) ->  | AS65: =OFFSET(PeriodBarBuilder!$CC$32,CalculationsAndCharts!AD65,0,1,1) ->  | AT65: =OFFSET(PeriodBarBuilder!$CP$32,CalculationsAndCharts!AE65,0,1,1) ->  | AV65: 0 | AW65: 14755100
A66: 34 | B66: =IF(A66>$A$8,"",OFFSET(InputPriceData!B$15,$A66+$A$11,0,1,1)) -> 2018-12-24 | C66: =IF(A66>$A$8,"",OFFSET(InputPriceData!G$15,CalculationsAndCharts!$A66+$A$11,IF($C$5,8,0),1,1)) -> 8496000 | D66: =IF(A66>$A$8,"",OFFSET(InputPriceData!C$15,CalculationsAndCharts!$A66+$A$11,IF($C$5,8,0),1,1)) -> 25.610001 | E66: =IF(A66>$A$8,"",OFFSET(InputPriceData!D$15,CalculationsAndCharts!$A66+$A$11,IF($C$5,8,0),1,1)) -> 25.940001 | F66: =IF(A66>$A$8,"",OFFSET(InputPriceData!E$15,CalculationsAndCharts!$A66+$A$11,IF($C$5,8,0),1,1)) -> 25.139999 | G66: =IF(A66>$A$8,"",OFFSET(InputPriceData!F$15,CalculationsAndCharts!$A66+$A$11,IF($C$5,8,0),1,1)) -> 25.139999 | H66: 33.110001 | I66: 25.139999 | J66: =IF($R$19=FALSE,NA(),OFFSET(PeriodBarBuilder!$K$32,A66,0,1,1)) -> 0 | K66: =MATCH(A66,OFFSET(PeriodBarBuilder!$O$33,0,0,PeriodBarBuilder!$Q$31,1),0) ->  | L66: =IF($R$20=FALSE,NA(),OFFSET(PeriodBarBuilder!$Y$32,K66,0,1,1)) ->  | M66: =MATCH($A66,OFFSET(PeriodBarBuilder!$AC$32,1,0,PeriodBarBuilder!$AE$31,1),0) ->  | N66: =IF($R$21=FALSE,NA(),OFFSET(PeriodBarBuilder!$AM$32,M66,0,1,1)) ->  | O66: =MATCH($A66,OFFSET(PeriodBarBuilder!$AP$32,1,0,PeriodBarBuilder!$AR$31,1),0) ->  | P66: =IF($R$22=FALSE,NA(),OFFSET(PeriodBarBuilder!$AZ$32,O66,0,1,1)) ->  | Q66: =MATCH($A66,OFFSET(PeriodBarBuilder!$BD$32,1,0,PeriodBarBuilder!$BF$31,1),0) ->  | R66: =IF($R$23=FALSE,NA(),OFFSET(PeriodBarBuilder!$BN$32,Q66,0,1,1)) ->  | S66: =MATCH($A66,OFFSET(PeriodBarBuilder!$BQ$32,1,0,PeriodBarBuilder!$BS$31,1),0) ->  | T66: =IF($R$24=FALSE,NA(),OFFSET(PeriodBarBuilder!$CA$32,S66,0,1,1)) ->  | U66: =MATCH($A66,OFFSET(PeriodBarBuilder!$CD$32,1,0,PeriodBarBuilder!$CF$31,1),0) ->  | V66: =IF($R$25=FALSE,NA(),OFFSET(PeriodBarBuilder!$CN$32,U66,0,1,1)) ->  | W66: 0.8 | X66: 0.2 | Y66: =OFFSET(PeriodBarBuilder!$O$32,K66,0,1,1) ->  | AA66: =MATCH($Y66,OFFSET(PeriodBarBuilder!$AC$33,0,0,PeriodBarBuilder!$AE$31,1),1) ->  | AB66: =MATCH($Y66,OFFSET(PeriodBarBuilder!$AP$33,0,0,PeriodBarBuilder!$AR$31,1),1) ->  | AC66: =MATCH($Y66,OFFSET(PeriodBarBuilder!$BD$33,0,0,PeriodBarBuilder!$BF$31,1),1) ->  | AD66: =MATCH($Y66,OFFSET(PeriodBarBuilder!$BQ$33,0,0,PeriodBarBuilder!$BS$31,1),1) ->  | AE66: =MATCH($Y66,OFFSET(PeriodBarBuilder!$CD$33,0,0,PeriodBarBuilder!$CF$31,1),1) ->  | AF66: =OFFSET(PeriodBarBuilder!$L$32,CalculationsAndCharts!Y66,0,1,1) ->  | AG66: =OFFSET(PeriodBarBuilder!$Z$32,CalculationsAndCharts!Z66,0,1,1) ->  | AH66: =OFFSET(PeriodBarBuilder!$AN$32,CalculationsAndCharts!AA66,0,1,1) ->  | AI66: =OFFSET(PeriodBarBuilder!$BA$32,CalculationsAndCharts!AB66,0,1,1) ->  | AJ66: =OFFSET(PeriodBarBuilder!$BO$32,CalculationsAndCharts!AC66,0,1,1) ->  | AK66: =OFFSET(PeriodBarBuilder!$CB$32,CalculationsAndCharts!AD66,0,1,1) ->  | AL66: =OFFSET(PeriodBarBuilder!$CO$32,CalculationsAndCharts!AE66,0,1,1) ->  | AN66: =OFFSET(PeriodBarBuilder!$M$32,CalculationsAndCharts!Y66,0,1,1) ->  | AO66: =OFFSET(PeriodBarBuilder!$AA$32,CalculationsAndCharts!K66,0,1,1) ->  | AP66: =OFFSET(PeriodBarBuilder!$AO$32,CalculationsAndCharts!AA66,0,1,1) ->  | AQ66: =OFFSET(PeriodBarBuilder!$BB$32,CalculationsAndCharts!AB66,0,1,1) ->  | AR66: =OFFSET(PeriodBarBuilder!$BP$32,CalculationsAndCharts!AC66,0,1,1) ->  | AS66: =OFFSET(PeriodBarBuilder!$CC$32,CalculationsAndCharts!AD66,0,1,1) ->  | AT66: =OFFSET(PeriodBarBuilder!$CP$32,CalculationsAndCharts!AE66,0,1,1) ->  | AV66: 0 | AX66: 8496000
A67: 35 | B67: =IF(A67>$A$8,"",OFFSET(InputPriceData!B$15,$A67+$A$11,0,1,1)) -> 2018-12-21 | C67: =IF(A67>$A$8,"",OFFSET(InputPriceData!G$15,CalculationsAndCharts!$A67+$A$11,IF($C$5,8,0),1,1)) -> 21135400 | D67: =IF(A67>$A$8,"",OFFSET(InputPriceData!C$15,CalculationsAndCharts!$A67+$A$11,IF($C$5,8,0),1,1)) -> 26.299999 | E67: =IF(A67>$A$8,"",OFFSET(InputPriceData!D$15,CalculationsAndCharts!$A67+$A$11,IF($C$5,8,0),1,1)) -> 27.360001 | F67: =IF(A67>$A$8,"",OFFSET(InputPriceData!E$15,CalculationsAndCharts!$A67+$A$11,IF($C$5,8,0),1,1)) -> 25.559999 | G67: =IF(A67>$A$8,"",OFFSET(InputPriceData!F$15,CalculationsAndCharts!$A67+$A$11,IF($C$5,8,0),1,1)) -> 25.85 | H67: 33.110001 | I67: 25.559999 | J67: =IF($R$19=FALSE,NA(),OFFSET(PeriodBarBuilder!$K$32,A67,0,1,1)) -> 0.0384107183 | K67: =MATCH(A67,OFFSET(PeriodBarBuilder!$O$33,0,0,PeriodBarBuilder!$Q$31,1),0) -> 9 | L67: =IF($R$20=FALSE,NA(),OFFSET(PeriodBarBuilder!$Y$32,K67,0,1,1)) -> 0.09117137911 | M67: =MATCH($A67,OFFSET(PeriodBarBuilder!$AC$32,1,0,PeriodBarBuilder!$AE$31,1),0) ->  | N67: =IF($R$21=FALSE,NA(),OFFSET(PeriodBarBuilder!$AM$32,M67,0,1,1)) ->  | O67: =MATCH($A67,OFFSET(PeriodBarBuilder!$AP$32,1,0,PeriodBarBuilder!$AR$31,1),0) ->  | P67: =IF($R$22=FALSE,NA(),OFFSET(PeriodBarBuilder!$AZ$32,O67,0,1,1)) ->  | Q67: =MATCH($A67,OFFSET(PeriodBarBuilder!$BD$32,1,0,PeriodBarBuilder!$BF$31,1),0) ->  | R67: =IF($R$23=FALSE,NA(),OFFSET(PeriodBarBuilder!$BN$32,Q67,0,1,1)) ->  | S67: =MATCH($A67,OFFSET(PeriodBarBuilder!$BQ$32,1,0,PeriodBarBuilder!$BS$31,1),0) ->  | T67: =IF($R$24=FALSE,NA(),OFFSET(PeriodBarBuilder!$CA$32,S67,0,1,1)) ->  | U67: =MATCH($A67,OFFSET(PeriodBarBuilder!$CD$32,1,0,PeriodBarBuilder!$CF$31,1),0) ->  | V67: =IF($R$25=FALSE,NA(),OFFSET(PeriodBarBuilder!$CN$32,U67,0,1,1)) ->  | W67: 0.8 | X67: 0.2 | Y67: =OFFSET(PeriodBarBuilder!$O$32,K67,0,1,1) -> 35 | Z67: 9 | AA67: =MATCH($Y67,OFFSET(PeriodBarBuilder!$AC$33,0,0,PeriodBarBuilder!$AE$31,1),1) -> 3 | AB67: =MATCH($Y67,OFFSET(PeriodBarBuilder!$AP$33,0,0,PeriodBarBuilder!$AR$31,1),1) -> 5 | AC67: =MATCH($Y67,OFFSET(PeriodBarBuilder!$BD$33,0,0,PeriodBarBuilder!$BF$31,1),1) -> 2 | AD67: =MATCH($Y67,OFFSET(PeriodBarBuilder!$BQ$33,0,0,PeriodBarBuilder!$BS$31,1),1) -> 3 | AE67: =MATCH($Y67,OFFSET(PeriodBarBuilder!$CD$33,0,0,PeriodBarBuilder!$CF$31,1),1) -> 5 | AF67: =OFFSET(PeriodBarBuilder!$L$32,CalculationsAndCharts!Y67,0,1,1) -> 1 | AG67: =OFFSET(PeriodBarBuilder!$Z$32,CalculationsAndCharts!Z67,0,1,1) -> 1 | AH67: =OFFSET(PeriodBarBuilder!$AN$32,CalculationsAndCharts!AA67,0,1,1) -> 1 | AI67: =OFFSET(PeriodBarBuilder!$BA$32,CalculationsAndCharts!AB67,0,1,1) -> 1 | AJ67: =OFFSET(PeriodBarBuilder!$BO$32,CalculationsAndCharts!AC67,0,1,1) -> 1 | AK67: =OFFSET(PeriodBarBuilder!$CB$32,CalculationsAndCharts!AD67,0,1,1) -> 1 | AL67: =OFFSET(PeriodBarBuilder!$CO$32,CalculationsAndCharts!AE67,0,1,1) -> 1 | AM67: 7 | AN67: =OFFSET(PeriodBarBuilder!$M$32,CalculationsAndCharts!Y67,0,1,1) -> 0 | AO67: =OFFSET(PeriodBarBuilder!$AA$32,CalculationsAndCharts!K67,0,1,1) -> 0 | AP67: =OFFSET(PeriodBarBuilder!$AO$32,CalculationsAndCharts!AA67,0,1,1) -> 0 | AQ67: =OFFSET(PeriodBarBuilder!$BB$32,CalculationsAndCharts!AB67,0,1,1) -> 0 | AR67: =OFFSET(PeriodBarBuilder!$BP$32,CalculationsAndCharts!AC67,0,1,1) -> 0 | AS67: =OFFSET(PeriodBarBuilder!$CC$32,CalculationsAndCharts!AD67,0,1,1) -> 0 | AT67: =OFFSET(PeriodBarBuilder!$CP$32,CalculationsAndCharts!AE67,0,1,1) -> 0 | AU67: 0 | AV67: 0 | AX67: 21135400
A68: 36 | B68: =IF(A68>$A$8,"",OFFSET(InputPriceData!B$15,$A68+$A$11,0,1,1)) -> 2018-12-20 | C68: =IF(A68>$A$8,"",OFFSET(InputPriceData!G$15,CalculationsAndCharts!$A68+$A$11,IF($C$5,8,0),1,1)) -> 13922500 | D68: =IF(A68>$A$8,"",OFFSET(InputPriceData!C$15,CalculationsAndCharts!$A68+$A$11,IF($C$5,8,0),1,1)) -> 27.35 | E68: =IF(A68>$A$8,"",OFFSET(InputPriceData!D$15,CalculationsAndCharts!$A68+$A$11,IF($C$5,8,0),1,1)) -> 28.08 | F68: =IF(A68>$A$8,"",OFFSET(InputPriceData!E$15,CalculationsAndCharts!$A68+$A$11,IF($C$5,8,0),1,1)) -> 27.02 | G68: =IF(A68>$A$8,"",OFFSET(InputPriceData!F$15,CalculationsAndCharts!$A68+$A$11,IF($C$5,8,0),1,1)) -> 27.139999 | H68: 33.110001 | I68: 27.02 | J68: =IF($R$19=FALSE,NA(),OFFSET(PeriodBarBuilder!$K$32,A68,0,1,1)) -> 0.01970426606 | K68: =MATCH(A68,OFFSET(PeriodBarBuilder!$O$33,0,0,PeriodBarBuilder!$Q$31,1),0) ->  | L68: =IF($R$20=FALSE,NA(),OFFSET(PeriodBarBuilder!$Y$32,K68,0,1,1)) ->  | M68: =MATCH($A68,OFFSET(PeriodBarBuilder!$AC$32,1,0,PeriodBarBuilder!$AE$31,1),0) ->  | N68: =IF($R$21=FALSE,NA(),OFFSET(PeriodBarBuilder!$AM$32,M68,0,1,1)) ->  | O68: =MATCH($A68,OFFSET(PeriodBarBuilder!$AP$32,1,0,PeriodBarBuilder!$AR$31,1),0) ->  | P68: =IF($R$22=FALSE,NA(),OFFSET(PeriodBarBuilder!$AZ$32,O68,0,1,1)) ->  | Q68: =MATCH($A68,OFFSET(PeriodBarBuilder!$BD$32,1,0,PeriodBarBuilder!$BF$31,1),0) ->  | R68: =IF($R$23=FALSE,NA(),OFFSET(PeriodBarBuilder!$BN$32,Q68,0,1,1)) ->  | S68: =MATCH($A68,OFFSET(PeriodBarBuilder!$BQ$32,1,0,PeriodBarBuilder!$BS$31,1),0) ->  | T68: =IF($R$24=FALSE,NA(),OFFSET(PeriodBarBuilder!$CA$32,S68,0,1,1)) ->  | U68: =MATCH($A68,OFFSET(PeriodBarBuilder!$CD$32,1,0,PeriodBarBuilder!$CF$31,1),0) ->  | V68: =IF($R$25=FALSE,NA(),OFFSET(PeriodBarBuilder!$CN$32,U68,0,1,1)) ->  | W68: 0.8 | X68: 0.2 | Y68: =OFFSET(PeriodBarBuilder!$O$32,K68,0,1,1) ->  | AA68: =MATCH($Y68,OFFSET(PeriodBarBuilder!$AC$33,0,0,PeriodBarBuilder!$AE$31,1),1) ->  | AB68: =MATCH($Y68,OFFSET(PeriodBarBuilder!$AP$33,0,0,PeriodBarBuilder!$AR$31,1),1) ->  | AC68: =MATCH($Y68,OFFSET(PeriodBarBuilder!$BD$33,0,0,PeriodBarBuilder!$BF$31,1),1) ->  | AD68: =MATCH($Y68,OFFSET(PeriodBarBuilder!$BQ$33,0,0,PeriodBarBuilder!$BS$31,1),1) ->  | AE68: =MATCH($Y68,OFFSET(PeriodBarBuilder!$CD$33,0,0,PeriodBarBuilder!$CF$31,1),1) ->  | AF68: =OFFSET(PeriodBarBuilder!$L$32,CalculationsAndCharts!Y68,0,1,1) ->  | AG68: =OFFSET(PeriodBarBuilder!$Z$32,CalculationsAndCharts!Z68,0,1,1) ->  | AH68: =OFFSET(PeriodBarBuilder!$AN$32,CalculationsAndCharts!AA68,0,1,1) ->  | AI68: =OFFSET(PeriodBarBuilder!$BA$32,CalculationsAndCharts!AB68,0,1,1) ->  | AJ68: =OFFSET(PeriodBarBuilder!$BO$32,CalculationsAndCharts!AC68,0,1,1) ->  | AK68: =OFFSET(PeriodBarBuilder!$CB$32,CalculationsAndCharts!AD68,0,1,1) ->  | AL68: =OFFSET(PeriodBarBuilder!$CO$32,CalculationsAndCharts!AE68,0,1,1) ->  | AN68: =OFFSET(PeriodBarBuilder!$M$32,CalculationsAndCharts!Y68,0,1,1) ->  | AO68: =OFFSET(PeriodBarBuilder!$AA$32,CalculationsAndCharts!K68,0,1,1) ->  | AP68: =OFFSET(PeriodBarBuilder!$AO$32,CalculationsAndCharts!AA68,0,1,1) ->  | AQ68: =OFFSET(PeriodBarBuilder!$BB$32,CalculationsAndCharts!AB68,0,1,1) ->  | AR68: =OFFSET(PeriodBarBuilder!$BP$32,CalculationsAndCharts!AC68,0,1,1) ->  | AS68: =OFFSET(PeriodBarBuilder!$CC$32,CalculationsAndCharts!AD68,0,1,1) ->  | AT68: =OFFSET(PeriodBarBuilder!$CP$32,CalculationsAndCharts!AE68,0,1,1) ->  | AV68: 0 | AX68: 13922500
A69: 37 | B69: =IF(A69>$A$8,"",OFFSET(InputPriceData!B$15,$A69+$A$11,0,1,1)) -> 2018-12-19 | C69: =IF(A69>$A$8,"",OFFSET(InputPriceData!G$15,CalculationsAndCharts!$A69+$A$11,IF($C$5,8,0),1,1)) -> 18010600 | D69: =IF(A69>$A$8,"",OFFSET(InputPriceData!C$15,CalculationsAndCharts!$A69+$A$11,IF($C$5,8,0),1,1)) -> 29.07 | E69: =IF(A69>$A$8,"",OFFSET(InputPriceData!D$15,CalculationsAndCharts!$A69+$A$11,IF($C$5,8,0),1,1)) -> 29.27 | F69: =IF(A69>$A$8,"",OFFSET(InputPriceData!E$15,CalculationsAndCharts!$A69+$A$11,IF($C$5,8,0),1,1)) -> 27.299999 | G69: =IF(A69>$A$8,"",OFFSET(InputPriceData!F$15,CalculationsAndCharts!$A69+$A$11,IF($C$5,8,0),1,1)) -> 27.639999 | H69: 33.110001 | I69: 27.299999 | J69: =IF($R$19=FALSE,NA(),OFFSET(PeriodBarBuilder!$K$32,A69,0,1,1)) -> 0.05851977332 | K69: =MATCH(A69,OFFSET(PeriodBarBuilder!$O$33,0,0,PeriodBarBuilder!$Q$31,1),0) ->  | L69: =IF($R$20=FALSE,NA(),OFFSET(PeriodBarBuilder!$Y$32,K69,0,1,1)) ->  | M69: =MATCH($A69,OFFSET(PeriodBarBuilder!$AC$32,1,0,PeriodBarBuilder!$AE$31,1),0) ->  | N69: =IF($R$21=FALSE,NA(),OFFSET(PeriodBarBuilder!$AM$32,M69,0,1,1)) ->  | O69: =MATCH($A69,OFFSET(PeriodBarBuilder!$AP$32,1,0,PeriodBarBuilder!$AR$31,1),0) ->  | P69: =IF($R$22=FALSE,NA(),OFFSET(PeriodBarBuilder!$AZ$32,O69,0,1,1)) ->  | Q69: =MATCH($A69,OFFSET(PeriodBarBuilder!$BD$32,1,0,PeriodBarBuilder!$BF$31,1),0) ->  | R69: =IF($R$23=FALSE,NA(),OFFSET(PeriodBarBuilder!$BN$32,Q69,0,1,1)) ->  | S69: =MATCH($A69,OFFSET(PeriodBarBuilder!$BQ$32,1,0,PeriodBarBuilder!$BS$31,1),0) ->  | T69: =IF($R$24=FALSE,NA(),OFFSET(PeriodBarBuilder!$CA$32,S69,0,1,1)) ->  | U69: =MATCH($A69,OFFSET(PeriodBarBuilder!$CD$32,1,0,PeriodBarBuilder!$CF$31,1),0) ->  | V69: =IF($R$25=FALSE,NA(),OFFSET(PeriodBarBuilder!$CN$32,U69,0,1,1)) ->  | W69: 0.8 | X69: 0.2 | Y69: =OFFSET(PeriodBarBuilder!$O$32,K69,0,1,1) ->  | AA69: =MATCH($Y69,OFFSET(PeriodBarBuilder!$AC$33,0,0,PeriodBarBuilder!$AE$31,1),1) ->  | AB69: =MATCH($Y69,OFFSET(PeriodBarBuilder!$AP$33,0,0,PeriodBarBuilder!$AR$31,1),1) ->  | AC69: =MATCH($Y69,OFFSET(PeriodBarBuilder!$BD$33,0,0,PeriodBarBuilder!$BF$31,1),1) ->  | AD69: =MATCH($Y69,OFFSET(PeriodBarBuilder!$BQ$33,0,0,PeriodBarBuilder!$BS$31,1),1) ->  | AE69: =MATCH($Y69,OFFSET(PeriodBarBuilder!$CD$33,0,0,PeriodBarBuilder!$CF$31,1),1) ->  | AF69: =OFFSET(PeriodBarBuilder!$L$32,CalculationsAndCharts!Y69,0,1,1) ->  | AG69: =OFFSET(PeriodBarBuilder!$Z$32,CalculationsAndCharts!Z69,0,1,1) ->  | AH69: =OFFSET(PeriodBarBuilder!$AN$32,CalculationsAndCharts!AA69,0,1,1) ->  | AI69: =OFFSET(PeriodBarBuilder!$BA$32,CalculationsAndCharts!AB69,0,1,1) ->  | AJ69: =OFFSET(PeriodBarBuilder!$BO$32,CalculationsAndCharts!AC69,0,1,1) ->  | AK69: =OFFSET(PeriodBarBuilder!$CB$32,CalculationsAndCharts!AD69,0,1,1) ->  | AL69: =OFFSET(PeriodBarBuilder!$CO$32,CalculationsAndCharts!AE69,0,1,1) ->  | AN69: =OFFSET(PeriodBarBuilder!$M$32,CalculationsAndCharts!Y69,0,1,1) ->  | AO69: =OFFSET(PeriodBarBuilder!$AA$32,CalculationsAndCharts!K69,0,1,1) ->  | AP69: =OFFSET(PeriodBarBuilder!$AO$32,CalculationsAndCharts!AA69,0,1,1) ->  | AQ69: =OFFSET(PeriodBarBuilder!$BB$32,CalculationsAndCharts!AB69,0,1,1) ->  | AR69: =OFFSET(PeriodBarBuilder!$BP$32,CalculationsAndCharts!AC69,0,1,1) ->  | AS69: =OFFSET(PeriodBarBuilder!$CC$32,CalculationsAndCharts!AD69,0,1,1) ->  | AT69: =OFFSET(PeriodBarBuilder!$CP$32,CalculationsAndCharts!AE69,0,1,1) ->  | AV69: 0 | AX69: 18010600
A70: 38 | B70: =IF(A70>$A$8,"",OFFSET(InputPriceData!B$15,$A70+$A$11,0,1,1)) -> 2018-12-18 | C70: =IF(A70>$A$8,"",OFFSET(InputPriceData!G$15,CalculationsAndCharts!$A70+$A$11,IF($C$5,8,0),1,1)) -> 15300200 | D70: =IF(A70>$A$8,"",OFFSET(InputPriceData!C$15,CalculationsAndCharts!$A70+$A$11,IF($C$5,8,0),1,1)) -> 29.09 | E70: =IF(A70>$A$8,"",OFFSET(InputPriceData!D$15,CalculationsAndCharts!$A70+$A$11,IF($C$5,8,0),1,1)) -> 29.75 | F70: =IF(A70>$A$8,"",OFFSET(InputPriceData!E$15,CalculationsAndCharts!$A70+$A$11,IF($C$5,8,0),1,1)) -> 28.76 | G70: =IF(A70>$A$8,"",OFFSET(InputPriceData!F$15,CalculationsAndCharts!$A70+$A$11,IF($C$5,8,0),1,1)) -> 28.98 | H70: 33.110001 | I70: 28.17 | J70: =IF($R$19=FALSE,NA(),OFFSET(PeriodBarBuilder!$K$32,A70,0,1,1)) -> 0.1639675781 | K70: =MATCH(A70,OFFSET(PeriodBarBuilder!$O$33,0,0,PeriodBarBuilder!$Q$31,1),0) ->  | L70: =IF($R$20=FALSE,NA(),OFFSET(PeriodBarBuilder!$Y$32,K70,0,1,1)) ->  | M70: =MATCH($A70,OFFSET(PeriodBarBuilder!$AC$32,1,0,PeriodBarBuilder!$AE$31,1),0) ->  | N70: =IF($R$21=FALSE,NA(),OFFSET(PeriodBarBuilder!$AM$32,M70,0,1,1)) ->  | O70: =MATCH($A70,OFFSET(PeriodBarBuilder!$AP$32,1,0,PeriodBarBuilder!$AR$31,1),0) ->  | P70: =IF($R$22=FALSE,NA(),OFFSET(PeriodBarBuilder!$AZ$32,O70,0,1,1)) ->  | Q70: =MATCH($A70,OFFSET(PeriodBarBuilder!$BD$32,1,0,PeriodBarBuilder!$BF$31,1),0) ->  | R70: =IF($R$23=FALSE,NA(),OFFSET(PeriodBarBuilder!$BN$32,Q70,0,1,1)) ->  | S70: =MATCH($A70,OFFSET(PeriodBarBuilder!$BQ$32,1,0,PeriodBarBuilder!$BS$31,1),0) ->  | T70: =IF($R$24=FALSE,NA(),OFFSET(PeriodBarBuilder!$CA$32,S70,0,1,1)) ->  | U70: =MATCH($A70,OFFSET(PeriodBarBuilder!$CD$32,1,0,PeriodBarBuilder!$CF$31,1),0) ->  | V70: =IF($R$25=FALSE,NA(),OFFSET(PeriodBarBuilder!$CN$32,U70,0,1,1)) ->  | W70: 0.8 | X70: 0.2 | Y70: =OFFSET(PeriodBarBuilder!$O$32,K70,0,1,1) ->  | AA70: =MATCH($Y70,OFFSET(PeriodBarBuilder!$AC$33,0,0,PeriodBarBuilder!$AE$31,1),1) ->  | AB70: =MATCH($Y70,OFFSET(PeriodBarBuilder!$AP$33,0,0,PeriodBarBuilder!$AR$31,1),1) ->  | AC70: =MATCH($Y70,OFFSET(PeriodBarBuilder!$BD$33,0,0,PeriodBarBuilder!$BF$31,1),1) ->  | AD70: =MATCH($Y70,OFFSET(PeriodBarBuilder!$BQ$33,0,0,PeriodBarBuilder!$BS$31,1),1) ->  | AE70: =MATCH($Y70,OFFSET(PeriodBarBuilder!$CD$33,0,0,PeriodBarBuilder!$CF$31,1),1) ->  | AF70: =OFFSET(PeriodBarBuilder!$L$32,CalculationsAndCharts!Y70,0,1,1) ->  | AG70: =OFFSET(PeriodBarBuilder!$Z$32,CalculationsAndCharts!Z70,0,1,1) ->  | AH70: =OFFSET(PeriodBarBuilder!$AN$32,CalculationsAndCharts!AA70,0,1,1) ->  | AI70: =OFFSET(PeriodBarBuilder!$BA$32,CalculationsAndCharts!AB70,0,1,1) ->  | AJ70: =OFFSET(PeriodBarBuilder!$BO$32,CalculationsAndCharts!AC70,0,1,1) ->  | AK70: =OFFSET(PeriodBarBuilder!$CB$32,CalculationsAndCharts!AD70,0,1,1) ->  | AL70: =OFFSET(PeriodBarBuilder!$CO$32,CalculationsAndCharts!AE70,0,1,1) ->  | AN70: =OFFSET(PeriodBarBuilder!$M$32,CalculationsAndCharts!Y70,0,1,1) ->  | AO70: =OFFSET(PeriodBarBuilder!$AA$32,CalculationsAndCharts!K70,0,1,1) ->  | AP70: =OFFSET(PeriodBarBuilder!$AO$32,CalculationsAndCharts!AA70,0,1,1) ->  | AQ70: =OFFSET(PeriodBarBuilder!$BB$32,CalculationsAndCharts!AB70,0,1,1) ->  | AR70: =OFFSET(PeriodBarBuilder!$BP$32,CalculationsAndCharts!AC70,0,1,1) ->  | AS70: =OFFSET(PeriodBarBuilder!$CC$32,CalculationsAndCharts!AD70,0,1,1) ->  | AT70: =OFFSET(PeriodBarBuilder!$CP$32,CalculationsAndCharts!AE70,0,1,1) ->  | AV70: 0 | AX70: 15300200
A71: 39 | B71: =IF(A71>$A$8,"",OFFSET(InputPriceData!B$15,$A71+$A$11,0,1,1)) -> 2018-12-17 | C71: =IF(A71>$A$8,"",OFFSET(InputPriceData!G$15,CalculationsAndCharts!$A71+$A$11,IF($C$5,8,0),1,1)) -> 15925500 | D71: =IF(A71>$A$8,"",OFFSET(InputPriceData!C$15,CalculationsAndCharts!$A71+$A$11,IF($C$5,8,0),1,1)) -> 28.92 | E71: =IF(A71>$A$8,"",OFFSET(InputPriceData!D$15,CalculationsAndCharts!$A71+$A$11,IF($C$5,8,0),1,1)) -> 29.42 | F71: =IF(A71>$A$8,"",OFFSET(InputPriceData!E$15,CalculationsAndCharts!$A71+$A$11,IF($C$5,8,0),1,1)) -> 28.66 | G71: =IF(A71>$A$8,"",OFFSET(InputPriceData!F$15,CalculationsAndCharts!$A71+$A$11,IF($C$5,8,0),1,1)) -> 29.09 | H71: 33.110001 | I71: 28.17 | J71: =IF($R$19=FALSE,NA(),OFFSET(PeriodBarBuilder!$K$32,A71,0,1,1)) -> 0.1862347801 | K71: =MATCH(A71,OFFSET(PeriodBarBuilder!$O$33,0,0,PeriodBarBuilder!$Q$31,1),0) ->  | L71: =IF($R$20=FALSE,NA(),OFFSET(PeriodBarBuilder!$Y$32,K71,0,1,1)) ->  | M71: =MATCH($A71,OFFSET(PeriodBarBuilder!$AC$32,1,0,PeriodBarBuilder!$AE$31,1),0) ->  | N71: =IF($R$21=FALSE,NA(),OFFSET(PeriodBarBuilder!$AM$32,M71,0,1,1)) ->  | O71: =MATCH($A71,OFFSET(PeriodBarBuilder!$AP$32,1,0,PeriodBarBuilder!$AR$31,1),0) ->  | P71: =IF($R$22=FALSE,NA(),OFFSET(PeriodBarBuilder!$AZ$32,O71,0,1,1)) ->  | Q71: =MATCH($A71,OFFSET(PeriodBarBuilder!$BD$32,1,0,PeriodBarBuilder!$BF$31,1),0) ->  | R71: =IF($R$23=FALSE,NA(),OFFSET(PeriodBarBuilder!$BN$32,Q71,0,1,1)) ->  | S71: =MATCH($A71,OFFSET(PeriodBarBuilder!$BQ$32,1,0,PeriodBarBuilder!$BS$31,1),0) ->  | T71: =IF($R$24=FALSE,NA(),OFFSET(PeriodBarBuilder!$CA$32,S71,0,1,1)) ->  | U71: =MATCH($A71,OFFSET(PeriodBarBuilder!$CD$32,1,0,PeriodBarBuilder!$CF$31,1),0) ->  | V71: =IF($R$25=FALSE,NA(),OFFSET(PeriodBarBuilder!$CN$32,U71,0,1,1)) ->  | W71: 0.8 | X71: 0.2 | Y71: =OFFSET(PeriodBarBuilder!$O$32,K71,0,1,1) ->  | AA71: =MATCH($Y71,OFFSET(PeriodBarBuilder!$AC$33,0,0,PeriodBarBuilder!$AE$31,1),1) ->  | AB71: =MATCH($Y71,OFFSET(PeriodBarBuilder!$AP$33,0,0,PeriodBarBuilder!$AR$31,1),1) ->  | AC71: =MATCH($Y71,OFFSET(PeriodBarBuilder!$BD$33,0,0,PeriodBarBuilder!$BF$31,1),1) ->  | AD71: =MATCH($Y71,OFFSET(PeriodBarBuilder!$BQ$33,0,0,PeriodBarBuilder!$BS$31,1),1) ->  | AE71: =MATCH($Y71,OFFSET(PeriodBarBuilder!$CD$33,0,0,PeriodBarBuilder!$CF$31,1),1) ->  | AF71: =OFFSET(PeriodBarBuilder!$L$32,CalculationsAndCharts!Y71,0,1,1) ->  | AG71: =OFFSET(PeriodBarBuilder!$Z$32,CalculationsAndCharts!Z71,0,1,1) ->  | AH71: =OFFSET(PeriodBarBuilder!$AN$32,CalculationsAndCharts!AA71,0,1,1) ->  | AI71: =OFFSET(PeriodBarBuilder!$BA$32,CalculationsAndCharts!AB71,0,1,1) ->  | AJ71: =OFFSET(PeriodBarBuilder!$BO$32,CalculationsAndCharts!AC71,0,1,1) ->  | AK71: =OFFSET(PeriodBarBuilder!$CB$32,CalculationsAndCharts!AD71,0,1,1) ->  | AL71: =OFFSET(PeriodBarBuilder!$CO$32,CalculationsAndCharts!AE71,0,1,1) ->  | AN71: =OFFSET(PeriodBarBuilder!$M$32,CalculationsAndCharts!Y71,0,1,1) ->  | AO71: =OFFSET(PeriodBarBuilder!$AA$32,CalculationsAndCharts!K71,0,1,1) ->  | AP71: =OFFSET(PeriodBarBuilder!$AO$32,CalculationsAndCharts!AA71,0,1,1) ->  | AQ71: =OFFSET(PeriodBarBuilder!$BB$32,CalculationsAndCharts!AB71,0,1,1) ->  | AR71: =OFFSET(PeriodBarBuilder!$BP$32,CalculationsAndCharts!AC71,0,1,1) ->  | AS71: =OFFSET(PeriodBarBuilder!$CC$32,CalculationsAndCharts!AD71,0,1,1) ->  | AT71: =OFFSET(PeriodBarBuilder!$CP$32,CalculationsAndCharts!AE71,0,1,1) ->  | AV71: 0 | AW71: 15925500
A72: 40 | B72: =IF(A72>$A$8,"",OFFSET(InputPriceData!B$15,$A72+$A$11,0,1,1)) -> 2018-12-14 | C72: =IF(A72>$A$8,"",OFFSET(InputPriceData!G$15,CalculationsAndCharts!$A72+$A$11,IF($C$5,8,0),1,1)) -> 17021100 | D72: =IF(A72>$A$8,"",OFFSET(InputPriceData!C$15,CalculationsAndCharts!$A72+$A$11,IF($C$5,8,0),1,1)) -> 29.540001 | E72: =IF(A72>$A$8,"",OFFSET(InputPriceData!D$15,CalculationsAndCharts!$A72+$A$11,IF($C$5,8,0),1,1)) -> 29.860001 | F72: =IF(A72>$A$8,"",OFFSET(InputPriceData!E$15,CalculationsAndCharts!$A72+$A$11,IF($C$5,8,0),1,1)) -> 28.85 | G72: =IF(A72>$A$8,"",OFFSET(InputPriceData!F$15,CalculationsAndCharts!$A72+$A$11,IF($C$5,8,0),1,1)) -> 29 | H72: 33.110001 | I72: 28.17 | J72: =IF($R$19=FALSE,NA(),OFFSET(PeriodBarBuilder!$K$32,A72,0,1,1)) -> 0.1680161603 | K72: =MATCH(A72,OFFSET(PeriodBarBuilder!$O$33,0,0,PeriodBarBuilder!$Q$31,1),0) -> 10 | L72: =IF($R$20=FALSE,NA(),OFFSET(PeriodBarBuilder!$Y$32,K72,0,1,1)) -> 0.1169354917 | M72: =MATCH($A72,OFFSET(PeriodBarBuilder!$AC$32,1,0,PeriodBarBuilder!$AE$31,1),0) ->  | N72: =IF($R$21=FALSE,NA(),OFFSET(PeriodBarBuilder!$AM$32,M72,0,1,1)) ->  | O72: =MATCH($A72,OFFSET(PeriodBarBuilder!$AP$32,1,0,PeriodBarBuilder!$AR$31,1),0) -> 6 | P72: =IF($R$22=FALSE,NA(),OFFSET(PeriodBarBuilder!$AZ$32,O72,0,1,1)) -> 0.0650710546 | Q72: =MATCH($A72,OFFSET(PeriodBarBuilder!$BD$32,1,0,PeriodBarBuilder!$BF$31,1),0) ->  | R72: =IF($R$23=FALSE,NA(),OFFSET(PeriodBarBuilder!$BN$32,Q72,0,1,1)) ->  | S72: =MATCH($A72,OFFSET(PeriodBarBuilder!$BQ$32,1,0,PeriodBarBuilder!$BS$31,1),0) ->  | T72: =IF($R$24=FALSE,NA(),OFFSET(PeriodBarBuilder!$CA$32,S72,0,1,1)) ->  | U72: =MATCH($A72,OFFSET(PeriodBarBuilder!$CD$32,1,0,PeriodBarBuilder!$CF$31,1),0) ->  | V72: =IF($R$25=FALSE,NA(),OFFSET(PeriodBarBuilder!$CN$32,U72,0,1,1)) ->  | W72: 0.8 | X72: 0.2 | Y72: =OFFSET(PeriodBarBuilder!$O$32,K72,0,1,1) -> 40 | Z72: 10 | AA72: =MATCH($Y72,OFFSET(PeriodBarBuilder!$AC$33,0,0,PeriodBarBuilder!$AE$31,1),1) -> 3 | AB72: =MATCH($Y72,OFFSET(PeriodBarBuilder!$AP$33,0,0,PeriodBarBuilder!$AR$31,1),1) -> 6 | AC72: =MATCH($Y72,OFFSET(PeriodBarBuilder!$BD$33,0,0,PeriodBarBuilder!$BF$31,1),1) -> 2 | AD72: =MATCH($Y72,OFFSET(PeriodBarBuilder!$BQ$33,0,0,PeriodBarBuilder!$BS$31,1),1) -> 3 | AE72: =MATCH($Y72,OFFSET(PeriodBarBuilder!$CD$33,0,0,PeriodBarBuilder!$CF$31,1),1) -> 5 | AF72: =OFFSET(PeriodBarBuilder!$L$32,CalculationsAndCharts!Y72,0,1,1) -> 1 | AG72: =OFFSET(PeriodBarBuilder!$Z$32,CalculationsAndCharts!Z72,0,1,1) -> 1 | AH72: =OFFSET(PeriodBarBuilder!$AN$32,CalculationsAndCharts!AA72,0,1,1) -> 1 | AI72: =OFFSET(PeriodBarBuilder!$BA$32,CalculationsAndCharts!AB72,0,1,1) -> 1 | AJ72: =OFFSET(PeriodBarBuilder!$BO$32,CalculationsAndCharts!AC72,0,1,1) -> 1 | AK72: =OFFSET(PeriodBarBuilder!$CB$32,CalculationsAndCharts!AD72,0,1,1) -> 1 | AL72: =OFFSET(PeriodBarBuilder!$CO$32,CalculationsAndCharts!AE72,0,1,1) -> 1 | AM72: 7 | AN72: =OFFSET(PeriodBarBuilder!$M$32,CalculationsAndCharts!Y72,0,1,1) -> 0 | AO72: =OFFSET(PeriodBarBuilder!$AA$32,CalculationsAndCharts!K72,0,1,1) -> 0 | AP72: =OFFSET(PeriodBarBuilder!$AO$32,CalculationsAndCharts!AA72,0,1,1) -> 0 | AQ72: =OFFSET(PeriodBarBuilder!$BB$32,CalculationsAndCharts!AB72,0,1,1) -> 0 | AR72: =OFFSET(PeriodBarBuilder!$BP$32,CalculationsAndCharts!AC72,0,1,1) -> 0 | AS72: =OFFSET(PeriodBarBuilder!$CC$32,CalculationsAndCharts!AD72,0,1,1) -> 0 | AT72: =OFFSET(PeriodBarBuilder!$CP$32,CalculationsAndCharts!AE72,0,1,1) -> 0 | AU72: 0 | AV72: 0 | AX72: 17021100
A73: 41 | B73: =IF(A73>$A$8,"",OFFSET(InputPriceData!B$15,$A73+$A$11,0,1,1)) -> 2018-12-13 | C73: =IF(A73>$A$8,"",OFFSET(InputPriceData!G$15,CalculationsAndCharts!$A73+$A$11,IF($C$5,8,0),1,1)) -> 15027300 | D73: =IF(A73>$A$8,"",OFFSET(InputPriceData!C$15,CalculationsAndCharts!$A73+$A$11,IF($C$5,8,0),1,1)) -> 29.469999 | E73: =IF(A73>$A$8,"",OFFSET(InputPriceData!D$15,CalculationsAndCharts!$A73+$A$11,IF($C$5,8,0),1,1)) -> 30.190001 | F73: =IF(A73>$A$8,"",OFFSET(InputPriceData!E$15,CalculationsAndCharts!$A73+$A$11,IF($C$5,8,0),1,1)) -> 29.26 | G73: =IF(A73>$A$8,"",OFFSET(InputPriceData!F$15,CalculationsAndCharts!$A73+$A$11,IF($C$5,8,0),1,1)) -> 29.91 | H73: 34.09 | I73: 28.17 | J73: =IF($R$19=FALSE,NA(),OFFSET(PeriodBarBuilder!$K$32,A73,0,1,1)) -> 0.2939189189 | K73: =MATCH(A73,OFFSET(PeriodBarBuilder!$O$33,0,0,PeriodBarBuilder!$Q$31,1),0) ->  | L73: =IF($R$20=FALSE,NA(),OFFSET(PeriodBarBuilder!$Y$32,K73,0,1,1)) ->  | M73: =MATCH($A73,OFFSET(PeriodBarBuilder!$AC$32,1,0,PeriodBarBuilder!$AE$31,1),0) ->  | N73: =IF($R$21=FALSE,NA(),OFFSET(PeriodBarBuilder!$AM$32,M73,0,1,1)) ->  | O73: =MATCH($A73,OFFSET(PeriodBarBuilder!$AP$32,1,0,PeriodBarBuilder!$AR$31,1),0) ->  | P73: =IF($R$22=FALSE,NA(),OFFSET(PeriodBarBuilder!$AZ$32,O73,0,1,1)) ->  | Q73: =MATCH($A73,OFFSET(PeriodBarBuilder!$BD$32,1,0,PeriodBarBuilder!$BF$31,1),0) ->  | R73: =IF($R$23=FALSE,NA(),OFFSET(PeriodBarBuilder!$BN$32,Q73,0,1,1)) ->  | S73: =MATCH($A73,OFFSET(PeriodBarBuilder!$BQ$32,1,0,PeriodBarBuilder!$BS$31,1),0) ->  | T73: =IF($R$24=FALSE,NA(),OFFSET(PeriodBarBuilder!$CA$32,S73,0,1,1)) ->  | U73: =MATCH($A73,OFFSET(PeriodBarBuilder!$CD$32,1,0,PeriodBarBuilder!$CF$31,1),0) ->  | V73: =IF($R$25=FALSE,NA(),OFFSET(PeriodBarBuilder!$CN$32,U73,0,1,1)) ->  | W73: 0.8 | X73: 0.2 | Y73: =OFFSET(PeriodBarBuilder!$O$32,K73,0,1,1) ->  | AA73: =MATCH($Y73,OFFSET(PeriodBarBuilder!$AC$33,0,0,PeriodBarBuilder!$AE$31,1),1) ->  | AB73: =MATCH($Y73,OFFSET(PeriodBarBuilder!$AP$33,0,0,PeriodBarBuilder!$AR$31,1),1) ->  | AC73: =MATCH($Y73,OFFSET(PeriodBarBuilder!$BD$33,0,0,PeriodBarBuilder!$BF$31,1),1) ->  | AD73: =MATCH($Y73,OFFSET(PeriodBarBuilder!$BQ$33,0,0,PeriodBarBuilder!$BS$31,1),1) ->  | AE73: =MATCH($Y73,OFFSET(PeriodBarBuilder!$CD$33,0,0,PeriodBarBuilder!$CF$31,1),1) ->  | AF73: =OFFSET(PeriodBarBuilder!$L$32,CalculationsAndCharts!Y73,0,1,1) ->  | AG73: =OFFSET(PeriodBarBuilder!$Z$32,CalculationsAndCharts!Z73,0,1,1) ->  | AH73: =OFFSET(PeriodBarBuilder!$AN$32,CalculationsAndCharts!AA73,0,1,1) ->  | AI73: =OFFSET(PeriodBarBuilder!$BA$32,CalculationsAndCharts!AB73,0,1,1) ->  | AJ73: =OFFSET(PeriodBarBuilder!$BO$32,CalculationsAndCharts!AC73,0,1,1) ->  | AK73: =OFFSET(PeriodBarBuilder!$CB$32,CalculationsAndCharts!AD73,0,1,1) ->  | AL73: =OFFSET(PeriodBarBuilder!$CO$32,CalculationsAndCharts!AE73,0,1,1) ->  | AN73: =OFFSET(PeriodBarBuilder!$M$32,CalculationsAndCharts!Y73,0,1,1) ->  | AO73: =OFFSET(PeriodBarBuilder!$AA$32,CalculationsAndCharts!K73,0,1,1) ->  | AP73: =OFFSET(PeriodBarBuilder!$AO$32,CalculationsAndCharts!AA73,0,1,1) ->  | AQ73: =OFFSET(PeriodBarBuilder!$BB$32,CalculationsAndCharts!AB73,0,1,1) ->  | AR73: =OFFSET(PeriodBarBuilder!$BP$32,CalculationsAndCharts!AC73,0,1,1) ->  | AS73: =OFFSET(PeriodBarBuilder!$CC$32,CalculationsAndCharts!AD73,0,1,1) ->  | AT73: =OFFSET(PeriodBarBuilder!$CP$32,CalculationsAndCharts!AE73,0,1,1) ->  | AV73: 0 | AW73: 15027300
A74: 42 | B74: =IF(A74>$A$8,"",OFFSET(InputPriceData!B$15,$A74+$A$11,0,1,1)) -> 2018-12-12 | C74: =IF(A74>$A$8,"",OFFSET(InputPriceData!G$15,CalculationsAndCharts!$A74+$A$11,IF($C$5,8,0),1,1)) -> 10506100 | D74: =IF(A74>$A$8,"",OFFSET(InputPriceData!C$15,CalculationsAndCharts!$A74+$A$11,IF($C$5,8,0),1,1)) -> 29.219999 | E74: =IF(A74>$A$8,"",OFFSET(InputPriceData!D$15,CalculationsAndCharts!$A74+$A$11,IF($C$5,8,0),1,1)) -> 30.110001 | F74: =IF(A74>$A$8,"",OFFSET(InputPriceData!E$15,CalculationsAndCharts!$A74+$A$11,IF($C$5,8,0),1,1)) -> 29.15 | G74: =IF(A74>$A$8,"",OFFSET(InputPriceData!F$15,CalculationsAndCharts!$A74+$A$11,IF($C$5,8,0),1,1)) -> 29.610001 | H74: 35.43 | I74: 28.17 | J74: =IF($R$19=FALSE,NA(),OFFSET(PeriodBarBuilder!$K$32,A74,0,1,1)) -> 0.1983472452 | K74: =MATCH(A74,OFFSET(PeriodBarBuilder!$O$33,0,0,PeriodBarBuilder!$Q$31,1),0) ->  | L74: =IF($R$20=FALSE,NA(),OFFSET(PeriodBarBuilder!$Y$32,K74,0,1,1)) ->  | M74: =MATCH($A74,OFFSET(PeriodBarBuilder!$AC$32,1,0,PeriodBarBuilder!$AE$31,1),0) ->  | N74: =IF($R$21=FALSE,NA(),OFFSET(PeriodBarBuilder!$AM$32,M74,0,1,1)) ->  | O74: =MATCH($A74,OFFSET(PeriodBarBuilder!$AP$32,1,0,PeriodBarBuilder!$AR$31,1),0) ->  | P74: =IF($R$22=FALSE,NA(),OFFSET(PeriodBarBuilder!$AZ$32,O74,0,1,1)) ->  | Q74: =MATCH($A74,OFFSET(PeriodBarBuilder!$BD$32,1,0,PeriodBarBuilder!$BF$31,1),0) ->  | R74: =IF($R$23=FALSE,NA(),OFFSET(PeriodBarBuilder!$BN$32,Q74,0,1,1)) ->  | S74: =MATCH($A74,OFFSET(PeriodBarBuilder!$BQ$32,1,0,PeriodBarBuilder!$BS$31,1),0) ->  | T74: =IF($R$24=FALSE,NA(),OFFSET(PeriodBarBuilder!$CA$32,S74,0,1,1)) ->  | U74: =MATCH($A74,OFFSET(PeriodBarBuilder!$CD$32,1,0,PeriodBarBuilder!$CF$31,1),0) ->  | V74: =IF($R$25=FALSE,NA(),OFFSET(PeriodBarBuilder!$CN$32,U74,0,1,1)) ->  | W74: 0.8 | X74: 0.2 | Y74: =OFFSET(PeriodBarBuilder!$O$32,K74,0,1,1) ->  | AA74: =MATCH($Y74,OFFSET(PeriodBarBuilder!$AC$33,0,0,PeriodBarBuilder!$AE$31,1),1) ->  | AB74: =MATCH($Y74,OFFSET(PeriodBarBuilder!$AP$33,0,0,PeriodBarBuilder!$AR$31,1),1) ->  | AC74: =MATCH($Y74,OFFSET(PeriodBarBuilder!$BD$33,0,0,PeriodBarBuilder!$BF$31,1),1) ->  | AD74: =MATCH($Y74,OFFSET(PeriodBarBuilder!$BQ$33,0,0,PeriodBarBuilder!$BS$31,1),1) ->  | AE74: =MATCH($Y74,OFFSET(PeriodBarBuilder!$CD$33,0,0,PeriodBarBuilder!$CF$31,1),1) ->  | AF74: =OFFSET(PeriodBarBuilder!$L$32,CalculationsAndCharts!Y74,0,1,1) ->  | AG74: =OFFSET(PeriodBarBuilder!$Z$32,CalculationsAndCharts!Z74,0,1,1) ->  | AH74: =OFFSET(PeriodBarBuilder!$AN$32,CalculationsAndCharts!AA74,0,1,1) ->  | AI74: =OFFSET(PeriodBarBuilder!$BA$32,CalculationsAndCharts!AB74,0,1,1) ->  | AJ74: =OFFSET(PeriodBarBuilder!$BO$32,CalculationsAndCharts!AC74,0,1,1) ->  | AK74: =OFFSET(PeriodBarBuilder!$CB$32,CalculationsAndCharts!AD74,0,1,1) ->  | AL74: =OFFSET(PeriodBarBuilder!$CO$32,CalculationsAndCharts!AE74,0,1,1) ->  | AN74: =OFFSET(PeriodBarBuilder!$M$32,CalculationsAndCharts!Y74,0,1,1) ->  | AO74: =OFFSET(PeriodBarBuilder!$AA$32,CalculationsAndCharts!K74,0,1,1) ->  | AP74: =OFFSET(PeriodBarBuilder!$AO$32,CalculationsAndCharts!AA74,0,1,1) ->  | AQ74: =OFFSET(PeriodBarBuilder!$BB$32,CalculationsAndCharts!AB74,0,1,1) ->  | AR74: =OFFSET(PeriodBarBuilder!$BP$32,CalculationsAndCharts!AC74,0,1,1) ->  | AS74: =OFFSET(PeriodBarBuilder!$CC$32,CalculationsAndCharts!AD74,0,1,1) ->  | AT74: =OFFSET(PeriodBarBuilder!$CP$32,CalculationsAndCharts!AE74,0,1,1) ->  | AV74: 0 | AW74: 10506100
A75: 43 | B75: =IF(A75>$A$8,"",OFFSET(InputPriceData!B$15,$A75+$A$11,0,1,1)) -> 2018-12-11 | C75: =IF(A75>$A$8,"",OFFSET(InputPriceData!G$15,CalculationsAndCharts!$A75+$A$11,IF($C$5,8,0),1,1)) -> 13488600 | D75: =IF(A75>$A$8,"",OFFSET(InputPriceData!C$15,CalculationsAndCharts!$A75+$A$11,IF($C$5,8,0),1,1)) -> 29.790001 | E75: =IF(A75>$A$8,"",OFFSET(InputPriceData!D$15,CalculationsAndCharts!$A75+$A$11,IF($C$5,8,0),1,1)) -> 29.84 | F75: =IF(A75>$A$8,"",OFFSET(InputPriceData!E$15,CalculationsAndCharts!$A75+$A$11,IF($C$5,8,0),1,1)) -> 28.17 | G75: =IF(A75>$A$8,"",OFFSET(InputPriceData!F$15,CalculationsAndCharts!$A75+$A$11,IF($C$5,8,0),1,1)) -> 28.799999 | H75: 35.43 | I75: 28.17 | J75: =IF($R$19=FALSE,NA(),OFFSET(PeriodBarBuilder!$K$32,A75,0,1,1)) -> 0.08677672176 | K75: =MATCH(A75,OFFSET(PeriodBarBuilder!$O$33,0,0,PeriodBarBuilder!$Q$31,1),0) ->  | L75: =IF($R$20=FALSE,NA(),OFFSET(PeriodBarBuilder!$Y$32,K75,0,1,1)) ->  | M75: =MATCH($A75,OFFSET(PeriodBarBuilder!$AC$32,1,0,PeriodBarBuilder!$AE$31,1),0) ->  | N75: =IF($R$21=FALSE,NA(),OFFSET(PeriodBarBuilder!$AM$32,M75,0,1,1)) ->  | O75: =MATCH($A75,OFFSET(PeriodBarBuilder!$AP$32,1,0,PeriodBarBuilder!$AR$31,1),0) ->  | P75: =IF($R$22=FALSE,NA(),OFFSET(PeriodBarBuilder!$AZ$32,O75,0,1,1)) ->  | Q75: =MATCH($A75,OFFSET(PeriodBarBuilder!$BD$32,1,0,PeriodBarBuilder!$BF$31,1),0) ->  | R75: =IF($R$23=FALSE,NA(),OFFSET(PeriodBarBuilder!$BN$32,Q75,0,1,1)) ->  | S75: =MATCH($A75,OFFSET(PeriodBarBuilder!$BQ$32,1,0,PeriodBarBuilder!$BS$31,1),0) ->  | T75: =IF($R$24=FALSE,NA(),OFFSET(PeriodBarBuilder!$CA$32,S75,0,1,1)) ->  | U75: =MATCH($A75,OFFSET(PeriodBarBuilder!$CD$32,1,0,PeriodBarBuilder!$CF$31,1),0) ->  | V75: =IF($R$25=FALSE,NA(),OFFSET(PeriodBarBuilder!$CN$32,U75,0,1,1)) ->  | W75: 0.8 | X75: 0.2 | Y75: =OFFSET(PeriodBarBuilder!$O$32,K75,0,1,1) ->  | AA75: =MATCH($Y75,OFFSET(PeriodBarBuilder!$AC$33,0,0,PeriodBarBuilder!$AE$31,1),1) ->  | AB75: =MATCH($Y75,OFFSET(PeriodBarBuilder!$AP$33,0,0,PeriodBarBuilder!$AR$31,1),1) ->  | AC75: =MATCH($Y75,OFFSET(PeriodBarBuilder!$BD$33,0,0,PeriodBarBuilder!$BF$31,1),1) ->  | AD75: =MATCH($Y75,OFFSET(PeriodBarBuilder!$BQ$33,0,0,PeriodBarBuilder!$BS$31,1),1) ->  | AE75: =MATCH($Y75,OFFSET(PeriodBarBuilder!$CD$33,0,0,PeriodBarBuilder!$CF$31,1),1) ->  | AF75: =OFFSET(PeriodBarBuilder!$L$32,CalculationsAndCharts!Y75,0,1,1) ->  | AG75: =OFFSET(PeriodBarBuilder!$Z$32,CalculationsAndCharts!Z75,0,1,1) ->  | AH75: =OFFSET(PeriodBarBuilder!$AN$32,CalculationsAndCharts!AA75,0,1,1) ->  | AI75: =OFFSET(PeriodBarBuilder!$BA$32,CalculationsAndCharts!AB75,0,1,1) ->  | AJ75: =OFFSET(PeriodBarBuilder!$BO$32,CalculationsAndCharts!AC75,0,1,1) ->  | AK75: =OFFSET(PeriodBarBuilder!$CB$32,CalculationsAndCharts!AD75,0,1,1) ->  | AL75: =OFFSET(PeriodBarBuilder!$CO$32,CalculationsAndCharts!AE75,0,1,1) ->  | AN75: =OFFSET(PeriodBarBuilder!$M$32,CalculationsAndCharts!Y75,0,1,1) ->  | AO75: =OFFSET(PeriodBarBuilder!$AA$32,CalculationsAndCharts!K75,0,1,1) ->  | AP75: =OFFSET(PeriodBarBuilder!$AO$32,CalculationsAndCharts!AA75,0,1,1) ->  | AQ75: =OFFSET(PeriodBarBuilder!$BB$32,CalculationsAndCharts!AB75,0,1,1) ->  | AR75: =OFFSET(PeriodBarBuilder!$BP$32,CalculationsAndCharts!AC75,0,1,1) ->  | AS75: =OFFSET(PeriodBarBuilder!$CC$32,CalculationsAndCharts!AD75,0,1,1) ->  | AT75: =OFFSET(PeriodBarBuilder!$CP$32,CalculationsAndCharts!AE75,0,1,1) ->  | AV75: 0 | AX75: 13488600
A76: 44 | B76: =IF(A76>$A$8,"",OFFSET(InputPriceData!B$15,$A76+$A$11,0,1,1)) -> 2018-12-10 | C76: =IF(A76>$A$8,"",OFFSET(InputPriceData!G$15,CalculationsAndCharts!$A76+$A$11,IF($C$5,8,0),1,1)) -> 12882700 | D76: =IF(A76>$A$8,"",OFFSET(InputPriceData!C$15,CalculationsAndCharts!$A76+$A$11,IF($C$5,8,0),1,1)) -> 29.139999 | E76: =IF(A76>$A$8,"",OFFSET(InputPriceData!D$15,CalculationsAndCharts!$A76+$A$11,IF($C$5,8,0),1,1)) -> 29.59 | F76: =IF(A76>$A$8,"",OFFSET(InputPriceData!E$15,CalculationsAndCharts!$A76+$A$11,IF($C$5,8,0),1,1)) -> 28.68 | G76: =IF(A76>$A$8,"",OFFSET(InputPriceData!F$15,CalculationsAndCharts!$A76+$A$11,IF($C$5,8,0),1,1)) -> 29.280001 | H76: 36.32 | I76: 28.68 | J76: =IF($R$19=FALSE,NA(),OFFSET(PeriodBarBuilder!$K$32,A76,0,1,1)) -> 0.0785341623 | K76: =MATCH(A76,OFFSET(PeriodBarBuilder!$O$33,0,0,PeriodBarBuilder!$Q$31,1),0) ->  | L76: =IF($R$20=FALSE,NA(),OFFSET(PeriodBarBuilder!$Y$32,K76,0,1,1)) ->  | M76: =MATCH($A76,OFFSET(PeriodBarBuilder!$AC$32,1,0,PeriodBarBuilder!$AE$31,1),0) ->  | N76: =IF($R$21=FALSE,NA(),OFFSET(PeriodBarBuilder!$AM$32,M76,0,1,1)) ->  | O76: =MATCH($A76,OFFSET(PeriodBarBuilder!$AP$32,1,0,PeriodBarBuilder!$AR$31,1),0) ->  | P76: =IF($R$22=FALSE,NA(),OFFSET(PeriodBarBuilder!$AZ$32,O76,0,1,1)) ->  | Q76: =MATCH($A76,OFFSET(PeriodBarBuilder!$BD$32,1,0,PeriodBarBuilder!$BF$31,1),0) ->  | R76: =IF($R$23=FALSE,NA(),OFFSET(PeriodBarBuilder!$BN$32,Q76,0,1,1)) ->  | S76: =MATCH($A76,OFFSET(PeriodBarBuilder!$BQ$32,1,0,PeriodBarBuilder!$BS$31,1),0) ->  | T76: =IF($R$24=FALSE,NA(),OFFSET(PeriodBarBuilder!$CA$32,S76,0,1,1)) ->  | U76: =MATCH($A76,OFFSET(PeriodBarBuilder!$CD$32,1,0,PeriodBarBuilder!$CF$31,1),0) ->  | V76: =IF($R$25=FALSE,NA(),OFFSET(PeriodBarBuilder!$CN$32,U76,0,1,1)) ->  | W76: 0.8 | X76: 0.2 | Y76: =OFFSET(PeriodBarBuilder!$O$32,K76,0,1,1) ->  | AA76: =MATCH($Y76,OFFSET(PeriodBarBuilder!$AC$33,0,0,PeriodBarBuilder!$AE$31,1),1) ->  | AB76: =MATCH($Y76,OFFSET(PeriodBarBuilder!$AP$33,0,0,PeriodBarBuilder!$AR$31,1),1) ->  | AC76: =MATCH($Y76,OFFSET(PeriodBarBuilder!$BD$33,0,0,PeriodBarBuilder!$BF$31,1),1) ->  | AD76: =MATCH($Y76,OFFSET(PeriodBarBuilder!$BQ$33,0,0,PeriodBarBuilder!$BS$31,1),1) ->  | AE76: =MATCH($Y76,OFFSET(PeriodBarBuilder!$CD$33,0,0,PeriodBarBuilder!$CF$31,1),1) ->  | AF76: =OFFSET(PeriodBarBuilder!$L$32,CalculationsAndCharts!Y76,0,1,1) ->  | AG76: =OFFSET(PeriodBarBuilder!$Z$32,CalculationsAndCharts!Z76,0,1,1) ->  | AH76: =OFFSET(PeriodBarBuilder!$AN$32,CalculationsAndCharts!AA76,0,1,1) ->  | AI76: =OFFSET(PeriodBarBuilder!$BA$32,CalculationsAndCharts!AB76,0,1,1) ->  | AJ76: =OFFSET(PeriodBarBuilder!$BO$32,CalculationsAndCharts!AC76,0,1,1) ->  | AK76: =OFFSET(PeriodBarBuilder!$CB$32,CalculationsAndCharts!AD76,0,1,1) ->  | AL76: =OFFSET(PeriodBarBuilder!$CO$32,CalculationsAndCharts!AE76,0,1,1) ->  | AN76: =OFFSET(PeriodBarBuilder!$M$32,CalculationsAndCharts!Y76,0,1,1) ->  | AO76: =OFFSET(PeriodBarBuilder!$AA$32,CalculationsAndCharts!K76,0,1,1) ->  | AP76: =OFFSET(PeriodBarBuilder!$AO$32,CalculationsAndCharts!AA76,0,1,1) ->  | AQ76: =OFFSET(PeriodBarBuilder!$BB$32,CalculationsAndCharts!AB76,0,1,1) ->  | AR76: =OFFSET(PeriodBarBuilder!$BP$32,CalculationsAndCharts!AC76,0,1,1) ->  | AS76: =OFFSET(PeriodBarBuilder!$CC$32,CalculationsAndCharts!AD76,0,1,1) ->  | AT76: =OFFSET(PeriodBarBuilder!$CP$32,CalculationsAndCharts!AE76,0,1,1) ->  | AV76: 0 | AW76: 12882700
A77: 45 | B77: =IF(A77>$A$8,"",OFFSET(InputPriceData!B$15,$A77+$A$11,0,1,1)) -> 2018-12-07 | C77: =IF(A77>$A$8,"",OFFSET(InputPriceData!G$15,CalculationsAndCharts!$A77+$A$11,IF($C$5,8,0),1,1)) -> 14265700 | D77: =IF(A77>$A$8,"",OFFSET(InputPriceData!C$15,CalculationsAndCharts!$A77+$A$11,IF($C$5,8,0),1,1)) -> 30.43 | E77: =IF(A77>$A$8,"",OFFSET(InputPriceData!D$15,CalculationsAndCharts!$A77+$A$11,IF($C$5,8,0),1,1)) -> 31.07 | F77: =IF(A77>$A$8,"",OFFSET(InputPriceData!E$15,CalculationsAndCharts!$A77+$A$11,IF($C$5,8,0),1,1)) -> 29.549999 | G77: =IF(A77>$A$8,"",OFFSET(InputPriceData!F$15,CalculationsAndCharts!$A77+$A$11,IF($C$5,8,0),1,1)) -> 29.68 | H77: 36.509998 | I77: 29.24 | J77: =IF($R$19=FALSE,NA(),OFFSET(PeriodBarBuilder!$K$32,A77,0,1,1)) -> 0.06052271266 | K77: =MATCH(A77,OFFSET(PeriodBarBuilder!$O$33,0,0,PeriodBarBuilder!$Q$31,1),0) -> 11 | L77: =IF($R$20=FALSE,NA(),OFFSET(PeriodBarBuilder!$Y$32,K77,0,1,1)) -> 0.03382539975 | M77: =MATCH($A77,OFFSET(PeriodBarBuilder!$AC$32,1,0,PeriodBarBuilder!$AE$31,1),0) ->  | N77: =IF($R$21=FALSE,NA(),OFFSET(PeriodBarBuilder!$AM$32,M77,0,1,1)) ->  | O77: =MATCH($A77,OFFSET(PeriodBarBuilder!$AP$32,1,0,PeriodBarBuilder!$AR$31,1),0) ->  | P77: =IF($R$22=FALSE,NA(),OFFSET(PeriodBarBuilder!$AZ$32,O77,0,1,1)) ->  | Q77: =MATCH($A77,OFFSET(PeriodBarBuilder!$BD$32,1,0,PeriodBarBuilder!$BF$31,1),0) ->  | R77: =IF($R$23=FALSE,NA(),OFFSET(PeriodBarBuilder!$BN$32,Q77,0,1,1)) ->  | S77: =MATCH($A77,OFFSET(PeriodBarBuilder!$BQ$32,1,0,PeriodBarBuilder!$BS$31,1),0) ->  | T77: =IF($R$24=FALSE,NA(),OFFSET(PeriodBarBuilder!$CA$32,S77,0,1,1)) ->  | U77: =MATCH($A77,OFFSET(PeriodBarBuilder!$CD$32,1,0,PeriodBarBuilder!$CF$31,1),0) ->  | V77: =IF($R$25=FALSE,NA(),OFFSET(PeriodBarBuilder!$CN$32,U77,0,1,1)) ->  | W77: 0.8 | X77: 0.2 | Y77: =OFFSET(PeriodBarBuilder!$O$32,K77,0,1,1) -> 45 | Z77: 11 | AA77: =MATCH($Y77,OFFSET(PeriodBarBuilder!$AC$33,0,0,PeriodBarBuilder!$AE$31,1),1) -> 3 | AB77: =MATCH($Y77,OFFSET(PeriodBarBuilder!$AP$33,0,0,PeriodBarBuilder!$AR$31,1),1) -> 6 | AC77: =MATCH($Y77,OFFSET(PeriodBarBuilder!$BD$33,0,0,PeriodBarBuilder!$BF$31,1),1) -> 2 | AD77: =MATCH($Y77,OFFSET(PeriodBarBuilder!$BQ$33,0,0,PeriodBarBuilder!$BS$31,1),1) -> 3 | AE77: =MATCH($Y77,OFFSET(PeriodBarBuilder!$CD$33,0,0,PeriodBarBuilder!$CF$31,1),1) -> 5 | AF77: =OFFSET(PeriodBarBuilder!$L$32,CalculationsAndCharts!Y77,0,1,1) -> 1 | AG77: =OFFSET(PeriodBarBuilder!$Z$32,CalculationsAndCharts!Z77,0,1,1) -> 1 | AH77: =OFFSET(PeriodBarBuilder!$AN$32,CalculationsAndCharts!AA77,0,1,1) -> 1 | AI77: =OFFSET(PeriodBarBuilder!$BA$32,CalculationsAndCharts!AB77,0,1,1) -> 1 | AJ77: =OFFSET(PeriodBarBuilder!$BO$32,CalculationsAndCharts!AC77,0,1,1) -> 1 | AK77: =OFFSET(PeriodBarBuilder!$CB$32,CalculationsAndCharts!AD77,0,1,1) -> 1 | AL77: =OFFSET(PeriodBarBuilder!$CO$32,CalculationsAndCharts!AE77,0,1,1) -> 1 | AM77: 7 | AN77: =OFFSET(PeriodBarBuilder!$M$32,CalculationsAndCharts!Y77,0,1,1) -> 0 | AO77: =OFFSET(PeriodBarBuilder!$AA$32,CalculationsAndCharts!K77,0,1,1) -> 0 | AP77: =OFFSET(PeriodBarBuilder!$AO$32,CalculationsAndCharts!AA77,0,1,1) -> 0 | AQ77: =OFFSET(PeriodBarBuilder!$BB$32,CalculationsAndCharts!AB77,0,1,1) -> 0 | AR77: =OFFSET(PeriodBarBuilder!$BP$32,CalculationsAndCharts!AC77,0,1,1) -> 0 | AS77: =OFFSET(PeriodBarBuilder!$CC$32,CalculationsAndCharts!AD77,0,1,1) -> 0 | AT77: =OFFSET(PeriodBarBuilder!$CP$32,CalculationsAndCharts!AE77,0,1,1) -> 0 | AU77: 0 | AV77: 0 | AX77: 14265700
A78: 46 | B78: =IF(A78>$A$8,"",OFFSET(InputPriceData!B$15,$A78+$A$11,0,1,1)) -> 2018-12-06 | C78: =IF(A78>$A$8,"",OFFSET(InputPriceData!G$15,CalculationsAndCharts!$A78+$A$11,IF($C$5,8,0),1,1)) -> 18911100 | D78: =IF(A78>$A$8,"",OFFSET(InputPriceData!C$15,CalculationsAndCharts!$A78+$A$11,IF($C$5,8,0),1,1)) -> 30.48 | E78: =IF(A78>$A$8,"",OFFSET(InputPriceData!D$15,CalculationsAndCharts!$A78+$A$11,IF($C$5,8,0),1,1)) -> 30.549999 | F78: =IF(A78>$A$8,"",OFFSET(InputPriceData!E$15,CalculationsAndCharts!$A78+$A$11,IF($C$5,8,0),1,1)) -> 29.24 | G78: =IF(A78>$A$8,"",OFFSET(InputPriceData!F$15,CalculationsAndCharts!$A78+$A$11,IF($C$5,8,0),1,1)) -> 29.790001 | H78: 36.509998 | I78: 29.24 | J78: =IF($R$19=FALSE,NA(),OFFSET(PeriodBarBuilder!$K$32,A78,0,1,1)) -> 0.07565352838 | K78: =MATCH(A78,OFFSET(PeriodBarBuilder!$O$33,0,0,PeriodBarBuilder!$Q$31,1),0) ->  | L78: =IF($R$20=FALSE,NA(),OFFSET(PeriodBarBuilder!$Y$32,K78,0,1,1)) ->  | M78: =MATCH($A78,OFFSET(PeriodBarBuilder!$AC$32,1,0,PeriodBarBuilder!$AE$31,1),0) ->  | N78: =IF($R$21=FALSE,NA(),OFFSET(PeriodBarBuilder!$AM$32,M78,0,1,1)) ->  | O78: =MATCH($A78,OFFSET(PeriodBarBuilder!$AP$32,1,0,PeriodBarBuilder!$AR$31,1),0) ->  | P78: =IF($R$22=FALSE,NA(),OFFSET(PeriodBarBuilder!$AZ$32,O78,0,1,1)) ->  | Q78: =MATCH($A78,OFFSET(PeriodBarBuilder!$BD$32,1,0,PeriodBarBuilder!$BF$31,1),0) ->  | R78: =IF($R$23=FALSE,NA(),OFFSET(PeriodBarBuilder!$BN$32,Q78,0,1,1)) ->  | S78: =MATCH($A78,OFFSET(PeriodBarBuilder!$BQ$32,1,0,PeriodBarBuilder!$BS$31,1),0) ->  | T78: =IF($R$24=FALSE,NA(),OFFSET(PeriodBarBuilder!$CA$32,S78,0,1,1)) ->  | U78: =MATCH($A78,OFFSET(PeriodBarBuilder!$CD$32,1,0,PeriodBarBuilder!$CF$31,1),0) -> 6 | V78: =IF($R$25=FALSE,NA(),OFFSET(PeriodBarBuilder!$CN$32,U78,0,1,1)) -> 0.07686935441 | W78: 0.8 | X78: 0.2 | Y78: =OFFSET(PeriodBarBuilder!$O$32,K78,0,1,1) ->  | AA78: =MATCH($Y78,OFFSET(PeriodBarBuilder!$AC$33,0,0,PeriodBarBuilder!$AE$31,1),1) ->  | AB78: =MATCH($Y78,OFFSET(PeriodBarBuilder!$AP$33,0,0,PeriodBarBuilder!$AR$31,1),1) ->  | AC78: =MATCH($Y78,OFFSET(PeriodBarBuilder!$BD$33,0,0,PeriodBarBuilder!$BF$31,1),1) ->  | AD78: =MATCH($Y78,OFFSET(PeriodBarBuilder!$BQ$33,0,0,PeriodBarBuilder!$BS$31,1),1) ->  | AE78: =MATCH($Y78,OFFSET(PeriodBarBuilder!$CD$33,0,0,PeriodBarBuilder!$CF$31,1),1) ->  | AF78: =OFFSET(PeriodBarBuilder!$L$32,CalculationsAndCharts!Y78,0,1,1) ->  | AG78: =OFFSET(PeriodBarBuilder!$Z$32,CalculationsAndCharts!Z78,0,1,1) ->  | AH78: =OFFSET(PeriodBarBuilder!$AN$32,CalculationsAndCharts!AA78,0,1,1) ->  | AI78: =OFFSET(PeriodBarBuilder!$BA$32,CalculationsAndCharts!AB78,0,1,1) ->  | AJ78: =OFFSET(PeriodBarBuilder!$BO$32,CalculationsAndCharts!AC78,0,1,1) ->  | AK78: =OFFSET(PeriodBarBuilder!$CB$32,CalculationsAndCharts!AD78,0,1,1) ->  | AL78: =OFFSET(PeriodBarBuilder!$CO$32,CalculationsAndCharts!AE78,0,1,1) ->  | AN78: =OFFSET(PeriodBarBuilder!$M$32,CalculationsAndCharts!Y78,0,1,1) ->  | AO78: =OFFSET(PeriodBarBuilder!$AA$32,CalculationsAndCharts!K78,0,1,1) ->  | AP78: =OFFSET(PeriodBarBuilder!$AO$32,CalculationsAndCharts!AA78,0,1,1) ->  | AQ78: =OFFSET(PeriodBarBuilder!$BB$32,CalculationsAndCharts!AB78,0,1,1) ->  | AR78: =OFFSET(PeriodBarBuilder!$BP$32,CalculationsAndCharts!AC78,0,1,1) ->  | AS78: =OFFSET(PeriodBarBuilder!$CC$32,CalculationsAndCharts!AD78,0,1,1) ->  | AT78: =OFFSET(PeriodBarBuilder!$CP$32,CalculationsAndCharts!AE78,0,1,1) ->  | AV78: 0 | AX78: 18911100
A79: 47 | B79: =IF(A79>$A$8,"",OFFSET(InputPriceData!B$15,$A79+$A$11,0,1,1)) -> 2018-12-04 | C79: =IF(A79>$A$8,"",OFFSET(InputPriceData!G$15,CalculationsAndCharts!$A79+$A$11,IF($C$5,8,0),1,1)) -> 13617600 | D79: =IF(A79>$A$8,"",OFFSET(InputPriceData!C$15,CalculationsAndCharts!$A79+$A$11,IF($C$5,8,0),1,1)) -> 32.669998 | E79: =IF(A79>$A$8,"",OFFSET(InputPriceData!D$15,CalculationsAndCharts!$A79+$A$11,IF($C$5,8,0),1,1)) -> 32.82 | F79: =IF(A79>$A$8,"",OFFSET(InputPriceData!E$15,CalculationsAndCharts!$A79+$A$11,IF($C$5,8,0),1,1)) -> 31.280001 | G79: =IF(A79>$A$8,"",OFFSET(InputPriceData!F$15,CalculationsAndCharts!$A79+$A$11,IF($C$5,8,0),1,1)) -> 31.440001 | H79: 36.509998 | I79: 30.469999 | J79: =IF($R$19=FALSE,NA(),OFFSET(PeriodBarBuilder!$K$32,A79,0,1,1)) -> 0.1605963842 | K79: =MATCH(A79,OFFSET(PeriodBarBuilder!$O$33,0,0,PeriodBarBuilder!$Q$31,1),0) ->  | L79: =IF($R$20=FALSE,NA(),OFFSET(PeriodBarBuilder!$Y$32,K79,0,1,1)) ->  | M79: =MATCH($A79,OFFSET(PeriodBarBuilder!$AC$32,1,0,PeriodBarBuilder!$AE$31,1),0) ->  | N79: =IF($R$21=FALSE,NA(),OFFSET(PeriodBarBuilder!$AM$32,M79,0,1,1)) ->  | O79: =MATCH($A79,OFFSET(PeriodBarBuilder!$AP$32,1,0,PeriodBarBuilder!$AR$31,1),0) ->  | P79: =IF($R$22=FALSE,NA(),OFFSET(PeriodBarBuilder!$AZ$32,O79,0,1,1)) ->  | Q79: =MATCH($A79,OFFSET(PeriodBarBuilder!$BD$32,1,0,PeriodBarBuilder!$BF$31,1),0) ->  | R79: =IF($R$23=FALSE,NA(),OFFSET(PeriodBarBuilder!$BN$32,Q79,0,1,1)) ->  | S79: =MATCH($A79,OFFSET(PeriodBarBuilder!$BQ$32,1,0,PeriodBarBuilder!$BS$31,1),0) ->  | T79: =IF($R$24=FALSE,NA(),OFFSET(PeriodBarBuilder!$CA$32,S79,0,1,1)) ->  | U79: =MATCH($A79,OFFSET(PeriodBarBuilder!$CD$32,1,0,PeriodBarBuilder!$CF$31,1),0) ->  | V79: =IF($R$25=FALSE,NA(),OFFSET(PeriodBarBuilder!$CN$32,U79,0,1,1)) ->  | W79: 0.8 | X79: 0.2 | Y79: =OFFSET(PeriodBarBuilder!$O$32,K79,0,1,1) ->  | AA79: =MATCH($Y79,OFFSET(PeriodBarBuilder!$AC$33,0,0,PeriodBarBuilder!$AE$31,1),1) ->  | AB79: =MATCH($Y79,OFFSET(PeriodBarBuilder!$AP$33,0,0,PeriodBarBuilder!$AR$31,1),1) ->  | AC79: =MATCH($Y79,OFFSET(PeriodBarBuilder!$BD$33,0,0,PeriodBarBuilder!$BF$31,1),1) ->  | AD79: =MATCH($Y79,OFFSET(PeriodBarBuilder!$BQ$33,0,0,PeriodBarBuilder!$BS$31,1),1) ->  | AE79: =MATCH($Y79,OFFSET(PeriodBarBuilder!$CD$33,0,0,PeriodBarBuilder!$CF$31,1),1) ->  | AF79: =OFFSET(PeriodBarBuilder!$L$32,CalculationsAndCharts!Y79,0,1,1) ->  | AG79: =OFFSET(PeriodBarBuilder!$Z$32,CalculationsAndCharts!Z79,0,1,1) ->  | AH79: =OFFSET(PeriodBarBuilder!$AN$32,CalculationsAndCharts!AA79,0,1,1) ->  | AI79: =OFFSET(PeriodBarBuilder!$BA$32,CalculationsAndCharts!AB79,0,1,1) ->  | AJ79: =OFFSET(PeriodBarBuilder!$BO$32,CalculationsAndCharts!AC79,0,1,1) ->  | AK79: =OFFSET(PeriodBarBuilder!$CB$32,CalculationsAndCharts!AD79,0,1,1) ->  | AL79: =OFFSET(PeriodBarBuilder!$CO$32,CalculationsAndCharts!AE79,0,1,1) ->  | AN79: =OFFSET(PeriodBarBuilder!$M$32,CalculationsAndCharts!Y79,0,1,1) ->  | AO79: =OFFSET(PeriodBarBuilder!$AA$32,CalculationsAndCharts!K79,0,1,1) ->  | AP79: =OFFSET(PeriodBarBuilder!$AO$32,CalculationsAndCharts!AA79,0,1,1) ->  | AQ79: =OFFSET(PeriodBarBuilder!$BB$32,CalculationsAndCharts!AB79,0,1,1) ->  | AR79: =OFFSET(PeriodBarBuilder!$BP$32,CalculationsAndCharts!AC79,0,1,1) ->  | AS79: =OFFSET(PeriodBarBuilder!$CC$32,CalculationsAndCharts!AD79,0,1,1) ->  | AT79: =OFFSET(PeriodBarBuilder!$CP$32,CalculationsAndCharts!AE79,0,1,1) ->  | AV79: 0 | AX79: 13617600
A80: 48 | B80: =IF(A80>$A$8,"",OFFSET(InputPriceData!B$15,$A80+$A$11,0,1,1)) -> 2018-12-03 | C80: =IF(A80>$A$8,"",OFFSET(InputPriceData!G$15,CalculationsAndCharts!$A80+$A$11,IF($C$5,8,0),1,1)) -> 11352800 | D80: =IF(A80>$A$8,"",OFFSET(InputPriceData!C$15,CalculationsAndCharts!$A80+$A$11,IF($C$5,8,0),1,1)) -> 32.349998 | E80: =IF(A80>$A$8,"",OFFSET(InputPriceData!D$15,CalculationsAndCharts!$A80+$A$11,IF($C$5,8,0),1,1)) -> 33.110001 | F80: =IF(A80>$A$8,"",OFFSET(InputPriceData!E$15,CalculationsAndCharts!$A80+$A$11,IF($C$5,8,0),1,1)) -> 32.18 | G80: =IF(A80>$A$8,"",OFFSET(InputPriceData!F$15,CalculationsAndCharts!$A80+$A$11,IF($C$5,8,0),1,1)) -> 32.66 | H80: 36.509998 | I80: 30.469999 | J80: =IF($R$19=FALSE,NA(),OFFSET(PeriodBarBuilder!$K$32,A80,0,1,1)) -> 0.3625830071 | K80: =MATCH(A80,OFFSET(PeriodBarBuilder!$O$33,0,0,PeriodBarBuilder!$Q$31,1),0) ->  | L80: =IF($R$20=FALSE,NA(),OFFSET(PeriodBarBuilder!$Y$32,K80,0,1,1)) ->  | M80: =MATCH($A80,OFFSET(PeriodBarBuilder!$AC$32,1,0,PeriodBarBuilder!$AE$31,1),0) ->  | N80: =IF($R$21=FALSE,NA(),OFFSET(PeriodBarBuilder!$AM$32,M80,0,1,1)) ->  | O80: =MATCH($A80,OFFSET(PeriodBarBuilder!$AP$32,1,0,PeriodBarBuilder!$AR$31,1),0) ->  | P80: =IF($R$22=FALSE,NA(),OFFSET(PeriodBarBuilder!$AZ$32,O80,0,1,1)) ->  | Q80: =MATCH($A80,OFFSET(PeriodBarBuilder!$BD$32,1,0,PeriodBarBuilder!$BF$31,1),0) ->  | R80: =IF($R$23=FALSE,NA(),OFFSET(PeriodBarBuilder!$BN$32,Q80,0,1,1)) ->  | S80: =MATCH($A80,OFFSET(PeriodBarBuilder!$BQ$32,1,0,PeriodBarBuilder!$BS$31,1),0) ->  | T80: =IF($R$24=FALSE,NA(),OFFSET(PeriodBarBuilder!$CA$32,S80,0,1,1)) ->  | U80: =MATCH($A80,OFFSET(PeriodBarBuilder!$CD$32,1,0,PeriodBarBuilder!$CF$31,1),0) ->  | V80: =IF($R$25=FALSE,NA(),OFFSET(PeriodBarBuilder!$CN$32,U80,0,1,1)) ->  | W80: 0.8 | X80: 0.2 | Y80: =OFFSET(PeriodBarBuilder!$O$32,K80,0,1,1) ->  | AA80: =MATCH($Y80,OFFSET(PeriodBarBuilder!$AC$33,0,0,PeriodBarBuilder!$AE$31,1),1) ->  | AB80: =MATCH($Y80,OFFSET(PeriodBarBuilder!$AP$33,0,0,PeriodBarBuilder!$AR$31,1),1) ->  | AC80: =MATCH($Y80,OFFSET(PeriodBarBuilder!$BD$33,0,0,PeriodBarBuilder!$BF$31,1),1) ->  | AD80: =MATCH($Y80,OFFSET(PeriodBarBuilder!$BQ$33,0,0,PeriodBarBuilder!$BS$31,1),1) ->  | AE80: =MATCH($Y80,OFFSET(PeriodBarBuilder!$CD$33,0,0,PeriodBarBuilder!$CF$31,1),1) ->  | AF80: =OFFSET(PeriodBarBuilder!$L$32,CalculationsAndCharts!Y80,0,1,1) ->  | AG80: =OFFSET(PeriodBarBuilder!$Z$32,CalculationsAndCharts!Z80,0,1,1) ->  | AH80: =OFFSET(PeriodBarBuilder!$AN$32,CalculationsAndCharts!AA80,0,1,1) ->  | AI80: =OFFSET(PeriodBarBuilder!$BA$32,CalculationsAndCharts!AB80,0,1,1) ->  | AJ80: =OFFSET(PeriodBarBuilder!$BO$32,CalculationsAndCharts!AC80,0,1,1) ->  | AK80: =OFFSET(PeriodBarBuilder!$CB$32,CalculationsAndCharts!AD80,0,1,1) ->  | AL80: =OFFSET(PeriodBarBuilder!$CO$32,CalculationsAndCharts!AE80,0,1,1) ->  | AN80: =OFFSET(PeriodBarBuilder!$M$32,CalculationsAndCharts!Y80,0,1,1) ->  | AO80: =OFFSET(PeriodBarBuilder!$AA$32,CalculationsAndCharts!K80,0,1,1) ->  | AP80: =OFFSET(PeriodBarBuilder!$AO$32,CalculationsAndCharts!AA80,0,1,1) ->  | AQ80: =OFFSET(PeriodBarBuilder!$BB$32,CalculationsAndCharts!AB80,0,1,1) ->  | AR80: =OFFSET(PeriodBarBuilder!$BP$32,CalculationsAndCharts!AC80,0,1,1) ->  | AS80: =OFFSET(PeriodBarBuilder!$CC$32,CalculationsAndCharts!AD80,0,1,1) ->  | AT80: =OFFSET(PeriodBarBuilder!$CP$32,CalculationsAndCharts!AE80,0,1,1) ->  | AV80: 0 | AW80: 11352800
A81: 49 | B81: =IF(A81>$A$8,"",OFFSET(InputPriceData!B$15,$A81+$A$11,0,1,1)) -> 2018-11-30 | C81: =IF(A81>$A$8,"",OFFSET(InputPriceData!G$15,CalculationsAndCharts!$A81+$A$11,IF($C$5,8,0),1,1)) -> 10940700 | D81: =IF(A81>$A$8,"",OFFSET(InputPriceData!C$15,CalculationsAndCharts!$A81+$A$11,IF($C$5,8,0),1,1)) -> 31.59 | E81: =IF(A81>$A$8,"",OFFSET(InputPriceData!D$15,CalculationsAndCharts!$A81+$A$11,IF($C$5,8,0),1,1)) -> 31.620001 | F81: =IF(A81>$A$8,"",OFFSET(InputPriceData!E$15,CalculationsAndCharts!$A81+$A$11,IF($C$5,8,0),1,1)) -> 30.950001 | G81: =IF(A81>$A$8,"",OFFSET(InputPriceData!F$15,CalculationsAndCharts!$A81+$A$11,IF($C$5,8,0),1,1)) -> 31.43 | H81: 36.509998 | I81: 30.469999 | J81: =IF($R$19=FALSE,NA(),OFFSET(PeriodBarBuilder!$K$32,A81,0,1,1)) -> 0.1589405892 | K81: =MATCH(A81,OFFSET(PeriodBarBuilder!$O$33,0,0,PeriodBarBuilder!$Q$31,1),0) -> 12 | L81: =IF($R$20=FALSE,NA(),OFFSET(PeriodBarBuilder!$Y$32,K81,0,1,1)) -> 0.08574879227 | M81: =MATCH($A81,OFFSET(PeriodBarBuilder!$AC$32,1,0,PeriodBarBuilder!$AE$31,1),0) -> 4 | N81: =IF($R$21=FALSE,NA(),OFFSET(PeriodBarBuilder!$AM$32,M81,0,1,1)) -> 0.05184373481 | O81: =MATCH($A81,OFFSET(PeriodBarBuilder!$AP$32,1,0,PeriodBarBuilder!$AR$31,1),0) -> 7 | P81: =IF($R$22=FALSE,NA(),OFFSET(PeriodBarBuilder!$AZ$32,O81,0,1,1)) -> 0.05810147062 | Q81: =MATCH($A81,OFFSET(PeriodBarBuilder!$BD$32,1,0,PeriodBarBuilder!$BF$31,1),0) ->  | R81: =IF($R$23=FALSE,NA(),OFFSET(PeriodBarBuilder!$BN$32,Q81,0,1,1)) ->  | S81: =MATCH($A81,OFFSET(PeriodBarBuilder!$BQ$32,1,0,PeriodBarBuilder!$BS$31,1),0) ->  | T81: =IF($R$24=FALSE,NA(),OFFSET(PeriodBarBuilder!$CA$32,S81,0,1,1)) ->  | U81: =MATCH($A81,OFFSET(PeriodBarBuilder!$CD$32,1,0,PeriodBarBuilder!$CF$31,1),0) ->  | V81: =IF($R$25=FALSE,NA(),OFFSET(PeriodBarBuilder!$CN$32,U81,0,1,1)) ->  | W81: 0.8 | X81: 0.2 | Y81: =OFFSET(PeriodBarBuilder!$O$32,K81,0,1,1) -> 49 | Z81: 12 | AA81: =MATCH($Y81,OFFSET(PeriodBarBuilder!$AC$33,0,0,PeriodBarBuilder!$AE$31,1),1) -> 4 | AB81: =MATCH($Y81,OFFSET(PeriodBarBuilder!$AP$33,0,0,PeriodBarBuilder!$AR$31,1),1) -> 7 | AC81: =MATCH($Y81,OFFSET(PeriodBarBuilder!$BD$33,0,0,PeriodBarBuilder!$BF$31,1),1) -> 2 | AD81: =MATCH($Y81,OFFSET(PeriodBarBuilder!$BQ$33,0,0,PeriodBarBuilder!$BS$31,1),1) -> 3 | AE81: =MATCH($Y81,OFFSET(PeriodBarBuilder!$CD$33,0,0,PeriodBarBuilder!$CF$31,1),1) -> 6 | AF81: =OFFSET(PeriodBarBuilder!$L$32,CalculationsAndCharts!Y81,0,1,1) -> 1 | AG81: =OFFSET(PeriodBarBuilder!$Z$32,CalculationsAndCharts!Z81,0,1,1) -> 1 | AH81: =OFFSET(PeriodBarBuilder!$AN$32,CalculationsAndCharts!AA81,0,1,1) -> 1 | AI81: =OFFSET(PeriodBarBuilder!$BA$32,CalculationsAndCharts!AB81,0,1,1) -> 1 | AJ81: =OFFSET(PeriodBarBuilder!$BO$32,CalculationsAndCharts!AC81,0,1,1) -> 1 | AK81: =OFFSET(PeriodBarBuilder!$CB$32,CalculationsAndCharts!AD81,0,1,1) -> 1 | AL81: =OFFSET(PeriodBarBuilder!$CO$32,CalculationsAndCharts!AE81,0,1,1) -> 1 | AM81: 7 | AN81: =OFFSET(PeriodBarBuilder!$M$32,CalculationsAndCharts!Y81,0,1,1) -> 0 | AO81: =OFFSET(PeriodBarBuilder!$AA$32,CalculationsAndCharts!K81,0,1,1) -> 0 | AP81: =OFFSET(PeriodBarBuilder!$AO$32,CalculationsAndCharts!AA81,0,1,1) -> 0 | AQ81: =OFFSET(PeriodBarBuilder!$BB$32,CalculationsAndCharts!AB81,0,1,1) -> 0 | AR81: =OFFSET(PeriodBarBuilder!$BP$32,CalculationsAndCharts!AC81,0,1,1) -> 0 | AS81: =OFFSET(PeriodBarBuilder!$CC$32,CalculationsAndCharts!AD81,0,1,1) -> 0 | AT81: =OFFSET(PeriodBarBuilder!$CP$32,CalculationsAndCharts!AE81,0,1,1) -> 0 | AU81: 0 | AV81: 0 | AX81: 10940700
A82: 50 | B82: =IF(A82>$A$8,"",OFFSET(InputPriceData!B$15,$A82+$A$11,0,1,1)) -> 2018-11-29 | C82: =IF(A82>$A$8,"",OFFSET(InputPriceData!G$15,CalculationsAndCharts!$A82+$A$11,IF($C$5,8,0),1,1)) -> 8943300 | D82: =IF(A82>$A$8,"",OFFSET(InputPriceData!C$15,CalculationsAndCharts!$A82+$A$11,IF($C$5,8,0),1,1)) -> 32.200001 | E82: =IF(A82>$A$8,"",OFFSET(InputPriceData!D$15,CalculationsAndCharts!$A82+$A$11,IF($C$5,8,0),1,1)) -> 32.349998 | F82: =IF(A82>$A$8,"",OFFSET(InputPriceData!E$15,CalculationsAndCharts!$A82+$A$11,IF($C$5,8,0),1,1)) -> 31.440001 | G82: =IF(A82>$A$8,"",OFFSET(InputPriceData!F$15,CalculationsAndCharts!$A82+$A$11,IF($C$5,8,0),1,1)) -> 31.889999 | H82: 36.509998 | I82: 30.469999 | J82: =IF($R$19=FALSE,NA(),OFFSET(PeriodBarBuilder!$K$32,A82,0,1,1)) -> 0.2350993767 | K82: =MATCH(A82,OFFSET(PeriodBarBuilder!$O$33,0,0,PeriodBarBuilder!$Q$31,1),0) ->  | L82: =IF($R$20=FALSE,NA(),OFFSET(PeriodBarBuilder!$Y$32,K82,0,1,1)) ->  | M82: =MATCH($A82,OFFSET(PeriodBarBuilder!$AC$32,1,0,PeriodBarBuilder!$AE$31,1),0) ->  | N82: =IF($R$21=FALSE,NA(),OFFSET(PeriodBarBuilder!$AM$32,M82,0,1,1)) ->  | O82: =MATCH($A82,OFFSET(PeriodBarBuilder!$AP$32,1,0,PeriodBarBuilder!$AR$31,1),0) ->  | P82: =IF($R$22=FALSE,NA(),OFFSET(PeriodBarBuilder!$AZ$32,O82,0,1,1)) ->  | Q82: =MATCH($A82,OFFSET(PeriodBarBuilder!$BD$32,1,0,PeriodBarBuilder!$BF$31,1),0) ->  | R82: =IF($R$23=FALSE,NA(),OFFSET(PeriodBarBuilder!$BN$32,Q82,0,1,1)) ->  | S82: =MATCH($A82,OFFSET(PeriodBarBuilder!$BQ$32,1,0,PeriodBarBuilder!$BS$31,1),0) ->  | T82: =IF($R$24=FALSE,NA(),OFFSET(PeriodBarBuilder!$CA$32,S82,0,1,1)) ->  | U82: =MATCH($A82,OFFSET(PeriodBarBuilder!$CD$32,1,0,PeriodBarBuilder!$CF$31,1),0) ->  | V82: =IF($R$25=FALSE,NA(),OFFSET(PeriodBarBuilder!$CN$32,U82,0,1,1)) ->  | W82: 0.8 | X82: 0.2 | Y82: =OFFSET(PeriodBarBuilder!$O$32,K82,0,1,1) ->  | AA82: =MATCH($Y82,OFFSET(PeriodBarBuilder!$AC$33,0,0,PeriodBarBuilder!$AE$31,1),1) ->  | AB82: =MATCH($Y82,OFFSET(PeriodBarBuilder!$AP$33,0,0,PeriodBarBuilder!$AR$31,1),1) ->  | AC82: =MATCH($Y82,OFFSET(PeriodBarBuilder!$BD$33,0,0,PeriodBarBuilder!$BF$31,1),1) ->  | AD82: =MATCH($Y82,OFFSET(PeriodBarBuilder!$BQ$33,0,0,PeriodBarBuilder!$BS$31,1),1) ->  | AE82: =MATCH($Y82,OFFSET(PeriodBarBuilder!$CD$33,0,0,PeriodBarBuilder!$CF$31,1),1) ->  | AF82: =OFFSET(PeriodBarBuilder!$L$32,CalculationsAndCharts!Y82,0,1,1) ->  | AG82: =OFFSET(PeriodBarBuilder!$Z$32,CalculationsAndCharts!Z82,0,1,1) ->  | AH82: =OFFSET(PeriodBarBuilder!$AN$32,CalculationsAndCharts!AA82,0,1,1) ->  | AI82: =OFFSET(PeriodBarBuilder!$BA$32,CalculationsAndCharts!AB82,0,1,1) ->  | AJ82: =OFFSET(PeriodBarBuilder!$BO$32,CalculationsAndCharts!AC82,0,1,1) ->  | AK82: =OFFSET(PeriodBarBuilder!$CB$32,CalculationsAndCharts!AD82,0,1,1) ->  | AL82: =OFFSET(PeriodBarBuilder!$CO$32,CalculationsAndCharts!AE82,0,1,1) ->  | AN82: =OFFSET(PeriodBarBuilder!$M$32,CalculationsAndCharts!Y82,0,1,1) ->  | AO82: =OFFSET(PeriodBarBuilder!$AA$32,CalculationsAndCharts!K82,0,1,1) ->  | AP82: =OFFSET(PeriodBarBuilder!$AO$32,CalculationsAndCharts!AA82,0,1,1) ->  | AQ82: =OFFSET(PeriodBarBuilder!$BB$32,CalculationsAndCharts!AB82,0,1,1) ->  | AR82: =OFFSET(PeriodBarBuilder!$BP$32,CalculationsAndCharts!AC82,0,1,1) ->  | AS82: =OFFSET(PeriodBarBuilder!$CC$32,CalculationsAndCharts!AD82,0,1,1) ->  | AT82: =OFFSET(PeriodBarBuilder!$CP$32,CalculationsAndCharts!AE82,0,1,1) ->  | AV82: 0 | AX82: 8943300
A83: 51 | B83: =IF(A83>$A$8,"",OFFSET(InputPriceData!B$15,$A83+$A$11,0,1,1)) -> 2018-11-28 | C83: =IF(A83>$A$8,"",OFFSET(InputPriceData!G$15,CalculationsAndCharts!$A83+$A$11,IF($C$5,8,0),1,1)) -> 9467700 | D83: =IF(A83>$A$8,"",OFFSET(InputPriceData!C$15,CalculationsAndCharts!$A83+$A$11,IF($C$5,8,0),1,1)) -> 31.889999 | E83: =IF(A83>$A$8,"",OFFSET(InputPriceData!D$15,CalculationsAndCharts!$A83+$A$11,IF($C$5,8,0),1,1)) -> 32.240002 | F83: =IF(A83>$A$8,"",OFFSET(InputPriceData!E$15,CalculationsAndCharts!$A83+$A$11,IF($C$5,8,0),1,1)) -> 31.209999 | G83: =IF(A83>$A$8,"",OFFSET(InputPriceData!F$15,CalculationsAndCharts!$A83+$A$11,IF($C$5,8,0),1,1)) -> 32.169998 | H83: 36.509998 | I83: 30.469999 | J83: =IF($R$19=FALSE,NA(),OFFSET(PeriodBarBuilder!$K$32,A83,0,1,1)) -> 0.2814568347 | K83: =MATCH(A83,OFFSET(PeriodBarBuilder!$O$33,0,0,PeriodBarBuilder!$Q$31,1),0) ->  | L83: =IF($R$20=FALSE,NA(),OFFSET(PeriodBarBuilder!$Y$32,K83,0,1,1)) ->  | M83: =MATCH($A83,OFFSET(PeriodBarBuilder!$AC$32,1,0,PeriodBarBuilder!$AE$31,1),0) ->  | N83: =IF($R$21=FALSE,NA(),OFFSET(PeriodBarBuilder!$AM$32,M83,0,1,1)) ->  | O83: =MATCH($A83,OFFSET(PeriodBarBuilder!$AP$32,1,0,PeriodBarBuilder!$AR$31,1),0) ->  | P83: =IF($R$22=FALSE,NA(),OFFSET(PeriodBarBuilder!$AZ$32,O83,0,1,1)) ->  | Q83: =MATCH($A83,OFFSET(PeriodBarBuilder!$BD$32,1,0,PeriodBarBuilder!$BF$31,1),0) ->  | R83: =IF($R$23=FALSE,NA(),OFFSET(PeriodBarBuilder!$BN$32,Q83,0,1,1)) ->  | S83: =MATCH($A83,OFFSET(PeriodBarBuilder!$BQ$32,1,0,PeriodBarBuilder!$BS$31,1),0) ->  | T83: =IF($R$24=FALSE,NA(),OFFSET(PeriodBarBuilder!$CA$32,S83,0,1,1)) ->  | U83: =MATCH($A83,OFFSET(PeriodBarBuilder!$CD$32,1,0,PeriodBarBuilder!$CF$31,1),0) ->  | V83: =IF($R$25=FALSE,NA(),OFFSET(PeriodBarBuilder!$CN$32,U83,0,1,1)) ->  | W83: 0.8 | X83: 0.2 | Y83: =OFFSET(PeriodBarBuilder!$O$32,K83,0,1,1) ->  | AA83: =MATCH($Y83,OFFSET(PeriodBarBuilder!$AC$33,0,0,PeriodBarBuilder!$AE$31,1),1) ->  | AB83: =MATCH($Y83,OFFSET(PeriodBarBuilder!$AP$33,0,0,PeriodBarBuilder!$AR$31,1),1) ->  | AC83: =MATCH($Y83,OFFSET(PeriodBarBuilder!$BD$33,0,0,PeriodBarBuilder!$BF$31,1),1) ->  | AD83: =MATCH($Y83,OFFSET(PeriodBarBuilder!$BQ$33,0,0,PeriodBarBuilder!$BS$31,1),1) ->  | AE83: =MATCH($Y83,OFFSET(PeriodBarBuilder!$CD$33,0,0,PeriodBarBuilder!$CF$31,1),1) ->  | AF83: =OFFSET(PeriodBarBuilder!$L$32,CalculationsAndCharts!Y83,0,1,1) ->  | AG83: =OFFSET(PeriodBarBuilder!$Z$32,CalculationsAndCharts!Z83,0,1,1) ->  | AH83: =OFFSET(PeriodBarBuilder!$AN$32,CalculationsAndCharts!AA83,0,1,1) ->  | AI83: =OFFSET(PeriodBarBuilder!$BA$32,CalculationsAndCharts!AB83,0,1,1) ->  | AJ83: =OFFSET(PeriodBarBuilder!$BO$32,CalculationsAndCharts!AC83,0,1,1) ->  | AK83: =OFFSET(PeriodBarBuilder!$CB$32,CalculationsAndCharts!AD83,0,1,1) ->  | AL83: =OFFSET(PeriodBarBuilder!$CO$32,CalculationsAndCharts!AE83,0,1,1) ->  | AN83: =OFFSET(PeriodBarBuilder!$M$32,CalculationsAndCharts!Y83,0,1,1) ->  | AO83: =OFFSET(PeriodBarBuilder!$AA$32,CalculationsAndCharts!K83,0,1,1) ->  | AP83: =OFFSET(PeriodBarBuilder!$AO$32,CalculationsAndCharts!AA83,0,1,1) ->  | AQ83: =OFFSET(PeriodBarBuilder!$BB$32,CalculationsAndCharts!AB83,0,1,1) ->  | AR83: =OFFSET(PeriodBarBuilder!$BP$32,CalculationsAndCharts!AC83,0,1,1) ->  | AS83: =OFFSET(PeriodBarBuilder!$CC$32,CalculationsAndCharts!AD83,0,1,1) ->  | AT83: =OFFSET(PeriodBarBuilder!$CP$32,CalculationsAndCharts!AE83,0,1,1) ->  | AV83: 0 | AW83: 9467700
A84: 52 | B84: =IF(A84>$A$8,"",OFFSET(InputPriceData!B$15,$A84+$A$11,0,1,1)) -> 2018-11-27 | C84: =IF(A84>$A$8,"",OFFSET(InputPriceData!G$15,CalculationsAndCharts!$A84+$A$11,IF($C$5,8,0),1,1)) -> 12510100 | D84: =IF(A84>$A$8,"",OFFSET(InputPriceData!C$15,CalculationsAndCharts!$A84+$A$11,IF($C$5,8,0),1,1)) -> 31.68 | E84: =IF(A84>$A$8,"",OFFSET(InputPriceData!D$15,CalculationsAndCharts!$A84+$A$11,IF($C$5,8,0),1,1)) -> 32.360001 | F84: =IF(A84>$A$8,"",OFFSET(InputPriceData!E$15,CalculationsAndCharts!$A84+$A$11,IF($C$5,8,0),1,1)) -> 31.6 | G84: =IF(A84>$A$8,"",OFFSET(InputPriceData!F$15,CalculationsAndCharts!$A84+$A$11,IF($C$5,8,0),1,1)) -> 31.879999 | H84: 36.509998 | I84: 30.469999 | J84: =IF($R$19=FALSE,NA(),OFFSET(PeriodBarBuilder!$K$32,A84,0,1,1)) -> 0.2334437473 | K84: =MATCH(A84,OFFSET(PeriodBarBuilder!$O$33,0,0,PeriodBarBuilder!$Q$31,1),0) ->  | L84: =IF($R$20=FALSE,NA(),OFFSET(PeriodBarBuilder!$Y$32,K84,0,1,1)) ->  | M84: =MATCH($A84,OFFSET(PeriodBarBuilder!$AC$32,1,0,PeriodBarBuilder!$AE$31,1),0) ->  | N84: =IF($R$21=FALSE,NA(),OFFSET(PeriodBarBuilder!$AM$32,M84,0,1,1)) ->  | O84: =MATCH($A84,OFFSET(PeriodBarBuilder!$AP$32,1,0,PeriodBarBuilder!$AR$31,1),0) ->  | P84: =IF($R$22=FALSE,NA(),OFFSET(PeriodBarBuilder!$AZ$32,O84,0,1,1)) ->  | Q84: =MATCH($A84,OFFSET(PeriodBarBuilder!$BD$32,1,0,PeriodBarBuilder!$BF$31,1),0) ->  | R84: =IF($R$23=FALSE,NA(),OFFSET(PeriodBarBuilder!$BN$32,Q84,0,1,1)) ->  | S84: =MATCH($A84,OFFSET(PeriodBarBuilder!$BQ$32,1,0,PeriodBarBuilder!$BS$31,1),0) ->  | T84: =IF($R$24=FALSE,NA(),OFFSET(PeriodBarBuilder!$CA$32,S84,0,1,1)) ->  | U84: =MATCH($A84,OFFSET(PeriodBarBuilder!$CD$32,1,0,PeriodBarBuilder!$CF$31,1),0) ->  | V84: =IF($R$25=FALSE,NA(),OFFSET(PeriodBarBuilder!$CN$32,U84,0,1,1)) ->  | W84: 0.8 | X84: 0.2 | Y84: =OFFSET(PeriodBarBuilder!$O$32,K84,0,1,1) ->  | AA84: =MATCH($Y84,OFFSET(PeriodBarBuilder!$AC$33,0,0,PeriodBarBuilder!$AE$31,1),1) ->  | AB84: =MATCH($Y84,OFFSET(PeriodBarBuilder!$AP$33,0,0,PeriodBarBuilder!$AR$31,1),1) ->  | AC84: =MATCH($Y84,OFFSET(PeriodBarBuilder!$BD$33,0,0,PeriodBarBuilder!$BF$31,1),1) ->  | AD84: =MATCH($Y84,OFFSET(PeriodBarBuilder!$BQ$33,0,0,PeriodBarBuilder!$BS$31,1),1) ->  | AE84: =MATCH($Y84,OFFSET(PeriodBarBuilder!$CD$33,0,0,PeriodBarBuilder!$CF$31,1),1) ->  | AF84: =OFFSET(PeriodBarBuilder!$L$32,CalculationsAndCharts!Y84,0,1,1) ->  | AG84: =OFFSET(PeriodBarBuilder!$Z$32,CalculationsAndCharts!Z84,0,1,1) ->  | AH84: =OFFSET(PeriodBarBuilder!$AN$32,CalculationsAndCharts!AA84,0,1,1) ->  | AI84: =OFFSET(PeriodBarBuilder!$BA$32,CalculationsAndCharts!AB84,0,1,1) ->  | AJ84: =OFFSET(PeriodBarBuilder!$BO$32,CalculationsAndCharts!AC84,0,1,1) ->  | AK84: =OFFSET(PeriodBarBuilder!$CB$32,CalculationsAndCharts!AD84,0,1,1) ->  | AL84: =OFFSET(PeriodBarBuilder!$CO$32,CalculationsAndCharts!AE84,0,1,1) ->  | AN84: =OFFSET(PeriodBarBuilder!$M$32,CalculationsAndCharts!Y84,0,1,1) ->  | AO84: =OFFSET(PeriodBarBuilder!$AA$32,CalculationsAndCharts!K84,0,1,1) ->  | AP84: =OFFSET(PeriodBarBuilder!$AO$32,CalculationsAndCharts!AA84,0,1,1) ->  | AQ84: =OFFSET(PeriodBarBuilder!$BB$32,CalculationsAndCharts!AB84,0,1,1) ->  | AR84: =OFFSET(PeriodBarBuilder!$BP$32,CalculationsAndCharts!AC84,0,1,1) ->  | AS84: =OFFSET(PeriodBarBuilder!$CC$32,CalculationsAndCharts!AD84,0,1,1) ->  | AT84: =OFFSET(PeriodBarBuilder!$CP$32,CalculationsAndCharts!AE84,0,1,1) ->  | AV84: 0 | AW84: 12510100
A85: 53 | B85: =IF(A85>$A$8,"",OFFSET(InputPriceData!B$15,$A85+$A$11,0,1,1)) -> 2018-11-26 | C85: =IF(A85>$A$8,"",OFFSET(InputPriceData!G$15,CalculationsAndCharts!$A85+$A$11,IF($C$5,8,0),1,1)) -> 18206600 | D85: =IF(A85>$A$8,"",OFFSET(InputPriceData!C$15,CalculationsAndCharts!$A85+$A$11,IF($C$5,8,0),1,1)) -> 31.1 | E85: =IF(A85>$A$8,"",OFFSET(InputPriceData!D$15,CalculationsAndCharts!$A85+$A$11,IF($C$5,8,0),1,1)) -> 31.83 | F85: =IF(A85>$A$8,"",OFFSET(InputPriceData!E$15,CalculationsAndCharts!$A85+$A$11,IF($C$5,8,0),1,1)) -> 31.08 | G85: =IF(A85>$A$8,"",OFFSET(InputPriceData!F$15,CalculationsAndCharts!$A85+$A$11,IF($C$5,8,0),1,1)) -> 31.799999 | H85: 36.509998 | I85: 30.469999 | J85: =IF($R$19=FALSE,NA(),OFFSET(PeriodBarBuilder!$K$32,A85,0,1,1)) -> 0.220198712 | K85: =MATCH(A85,OFFSET(PeriodBarBuilder!$O$33,0,0,PeriodBarBuilder!$Q$31,1),0) ->  | L85: =IF($R$20=FALSE,NA(),OFFSET(PeriodBarBuilder!$Y$32,K85,0,1,1)) ->  | M85: =MATCH($A85,OFFSET(PeriodBarBuilder!$AC$32,1,0,PeriodBarBuilder!$AE$31,1),0) ->  | N85: =IF($R$21=FALSE,NA(),OFFSET(PeriodBarBuilder!$AM$32,M85,0,1,1)) ->  | O85: =MATCH($A85,OFFSET(PeriodBarBuilder!$AP$32,1,0,PeriodBarBuilder!$AR$31,1),0) ->  | P85: =IF($R$22=FALSE,NA(),OFFSET(PeriodBarBuilder!$AZ$32,O85,0,1,1)) ->  | Q85: =MATCH($A85,OFFSET(PeriodBarBuilder!$BD$32,1,0,PeriodBarBuilder!$BF$31,1),0) ->  | R85: =IF($R$23=FALSE,NA(),OFFSET(PeriodBarBuilder!$BN$32,Q85,0,1,1)) ->  | S85: =MATCH($A85,OFFSET(PeriodBarBuilder!$BQ$32,1,0,PeriodBarBuilder!$BS$31,1),0) ->  | T85: =IF($R$24=FALSE,NA(),OFFSET(PeriodBarBuilder!$CA$32,S85,0,1,1)) ->  | U85: =MATCH($A85,OFFSET(PeriodBarBuilder!$CD$32,1,0,PeriodBarBuilder!$CF$31,1),0) ->  | V85: =IF($R$25=FALSE,NA(),OFFSET(PeriodBarBuilder!$CN$32,U85,0,1,1)) ->  | W85: 0.8 | X85: 0.2 | Y85: =OFFSET(PeriodBarBuilder!$O$32,K85,0,1,1) ->  | AA85: =MATCH($Y85,OFFSET(PeriodBarBuilder!$AC$33,0,0,PeriodBarBuilder!$AE$31,1),1) ->  | AB85: =MATCH($Y85,OFFSET(PeriodBarBuilder!$AP$33,0,0,PeriodBarBuilder!$AR$31,1),1) ->  | AC85: =MATCH($Y85,OFFSET(PeriodBarBuilder!$BD$33,0,0,PeriodBarBuilder!$BF$31,1),1) ->  | AD85: =MATCH($Y85,OFFSET(PeriodBarBuilder!$BQ$33,0,0,PeriodBarBuilder!$BS$31,1),1) ->  | AE85: =MATCH($Y85,OFFSET(PeriodBarBuilder!$CD$33,0,0,PeriodBarBuilder!$CF$31,1),1) ->  | AF85: =OFFSET(PeriodBarBuilder!$L$32,CalculationsAndCharts!Y85,0,1,1) ->  | AG85: =OFFSET(PeriodBarBuilder!$Z$32,CalculationsAndCharts!Z85,0,1,1) ->  | AH85: =OFFSET(PeriodBarBuilder!$AN$32,CalculationsAndCharts!AA85,0,1,1) ->  | AI85: =OFFSET(PeriodBarBuilder!$BA$32,CalculationsAndCharts!AB85,0,1,1) ->  | AJ85: =OFFSET(PeriodBarBuilder!$BO$32,CalculationsAndCharts!AC85,0,1,1) ->  | AK85: =OFFSET(PeriodBarBuilder!$CB$32,CalculationsAndCharts!AD85,0,1,1) ->  | AL85: =OFFSET(PeriodBarBuilder!$CO$32,CalculationsAndCharts!AE85,0,1,1) ->  | AN85: =OFFSET(PeriodBarBuilder!$M$32,CalculationsAndCharts!Y85,0,1,1) ->  | AO85: =OFFSET(PeriodBarBuilder!$AA$32,CalculationsAndCharts!K85,0,1,1) ->  | AP85: =OFFSET(PeriodBarBuilder!$AO$32,CalculationsAndCharts!AA85,0,1,1) ->  | AQ85: =OFFSET(PeriodBarBuilder!$BB$32,CalculationsAndCharts!AB85,0,1,1) ->  | AR85: =OFFSET(PeriodBarBuilder!$BP$32,CalculationsAndCharts!AC85,0,1,1) ->  | AS85: =OFFSET(PeriodBarBuilder!$CC$32,CalculationsAndCharts!AD85,0,1,1) ->  | AT85: =OFFSET(PeriodBarBuilder!$CP$32,CalculationsAndCharts!AE85,0,1,1) ->  | AV85: 0 | AW85: 18206600
A86: 54 | B86: =IF(A86>$A$8,"",OFFSET(InputPriceData!B$15,$A86+$A$11,0,1,1)) -> 2018-11-23 | C86: =IF(A86>$A$8,"",OFFSET(InputPriceData!G$15,CalculationsAndCharts!$A86+$A$11,IF($C$5,8,0),1,1)) -> 7920200 | D86: =IF(A86>$A$8,"",OFFSET(InputPriceData!C$15,CalculationsAndCharts!$A86+$A$11,IF($C$5,8,0),1,1)) -> 30.93 | E86: =IF(A86>$A$8,"",OFFSET(InputPriceData!D$15,CalculationsAndCharts!$A86+$A$11,IF($C$5,8,0),1,1)) -> 31.17 | F86: =IF(A86>$A$8,"",OFFSET(InputPriceData!E$15,CalculationsAndCharts!$A86+$A$11,IF($C$5,8,0),1,1)) -> 30.469999 | G86: =IF(A86>$A$8,"",OFFSET(InputPriceData!F$15,CalculationsAndCharts!$A86+$A$11,IF($C$5,8,0),1,1)) -> 30.700001 | H86: 36.509998 | I86: 30.469999 | J86: =IF($R$19=FALSE,NA(),OFFSET(PeriodBarBuilder!$K$32,A86,0,1,1)) -> 0.03807980763 | K86: =MATCH(A86,OFFSET(PeriodBarBuilder!$O$33,0,0,PeriodBarBuilder!$Q$31,1),0) -> 13 | L86: =IF($R$20=FALSE,NA(),OFFSET(PeriodBarBuilder!$Y$32,K86,0,1,1)) -> 0.08816431159 | M86: =MATCH($A86,OFFSET(PeriodBarBuilder!$AC$32,1,0,PeriodBarBuilder!$AE$31,1),0) ->  | N86: =IF($R$21=FALSE,NA(),OFFSET(PeriodBarBuilder!$AM$32,M86,0,1,1)) ->  | O86: =MATCH($A86,OFFSET(PeriodBarBuilder!$AP$32,1,0,PeriodBarBuilder!$AR$31,1),0) ->  | P86: =IF($R$22=FALSE,NA(),OFFSET(PeriodBarBuilder!$AZ$32,O86,0,1,1)) ->  | Q86: =MATCH($A86,OFFSET(PeriodBarBuilder!$BD$32,1,0,PeriodBarBuilder!$BF$31,1),0) ->  | R86: =IF($R$23=FALSE,NA(),OFFSET(PeriodBarBuilder!$BN$32,Q86,0,1,1)) ->  | S86: =MATCH($A86,OFFSET(PeriodBarBuilder!$BQ$32,1,0,PeriodBarBuilder!$BS$31,1),0) ->  | T86: =IF($R$24=FALSE,NA(),OFFSET(PeriodBarBuilder!$CA$32,S86,0,1,1)) ->  | U86: =MATCH($A86,OFFSET(PeriodBarBuilder!$CD$32,1,0,PeriodBarBuilder!$CF$31,1),0) ->  | V86: =IF($R$25=FALSE,NA(),OFFSET(PeriodBarBuilder!$CN$32,U86,0,1,1)) ->  | W86: 0.8 | X86: 0.2 | Y86: =OFFSET(PeriodBarBuilder!$O$32,K86,0,1,1) -> 54 | Z86: 13 | AA86: =MATCH($Y86,OFFSET(PeriodBarBuilder!$AC$33,0,0,PeriodBarBuilder!$AE$31,1),1) -> 4 | AB86: =MATCH($Y86,OFFSET(PeriodBarBuilder!$AP$33,0,0,PeriodBarBuilder!$AR$31,1),1) -> 7 | AC86: =MATCH($Y86,OFFSET(PeriodBarBuilder!$BD$33,0,0,PeriodBarBuilder!$BF$31,1),1) -> 2 | AD86: =MATCH($Y86,OFFSET(PeriodBarBuilder!$BQ$33,0,0,PeriodBarBuilder!$BS$31,1),1) -> 3 | AE86: =MATCH($Y86,OFFSET(PeriodBarBuilder!$CD$33,0,0,PeriodBarBuilder!$CF$31,1),1) -> 6 | AF86: =OFFSET(PeriodBarBuilder!$L$32,CalculationsAndCharts!Y86,0,1,1) -> 1 | AG86: =OFFSET(PeriodBarBuilder!$Z$32,CalculationsAndCharts!Z86,0,1,1) -> 1 | AH86: =OFFSET(PeriodBarBuilder!$AN$32,CalculationsAndCharts!AA86,0,1,1) -> 1 | AI86: =OFFSET(PeriodBarBuilder!$BA$32,CalculationsAndCharts!AB86,0,1,1) -> 1 | AJ86: =OFFSET(PeriodBarBuilder!$BO$32,CalculationsAndCharts!AC86,0,1,1) -> 1 | AK86: =OFFSET(PeriodBarBuilder!$CB$32,CalculationsAndCharts!AD86,0,1,1) -> 1 | AL86: =OFFSET(PeriodBarBuilder!$CO$32,CalculationsAndCharts!AE86,0,1,1) -> 1 | AM86: 7 | AN86: =OFFSET(PeriodBarBuilder!$M$32,CalculationsAndCharts!Y86,0,1,1) -> 0 | AO86: =OFFSET(PeriodBarBuilder!$AA$32,CalculationsAndCharts!K86,0,1,1) -> 0 | AP86: =OFFSET(PeriodBarBuilder!$AO$32,CalculationsAndCharts!AA86,0,1,1) -> 0 | AQ86: =OFFSET(PeriodBarBuilder!$BB$32,CalculationsAndCharts!AB86,0,1,1) -> 0 | AR86: =OFFSET(PeriodBarBuilder!$BP$32,CalculationsAndCharts!AC86,0,1,1) -> 0 | AS86: =OFFSET(PeriodBarBuilder!$CC$32,CalculationsAndCharts!AD86,0,1,1) -> 0 | AT86: =OFFSET(PeriodBarBuilder!$CP$32,CalculationsAndCharts!AE86,0,1,1) -> 0 | AU86: 0 | AV86: 0 | AX86: 7920200
A87: 55 | B87: =IF(A87>$A$8,"",OFFSET(InputPriceData!B$15,$A87+$A$11,0,1,1)) -> 2018-11-21 | C87: =IF(A87>$A$8,"",OFFSET(InputPriceData!G$15,CalculationsAndCharts!$A87+$A$11,IF($C$5,8,0),1,1)) -> 5358200 | D87: =IF(A87>$A$8,"",OFFSET(InputPriceData!C$15,CalculationsAndCharts!$A87+$A$11,IF($C$5,8,0),1,1)) -> 31.83 | E87: =IF(A87>$A$8,"",OFFSET(InputPriceData!D$15,CalculationsAndCharts!$A87+$A$11,IF($C$5,8,0),1,1)) -> 32.139999 | F87: =IF(A87>$A$8,"",OFFSET(InputPriceData!E$15,CalculationsAndCharts!$A87+$A$11,IF($C$5,8,0),1,1)) -> 31.65 | G87: =IF(A87>$A$8,"",OFFSET(InputPriceData!F$15,CalculationsAndCharts!$A87+$A$11,IF($C$5,8,0),1,1)) -> 31.93 | H87: 36.509998 | I87: 31.139999 | J87: =IF($R$19=FALSE,NA(),OFFSET(PeriodBarBuilder!$K$32,A87,0,1,1)) -> 0.1471138077 | K87: =MATCH(A87,OFFSET(PeriodBarBuilder!$O$33,0,0,PeriodBarBuilder!$Q$31,1),0) ->  | L87: =IF($R$20=FALSE,NA(),OFFSET(PeriodBarBuilder!$Y$32,K87,0,1,1)) ->  | M87: =MATCH($A87,OFFSET(PeriodBarBuilder!$AC$32,1,0,PeriodBarBuilder!$AE$31,1),0) ->  | N87: =IF($R$21=FALSE,NA(),OFFSET(PeriodBarBuilder!$AM$32,M87,0,1,1)) ->  | O87: =MATCH($A87,OFFSET(PeriodBarBuilder!$AP$32,1,0,PeriodBarBuilder!$AR$31,1),0) ->  | P87: =IF($R$22=FALSE,NA(),OFFSET(PeriodBarBuilder!$AZ$32,O87,0,1,1)) ->  | Q87: =MATCH($A87,OFFSET(PeriodBarBuilder!$BD$32,1,0,PeriodBarBuilder!$BF$31,1),0) ->  | R87: =IF($R$23=FALSE,NA(),OFFSET(PeriodBarBuilder!$BN$32,Q87,0,1,1)) ->  | S87: =MATCH($A87,OFFSET(PeriodBarBuilder!$BQ$32,1,0,PeriodBarBuilder!$BS$31,1),0) ->  | T87: =IF($R$24=FALSE,NA(),OFFSET(PeriodBarBuilder!$CA$32,S87,0,1,1)) ->  | U87: =MATCH($A87,OFFSET(PeriodBarBuilder!$CD$32,1,0,PeriodBarBuilder!$CF$31,1),0) ->  | V87: =IF($R$25=FALSE,NA(),OFFSET(PeriodBarBuilder!$CN$32,U87,0,1,1)) ->  | W87: 0.8 | X87: 0.2 | Y87: =OFFSET(PeriodBarBuilder!$O$32,K87,0,1,1) ->  | AA87: =MATCH($Y87,OFFSET(PeriodBarBuilder!$AC$33,0,0,PeriodBarBuilder!$AE$31,1),1) ->  | AB87: =MATCH($Y87,OFFSET(PeriodBarBuilder!$AP$33,0,0,PeriodBarBuilder!$AR$31,1),1) ->  | AC87: =MATCH($Y87,OFFSET(PeriodBarBuilder!$BD$33,0,0,PeriodBarBuilder!$BF$31,1),1) ->  | AD87: =MATCH($Y87,OFFSET(PeriodBarBuilder!$BQ$33,0,0,PeriodBarBuilder!$BS$31,1),1) ->  | AE87: =MATCH($Y87,OFFSET(PeriodBarBuilder!$CD$33,0,0,PeriodBarBuilder!$CF$31,1),1) ->  | AF87: =OFFSET(PeriodBarBuilder!$L$32,CalculationsAndCharts!Y87,0,1,1) ->  | AG87: =OFFSET(PeriodBarBuilder!$Z$32,CalculationsAndCharts!Z87,0,1,1) ->  | AH87: =OFFSET(PeriodBarBuilder!$AN$32,CalculationsAndCharts!AA87,0,1,1) ->  | AI87: =OFFSET(PeriodBarBuilder!$BA$32,CalculationsAndCharts!AB87,0,1,1) ->  | AJ87: =OFFSET(PeriodBarBuilder!$BO$32,CalculationsAndCharts!AC87,0,1,1) ->  | AK87: =OFFSET(PeriodBarBuilder!$CB$32,CalculationsAndCharts!AD87,0,1,1) ->  | AL87: =OFFSET(PeriodBarBuilder!$CO$32,CalculationsAndCharts!AE87,0,1,1) ->  | AN87: =OFFSET(PeriodBarBuilder!$M$32,CalculationsAndCharts!Y87,0,1,1) ->  | AO87: =OFFSET(PeriodBarBuilder!$AA$32,CalculationsAndCharts!K87,0,1,1) ->  | AP87: =OFFSET(PeriodBarBuilder!$AO$32,CalculationsAndCharts!AA87,0,1,1) ->  | AQ87: =OFFSET(PeriodBarBuilder!$BB$32,CalculationsAndCharts!AB87,0,1,1) ->  | AR87: =OFFSET(PeriodBarBuilder!$BP$32,CalculationsAndCharts!AC87,0,1,1) ->  | AS87: =OFFSET(PeriodBarBuilder!$CC$32,CalculationsAndCharts!AD87,0,1,1) ->  | AT87: =OFFSET(PeriodBarBuilder!$CP$32,CalculationsAndCharts!AE87,0,1,1) ->  | AV87: 0 | AW87: 5358200
A88: 56 | B88: =IF(A88>$A$8,"",OFFSET(InputPriceData!B$15,$A88+$A$11,0,1,1)) -> 2018-11-20 | C88: =IF(A88>$A$8,"",OFFSET(InputPriceData!G$15,CalculationsAndCharts!$A88+$A$11,IF($C$5,8,0),1,1)) -> 12667100 | D88: =IF(A88>$A$8,"",OFFSET(InputPriceData!C$15,CalculationsAndCharts!$A88+$A$11,IF($C$5,8,0),1,1)) -> 32.439999 | E88: =IF(A88>$A$8,"",OFFSET(InputPriceData!D$15,CalculationsAndCharts!$A88+$A$11,IF($C$5,8,0),1,1)) -> 32.5 | F88: =IF(A88>$A$8,"",OFFSET(InputPriceData!E$15,CalculationsAndCharts!$A88+$A$11,IF($C$5,8,0),1,1)) -> 31.139999 | G88: =IF(A88>$A$8,"",OFFSET(InputPriceData!F$15,CalculationsAndCharts!$A88+$A$11,IF($C$5,8,0),1,1)) -> 31.440001 | H88: 36.509998 | I88: 31.139999 | J88: =IF($R$19=FALSE,NA(),OFFSET(PeriodBarBuilder!$K$32,A88,0,1,1)) -> 0.05586630463 | K88: =MATCH(A88,OFFSET(PeriodBarBuilder!$O$33,0,0,PeriodBarBuilder!$Q$31,1),0) ->  | L88: =IF($R$20=FALSE,NA(),OFFSET(PeriodBarBuilder!$Y$32,K88,0,1,1)) ->  | M88: =MATCH($A88,OFFSET(PeriodBarBuilder!$AC$32,1,0,PeriodBarBuilder!$AE$31,1),0) ->  | N88: =IF($R$21=FALSE,NA(),OFFSET(PeriodBarBuilder!$AM$32,M88,0,1,1)) ->  | O88: =MATCH($A88,OFFSET(PeriodBarBuilder!$AP$32,1,0,PeriodBarBuilder!$AR$31,1),0) ->  | P88: =IF($R$22=FALSE,NA(),OFFSET(PeriodBarBuilder!$AZ$32,O88,0,1,1)) ->  | Q88: =MATCH($A88,OFFSET(PeriodBarBuilder!$BD$32,1,0,PeriodBarBuilder!$BF$31,1),0) ->  | R88: =IF($R$23=FALSE,NA(),OFFSET(PeriodBarBuilder!$BN$32,Q88,0,1,1)) ->  | S88: =MATCH($A88,OFFSET(PeriodBarBuilder!$BQ$32,1,0,PeriodBarBuilder!$BS$31,1),0) ->  | T88: =IF($R$24=FALSE,NA(),OFFSET(PeriodBarBuilder!$CA$32,S88,0,1,1)) ->  | U88: =MATCH($A88,OFFSET(PeriodBarBuilder!$CD$32,1,0,PeriodBarBuilder!$CF$31,1),0) ->  | V88: =IF($R$25=FALSE,NA(),OFFSET(PeriodBarBuilder!$CN$32,U88,0,1,1)) ->  | W88: 0.8 | X88: 0.2 | Y88: =OFFSET(PeriodBarBuilder!$O$32,K88,0,1,1) ->  | AA88: =MATCH($Y88,OFFSET(PeriodBarBuilder!$AC$33,0,0,PeriodBarBuilder!$AE$31,1),1) ->  | AB88: =MATCH($Y88,OFFSET(PeriodBarBuilder!$AP$33,0,0,PeriodBarBuilder!$AR$31,1),1) ->  | AC88: =MATCH($Y88,OFFSET(PeriodBarBuilder!$BD$33,0,0,PeriodBarBuilder!$BF$31,1),1) ->  | AD88: =MATCH($Y88,OFFSET(PeriodBarBuilder!$BQ$33,0,0,PeriodBarBuilder!$BS$31,1),1) ->  | AE88: =MATCH($Y88,OFFSET(PeriodBarBuilder!$CD$33,0,0,PeriodBarBuilder!$CF$31,1),1) ->  | AF88: =OFFSET(PeriodBarBuilder!$L$32,CalculationsAndCharts!Y88,0,1,1) ->  | AG88: =OFFSET(PeriodBarBuilder!$Z$32,CalculationsAndCharts!Z88,0,1,1) ->  | AH88: =OFFSET(PeriodBarBuilder!$AN$32,CalculationsAndCharts!AA88,0,1,1) ->  | AI88: =OFFSET(PeriodBarBuilder!$BA$32,CalculationsAndCharts!AB88,0,1,1) ->  | AJ88: =OFFSET(PeriodBarBuilder!$BO$32,CalculationsAndCharts!AC88,0,1,1) ->  | AK88: =OFFSET(PeriodBarBuilder!$CB$32,CalculationsAndCharts!AD88,0,1,1) ->  | AL88: =OFFSET(PeriodBarBuilder!$CO$32,CalculationsAndCharts!AE88,0,1,1) ->  | AN88: =OFFSET(PeriodBarBuilder!$M$32,CalculationsAndCharts!Y88,0,1,1) ->  | AO88: =OFFSET(PeriodBarBuilder!$AA$32,CalculationsAndCharts!K88,0,1,1) ->  | AP88: =OFFSET(PeriodBarBuilder!$AO$32,CalculationsAndCharts!AA88,0,1,1) ->  | AQ88: =OFFSET(PeriodBarBuilder!$BB$32,CalculationsAndCharts!AB88,0,1,1) ->  | AR88: =OFFSET(PeriodBarBuilder!$BP$32,CalculationsAndCharts!AC88,0,1,1) ->  | AS88: =OFFSET(PeriodBarBuilder!$CC$32,CalculationsAndCharts!AD88,0,1,1) ->  | AT88: =OFFSET(PeriodBarBuilder!$CP$32,CalculationsAndCharts!AE88,0,1,1) ->  | AV88: 0 | AX88: 12667100
A89: 57 | B89: =IF(A89>$A$8,"",OFFSET(InputPriceData!B$15,$A89+$A$11,0,1,1)) -> 2018-11-19 | C89: =IF(A89>$A$8,"",OFFSET(InputPriceData!G$15,CalculationsAndCharts!$A89+$A$11,IF($C$5,8,0),1,1)) -> 12194600 | D89: =IF(A89>$A$8,"",OFFSET(InputPriceData!C$15,CalculationsAndCharts!$A89+$A$11,IF($C$5,8,0),1,1)) -> 32.25 | E89: =IF(A89>$A$8,"",OFFSET(InputPriceData!D$15,CalculationsAndCharts!$A89+$A$11,IF($C$5,8,0),1,1)) -> 33.080002 | F89: =IF(A89>$A$8,"",OFFSET(InputPriceData!E$15,CalculationsAndCharts!$A89+$A$11,IF($C$5,8,0),1,1)) -> 32.200001 | G89: =IF(A89>$A$8,"",OFFSET(InputPriceData!F$15,CalculationsAndCharts!$A89+$A$11,IF($C$5,8,0),1,1)) -> 32.990002 | H89: 37.540001 | I89: 31.75 | J89: =IF($R$19=FALSE,NA(),OFFSET(PeriodBarBuilder!$K$32,A89,0,1,1)) -> 0.2141626573 | K89: =MATCH(A89,OFFSET(PeriodBarBuilder!$O$33,0,0,PeriodBarBuilder!$Q$31,1),0) ->  | L89: =IF($R$20=FALSE,NA(),OFFSET(PeriodBarBuilder!$Y$32,K89,0,1,1)) ->  | M89: =MATCH($A89,OFFSET(PeriodBarBuilder!$AC$32,1,0,PeriodBarBuilder!$AE$31,1),0) ->  | N89: =IF($R$21=FALSE,NA(),OFFSET(PeriodBarBuilder!$AM$32,M89,0,1,1)) ->  | O89: =MATCH($A89,OFFSET(PeriodBarBuilder!$AP$32,1,0,PeriodBarBuilder!$AR$31,1),0) ->  | P89: =IF($R$22=FALSE,NA(),OFFSET(PeriodBarBuilder!$AZ$32,O89,0,1,1)) ->  | Q89: =MATCH($A89,OFFSET(PeriodBarBuilder!$BD$32,1,0,PeriodBarBuilder!$BF$31,1),0) ->  | R89: =IF($R$23=FALSE,NA(),OFFSET(PeriodBarBuilder!$BN$32,Q89,0,1,1)) ->  | S89: =MATCH($A89,OFFSET(PeriodBarBuilder!$BQ$32,1,0,PeriodBarBuilder!$BS$31,1),0) ->  | T89: =IF($R$24=FALSE,NA(),OFFSET(PeriodBarBuilder!$CA$32,S89,0,1,1)) ->  | U89: =MATCH($A89,OFFSET(PeriodBarBuilder!$CD$32,1,0,PeriodBarBuilder!$CF$31,1),0) ->  | V89: =IF($R$25=FALSE,NA(),OFFSET(PeriodBarBuilder!$CN$32,U89,0,1,1)) ->  | W89: 0.8 | X89: 0.2 | Y89: =OFFSET(PeriodBarBuilder!$O$32,K89,0,1,1) ->  | AA89: =MATCH($Y89,OFFSET(PeriodBarBuilder!$AC$33,0,0,PeriodBarBuilder!$AE$31,1),1) ->  | AB89: =MATCH($Y89,OFFSET(PeriodBarBuilder!$AP$33,0,0,PeriodBarBuilder!$AR$31,1),1) ->  | AC89: =MATCH($Y89,OFFSET(PeriodBarBuilder!$BD$33,0,0,PeriodBarBuilder!$BF$31,1),1) ->  | AD89: =MATCH($Y89,OFFSET(PeriodBarBuilder!$BQ$33,0,0,PeriodBarBuilder!$BS$31,1),1) ->  | AE89: =MATCH($Y89,OFFSET(PeriodBarBuilder!$CD$33,0,0,PeriodBarBuilder!$CF$31,1),1) ->  | AF89: =OFFSET(PeriodBarBuilder!$L$32,CalculationsAndCharts!Y89,0,1,1) ->  | AG89: =OFFSET(PeriodBarBuilder!$Z$32,CalculationsAndCharts!Z89,0,1,1) ->  | AH89: =OFFSET(PeriodBarBuilder!$AN$32,CalculationsAndCharts!AA89,0,1,1) ->  | AI89: =OFFSET(PeriodBarBuilder!$BA$32,CalculationsAndCharts!AB89,0,1,1) ->  | AJ89: =OFFSET(PeriodBarBuilder!$BO$32,CalculationsAndCharts!AC89,0,1,1) ->  | AK89: =OFFSET(PeriodBarBuilder!$CB$32,CalculationsAndCharts!AD89,0,1,1) ->  | AL89: =OFFSET(PeriodBarBuilder!$CO$32,CalculationsAndCharts!AE89,0,1,1) ->  | AN89: =OFFSET(PeriodBarBuilder!$M$32,CalculationsAndCharts!Y89,0,1,1) ->  | AO89: =OFFSET(PeriodBarBuilder!$AA$32,CalculationsAndCharts!K89,0,1,1) ->  | AP89: =OFFSET(PeriodBarBuilder!$AO$32,CalculationsAndCharts!AA89,0,1,1) ->  | AQ89: =OFFSET(PeriodBarBuilder!$BB$32,CalculationsAndCharts!AB89,0,1,1) ->  | AR89: =OFFSET(PeriodBarBuilder!$BP$32,CalculationsAndCharts!AC89,0,1,1) ->  | AS89: =OFFSET(PeriodBarBuilder!$CC$32,CalculationsAndCharts!AD89,0,1,1) ->  | AT89: =OFFSET(PeriodBarBuilder!$CP$32,CalculationsAndCharts!AE89,0,1,1) ->  | AV89: 0 | AW89: 12194600
A90: 58 | B90: =IF(A90>$A$8,"",OFFSET(InputPriceData!B$15,$A90+$A$11,0,1,1)) -> 2018-11-16 | C90: =IF(A90>$A$8,"",OFFSET(InputPriceData!G$15,CalculationsAndCharts!$A90+$A$11,IF($C$5,8,0),1,1)) -> 7905100 | D90: =IF(A90>$A$8,"",OFFSET(InputPriceData!C$15,CalculationsAndCharts!$A90+$A$11,IF($C$5,8,0),1,1)) -> 32.68 | E90: =IF(A90>$A$8,"",OFFSET(InputPriceData!D$15,CalculationsAndCharts!$A90+$A$11,IF($C$5,8,0),1,1)) -> 32.880001 | F90: =IF(A90>$A$8,"",OFFSET(InputPriceData!E$15,CalculationsAndCharts!$A90+$A$11,IF($C$5,8,0),1,1)) -> 32.130001 | G90: =IF(A90>$A$8,"",OFFSET(InputPriceData!F$15,CalculationsAndCharts!$A90+$A$11,IF($C$5,8,0),1,1)) -> 32.459999 | H90: 38.860001 | I90: 31.75 | J90: =IF($R$19=FALSE,NA(),OFFSET(PeriodBarBuilder!$K$32,A90,0,1,1)) -> 0.09985919833 | K90: =MATCH(A90,OFFSET(PeriodBarBuilder!$O$33,0,0,PeriodBarBuilder!$Q$31,1),0) -> 14 | L90: =IF($R$20=FALSE,NA(),OFFSET(PeriodBarBuilder!$Y$32,K90,0,1,1)) -> 0.04581158677 | M90: =MATCH($A90,OFFSET(PeriodBarBuilder!$AC$32,1,0,PeriodBarBuilder!$AE$31,1),0) ->  | N90: =IF($R$21=FALSE,NA(),OFFSET(PeriodBarBuilder!$AM$32,M90,0,1,1)) ->  | O90: =MATCH($A90,OFFSET(PeriodBarBuilder!$AP$32,1,0,PeriodBarBuilder!$AR$31,1),0) ->  | P90: =IF($R$22=FALSE,NA(),OFFSET(PeriodBarBuilder!$AZ$32,O90,0,1,1)) ->  | Q90: =MATCH($A90,OFFSET(PeriodBarBuilder!$BD$32,1,0,PeriodBarBuilder!$BF$31,1),0) ->  | R90: =IF($R$23=FALSE,NA(),OFFSET(PeriodBarBuilder!$BN$32,Q90,0,1,1)) ->  | S90: =MATCH($A90,OFFSET(PeriodBarBuilder!$BQ$32,1,0,PeriodBarBuilder!$BS$31,1),0) ->  | T90: =IF($R$24=FALSE,NA(),OFFSET(PeriodBarBuilder!$CA$32,S90,0,1,1)) ->  | U90: =MATCH($A90,OFFSET(PeriodBarBuilder!$CD$32,1,0,PeriodBarBuilder!$CF$31,1),0) ->  | V90: =IF($R$25=FALSE,NA(),OFFSET(PeriodBarBuilder!$CN$32,U90,0,1,1)) ->  | W90: 0.8 | X90: 0.2 | Y90: =OFFSET(PeriodBarBuilder!$O$32,K90,0,1,1) -> 58 | Z90: 14 | AA90: =MATCH($Y90,OFFSET(PeriodBarBuilder!$AC$33,0,0,PeriodBarBuilder!$AE$31,1),1) -> 4 | AB90: =MATCH($Y90,OFFSET(PeriodBarBuilder!$AP$33,0,0,PeriodBarBuilder!$AR$31,1),1) -> 7 | AC90: =MATCH($Y90,OFFSET(PeriodBarBuilder!$BD$33,0,0,PeriodBarBuilder!$BF$31,1),1) -> 2 | AD90: =MATCH($Y90,OFFSET(PeriodBarBuilder!$BQ$33,0,0,PeriodBarBuilder!$BS$31,1),1) -> 3 | AE90: =MATCH($Y90,OFFSET(PeriodBarBuilder!$CD$33,0,0,PeriodBarBuilder!$CF$31,1),1) -> 6 | AF90: =OFFSET(PeriodBarBuilder!$L$32,CalculationsAndCharts!Y90,0,1,1) -> 1 | AG90: =OFFSET(PeriodBarBuilder!$Z$32,CalculationsAndCharts!Z90,0,1,1) -> 1 | AH90: =OFFSET(PeriodBarBuilder!$AN$32,CalculationsAndCharts!AA90,0,1,1) -> 1 | AI90: =OFFSET(PeriodBarBuilder!$BA$32,CalculationsAndCharts!AB90,0,1,1) -> 1 | AJ90: =OFFSET(PeriodBarBuilder!$BO$32,CalculationsAndCharts!AC90,0,1,1) -> 1 | AK90: =OFFSET(PeriodBarBuilder!$CB$32,CalculationsAndCharts!AD90,0,1,1) -> 1 | AL90: =OFFSET(PeriodBarBuilder!$CO$32,CalculationsAndCharts!AE90,0,1,1) -> 1 | AM90: 7 | AN90: =OFFSET(PeriodBarBuilder!$M$32,CalculationsAndCharts!Y90,0,1,1) -> 0 | AO90: =OFFSET(PeriodBarBuilder!$AA$32,CalculationsAndCharts!K90,0,1,1) -> 0 | AP90: =OFFSET(PeriodBarBuilder!$AO$32,CalculationsAndCharts!AA90,0,1,1) -> 0 | AQ90: =OFFSET(PeriodBarBuilder!$BB$32,CalculationsAndCharts!AB90,0,1,1) -> 0 | AR90: =OFFSET(PeriodBarBuilder!$BP$32,CalculationsAndCharts!AC90,0,1,1) -> 0 | AS90: =OFFSET(PeriodBarBuilder!$CC$32,CalculationsAndCharts!AD90,0,1,1) -> 0 | AT90: =OFFSET(PeriodBarBuilder!$CP$32,CalculationsAndCharts!AE90,0,1,1) -> 0 | AU90: 0 | AV90: 0 | AX90: 7905100
A91: 59 | B91: =IF(A91>$A$8,"",OFFSET(InputPriceData!B$15,$A91+$A$11,0,1,1)) -> 2018-11-15 | C91: =IF(A91>$A$8,"",OFFSET(InputPriceData!G$15,CalculationsAndCharts!$A91+$A$11,IF($C$5,8,0),1,1)) -> 13292400 | D91: =IF(A91>$A$8,"",OFFSET(InputPriceData!C$15,CalculationsAndCharts!$A91+$A$11,IF($C$5,8,0),1,1)) -> 32 | E91: =IF(A91>$A$8,"",OFFSET(InputPriceData!D$15,CalculationsAndCharts!$A91+$A$11,IF($C$5,8,0),1,1)) -> 32.470001 | F91: =IF(A91>$A$8,"",OFFSET(InputPriceData!E$15,CalculationsAndCharts!$A91+$A$11,IF($C$5,8,0),1,1)) -> 31.75 | G91: =IF(A91>$A$8,"",OFFSET(InputPriceData!F$15,CalculationsAndCharts!$A91+$A$11,IF($C$5,8,0),1,1)) -> 32.450001 | H91: 39.080002 | I91: 31.75 | J91: =IF($R$19=FALSE,NA(),OFFSET(PeriodBarBuilder!$K$32,A91,0,1,1)) -> 0.09549806398 | K91: =MATCH(A91,OFFSET(PeriodBarBuilder!$O$33,0,0,PeriodBarBuilder!$Q$31,1),0) ->  | L91: =IF($R$20=FALSE,NA(),OFFSET(PeriodBarBuilder!$Y$32,K91,0,1,1)) ->  | M91: =MATCH($A91,OFFSET(PeriodBarBuilder!$AC$32,1,0,PeriodBarBuilder!$AE$31,1),0) ->  | N91: =IF($R$21=FALSE,NA(),OFFSET(PeriodBarBuilder!$AM$32,M91,0,1,1)) ->  | O91: =MATCH($A91,OFFSET(PeriodBarBuilder!$AP$32,1,0,PeriodBarBuilder!$AR$31,1),0) ->  | P91: =IF($R$22=FALSE,NA(),OFFSET(PeriodBarBuilder!$AZ$32,O91,0,1,1)) ->  | Q91: =MATCH($A91,OFFSET(PeriodBarBuilder!$BD$32,1,0,PeriodBarBuilder!$BF$31,1),0) ->  | R91: =IF($R$23=FALSE,NA(),OFFSET(PeriodBarBuilder!$BN$32,Q91,0,1,1)) ->  | S91: =MATCH($A91,OFFSET(PeriodBarBuilder!$BQ$32,1,0,PeriodBarBuilder!$BS$31,1),0) ->  | T91: =IF($R$24=FALSE,NA(),OFFSET(PeriodBarBuilder!$CA$32,S91,0,1,1)) ->  | U91: =MATCH($A91,OFFSET(PeriodBarBuilder!$CD$32,1,0,PeriodBarBuilder!$CF$31,1),0) ->  | V91: =IF($R$25=FALSE,NA(),OFFSET(PeriodBarBuilder!$CN$32,U91,0,1,1)) ->  | W91: 0.8 | X91: 0.2 | Y91: =OFFSET(PeriodBarBuilder!$O$32,K91,0,1,1) ->  | AA91: =MATCH($Y91,OFFSET(PeriodBarBuilder!$AC$33,0,0,PeriodBarBuilder!$AE$31,1),1) ->  | AB91: =MATCH($Y91,OFFSET(PeriodBarBuilder!$AP$33,0,0,PeriodBarBuilder!$AR$31,1),1) ->  | AC91: =MATCH($Y91,OFFSET(PeriodBarBuilder!$BD$33,0,0,PeriodBarBuilder!$BF$31,1),1) ->  | AD91: =MATCH($Y91,OFFSET(PeriodBarBuilder!$BQ$33,0,0,PeriodBarBuilder!$BS$31,1),1) ->  | AE91: =MATCH($Y91,OFFSET(PeriodBarBuilder!$CD$33,0,0,PeriodBarBuilder!$CF$31,1),1) ->  | AF91: =OFFSET(PeriodBarBuilder!$L$32,CalculationsAndCharts!Y91,0,1,1) ->  | AG91: =OFFSET(PeriodBarBuilder!$Z$32,CalculationsAndCharts!Z91,0,1,1) ->  | AH91: =OFFSET(PeriodBarBuilder!$AN$32,CalculationsAndCharts!AA91,0,1,1) ->  | AI91: =OFFSET(PeriodBarBuilder!$BA$32,CalculationsAndCharts!AB91,0,1,1) ->  | AJ91: =OFFSET(PeriodBarBuilder!$BO$32,CalculationsAndCharts!AC91,0,1,1) ->  | AK91: =OFFSET(PeriodBarBuilder!$CB$32,CalculationsAndCharts!AD91,0,1,1) ->  | AL91: =OFFSET(PeriodBarBuilder!$CO$32,CalculationsAndCharts!AE91,0,1,1) ->  | AN91: =OFFSET(PeriodBarBuilder!$M$32,CalculationsAndCharts!Y91,0,1,1) ->  | AO91: =OFFSET(PeriodBarBuilder!$AA$32,CalculationsAndCharts!K91,0,1,1) ->  | AP91: =OFFSET(PeriodBarBuilder!$AO$32,CalculationsAndCharts!AA91,0,1,1) ->  | AQ91: =OFFSET(PeriodBarBuilder!$BB$32,CalculationsAndCharts!AB91,0,1,1) ->  | AR91: =OFFSET(PeriodBarBuilder!$BP$32,CalculationsAndCharts!AC91,0,1,1) ->  | AS91: =OFFSET(PeriodBarBuilder!$CC$32,CalculationsAndCharts!AD91,0,1,1) ->  | AT91: =OFFSET(PeriodBarBuilder!$CP$32,CalculationsAndCharts!AE91,0,1,1) ->  | AV91: 0 | AW91: 13292400
A92: 60 | B92: =IF(A92>$A$8,"",OFFSET(InputPriceData!B$15,$A92+$A$11,0,1,1)) -> 2018-11-14 | C92: =IF(A92>$A$8,"",OFFSET(InputPriceData!G$15,CalculationsAndCharts!$A92+$A$11,IF($C$5,8,0),1,1)) -> 15648700 | D92: =IF(A92>$A$8,"",OFFSET(InputPriceData!C$15,CalculationsAndCharts!$A92+$A$11,IF($C$5,8,0),1,1)) -> 32.790001 | E92: =IF(A92>$A$8,"",OFFSET(InputPriceData!D$15,CalculationsAndCharts!$A92+$A$11,IF($C$5,8,0),1,1)) -> 32.98 | F92: =IF(A92>$A$8,"",OFFSET(InputPriceData!E$15,CalculationsAndCharts!$A92+$A$11,IF($C$5,8,0),1,1)) -> 32.009998 | G92: =IF(A92>$A$8,"",OFFSET(InputPriceData!F$15,CalculationsAndCharts!$A92+$A$11,IF($C$5,8,0),1,1)) -> 32.25 | H92: 40.02 | I92: 32.009998 | J92: =IF($R$19=FALSE,NA(),OFFSET(PeriodBarBuilder!$K$32,A92,0,1,1)) -> 0.02996278902 | K92: =MATCH(A92,OFFSET(PeriodBarBuilder!$O$33,0,0,PeriodBarBuilder!$Q$31,1),0) ->  | L92: =IF($R$20=FALSE,NA(),OFFSET(PeriodBarBuilder!$Y$32,K92,0,1,1)) ->  | M92: =MATCH($A92,OFFSET(PeriodBarBuilder!$AC$32,1,0,PeriodBarBuilder!$AE$31,1),0) ->  | N92: =IF($R$21=FALSE,NA(),OFFSET(PeriodBarBuilder!$AM$32,M92,0,1,1)) ->  | O92: =MATCH($A92,OFFSET(PeriodBarBuilder!$AP$32,1,0,PeriodBarBuilder!$AR$31,1),0) -> 8 | P92: =IF($R$22=FALSE,NA(),OFFSET(PeriodBarBuilder!$AZ$32,O92,0,1,1)) -> 0.01005810328 | Q92: =MATCH($A92,OFFSET(PeriodBarBuilder!$BD$32,1,0,PeriodBarBuilder!$BF$31,1),0) ->  | R92: =IF($R$23=FALSE,NA(),OFFSET(PeriodBarBuilder!$BN$32,Q92,0,1,1)) ->  | S92: =MATCH($A92,OFFSET(PeriodBarBuilder!$BQ$32,1,0,PeriodBarBuilder!$BS$31,1),0) ->  | T92: =IF($R$24=FALSE,NA(),OFFSET(PeriodBarBuilder!$CA$32,S92,0,1,1)) ->  | U92: =MATCH($A92,OFFSET(PeriodBarBuilder!$CD$32,1,0,PeriodBarBuilder!$CF$31,1),0) ->  | V92: =IF($R$25=FALSE,NA(),OFFSET(PeriodBarBuilder!$CN$32,U92,0,1,1)) ->  | W92: 0.8 | X92: 0.2 | Y92: =OFFSET(PeriodBarBuilder!$O$32,K92,0,1,1) ->  | AA92: =MATCH($Y92,OFFSET(PeriodBarBuilder!$AC$33,0,0,PeriodBarBuilder!$AE$31,1),1) ->  | AB92: =MATCH($Y92,OFFSET(PeriodBarBuilder!$AP$33,0,0,PeriodBarBuilder!$AR$31,1),1) ->  | AC92: =MATCH($Y92,OFFSET(PeriodBarBuilder!$BD$33,0,0,PeriodBarBuilder!$BF$31,1),1) ->  | AD92: =MATCH($Y92,OFFSET(PeriodBarBuilder!$BQ$33,0,0,PeriodBarBuilder!$BS$31,1),1) ->  | AE92: =MATCH($Y92,OFFSET(PeriodBarBuilder!$CD$33,0,0,PeriodBarBuilder!$CF$31,1),1) ->  | AF92: =OFFSET(PeriodBarBuilder!$L$32,CalculationsAndCharts!Y92,0,1,1) ->  | AG92: =OFFSET(PeriodBarBuilder!$Z$32,CalculationsAndCharts!Z92,0,1,1) ->  | AH92: =OFFSET(PeriodBarBuilder!$AN$32,CalculationsAndCharts!AA92,0,1,1) ->  | AI92: =OFFSET(PeriodBarBuilder!$BA$32,CalculationsAndCharts!AB92,0,1,1) ->  | AJ92: =OFFSET(PeriodBarBuilder!$BO$32,CalculationsAndCharts!AC92,0,1,1) ->  | AK92: =OFFSET(PeriodBarBuilder!$CB$32,CalculationsAndCharts!AD92,0,1,1) ->  | AL92: =OFFSET(PeriodBarBuilder!$CO$32,CalculationsAndCharts!AE92,0,1,1) ->  | AN92: =OFFSET(PeriodBarBuilder!$M$32,CalculationsAndCharts!Y92,0,1,1) ->  | AO92: =OFFSET(PeriodBarBuilder!$AA$32,CalculationsAndCharts!K92,0,1,1) ->  | AP92: =OFFSET(PeriodBarBuilder!$AO$32,CalculationsAndCharts!AA92,0,1,1) ->  | AQ92: =OFFSET(PeriodBarBuilder!$BB$32,CalculationsAndCharts!AB92,0,1,1) ->  | AR92: =OFFSET(PeriodBarBuilder!$BP$32,CalculationsAndCharts!AC92,0,1,1) ->  | AS92: =OFFSET(PeriodBarBuilder!$CC$32,CalculationsAndCharts!AD92,0,1,1) ->  | AT92: =OFFSET(PeriodBarBuilder!$CP$32,CalculationsAndCharts!AE92,0,1,1) ->  | AV92: 0 | AX92: 15648700
A93: 61 | B93: =IF(A93>$A$8,"",OFFSET(InputPriceData!B$15,$A93+$A$11,0,1,1)) -> 2018-11-13 | C93: =IF(A93>$A$8,"",OFFSET(InputPriceData!G$15,CalculationsAndCharts!$A93+$A$11,IF($C$5,8,0),1,1)) -> 21537000 | D93: =IF(A93>$A$8,"",OFFSET(InputPriceData!C$15,CalculationsAndCharts!$A93+$A$11,IF($C$5,8,0),1,1)) -> 34 | E93: =IF(A93>$A$8,"",OFFSET(InputPriceData!D$15,CalculationsAndCharts!$A93+$A$11,IF($C$5,8,0),1,1)) -> 34.09 | F93: =IF(A93>$A$8,"",OFFSET(InputPriceData!E$15,CalculationsAndCharts!$A93+$A$11,IF($C$5,8,0),1,1)) -> 32.099998 | G93: =IF(A93>$A$8,"",OFFSET(InputPriceData!F$15,CalculationsAndCharts!$A93+$A$11,IF($C$5,8,0),1,1)) -> 32.27 | H93: 40.450001 | I93: 32.099998 | J93: =IF($R$19=FALSE,NA(),OFFSET(PeriodBarBuilder!$K$32,A93,0,1,1)) -> 0.02035951364 | K93: =MATCH(A93,OFFSET(PeriodBarBuilder!$O$33,0,0,PeriodBarBuilder!$Q$31,1),0) ->  | L93: =IF($R$20=FALSE,NA(),OFFSET(PeriodBarBuilder!$Y$32,K93,0,1,1)) ->  | M93: =MATCH($A93,OFFSET(PeriodBarBuilder!$AC$32,1,0,PeriodBarBuilder!$AE$31,1),0) ->  | N93: =IF($R$21=FALSE,NA(),OFFSET(PeriodBarBuilder!$AM$32,M93,0,1,1)) ->  | O93: =MATCH($A93,OFFSET(PeriodBarBuilder!$AP$32,1,0,PeriodBarBuilder!$AR$31,1),0) ->  | P93: =IF($R$22=FALSE,NA(),OFFSET(PeriodBarBuilder!$AZ$32,O93,0,1,1)) ->  | Q93: =MATCH($A93,OFFSET(PeriodBarBuilder!$BD$32,1,0,PeriodBarBuilder!$BF$31,1),0) ->  | R93: =IF($R$23=FALSE,NA(),OFFSET(PeriodBarBuilder!$BN$32,Q93,0,1,1)) ->  | S93: =MATCH($A93,OFFSET(PeriodBarBuilder!$BQ$32,1,0,PeriodBarBuilder!$BS$31,1),0) ->  | T93: =IF($R$24=FALSE,NA(),OFFSET(PeriodBarBuilder!$CA$32,S93,0,1,1)) ->  | U93: =MATCH($A93,OFFSET(PeriodBarBuilder!$CD$32,1,0,PeriodBarBuilder!$CF$31,1),0) ->  | V93: =IF($R$25=FALSE,NA(),OFFSET(PeriodBarBuilder!$CN$32,U93,0,1,1)) ->  | W93: 0.8 | X93: 0.2 | Y93: =OFFSET(PeriodBarBuilder!$O$32,K93,0,1,1) ->  | AA93: =MATCH($Y93,OFFSET(PeriodBarBuilder!$AC$33,0,0,PeriodBarBuilder!$AE$31,1),1) ->  | AB93: =MATCH($Y93,OFFSET(PeriodBarBuilder!$AP$33,0,0,PeriodBarBuilder!$AR$31,1),1) ->  | AC93: =MATCH($Y93,OFFSET(PeriodBarBuilder!$BD$33,0,0,PeriodBarBuilder!$BF$31,1),1) ->  | AD93: =MATCH($Y93,OFFSET(PeriodBarBuilder!$BQ$33,0,0,PeriodBarBuilder!$BS$31,1),1) ->  | AE93: =MATCH($Y93,OFFSET(PeriodBarBuilder!$CD$33,0,0,PeriodBarBuilder!$CF$31,1),1) ->  | AF93: =OFFSET(PeriodBarBuilder!$L$32,CalculationsAndCharts!Y93,0,1,1) ->  | AG93: =OFFSET(PeriodBarBuilder!$Z$32,CalculationsAndCharts!Z93,0,1,1) ->  | AH93: =OFFSET(PeriodBarBuilder!$AN$32,CalculationsAndCharts!AA93,0,1,1) ->  | AI93: =OFFSET(PeriodBarBuilder!$BA$32,CalculationsAndCharts!AB93,0,1,1) ->  | AJ93: =OFFSET(PeriodBarBuilder!$BO$32,CalculationsAndCharts!AC93,0,1,1) ->  | AK93: =OFFSET(PeriodBarBuilder!$CB$32,CalculationsAndCharts!AD93,0,1,1) ->  | AL93: =OFFSET(PeriodBarBuilder!$CO$32,CalculationsAndCharts!AE93,0,1,1) ->  | AN93: =OFFSET(PeriodBarBuilder!$M$32,CalculationsAndCharts!Y93,0,1,1) ->  | AO93: =OFFSET(PeriodBarBuilder!$AA$32,CalculationsAndCharts!K93,0,1,1) ->  | AP93: =OFFSET(PeriodBarBuilder!$AO$32,CalculationsAndCharts!AA93,0,1,1) ->  | AQ93: =OFFSET(PeriodBarBuilder!$BB$32,CalculationsAndCharts!AB93,0,1,1) ->  | AR93: =OFFSET(PeriodBarBuilder!$BP$32,CalculationsAndCharts!AC93,0,1,1) ->  | AS93: =OFFSET(PeriodBarBuilder!$CC$32,CalculationsAndCharts!AD93,0,1,1) ->  | AT93: =OFFSET(PeriodBarBuilder!$CP$32,CalculationsAndCharts!AE93,0,1,1) ->  | AV93: 0 | AX93: 21537000
